Workbook

Sheet Report - ALL (DASHBOARD)
A1: Dashboard | B1: Select Parameter: | F1: Select Statistic: | I1: Select Seasonal Period: | L1: Notes | W1: 10
L2: - HEC5Q/RecTemp flows and storages may not be consistent CalSim II. Refer to CalSim II output for flows and storages. | W2: 1
L3: - year type sorting is done by calendar year | W3: 16
L4: - year type sorting is provided for 60-20-20 index as well as 40-30-30 index | W4: TRUE
L5: - format consistent with appendix reports
L6: - check out the new spinners!
B12: =CONCATENATE('Report Data'!$P$7," / seasonal statistics (",$W$1,"-",$W$2,"-",$W$3,"-",IF(NOT($W$4),1,2),"a):") -> Sacramento River Below Clear Creek Temperature / seasonal statistics (10-1-16-2a):
C16: ='Report Data'!P6 -> October-September
C17: ='Report Data'!P7 -> Sacramento River Below Clear Creek Temperature
C18: ='Report Data'!P9 -> (BLW CLEAR CREEK/TEMP)
C19: ='Report Data'!P8 -> Averages
C20: ='Report Data'!P11 -> TEMPERATURE (deg F) | F20: =CONCATENATE("Difference from ",'Report Data'!Q13) -> Difference from NAA 011221 | G20: ="Difference from Previous" -> Difference from Previous
C24: ='Report Data'!O14 -> NAA 011221 | E24: ='Report Data'!P14 -> 51.09896064
C25: ='Report Data'!O15 -> Alt 1A 011221 | E25: ='Report Data'!P15 -> 51.10260887 | F25: ='Report Data'!Q15 -> 0.00364823204 | G25: ='Report Data'!R15 -> 0.00364823204
C26: ='Report Data'!O16 -> Alt 1B 011221 | E26: ='Report Data'!P16 -> 51.10373362 | F26: ='Report Data'!Q16 -> 0.00477298297 | G26: ='Report Data'!R16 -> 0.00112475093
C27: ='Report Data'!O17 -> Alt 2 011221 | E27: ='Report Data'!P17 -> 51.10528434 | F27: ='Report Data'!Q17 -> 0.006323700579 | G27: ='Report Data'!R17 -> 0.001550717609
C28: ='Report Data'!O18 ->  | E28: ='Report Data'!P18 ->  | F28: ='Report Data'!Q18 ->  | G28: ='Report Data'!R18 -> 
B59: =CONCATENATE('Report Data'!$P$7," / monthly statistics (",$W$1,"-",$W$2,"-",$W$3,"-",IF(NOT($W$4),1,2),"b):") -> Sacramento River Below Clear Creek Temperature / monthly statistics (10-1-16-2b):
B87: =CONCATENATE('Report Data'!$P$7," / time series (",$W$1,"-",$W$2,"-",$W$3,"-",IF(NOT($W$4),1,2),"c):") -> Sacramento River Below Clear Creek Temperature / time series (10-1-16-2c):

Sheet Chart - Prob Exc

Sheet Chart - Pattern

Sheet Report Data
A2: Information, Tables and Calculations for Reports
A4: Table of Selected Values for Monthly Chart: | O4: Trend Evaluation:
A6: Title: | B6: ='Compile Data'!$B$5 -> Sacramento River Below Clear Creek Temperature | O6: Title: | P6: =INDEX(Other!$B$9:$B$31,'Report - ALL (DASHBOARD)'!$W$3) -> October-September
B7: =INDEX(Other!$C$9:$C$33,'Report - ALL (DASHBOARD)'!$W$2) -> Averages | P7: ='Compile Data'!$B$5 -> Sacramento River Below Clear Creek Temperature
B8: =CONCATENATE("(",'Compile Data'!$B$6,"/",'Compile Data'!$B$7,")") -> (BLW CLEAR CREEK/TEMP) | P8: =CONCATENATE(INDEX(Other!$C$9:$C$33,'Report - ALL (DASHBOARD)'!$W$2)," ",IF('Report - ALL (DASHBOARD)'!$W$2>4,IF(AND('Compile Data'!$B$10="TAF",'Compile Data'!$B$8="PER-AVER"),"Totals","Averages"),"")) -> Averages
P9: =CONCATENATE("(",'Compile Data'!$B$6,"/",'Compile Data'!$B$7,")") -> (BLW CLEAR CREEK/TEMP)
A11: Y-axis: | B11: =IF('Compile Data'!$B$10="CFS","Flow (CFS)",IF('Compile Data'!$B$10="TAF","Volume (TAF)",IF('Compile Data'!$B$10="KM","POSITION (KM)",IF(OR('Compile Data'!$B$10="DEGF",'Compile Data'!$B$10="DEG-F"),"TEMPERATURE (deg F)","")))) -> TEMPERATURE (deg F) | P11: =IF('Compile Data'!$B$10="CFS","Flow (CFS)",IF('Compile Data'!$B$10="TAF","Volume (TAF)",IF('Compile Data'!$B$10="KM","POSITION (KM)",IF(OR('Compile Data'!$B$10="DEGF",'Compile Data'!$B$10="DEG-F"),"TEMPERATURE (deg F)","")))) -> TEMPERATURE (deg F)
Q12: Diff from | R12: Diff from
B13: OCT | C13: NOV | D13: DEC | E13: JAN | F13: FEB | G13: MAR | H13: APR | I13: MAY | J13: JUN | K13: JUL | L13: AUG | M13: SEP | P13: Value | Q13: =$O$14 -> NAA 011221 | R13: Previous
A14: ='Compile Data'!$B$1 -> NAA 011221 | B14: =INDEX('Compile Data'!J$95:J$118,'Report - ALL (DASHBOARD)'!$W$2) -> 52.81215192 | C14: =INDEX('Compile Data'!K$95:K$118,'Report - ALL (DASHBOARD)'!$W$2) -> 53.81213162 | D14: =INDEX('Compile Data'!L$95:L$118,'Report - ALL (DASHBOARD)'!$W$2) -> 50.99033473 | E14: =INDEX('Compile Data'!M$95:M$118,'Report - ALL (DASHBOARD)'!$W$2) -> 47.40117161 | F14: =INDEX('Compile Data'!N$95:N$118,'Report - ALL (DASHBOARD)'!$W$2) -> 46.53232579 | G14: =INDEX('Compile Data'!O$95:O$118,'Report - ALL (DASHBOARD)'!$W$2) -> 48.45969549 | H14: =INDEX('Compile Data'!P$95:P$118,'Report - ALL (DASHBOARD)'!$W$2) -> 52.19284248 | I14: =INDEX('Compile Data'!Q$95:Q$118,'Report - ALL (DASHBOARD)'!$W$2) -> 52.55493048 | J14: =INDEX('Compile Data'!R$95:R$118,'Report - ALL (DASHBOARD)'!$W$2) -> 52.39834339 | K14: =INDEX('Compile Data'!S$95:S$118,'Report - ALL (DASHBOARD)'!$W$2) -> 51.59267328 | L14: =INDEX('Compile Data'!T$95:T$118,'Report - ALL (DASHBOARD)'!$W$2) -> 52.13389169 | M14: =INDEX('Compile Data'!U$95:U$118,'Report - ALL (DASHBOARD)'!$W$2) -> 52.22001774 | O14: ='Compile Data'!$B$1 -> NAA 011221 | P14: =INDEX('Compile Data'!$J$95:$AE$118,'Report - ALL (DASHBOARD)'!$W$2,'Report - ALL (DASHBOARD)'!$W$3) -> 51.09896064
A15: ='Compile Data'!$C$1 -> Alt 1A 011221 | B15: =INDEX('Compile Data'!AH$95:AH$118,'Report - ALL (DASHBOARD)'!$W$2) -> 52.80784965 | C15: =INDEX('Compile Data'!AI$95:AI$118,'Report - ALL (DASHBOARD)'!$W$2) -> 53.79615365 | D15: =INDEX('Compile Data'!AJ$95:AJ$118,'Report - ALL (DASHBOARD)'!$W$2) -> 50.9973697 | E15: =INDEX('Compile Data'!AK$95:AK$118,'Report - ALL (DASHBOARD)'!$W$2) -> 47.40537992 | F15: =INDEX('Compile Data'!AL$95:AL$118,'Report - ALL (DASHBOARD)'!$W$2) -> 46.53724545 | G15: =INDEX('Compile Data'!AM$95:AM$118,'Report - ALL (DASHBOARD)'!$W$2) -> 48.46799957 | H15: =INDEX('Compile Data'!AN$95:AN$118,'Report - ALL (DASHBOARD)'!$W$2) -> 52.20910817 | I15: =INDEX('Compile Data'!AO$95:AO$118,'Report - ALL (DASHBOARD)'!$W$2) -> 52.62871244 | J15: =INDEX('Compile Data'!AP$95:AP$118,'Report - ALL (DASHBOARD)'!$W$2) -> 52.45164508 | K15: =INDEX('Compile Data'!AQ$95:AQ$118,'Report - ALL (DASHBOARD)'!$W$2) -> 51.56801461 | L15: =INDEX('Compile Data'!AR$95:AR$118,'Report - ALL (DASHBOARD)'!$W$2) -> 52.10720383 | M15: =INDEX('Compile Data'!AS$95:AS$118,'Report - ALL (DASHBOARD)'!$W$2) -> 52.16788934 | O15: ='Compile Data'!$C$1 -> Alt 1A 011221 | P15: =INDEX('Compile Data'!$AH$95:$BC$118,'Report - ALL (DASHBOARD)'!$W$2,'Report - ALL (DASHBOARD)'!$W$3) -> 51.10260887 | Q15: =$P15-$P$14 -> 0.00364823204 | R15: =$P15-$P14 -> 0.00364823204
A16: ='Compile Data'!$D$1 -> Alt 1B 011221 | B16: =INDEX('Compile Data'!BF$95:BF$118,'Report - ALL (DASHBOARD)'!$W$2) -> 52.79793191 | C16: =INDEX('Compile Data'!BG$95:BG$118,'Report - ALL (DASHBOARD)'!$W$2) -> 53.82007086 | D16: =INDEX('Compile Data'!BH$95:BH$118,'Report - ALL (DASHBOARD)'!$W$2) -> 50.99209303 | E16: =INDEX('Compile Data'!BI$95:BI$118,'Report - ALL (DASHBOARD)'!$W$2) -> 47.39995054 | F16: =INDEX('Compile Data'!BJ$95:BJ$118,'Report - ALL (DASHBOARD)'!$W$2) -> 46.53144357 | G16: =INDEX('Compile Data'!BK$95:BK$118,'Report - ALL (DASHBOARD)'!$W$2) -> 48.46798827 | H16: =INDEX('Compile Data'!BL$95:BL$118,'Report - ALL (DASHBOARD)'!$W$2) -> 52.22229371 | I16: =INDEX('Compile Data'!BM$95:BM$118,'Report - ALL (DASHBOARD)'!$W$2) -> 52.64440951 | J16: =INDEX('Compile Data'!BN$95:BN$118,'Report - ALL (DASHBOARD)'!$W$2) -> 52.47901037 | K16: =INDEX('Compile Data'!BO$95:BO$118,'Report - ALL (DASHBOARD)'!$W$2) -> 51.58299488 | L16: =INDEX('Compile Data'!BP$95:BP$118,'Report - ALL (DASHBOARD)'!$W$2) -> 52.09411384 | M16: =INDEX('Compile Data'!BQ$95:BQ$118,'Report - ALL (DASHBOARD)'!$W$2) -> 52.12418124 | O16: ='Compile Data'!$D$1 -> Alt 1B 011221 | P16: =INDEX('Compile Data'!$BF$95:$CA$118,'Report - ALL (DASHBOARD)'!$W$2,'Report - ALL (DASHBOARD)'!$W$3) -> 51.10373362 | Q16: =$P16-$P$14 -> 0.00477298297 | R16: =$P16-$P15 -> 0.00112475093
A17: ='Compile Data'!$E$1 -> Alt 2 011221 | B17: =INDEX('Compile Data'!DZ$95:DZ$118,'Report - ALL (DASHBOARD)'!$W$2) -> 52.81997643 | C17: =INDEX('Compile Data'!EA$95:EA$118,'Report - ALL (DASHBOARD)'!$W$2) -> 53.81288948 | D17: =INDEX('Compile Data'!EB$95:EB$118,'Report - ALL (DASHBOARD)'!$W$2) -> 50.9996328 | E17: =INDEX('Compile Data'!EC$95:EC$118,'Report - ALL (DASHBOARD)'!$W$2) -> 47.40428459 | F17: =INDEX('Compile Data'!ED$95:ED$118,'Report - ALL (DASHBOARD)'!$W$2) -> 46.53112049 | G17: =INDEX('Compile Data'!EE$95:EE$118,'Report - ALL (DASHBOARD)'!$W$2) -> 48.46672826 | H17: =INDEX('Compile Data'!EF$95:EF$118,'Report - ALL (DASHBOARD)'!$W$2) -> 52.21529012 | I17: =INDEX('Compile Data'!EG$95:EG$118,'Report - ALL (DASHBOARD)'!$W$2) -> 52.63454028 | J17: =INDEX('Compile Data'!EH$95:EH$118,'Report - ALL (DASHBOARD)'!$W$2) -> 52.45372326 | K17: =INDEX('Compile Data'!EI$95:EI$118,'Report - ALL (DASHBOARD)'!$W$2) -> 51.56727963 | L17: =INDEX('Compile Data'!EJ$95:EJ$118,'Report - ALL (DASHBOARD)'!$W$2) -> 52.0937493 | M17: =INDEX('Compile Data'!EK$95:EK$118,'Report - ALL (DASHBOARD)'!$W$2) -> 52.17745046 | O17: ='Compile Data'!$E$1 -> Alt 2 011221 | P17: =INDEX('Compile Data'!$DZ$95:$EU$118,'Report - ALL (DASHBOARD)'!$W$2,'Report - ALL (DASHBOARD)'!$W$3) -> 51.10528434 | Q17: 0.006323700579 | R17: =$P17-$P16 -> 0.001550717609
A18: ='Compile Data'!#REF! ->  | B18: =INDEX('Compile Data'!DB$95:DB$118,'Report - ALL (DASHBOARD)'!$W$2) ->  | C18: =INDEX('Compile Data'!DC$95:DC$118,'Report - ALL (DASHBOARD)'!$W$2) ->  | D18: =INDEX('Compile Data'!DD$95:DD$118,'Report - ALL (DASHBOARD)'!$W$2) ->  | E18: =INDEX('Compile Data'!DE$95:DE$118,'Report - ALL (DASHBOARD)'!$W$2) ->  | F18: =INDEX('Compile Data'!DF$95:DF$118,'Report - ALL (DASHBOARD)'!$W$2) ->  | G18: =INDEX('Compile Data'!DG$95:DG$118,'Report - ALL (DASHBOARD)'!$W$2) ->  | H18: =INDEX('Compile Data'!DH$95:DH$118,'Report - ALL (DASHBOARD)'!$W$2) ->  | I18: =INDEX('Compile Data'!DI$95:DI$118,'Report - ALL (DASHBOARD)'!$W$2) ->  | J18: =INDEX('Compile Data'!DJ$95:DJ$118,'Report - ALL (DASHBOARD)'!$W$2) ->  | K18: =INDEX('Compile Data'!DK$95:DK$118,'Report - ALL (DASHBOARD)'!$W$2) ->  | L18: =INDEX('Compile Data'!DL$95:DL$118,'Report - ALL (DASHBOARD)'!$W$2) ->  | M18: =INDEX('Compile Data'!DM$95:DM$118,'Report - ALL (DASHBOARD)'!$W$2) ->  | O18: ='Compile Data'!#REF! ->  | P18: =INDEX('Compile Data'!$DB$95:$DW$118,'Report - ALL (DASHBOARD)'!$W$2,'Report - ALL (DASHBOARD)'!$W$3) ->  | R18: =$P18-$P$15 ->  | S18: =$P18-$P17 -> 
A22: Annuals Plot: | O22: Exceedence Plot:
A24: Title: | B24: =INDEX(Other!$B$9:$B$31,'Report - ALL (DASHBOARD)'!$W$3) -> October-September | O24: Title: | P24: =INDEX(Other!$B$9:$B$31,'Report - ALL (DASHBOARD)'!$W$3) -> October-September
B25: ='Compile Data'!$B$5 -> Sacramento River Below Clear Creek Temperature | P25: ='Compile Data'!$B$5 -> Sacramento River Below Clear Creek Temperature
B26: =IF('Compile Data'!$B$10="CFS","Flow (CFS)",IF('Compile Data'!$B$10="TAF","Volume (TAF)",IF('Compile Data'!$B$10="KM","POSITION (KM)",IF(OR('Compile Data'!$B$10="DEGF",'Compile Data'!$B$10="DEG-F"),"TEMPERATURE (deg F)","")))) -> TEMPERATURE (deg F) | P26: =IF('Compile Data'!$B$10="CFS","Flow (CFS)",IF('Compile Data'!$B$10="TAF","Volume (TAF)",IF('Compile Data'!$B$10="KM","POSITION (KM)",IF(OR('Compile Data'!$B$10="DEGF",'Compile Data'!$B$10="DEG-F"),"TEMPERATURE (deg F)","")))) -> TEMPERATURE (deg F)
B28: ='Compile Data'!$B$1 -> NAA 011221 | C28: ='Compile Data'!$C$1 -> Alt 1A 011221 | D28: ='Compile Data'!$D$1 -> Alt 1B 011221 | E28: ='Compile Data'!$E$1 -> Alt 2 011221 | F28: ='Compile Data'!$E$1 -> Alt 2 011221 | Q28: ='Compile Data'!$B$1 -> NAA 011221 | R28: ='Compile Data'!$C$1 -> Alt 1A 011221 | S28: ='Compile Data'!$D$1 -> Alt 1B 011221 | T28: ='Compile Data'!$E$1 -> Alt 2 011221 | U28: ='Compile Data'!$E$1 -> Alt 2 011221
A29: 1922 | B29: =INDEX('Compile Data'!$J$12:$AE$93,$A29-1921,'Report - ALL (DASHBOARD)'!$W$3) ->  | C29: =INDEX('Compile Data'!$AH$12:$BC$93,$A29-1921,'Report - ALL (DASHBOARD)'!$W$3) ->  | D29: =INDEX('Compile Data'!$BF$12:$CA$93,$A29-1921,'Report - ALL (DASHBOARD)'!$W$3) ->  | E29: =INDEX('Compile Data'!$DZ$12:$EU$93,$A29-1921,'Report - ALL (DASHBOARD)'!$W$3) ->  | O29: 1 | P29: =(O29-1)/81 -> 0 | Q29: =INDEX('Compile Data'!$J$121:$AE$202,$O29,'Report - ALL (DASHBOARD)'!$W$3) -> 53.69580396 | R29: =INDEX('Compile Data'!$AH$121:$BC$202,$O29,'Report - ALL (DASHBOARD)'!$W$3) -> 53.49254131 | S29: =INDEX('Compile Data'!$BF$121:$CA$202,$O29,'Report - ALL (DASHBOARD)'!$W$3) -> 53.39207586 | T29: =INDEX('Compile Data'!$DZ$121:$EU$202,$O29,'Report - ALL (DASHBOARD)'!$W$3) -> 53.49365838
A30: =A29+1 -> 1923 | B30: =INDEX('Compile Data'!$J$12:$AE$93,$A30-1921,'Report - ALL (DASHBOARD)'!$W$3) -> 51.24726836 | C30: =INDEX('Compile Data'!$AH$12:$BC$93,$A30-1921,'Report - ALL (DASHBOARD)'!$W$3) -> 51.25688267 | D30: =INDEX('Compile Data'!$BF$12:$CA$93,$A30-1921,'Report - ALL (DASHBOARD)'!$W$3) -> 51.24791177 | E30: =INDEX('Compile Data'!$DZ$12:$EU$93,$A30-1921,'Report - ALL (DASHBOARD)'!$W$3) -> 51.25688267 | O30: 2 | P30: 0.01234567901 | Q30: =INDEX('Compile Data'!$J$121:$AE$202,$O30,'Report - ALL (DASHBOARD)'!$W$3) -> 53.08076032 | R30: =INDEX('Compile Data'!$AH$121:$BC$202,$O30,'Report - ALL (DASHBOARD)'!$W$3) -> 52.99649588 | S30: =INDEX('Compile Data'!$BF$121:$CA$202,$O30,'Report - ALL (DASHBOARD)'!$W$3) -> 52.98906517 | T30: =INDEX('Compile Data'!$DZ$121:$EU$202,$O30,'Report - ALL (DASHBOARD)'!$W$3) -> 52.98844051
A31: =A30+1 -> 1924 | B31: =INDEX('Compile Data'!$J$12:$AE$93,$A31-1921,'Report - ALL (DASHBOARD)'!$W$3) -> 52.26363564 | C31: =INDEX('Compile Data'!$AH$12:$BC$93,$A31-1921,'Report - ALL (DASHBOARD)'!$W$3) -> 52.2113088 | D31: =INDEX('Compile Data'!$BF$12:$CA$93,$A31-1921,'Report - ALL (DASHBOARD)'!$W$3) -> 52.20774746 | E31: =INDEX('Compile Data'!$DZ$12:$EU$93,$A31-1921,'Report - ALL (DASHBOARD)'!$W$3) -> 52.21764787 | O31: 3 | P31: 0.02469135802 | Q31: =INDEX('Compile Data'!$J$121:$AE$202,$O31,'Report - ALL (DASHBOARD)'!$W$3) -> 52.80780125 | R31: =INDEX('Compile Data'!$AH$121:$BC$202,$O31,'Report - ALL (DASHBOARD)'!$W$3) -> 52.74429893 | S31: =INDEX('Compile Data'!$BF$121:$CA$202,$O31,'Report - ALL (DASHBOARD)'!$W$3) -> 52.74629466 | T31: =INDEX('Compile Data'!$DZ$121:$EU$202,$O31,'Report - ALL (DASHBOARD)'!$W$3) -> 52.74005413
A32: 1925 | B32: =INDEX('Compile Data'!$J$12:$AE$93,$A32-1921,'Report - ALL (DASHBOARD)'!$W$3) -> 51.08722242 | C32: =INDEX('Compile Data'!$AH$12:$BC$93,$A32-1921,'Report - ALL (DASHBOARD)'!$W$3) -> 51.0989062 | D32: =INDEX('Compile Data'!$BF$12:$CA$93,$A32-1921,'Report - ALL (DASHBOARD)'!$W$3) -> 51.10421403 | E32: =INDEX('Compile Data'!$DZ$12:$EU$93,$A32-1921,'Report - ALL (DASHBOARD)'!$W$3) -> 51.09780534 | O32: 4 | P32: 0.03703703704 | Q32: =INDEX('Compile Data'!$J$121:$AE$202,$O32,'Report - ALL (DASHBOARD)'!$W$3) -> 52.62615681 | R32: =INDEX('Compile Data'!$AH$121:$BC$202,$O32,'Report - ALL (DASHBOARD)'!$W$3) -> 52.66303031 | S32: =INDEX('Compile Data'!$BF$121:$CA$202,$O32,'Report - ALL (DASHBOARD)'!$W$3) -> 52.65280978 | T32: =INDEX('Compile Data'!$DZ$121:$EU$202,$O32,'Report - ALL (DASHBOARD)'!$W$3) -> 52.66531054
A33: 1926 | B33: =INDEX('Compile Data'!$J$12:$AE$93,$A33-1921,'Report - ALL (DASHBOARD)'!$W$3) -> 51.74810505 | C33: =INDEX('Compile Data'!$AH$12:$BC$93,$A33-1921,'Report - ALL (DASHBOARD)'!$W$3) -> 51.73995177 | D33: =INDEX('Compile Data'!$BF$12:$CA$93,$A33-1921,'Report - ALL (DASHBOARD)'!$W$3) -> 51.56198025 | E33: =INDEX('Compile Data'!$DZ$12:$EU$93,$A33-1921,'Report - ALL (DASHBOARD)'!$W$3) -> 51.73058796 | O33: 5 | P33: 0.04938271605 | Q33: =INDEX('Compile Data'!$J$121:$AE$202,$O33,'Report - ALL (DASHBOARD)'!$W$3) -> 52.55738131 | R33: =INDEX('Compile Data'!$AH$121:$BC$202,$O33,'Report - ALL (DASHBOARD)'!$W$3) -> 52.56171036 | S33: =INDEX('Compile Data'!$BF$121:$CA$202,$O33,'Report - ALL (DASHBOARD)'!$W$3) -> 52.56585217 | T33: =INDEX('Compile Data'!$DZ$121:$EU$202,$O33,'Report - ALL (DASHBOARD)'!$W$3) -> 52.56194655
A34: 1927 | B34: =INDEX('Compile Data'!$J$12:$AE$93,$A34-1921,'Report - ALL (DASHBOARD)'!$W$3) -> 50.1724151 | C34: =INDEX('Compile Data'!$AH$12:$BC$93,$A34-1921,'Report - ALL (DASHBOARD)'!$W$3) -> 50.17659696 | D34: =INDEX('Compile Data'!$BF$12:$CA$93,$A34-1921,'Report - ALL (DASHBOARD)'!$W$3) -> 50.19432576 | E34: =INDEX('Compile Data'!$DZ$12:$EU$93,$A34-1921,'Report - ALL (DASHBOARD)'!$W$3) -> 50.17480024 | O34: 6 | P34: 0.06172839506 | Q34: =INDEX('Compile Data'!$J$121:$AE$202,$O34,'Report - ALL (DASHBOARD)'!$W$3) -> 52.53639952 | R34: =INDEX('Compile Data'!$AH$121:$BC$202,$O34,'Report - ALL (DASHBOARD)'!$W$3) -> 52.50745169 | S34: =INDEX('Compile Data'!$BF$121:$CA$202,$O34,'Report - ALL (DASHBOARD)'!$W$3) -> 52.52387619 | T34: =INDEX('Compile Data'!$DZ$121:$EU$202,$O34,'Report - ALL (DASHBOARD)'!$W$3) -> 52.5096213
A35: 1928 | B35: =INDEX('Compile Data'!$J$12:$AE$93,$A35-1921,'Report - ALL (DASHBOARD)'!$W$3) -> 50.57583332 | C35: =INDEX('Compile Data'!$AH$12:$BC$93,$A35-1921,'Report - ALL (DASHBOARD)'!$W$3) -> 50.58106518 | D35: =INDEX('Compile Data'!$BF$12:$CA$93,$A35-1921,'Report - ALL (DASHBOARD)'!$W$3) -> 50.61518669 | E35: =INDEX('Compile Data'!$DZ$12:$EU$93,$A35-1921,'Report - ALL (DASHBOARD)'!$W$3) -> 50.58355204 | O35: 7 | P35: 0.07407407407 | Q35: =INDEX('Compile Data'!$J$121:$AE$202,$O35,'Report - ALL (DASHBOARD)'!$W$3) -> 52.50473531 | R35: =INDEX('Compile Data'!$AH$121:$BC$202,$O35,'Report - ALL (DASHBOARD)'!$W$3) -> 52.49153201 | S35: =INDEX('Compile Data'!$BF$121:$CA$202,$O35,'Report - ALL (DASHBOARD)'!$W$3) -> 52.47508589 | T35: =INDEX('Compile Data'!$DZ$121:$EU$202,$O35,'Report - ALL (DASHBOARD)'!$W$3) -> 52.49096902
A36: 1929 | B36: =INDEX('Compile Data'!$J$12:$AE$93,$A36-1921,'Report - ALL (DASHBOARD)'!$W$3) -> 51.41495768 | C36: =INDEX('Compile Data'!$AH$12:$BC$93,$A36-1921,'Report - ALL (DASHBOARD)'!$W$3) -> 51.34252644 | D36: =INDEX('Compile Data'!$BF$12:$CA$93,$A36-1921,'Report - ALL (DASHBOARD)'!$W$3) -> 51.31129328 | E36: =INDEX('Compile Data'!$DZ$12:$EU$93,$A36-1921,'Report - ALL (DASHBOARD)'!$W$3) -> 51.34558837 | O36: 8 | P36: 0.08641975309 | Q36: =INDEX('Compile Data'!$J$121:$AE$202,$O36,'Report - ALL (DASHBOARD)'!$W$3) -> 52.49794801 | R36: =INDEX('Compile Data'!$AH$121:$BC$202,$O36,'Report - ALL (DASHBOARD)'!$W$3) -> 52.48738988 | S36: =INDEX('Compile Data'!$BF$121:$CA$202,$O36,'Report - ALL (DASHBOARD)'!$W$3) -> 52.45140139 | T36: =INDEX('Compile Data'!$DZ$121:$EU$202,$O36,'Report - ALL (DASHBOARD)'!$W$3) -> 52.48614566
A37: 1930 | B37: =INDEX('Compile Data'!$J$12:$AE$93,$A37-1921,'Report - ALL (DASHBOARD)'!$W$3) -> 51.86189079 | C37: =INDEX('Compile Data'!$AH$12:$BC$93,$A37-1921,'Report - ALL (DASHBOARD)'!$W$3) -> 52.03907172 | D37: =INDEX('Compile Data'!$BF$12:$CA$93,$A37-1921,'Report - ALL (DASHBOARD)'!$W$3) -> 52.09973113 | E37: =INDEX('Compile Data'!$DZ$12:$EU$93,$A37-1921,'Report - ALL (DASHBOARD)'!$W$3) -> 52.05364768 | O37: 9 | P37: 0.0987654321 | Q37: =INDEX('Compile Data'!$J$121:$AE$202,$O37,'Report - ALL (DASHBOARD)'!$W$3) -> 52.35862637 | R37: =INDEX('Compile Data'!$AH$121:$BC$202,$O37,'Report - ALL (DASHBOARD)'!$W$3) -> 52.28938039 | S37: =INDEX('Compile Data'!$BF$121:$CA$202,$O37,'Report - ALL (DASHBOARD)'!$W$3) -> 52.39950625 | T37: =INDEX('Compile Data'!$DZ$121:$EU$202,$O37,'Report - ALL (DASHBOARD)'!$W$3) -> 52.47485383
A38: 1931 | B38: =INDEX('Compile Data'!$J$12:$AE$93,$A38-1921,'Report - ALL (DASHBOARD)'!$W$3) -> 52.53639952 | C38: =INDEX('Compile Data'!$AH$12:$BC$93,$A38-1921,'Report - ALL (DASHBOARD)'!$W$3) -> 52.48738988 | D38: =INDEX('Compile Data'!$BF$12:$CA$93,$A38-1921,'Report - ALL (DASHBOARD)'!$W$3) -> 52.45140139 | E38: =INDEX('Compile Data'!$DZ$12:$EU$93,$A38-1921,'Report - ALL (DASHBOARD)'!$W$3) -> 52.48614566 | O38: 10 | P38: 0.1111111111 | Q38: =INDEX('Compile Data'!$J$121:$AE$202,$O38,'Report - ALL (DASHBOARD)'!$W$3) -> 52.26363564 | R38: =INDEX('Compile Data'!$AH$121:$BC$202,$O38,'Report - ALL (DASHBOARD)'!$W$3) -> 52.25660515 | S38: =INDEX('Compile Data'!$BF$121:$CA$202,$O38,'Report - ALL (DASHBOARD)'!$W$3) -> 52.30336157 | T38: =INDEX('Compile Data'!$DZ$121:$EU$202,$O38,'Report - ALL (DASHBOARD)'!$W$3) -> 52.30711333
A39: 1932 | B39: =INDEX('Compile Data'!$J$12:$AE$93,$A39-1921,'Report - ALL (DASHBOARD)'!$W$3) -> 52.09221236 | C39: =INDEX('Compile Data'!$AH$12:$BC$93,$A39-1921,'Report - ALL (DASHBOARD)'!$W$3) -> 52.12019189 | D39: =INDEX('Compile Data'!$BF$12:$CA$93,$A39-1921,'Report - ALL (DASHBOARD)'!$W$3) -> 52.06130664 | E39: =INDEX('Compile Data'!$DZ$12:$EU$93,$A39-1921,'Report - ALL (DASHBOARD)'!$W$3) -> 52.10287952 | O39: 11 | P39: 0.1234567901 | Q39: =INDEX('Compile Data'!$J$121:$AE$202,$O39,'Report - ALL (DASHBOARD)'!$W$3) -> 52.23738416 | R39: =INDEX('Compile Data'!$AH$121:$BC$202,$O39,'Report - ALL (DASHBOARD)'!$W$3) -> 52.22175566 | S39: =INDEX('Compile Data'!$BF$121:$CA$202,$O39,'Report - ALL (DASHBOARD)'!$W$3) -> 52.25503381 | T39: =INDEX('Compile Data'!$DZ$121:$EU$202,$O39,'Report - ALL (DASHBOARD)'!$W$3) -> 52.25128301
A40: 1933 | B40: =INDEX('Compile Data'!$J$12:$AE$93,$A40-1921,'Report - ALL (DASHBOARD)'!$W$3) -> 51.88441531 | C40: =INDEX('Compile Data'!$AH$12:$BC$93,$A40-1921,'Report - ALL (DASHBOARD)'!$W$3) -> 51.96098741 | D40: =INDEX('Compile Data'!$BF$12:$CA$93,$A40-1921,'Report - ALL (DASHBOARD)'!$W$3) -> 51.90765921 | E40: =INDEX('Compile Data'!$DZ$12:$EU$93,$A40-1921,'Report - ALL (DASHBOARD)'!$W$3) -> 51.8846213 | O40: 12 | P40: 0.1358024691 | Q40: =INDEX('Compile Data'!$J$121:$AE$202,$O40,'Report - ALL (DASHBOARD)'!$W$3) -> 52.14660327 | R40: =INDEX('Compile Data'!$AH$121:$BC$202,$O40,'Report - ALL (DASHBOARD)'!$W$3) -> 52.2113088 | S40: =INDEX('Compile Data'!$BF$121:$CA$202,$O40,'Report - ALL (DASHBOARD)'!$W$3) -> 52.20774746 | T40: =INDEX('Compile Data'!$DZ$121:$EU$202,$O40,'Report - ALL (DASHBOARD)'!$W$3) -> 52.21768856
A41: 1934 | B41: =INDEX('Compile Data'!$J$12:$AE$93,$A41-1921,'Report - ALL (DASHBOARD)'!$W$3) -> 52.35862637 | C41: =INDEX('Compile Data'!$AH$12:$BC$93,$A41-1921,'Report - ALL (DASHBOARD)'!$W$3) -> 52.17363199 | D41: =INDEX('Compile Data'!$BF$12:$CA$93,$A41-1921,'Report - ALL (DASHBOARD)'!$W$3) -> 52.39950625 | E41: =INDEX('Compile Data'!$DZ$12:$EU$93,$A41-1921,'Report - ALL (DASHBOARD)'!$W$3) -> 52.47485383 | O41: 13 | P41: 0.1481481481 | Q41: =INDEX('Compile Data'!$J$121:$AE$202,$O41,'Report - ALL (DASHBOARD)'!$W$3) -> 52.1301136 | R41: =INDEX('Compile Data'!$AH$121:$BC$202,$O41,'Report - ALL (DASHBOARD)'!$W$3) -> 52.17363199 | S41: =INDEX('Compile Data'!$BF$121:$CA$202,$O41,'Report - ALL (DASHBOARD)'!$W$3) -> 52.14965248 | T41: =INDEX('Compile Data'!$DZ$121:$EU$202,$O41,'Report - ALL (DASHBOARD)'!$W$3) -> 52.21764787
A42: 1935 | B42: =INDEX('Compile Data'!$J$12:$AE$93,$A42-1921,'Report - ALL (DASHBOARD)'!$W$3) -> 51.30222034 | C42: =INDEX('Compile Data'!$AH$12:$BC$93,$A42-1921,'Report - ALL (DASHBOARD)'!$W$3) -> 51.35003281 | D42: =INDEX('Compile Data'!$BF$12:$CA$93,$A42-1921,'Report - ALL (DASHBOARD)'!$W$3) -> 51.394509 | E42: =INDEX('Compile Data'!$DZ$12:$EU$93,$A42-1921,'Report - ALL (DASHBOARD)'!$W$3) -> 51.38299688 | O42: 14 | P42: 0.1604938272 | Q42: =INDEX('Compile Data'!$J$121:$AE$202,$O42,'Report - ALL (DASHBOARD)'!$W$3) -> 52.09221236 | R42: =INDEX('Compile Data'!$AH$121:$BC$202,$O42,'Report - ALL (DASHBOARD)'!$W$3) -> 52.12019189 | S42: =INDEX('Compile Data'!$BF$121:$CA$202,$O42,'Report - ALL (DASHBOARD)'!$W$3) -> 52.09973113 | T42: =INDEX('Compile Data'!$DZ$121:$EU$202,$O42,'Report - ALL (DASHBOARD)'!$W$3) -> 52.10287952
A43: 1936 | B43: =INDEX('Compile Data'!$J$12:$AE$93,$A43-1921,'Report - ALL (DASHBOARD)'!$W$3) -> 51.31157271 | C43: =INDEX('Compile Data'!$AH$12:$BC$93,$A43-1921,'Report - ALL (DASHBOARD)'!$W$3) -> 51.3044831 | D43: =INDEX('Compile Data'!$BF$12:$CA$93,$A43-1921,'Report - ALL (DASHBOARD)'!$W$3) -> 51.32168833 | E43: =INDEX('Compile Data'!$DZ$12:$EU$93,$A43-1921,'Report - ALL (DASHBOARD)'!$W$3) -> 51.30948575 | O43: 15 | P43: 0.1728395062 | Q43: =INDEX('Compile Data'!$J$121:$AE$202,$O43,'Report - ALL (DASHBOARD)'!$W$3) -> 51.88754272 | R43: =INDEX('Compile Data'!$AH$121:$BC$202,$O43,'Report - ALL (DASHBOARD)'!$W$3) -> 52.03907172 | S43: =INDEX('Compile Data'!$BF$121:$CA$202,$O43,'Report - ALL (DASHBOARD)'!$W$3) -> 52.06130664 | T43: =INDEX('Compile Data'!$DZ$121:$EU$202,$O43,'Report - ALL (DASHBOARD)'!$W$3) -> 52.05364768
A44: 1937 | B44: =INDEX('Compile Data'!$J$12:$AE$93,$A44-1921,'Report - ALL (DASHBOARD)'!$W$3) -> 51.26919524 | C44: =INDEX('Compile Data'!$AH$12:$BC$93,$A44-1921,'Report - ALL (DASHBOARD)'!$W$3) -> 51.28787549 | D44: =INDEX('Compile Data'!$BF$12:$CA$93,$A44-1921,'Report - ALL (DASHBOARD)'!$W$3) -> 51.27989038 | E44: =INDEX('Compile Data'!$DZ$12:$EU$93,$A44-1921,'Report - ALL (DASHBOARD)'!$W$3) -> 51.28215345 | O44: 16 | P44: 0.1851851852 | Q44: =INDEX('Compile Data'!$J$121:$AE$202,$O44,'Report - ALL (DASHBOARD)'!$W$3) -> 51.88441531 | R44: =INDEX('Compile Data'!$AH$121:$BC$202,$O44,'Report - ALL (DASHBOARD)'!$W$3) -> 51.96098741 | S44: =INDEX('Compile Data'!$BF$121:$CA$202,$O44,'Report - ALL (DASHBOARD)'!$W$3) -> 51.90765921 | T44: =INDEX('Compile Data'!$DZ$121:$EU$202,$O44,'Report - ALL (DASHBOARD)'!$W$3) -> 51.89573288
A45: 1938 | B45: =INDEX('Compile Data'!$J$12:$AE$93,$A45-1921,'Report - ALL (DASHBOARD)'!$W$3) -> 50.02333895 | C45: =INDEX('Compile Data'!$AH$12:$BC$93,$A45-1921,'Report - ALL (DASHBOARD)'!$W$3) -> 50.01762613 | D45: =INDEX('Compile Data'!$BF$12:$CA$93,$A45-1921,'Report - ALL (DASHBOARD)'!$W$3) -> 50.01215045 | E45: =INDEX('Compile Data'!$DZ$12:$EU$93,$A45-1921,'Report - ALL (DASHBOARD)'!$W$3) -> 50.01321379 | O45: 17 | P45: 0.1975308642 | Q45: =INDEX('Compile Data'!$J$121:$AE$202,$O45,'Report - ALL (DASHBOARD)'!$W$3) -> 51.86189079 | R45: =INDEX('Compile Data'!$AH$121:$BC$202,$O45,'Report - ALL (DASHBOARD)'!$W$3) -> 51.90158812 | S45: =INDEX('Compile Data'!$BF$121:$CA$202,$O45,'Report - ALL (DASHBOARD)'!$W$3) -> 51.90308634 | T45: =INDEX('Compile Data'!$DZ$121:$EU$202,$O45,'Report - ALL (DASHBOARD)'!$W$3) -> 51.8846213
A46: 1939 | B46: =INDEX('Compile Data'!$J$12:$AE$93,$A46-1921,'Report - ALL (DASHBOARD)'!$W$3) -> 51.73331706 | C46: =INDEX('Compile Data'!$AH$12:$BC$93,$A46-1921,'Report - ALL (DASHBOARD)'!$W$3) -> 51.72118727 | D46: =INDEX('Compile Data'!$BF$12:$CA$93,$A46-1921,'Report - ALL (DASHBOARD)'!$W$3) -> 51.72437127 | E46: =INDEX('Compile Data'!$DZ$12:$EU$93,$A46-1921,'Report - ALL (DASHBOARD)'!$W$3) -> 51.71577072 | O46: 18 | P46: 0.2098765432 | Q46: =INDEX('Compile Data'!$J$121:$AE$202,$O46,'Report - ALL (DASHBOARD)'!$W$3) -> 51.80267366 | R46: =INDEX('Compile Data'!$AH$121:$BC$202,$O46,'Report - ALL (DASHBOARD)'!$W$3) -> 51.80363401 | S46: =INDEX('Compile Data'!$BF$121:$CA$202,$O46,'Report - ALL (DASHBOARD)'!$W$3) -> 51.82444604 | T46: =INDEX('Compile Data'!$DZ$121:$EU$202,$O46,'Report - ALL (DASHBOARD)'!$W$3) -> 51.80590343
A47: 1940 | B47: =INDEX('Compile Data'!$J$12:$AE$93,$A47-1921,'Report - ALL (DASHBOARD)'!$W$3) -> 50.80665016 | C47: =INDEX('Compile Data'!$AH$12:$BC$93,$A47-1921,'Report - ALL (DASHBOARD)'!$W$3) -> 50.81940142 | D47: =INDEX('Compile Data'!$BF$12:$CA$93,$A47-1921,'Report - ALL (DASHBOARD)'!$W$3) -> 50.8491106 | E47: =INDEX('Compile Data'!$DZ$12:$EU$93,$A47-1921,'Report - ALL (DASHBOARD)'!$W$3) -> 50.81967417 | O47: 19 | P47: 0.2222222222 | Q47: =INDEX('Compile Data'!$J$121:$AE$202,$O47,'Report - ALL (DASHBOARD)'!$W$3) -> 51.74810505 | R47: =INDEX('Compile Data'!$AH$121:$BC$202,$O47,'Report - ALL (DASHBOARD)'!$W$3) -> 51.73995177 | S47: =INDEX('Compile Data'!$BF$121:$CA$202,$O47,'Report - ALL (DASHBOARD)'!$W$3) -> 51.72437127 | T47: =INDEX('Compile Data'!$DZ$121:$EU$202,$O47,'Report - ALL (DASHBOARD)'!$W$3) -> 51.73058796
A48: 1941 | B48: =INDEX('Compile Data'!$J$12:$AE$93,$A48-1921,'Report - ALL (DASHBOARD)'!$W$3) -> 49.8242623 | C48: =INDEX('Compile Data'!$AH$12:$BC$93,$A48-1921,'Report - ALL (DASHBOARD)'!$W$3) -> 49.82153098 | D48: =INDEX('Compile Data'!$BF$12:$CA$93,$A48-1921,'Report - ALL (DASHBOARD)'!$W$3) -> 49.82446512 | E48: =INDEX('Compile Data'!$DZ$12:$EU$93,$A48-1921,'Report - ALL (DASHBOARD)'!$W$3) -> 49.82155736 | O48: 20 | P48: 0.2345679012 | Q48: =INDEX('Compile Data'!$J$121:$AE$202,$O48,'Report - ALL (DASHBOARD)'!$W$3) -> 51.73331706 | R48: =INDEX('Compile Data'!$AH$121:$BC$202,$O48,'Report - ALL (DASHBOARD)'!$W$3) -> 51.72118727 | S48: =INDEX('Compile Data'!$BF$121:$CA$202,$O48,'Report - ALL (DASHBOARD)'!$W$3) -> 51.6844244 | T48: =INDEX('Compile Data'!$DZ$121:$EU$202,$O48,'Report - ALL (DASHBOARD)'!$W$3) -> 51.71577072
A49: 1942 | B49: =INDEX('Compile Data'!$J$12:$AE$93,$A49-1921,'Report - ALL (DASHBOARD)'!$W$3) -> 50.14455509 | C49: =INDEX('Compile Data'!$AH$12:$BC$93,$A49-1921,'Report - ALL (DASHBOARD)'!$W$3) -> 50.14916992 | D49: =INDEX('Compile Data'!$BF$12:$CA$93,$A49-1921,'Report - ALL (DASHBOARD)'!$W$3) -> 50.1470445 | E49: =INDEX('Compile Data'!$DZ$12:$EU$93,$A49-1921,'Report - ALL (DASHBOARD)'!$W$3) -> 50.14804872 | O49: 21 | P49: 0.2469135802 | Q49: =INDEX('Compile Data'!$J$121:$AE$202,$O49,'Report - ALL (DASHBOARD)'!$W$3) -> 51.61166573 | R49: =INDEX('Compile Data'!$AH$121:$BC$202,$O49,'Report - ALL (DASHBOARD)'!$W$3) -> 51.61715126 | S49: =INDEX('Compile Data'!$BF$121:$CA$202,$O49,'Report - ALL (DASHBOARD)'!$W$3) -> 51.62421799 | T49: =INDEX('Compile Data'!$DZ$121:$EU$202,$O49,'Report - ALL (DASHBOARD)'!$W$3) -> 51.61601671
A50: 1943 | B50: =INDEX('Compile Data'!$J$12:$AE$93,$A50-1921,'Report - ALL (DASHBOARD)'!$W$3) -> 50.30571238 | C50: =INDEX('Compile Data'!$AH$12:$BC$93,$A50-1921,'Report - ALL (DASHBOARD)'!$W$3) -> 50.31531588 | D50: =INDEX('Compile Data'!$BF$12:$CA$93,$A50-1921,'Report - ALL (DASHBOARD)'!$W$3) -> 50.31410376 | E50: =INDEX('Compile Data'!$DZ$12:$EU$93,$A50-1921,'Report - ALL (DASHBOARD)'!$W$3) -> 50.31303978 | O50: 22 | P50: 0.2592592593 | Q50: =INDEX('Compile Data'!$J$121:$AE$202,$O50,'Report - ALL (DASHBOARD)'!$W$3) -> 51.59737873 | R50: =INDEX('Compile Data'!$AH$121:$BC$202,$O50,'Report - ALL (DASHBOARD)'!$W$3) -> 51.57933966 | S50: =INDEX('Compile Data'!$BF$121:$CA$202,$O50,'Report - ALL (DASHBOARD)'!$W$3) -> 51.56356939 | T50: =INDEX('Compile Data'!$DZ$121:$EU$202,$O50,'Report - ALL (DASHBOARD)'!$W$3) -> 51.58351008
A51: 1944 | B51: =INDEX('Compile Data'!$J$12:$AE$93,$A51-1921,'Report - ALL (DASHBOARD)'!$W$3) -> 51.48216979 | C51: =INDEX('Compile Data'!$AH$12:$BC$93,$A51-1921,'Report - ALL (DASHBOARD)'!$W$3) -> 51.49523513 | D51: =INDEX('Compile Data'!$BF$12:$CA$93,$A51-1921,'Report - ALL (DASHBOARD)'!$W$3) -> 51.56356939 | E51: =INDEX('Compile Data'!$DZ$12:$EU$93,$A51-1921,'Report - ALL (DASHBOARD)'!$W$3) -> 51.49773979 | O51: 23 | P51: 0.2716049383 | Q51: =INDEX('Compile Data'!$J$121:$AE$202,$O51,'Report - ALL (DASHBOARD)'!$W$3) -> 51.54023584 | R51: =INDEX('Compile Data'!$AH$121:$BC$202,$O51,'Report - ALL (DASHBOARD)'!$W$3) -> 51.53929202 | S51: =INDEX('Compile Data'!$BF$121:$CA$202,$O51,'Report - ALL (DASHBOARD)'!$W$3) -> 51.56198025 | T51: =INDEX('Compile Data'!$DZ$121:$EU$202,$O51,'Report - ALL (DASHBOARD)'!$W$3) -> 51.53730297
A52: 1945 | B52: =INDEX('Compile Data'!$J$12:$AE$93,$A52-1921,'Report - ALL (DASHBOARD)'!$W$3) -> 50.7311945 | C52: =INDEX('Compile Data'!$AH$12:$BC$93,$A52-1921,'Report - ALL (DASHBOARD)'!$W$3) -> 50.73856767 | D52: =INDEX('Compile Data'!$BF$12:$CA$93,$A52-1921,'Report - ALL (DASHBOARD)'!$W$3) -> 50.72919718 | E52: =INDEX('Compile Data'!$DZ$12:$EU$93,$A52-1921,'Report - ALL (DASHBOARD)'!$W$3) -> 50.74338404 | O52: 24 | P52: 0.2839506173 | Q52: =INDEX('Compile Data'!$J$121:$AE$202,$O52,'Report - ALL (DASHBOARD)'!$W$3) -> 51.51125622 | R52: =INDEX('Compile Data'!$AH$121:$BC$202,$O52,'Report - ALL (DASHBOARD)'!$W$3) -> 51.51344681 | S52: =INDEX('Compile Data'!$BF$121:$CA$202,$O52,'Report - ALL (DASHBOARD)'!$W$3) -> 51.53767999 | T52: =INDEX('Compile Data'!$DZ$121:$EU$202,$O52,'Report - ALL (DASHBOARD)'!$W$3) -> 51.5060873
A53: 1946 | B53: =INDEX('Compile Data'!$J$12:$AE$93,$A53-1921,'Report - ALL (DASHBOARD)'!$W$3) -> 49.92648824 | C53: =INDEX('Compile Data'!$AH$12:$BC$93,$A53-1921,'Report - ALL (DASHBOARD)'!$W$3) -> 49.92783451 | D53: =INDEX('Compile Data'!$BF$12:$CA$93,$A53-1921,'Report - ALL (DASHBOARD)'!$W$3) -> 49.92796199 | E53: =INDEX('Compile Data'!$DZ$12:$EU$93,$A53-1921,'Report - ALL (DASHBOARD)'!$W$3) -> 49.92842992 | O53: 25 | P53: 0.2962962963 | Q53: =INDEX('Compile Data'!$J$121:$AE$202,$O53,'Report - ALL (DASHBOARD)'!$W$3) -> 51.48216979 | R53: =INDEX('Compile Data'!$AH$121:$BC$202,$O53,'Report - ALL (DASHBOARD)'!$W$3) -> 51.49523513 | S53: =INDEX('Compile Data'!$BF$121:$CA$202,$O53,'Report - ALL (DASHBOARD)'!$W$3) -> 51.47662989 | T53: =INDEX('Compile Data'!$DZ$121:$EU$202,$O53,'Report - ALL (DASHBOARD)'!$W$3) -> 51.49773979
A54: 1947 | B54: =INDEX('Compile Data'!$J$12:$AE$93,$A54-1921,'Report - ALL (DASHBOARD)'!$W$3) -> 50.91550096 | C54: =INDEX('Compile Data'!$AH$12:$BC$93,$A54-1921,'Report - ALL (DASHBOARD)'!$W$3) -> 50.90865993 | D54: =INDEX('Compile Data'!$BF$12:$CA$93,$A54-1921,'Report - ALL (DASHBOARD)'!$W$3) -> 50.89563497 | E54: =INDEX('Compile Data'!$DZ$12:$EU$93,$A54-1921,'Report - ALL (DASHBOARD)'!$W$3) -> 50.90703551 | O54: 26 | P54: 0.3086419753 | Q54: =INDEX('Compile Data'!$J$121:$AE$202,$O54,'Report - ALL (DASHBOARD)'!$W$3) -> 51.45416292 | R54: =INDEX('Compile Data'!$AH$121:$BC$202,$O54,'Report - ALL (DASHBOARD)'!$W$3) -> 51.46082878 | S54: =INDEX('Compile Data'!$BF$121:$CA$202,$O54,'Report - ALL (DASHBOARD)'!$W$3) -> 51.46042411 | T54: =INDEX('Compile Data'!$DZ$121:$EU$202,$O54,'Report - ALL (DASHBOARD)'!$W$3) -> 51.45979691
A55: 1948 | B55: =INDEX('Compile Data'!$J$12:$AE$93,$A55-1921,'Report - ALL (DASHBOARD)'!$W$3) -> 50.28564103 | C55: =INDEX('Compile Data'!$AH$12:$BC$93,$A55-1921,'Report - ALL (DASHBOARD)'!$W$3) -> 50.28039805 | D55: =INDEX('Compile Data'!$BF$12:$CA$93,$A55-1921,'Report - ALL (DASHBOARD)'!$W$3) -> 50.28020096 | E55: =INDEX('Compile Data'!$DZ$12:$EU$93,$A55-1921,'Report - ALL (DASHBOARD)'!$W$3) -> 50.28037802 | O55: 27 | P55: 0.3209876543 | Q55: =INDEX('Compile Data'!$J$121:$AE$202,$O55,'Report - ALL (DASHBOARD)'!$W$3) -> 51.43520514 | R55: =INDEX('Compile Data'!$AH$121:$BC$202,$O55,'Report - ALL (DASHBOARD)'!$W$3) -> 51.41046588 | S55: =INDEX('Compile Data'!$BF$121:$CA$202,$O55,'Report - ALL (DASHBOARD)'!$W$3) -> 51.44921684 | T55: =INDEX('Compile Data'!$DZ$121:$EU$202,$O55,'Report - ALL (DASHBOARD)'!$W$3) -> 51.41102982
A56: 1949 | B56: =INDEX('Compile Data'!$J$12:$AE$93,$A56-1921,'Report - ALL (DASHBOARD)'!$W$3) -> 50.92280515 | C56: =INDEX('Compile Data'!$AH$12:$BC$93,$A56-1921,'Report - ALL (DASHBOARD)'!$W$3) -> 50.95785999 | D56: =INDEX('Compile Data'!$BF$12:$CA$93,$A56-1921,'Report - ALL (DASHBOARD)'!$W$3) -> 50.96102746 | E56: =INDEX('Compile Data'!$DZ$12:$EU$93,$A56-1921,'Report - ALL (DASHBOARD)'!$W$3) -> 50.95692762 | O56: 28 | P56: 0.3333333333 | Q56: =INDEX('Compile Data'!$J$121:$AE$202,$O56,'Report - ALL (DASHBOARD)'!$W$3) -> 51.41495768 | R56: =INDEX('Compile Data'!$AH$121:$BC$202,$O56,'Report - ALL (DASHBOARD)'!$W$3) -> 51.39448516 | S56: =INDEX('Compile Data'!$BF$121:$CA$202,$O56,'Report - ALL (DASHBOARD)'!$W$3) -> 51.42544429 | T56: =INDEX('Compile Data'!$DZ$121:$EU$202,$O56,'Report - ALL (DASHBOARD)'!$W$3) -> 51.39245383
A57: 1950 | B57: =INDEX('Compile Data'!$J$12:$AE$93,$A57-1921,'Report - ALL (DASHBOARD)'!$W$3) -> 51.03544299 | C57: =INDEX('Compile Data'!$AH$12:$BC$93,$A57-1921,'Report - ALL (DASHBOARD)'!$W$3) -> 51.0590655 | D57: =INDEX('Compile Data'!$BF$12:$CA$93,$A57-1921,'Report - ALL (DASHBOARD)'!$W$3) -> 51.04324945 | E57: =INDEX('Compile Data'!$DZ$12:$EU$93,$A57-1921,'Report - ALL (DASHBOARD)'!$W$3) -> 51.05551783 | O57: 29 | P57: 0.3456790123 | Q57: =INDEX('Compile Data'!$J$121:$AE$202,$O57,'Report - ALL (DASHBOARD)'!$W$3) -> 51.38728301 | R57: =INDEX('Compile Data'!$AH$121:$BC$202,$O57,'Report - ALL (DASHBOARD)'!$W$3) -> 51.35790666 | S57: =INDEX('Compile Data'!$BF$121:$CA$202,$O57,'Report - ALL (DASHBOARD)'!$W$3) -> 51.39470959 | T57: =INDEX('Compile Data'!$DZ$121:$EU$202,$O57,'Report - ALL (DASHBOARD)'!$W$3) -> 51.38299688
A58: 1951 | B58: =INDEX('Compile Data'!$J$12:$AE$93,$A58-1921,'Report - ALL (DASHBOARD)'!$W$3) -> 50.14329052 | C58: =INDEX('Compile Data'!$AH$12:$BC$93,$A58-1921,'Report - ALL (DASHBOARD)'!$W$3) -> 50.1446085 | D58: =INDEX('Compile Data'!$BF$12:$CA$93,$A58-1921,'Report - ALL (DASHBOARD)'!$W$3) -> 50.15743542 | E58: =INDEX('Compile Data'!$DZ$12:$EU$93,$A58-1921,'Report - ALL (DASHBOARD)'!$W$3) -> 50.14067078 | O58: 30 | P58: 0.3580246914 | Q58: =INDEX('Compile Data'!$J$121:$AE$202,$O58,'Report - ALL (DASHBOARD)'!$W$3) -> 51.3390398 | R58: =INDEX('Compile Data'!$AH$121:$BC$202,$O58,'Report - ALL (DASHBOARD)'!$W$3) -> 51.35003281 | S58: =INDEX('Compile Data'!$BF$121:$CA$202,$O58,'Report - ALL (DASHBOARD)'!$W$3) -> 51.394509 | T58: =INDEX('Compile Data'!$DZ$121:$EU$202,$O58,'Report - ALL (DASHBOARD)'!$W$3) -> 51.36588605
A59: 1952 | B59: =INDEX('Compile Data'!$J$12:$AE$93,$A59-1921,'Report - ALL (DASHBOARD)'!$W$3) -> 49.67767111 | C59: =INDEX('Compile Data'!$AH$12:$BC$93,$A59-1921,'Report - ALL (DASHBOARD)'!$W$3) -> 49.68870227 | D59: =INDEX('Compile Data'!$BF$12:$CA$93,$A59-1921,'Report - ALL (DASHBOARD)'!$W$3) -> 49.66026433 | E59: =INDEX('Compile Data'!$DZ$12:$EU$93,$A59-1921,'Report - ALL (DASHBOARD)'!$W$3) -> 49.68825817 | O59: 31 | P59: 0.3703703704 | Q59: =INDEX('Compile Data'!$J$121:$AE$202,$O59,'Report - ALL (DASHBOARD)'!$W$3) -> 51.33001423 | R59: =INDEX('Compile Data'!$AH$121:$BC$202,$O59,'Report - ALL (DASHBOARD)'!$W$3) -> 51.34284147 | S59: =INDEX('Compile Data'!$BF$121:$CA$202,$O59,'Report - ALL (DASHBOARD)'!$W$3) -> 51.33995851 | T59: =INDEX('Compile Data'!$DZ$121:$EU$202,$O59,'Report - ALL (DASHBOARD)'!$W$3) -> 51.34558837
A60: 1953 | B60: =INDEX('Compile Data'!$J$12:$AE$93,$A60-1921,'Report - ALL (DASHBOARD)'!$W$3) -> 50.41006788 | C60: =INDEX('Compile Data'!$AH$12:$BC$93,$A60-1921,'Report - ALL (DASHBOARD)'!$W$3) -> 50.42065112 | D60: =INDEX('Compile Data'!$BF$12:$CA$93,$A60-1921,'Report - ALL (DASHBOARD)'!$W$3) -> 50.41970698 | E60: =INDEX('Compile Data'!$DZ$12:$EU$93,$A60-1921,'Report - ALL (DASHBOARD)'!$W$3) -> 50.41935444 | O60: 32 | P60: 0.3827160494 | Q60: =INDEX('Compile Data'!$J$121:$AE$202,$O60,'Report - ALL (DASHBOARD)'!$W$3) -> 51.31157271 | R60: =INDEX('Compile Data'!$AH$121:$BC$202,$O60,'Report - ALL (DASHBOARD)'!$W$3) -> 51.34252644 | S60: =INDEX('Compile Data'!$BF$121:$CA$202,$O60,'Report - ALL (DASHBOARD)'!$W$3) -> 51.32168833 | T60: =INDEX('Compile Data'!$DZ$121:$EU$202,$O60,'Report - ALL (DASHBOARD)'!$W$3) -> 51.3427283
A61: 1954 | B61: =INDEX('Compile Data'!$J$12:$AE$93,$A61-1921,'Report - ALL (DASHBOARD)'!$W$3) -> 50.15939935 | C61: =INDEX('Compile Data'!$AH$12:$BC$93,$A61-1921,'Report - ALL (DASHBOARD)'!$W$3) -> 50.16535759 | D61: =INDEX('Compile Data'!$BF$12:$CA$93,$A61-1921,'Report - ALL (DASHBOARD)'!$W$3) -> 50.18874518 | E61: =INDEX('Compile Data'!$DZ$12:$EU$93,$A61-1921,'Report - ALL (DASHBOARD)'!$W$3) -> 50.16483974 | O61: 33 | P61: =(O61-1)/81 -> 0.3950617284 | Q61: =INDEX('Compile Data'!$J$121:$AE$202,$O61,'Report - ALL (DASHBOARD)'!$W$3) -> 51.30222034 | R61: =INDEX('Compile Data'!$AH$121:$BC$202,$O61,'Report - ALL (DASHBOARD)'!$W$3) -> 51.3044831 | S61: =INDEX('Compile Data'!$BF$121:$CA$202,$O61,'Report - ALL (DASHBOARD)'!$W$3) -> 51.31129328 | T61: =INDEX('Compile Data'!$DZ$121:$EU$202,$O61,'Report - ALL (DASHBOARD)'!$W$3) -> 51.30948575
A62: 1955 | B62: =INDEX('Compile Data'!$J$12:$AE$93,$A62-1921,'Report - ALL (DASHBOARD)'!$W$3) -> 51.03911304 | C62: =INDEX('Compile Data'!$AH$12:$BC$93,$A62-1921,'Report - ALL (DASHBOARD)'!$W$3) -> 51.06195196 | D62: =INDEX('Compile Data'!$BF$12:$CA$93,$A62-1921,'Report - ALL (DASHBOARD)'!$W$3) -> 51.00172551 | E62: =INDEX('Compile Data'!$DZ$12:$EU$93,$A62-1921,'Report - ALL (DASHBOARD)'!$W$3) -> 51.06114324 | O62: 34 | P62: 0.4074074074 | Q62: =INDEX('Compile Data'!$J$121:$AE$202,$O62,'Report - ALL (DASHBOARD)'!$W$3) -> 51.26919524 | R62: =INDEX('Compile Data'!$AH$121:$BC$202,$O62,'Report - ALL (DASHBOARD)'!$W$3) -> 51.28787549 | S62: =INDEX('Compile Data'!$BF$121:$CA$202,$O62,'Report - ALL (DASHBOARD)'!$W$3) -> 51.27989038 | T62: =INDEX('Compile Data'!$DZ$121:$EU$202,$O62,'Report - ALL (DASHBOARD)'!$W$3) -> 51.28215345
A63: 1956 | B63: =INDEX('Compile Data'!$J$12:$AE$93,$A63-1921,'Report - ALL (DASHBOARD)'!$W$3) -> 49.92924372 | C63: =INDEX('Compile Data'!$AH$12:$BC$93,$A63-1921,'Report - ALL (DASHBOARD)'!$W$3) -> 49.93800036 | D63: =INDEX('Compile Data'!$BF$12:$CA$93,$A63-1921,'Report - ALL (DASHBOARD)'!$W$3) -> 49.95841153 | E63: =INDEX('Compile Data'!$DZ$12:$EU$93,$A63-1921,'Report - ALL (DASHBOARD)'!$W$3) -> 49.93835958 | O63: 35 | P63: 0.4197530864 | Q63: =INDEX('Compile Data'!$J$121:$AE$202,$O63,'Report - ALL (DASHBOARD)'!$W$3) -> 51.24726836 | R63: =INDEX('Compile Data'!$AH$121:$BC$202,$O63,'Report - ALL (DASHBOARD)'!$W$3) -> 51.25688267 | S63: =INDEX('Compile Data'!$BF$121:$CA$202,$O63,'Report - ALL (DASHBOARD)'!$W$3) -> 51.24791177 | T63: =INDEX('Compile Data'!$DZ$121:$EU$202,$O63,'Report - ALL (DASHBOARD)'!$W$3) -> 51.25688267
A64: 1957 | B64: =INDEX('Compile Data'!$J$12:$AE$93,$A64-1921,'Report - ALL (DASHBOARD)'!$W$3) -> 50.8216753 | C64: =INDEX('Compile Data'!$AH$12:$BC$93,$A64-1921,'Report - ALL (DASHBOARD)'!$W$3) -> 50.83269691 | D64: =INDEX('Compile Data'!$BF$12:$CA$93,$A64-1921,'Report - ALL (DASHBOARD)'!$W$3) -> 50.88372644 | E64: =INDEX('Compile Data'!$DZ$12:$EU$93,$A64-1921,'Report - ALL (DASHBOARD)'!$W$3) -> 50.83018939 | O64: 36 | P64: 0.4320987654 | Q64: =INDEX('Compile Data'!$J$121:$AE$202,$O64,'Report - ALL (DASHBOARD)'!$W$3) -> 51.21167151 | R64: =INDEX('Compile Data'!$AH$121:$BC$202,$O64,'Report - ALL (DASHBOARD)'!$W$3) -> 51.20500215 | S64: =INDEX('Compile Data'!$BF$121:$CA$202,$O64,'Report - ALL (DASHBOARD)'!$W$3) -> 51.20849578 | T64: =INDEX('Compile Data'!$DZ$121:$EU$202,$O64,'Report - ALL (DASHBOARD)'!$W$3) -> 51.20518939
A65: 1958 | B65: =INDEX('Compile Data'!$J$12:$AE$93,$A65-1921,'Report - ALL (DASHBOARD)'!$W$3) -> 50.03411102 | C65: =INDEX('Compile Data'!$AH$12:$BC$93,$A65-1921,'Report - ALL (DASHBOARD)'!$W$3) -> 50.02378209 | D65: =INDEX('Compile Data'!$BF$12:$CA$93,$A65-1921,'Report - ALL (DASHBOARD)'!$W$3) -> 50.00543308 | E65: =INDEX('Compile Data'!$DZ$12:$EU$93,$A65-1921,'Report - ALL (DASHBOARD)'!$W$3) -> 50.0257117 | O65: 37 | P65: 0.4444444444 | Q65: =INDEX('Compile Data'!$J$121:$AE$202,$O65,'Report - ALL (DASHBOARD)'!$W$3) -> 51.18060017 | R65: =INDEX('Compile Data'!$AH$121:$BC$202,$O65,'Report - ALL (DASHBOARD)'!$W$3) -> 51.14698728 | S65: =INDEX('Compile Data'!$BF$121:$CA$202,$O65,'Report - ALL (DASHBOARD)'!$W$3) -> 51.15779559 | T65: =INDEX('Compile Data'!$DZ$121:$EU$202,$O65,'Report - ALL (DASHBOARD)'!$W$3) -> 51.14470545
A66: 1959 | B66: =INDEX('Compile Data'!$J$12:$AE$93,$A66-1921,'Report - ALL (DASHBOARD)'!$W$3) -> 52.49794801 | C66: =INDEX('Compile Data'!$AH$12:$BC$93,$A66-1921,'Report - ALL (DASHBOARD)'!$W$3) -> 52.49153201 | D66: =INDEX('Compile Data'!$BF$12:$CA$93,$A66-1921,'Report - ALL (DASHBOARD)'!$W$3) -> 52.52387619 | E66: =INDEX('Compile Data'!$DZ$12:$EU$93,$A66-1921,'Report - ALL (DASHBOARD)'!$W$3) -> 52.49096902 | O66: 38 | P66: 0.4567901235 | Q66: =INDEX('Compile Data'!$J$121:$AE$202,$O66,'Report - ALL (DASHBOARD)'!$W$3) -> 51.0949351 | R66: =INDEX('Compile Data'!$AH$121:$BC$202,$O66,'Report - ALL (DASHBOARD)'!$W$3) -> 51.13135974 | S66: =INDEX('Compile Data'!$BF$121:$CA$202,$O66,'Report - ALL (DASHBOARD)'!$W$3) -> 51.12489827 | T66: =INDEX('Compile Data'!$DZ$121:$EU$202,$O66,'Report - ALL (DASHBOARD)'!$W$3) -> 51.13138803
A67: 1960 | B67: =INDEX('Compile Data'!$J$12:$AE$93,$A67-1921,'Report - ALL (DASHBOARD)'!$W$3) -> 52.23738416 | C67: =INDEX('Compile Data'!$AH$12:$BC$93,$A67-1921,'Report - ALL (DASHBOARD)'!$W$3) -> 52.22175566 | D67: =INDEX('Compile Data'!$BF$12:$CA$93,$A67-1921,'Report - ALL (DASHBOARD)'!$W$3) -> 52.14965248 | E67: =INDEX('Compile Data'!$DZ$12:$EU$93,$A67-1921,'Report - ALL (DASHBOARD)'!$W$3) -> 52.21768856 | O67: 39 | P67: 0.4691358025 | Q67: =INDEX('Compile Data'!$J$121:$AE$202,$O67,'Report - ALL (DASHBOARD)'!$W$3) -> 51.08722242 | R67: =INDEX('Compile Data'!$AH$121:$BC$202,$O67,'Report - ALL (DASHBOARD)'!$W$3) -> 51.0989062 | S67: =INDEX('Compile Data'!$BF$121:$CA$202,$O67,'Report - ALL (DASHBOARD)'!$W$3) -> 51.12239997 | T67: =INDEX('Compile Data'!$DZ$121:$EU$202,$O67,'Report - ALL (DASHBOARD)'!$W$3) -> 51.09780534
A68: 1961 | B68: =INDEX('Compile Data'!$J$12:$AE$93,$A68-1921,'Report - ALL (DASHBOARD)'!$W$3) -> 50.90867488 | C68: =INDEX('Compile Data'!$AH$12:$BC$93,$A68-1921,'Report - ALL (DASHBOARD)'!$W$3) -> 50.90356954 | D68: =INDEX('Compile Data'!$BF$12:$CA$93,$A68-1921,'Report - ALL (DASHBOARD)'!$W$3) -> 50.92826557 | E68: =INDEX('Compile Data'!$DZ$12:$EU$93,$A68-1921,'Report - ALL (DASHBOARD)'!$W$3) -> 50.9004364 | O68: 40 | P68: 0.4814814815 | Q68: =INDEX('Compile Data'!$J$121:$AE$202,$O68,'Report - ALL (DASHBOARD)'!$W$3) -> 51.07468605 | R68: =INDEX('Compile Data'!$AH$121:$BC$202,$O68,'Report - ALL (DASHBOARD)'!$W$3) -> 51.07838217 | S68: =INDEX('Compile Data'!$BF$121:$CA$202,$O68,'Report - ALL (DASHBOARD)'!$W$3) -> 51.10421403 | T68: =INDEX('Compile Data'!$DZ$121:$EU$202,$O68,'Report - ALL (DASHBOARD)'!$W$3) -> 51.07883867
A69: 1962 | B69: =INDEX('Compile Data'!$J$12:$AE$93,$A69-1921,'Report - ALL (DASHBOARD)'!$W$3) -> 50.70399253 | C69: =INDEX('Compile Data'!$AH$12:$BC$93,$A69-1921,'Report - ALL (DASHBOARD)'!$W$3) -> 50.73480479 | D69: =INDEX('Compile Data'!$BF$12:$CA$93,$A69-1921,'Report - ALL (DASHBOARD)'!$W$3) -> 50.73103078 | E69: =INDEX('Compile Data'!$DZ$12:$EU$93,$A69-1921,'Report - ALL (DASHBOARD)'!$W$3) -> 50.73283418 | O69: 41 | P69: 0.4938271605 | Q69: =INDEX('Compile Data'!$J$121:$AE$202,$O69,'Report - ALL (DASHBOARD)'!$W$3) -> 51.03911304 | R69: =INDEX('Compile Data'!$AH$121:$BC$202,$O69,'Report - ALL (DASHBOARD)'!$W$3) -> 51.07343896 | S69: =INDEX('Compile Data'!$BF$121:$CA$202,$O69,'Report - ALL (DASHBOARD)'!$W$3) -> 51.06891569 | T69: =INDEX('Compile Data'!$DZ$121:$EU$202,$O69,'Report - ALL (DASHBOARD)'!$W$3) -> 51.07453219
A70: 1963 | B70: =INDEX('Compile Data'!$J$12:$AE$93,$A70-1921,'Report - ALL (DASHBOARD)'!$W$3) -> 50.49487718 | C70: =INDEX('Compile Data'!$AH$12:$BC$93,$A70-1921,'Report - ALL (DASHBOARD)'!$W$3) -> 50.47342968 | D70: =INDEX('Compile Data'!$BF$12:$CA$93,$A70-1921,'Report - ALL (DASHBOARD)'!$W$3) -> 50.47406546 | E70: =INDEX('Compile Data'!$DZ$12:$EU$93,$A70-1921,'Report - ALL (DASHBOARD)'!$W$3) -> 50.47113069 | O70: 42 | P70: 0.5061728395 | Q70: =INDEX('Compile Data'!$J$121:$AE$202,$O70,'Report - ALL (DASHBOARD)'!$W$3) -> 51.03544299 | R70: =INDEX('Compile Data'!$AH$121:$BC$202,$O70,'Report - ALL (DASHBOARD)'!$W$3) -> 51.06195196 | S70: =INDEX('Compile Data'!$BF$121:$CA$202,$O70,'Report - ALL (DASHBOARD)'!$W$3) -> 51.04324945 | T70: =INDEX('Compile Data'!$DZ$121:$EU$202,$O70,'Report - ALL (DASHBOARD)'!$W$3) -> 51.06114324
A71: 1964 | B71: =INDEX('Compile Data'!$J$12:$AE$93,$A71-1921,'Report - ALL (DASHBOARD)'!$W$3) -> 51.18060017 | C71: =INDEX('Compile Data'!$AH$12:$BC$93,$A71-1921,'Report - ALL (DASHBOARD)'!$W$3) -> 51.14698728 | D71: =INDEX('Compile Data'!$BF$12:$CA$93,$A71-1921,'Report - ALL (DASHBOARD)'!$W$3) -> 51.15779559 | E71: =INDEX('Compile Data'!$DZ$12:$EU$93,$A71-1921,'Report - ALL (DASHBOARD)'!$W$3) -> 51.14470545 | O71: 43 | P71: 0.5185185185 | Q71: =INDEX('Compile Data'!$J$121:$AE$202,$O71,'Report - ALL (DASHBOARD)'!$W$3) -> 51.03051726 | R71: =INDEX('Compile Data'!$AH$121:$BC$202,$O71,'Report - ALL (DASHBOARD)'!$W$3) -> 51.0590655 | S71: =INDEX('Compile Data'!$BF$121:$CA$202,$O71,'Report - ALL (DASHBOARD)'!$W$3) -> 51.01720524 | T71: =INDEX('Compile Data'!$DZ$121:$EU$202,$O71,'Report - ALL (DASHBOARD)'!$W$3) -> 51.05551783
A72: 1965 | B72: =INDEX('Compile Data'!$J$12:$AE$93,$A72-1921,'Report - ALL (DASHBOARD)'!$W$3) -> 49.86942514 | C72: =INDEX('Compile Data'!$AH$12:$BC$93,$A72-1921,'Report - ALL (DASHBOARD)'!$W$3) -> 49.91163254 | D72: =INDEX('Compile Data'!$BF$12:$CA$93,$A72-1921,'Report - ALL (DASHBOARD)'!$W$3) -> 49.90457757 | E72: =INDEX('Compile Data'!$DZ$12:$EU$93,$A72-1921,'Report - ALL (DASHBOARD)'!$W$3) -> 49.92209117 | O72: 44 | P72: 0.5308641975 | Q72: =INDEX('Compile Data'!$J$121:$AE$202,$O72,'Report - ALL (DASHBOARD)'!$W$3) -> 50.93844318 | R72: =INDEX('Compile Data'!$AH$121:$BC$202,$O72,'Report - ALL (DASHBOARD)'!$W$3) -> 51.04344432 | S72: =INDEX('Compile Data'!$BF$121:$CA$202,$O72,'Report - ALL (DASHBOARD)'!$W$3) -> 51.00172551 | T72: =INDEX('Compile Data'!$DZ$121:$EU$202,$O72,'Report - ALL (DASHBOARD)'!$W$3) -> 51.0379591
A73: 1966 | B73: =INDEX('Compile Data'!$J$12:$AE$93,$A73-1921,'Report - ALL (DASHBOARD)'!$W$3) -> 49.86658478 | C73: =INDEX('Compile Data'!$AH$12:$BC$93,$A73-1921,'Report - ALL (DASHBOARD)'!$W$3) -> 49.87969049 | D73: =INDEX('Compile Data'!$BF$12:$CA$93,$A73-1921,'Report - ALL (DASHBOARD)'!$W$3) -> 49.90493902 | E73: =INDEX('Compile Data'!$DZ$12:$EU$93,$A73-1921,'Report - ALL (DASHBOARD)'!$W$3) -> 49.88230451 | O73: 45 | P73: 0.5432098765 | Q73: =INDEX('Compile Data'!$J$121:$AE$202,$O73,'Report - ALL (DASHBOARD)'!$W$3) -> 50.93377336 | R73: =INDEX('Compile Data'!$AH$121:$BC$202,$O73,'Report - ALL (DASHBOARD)'!$W$3) -> 50.9587237 | S73: =INDEX('Compile Data'!$BF$121:$CA$202,$O73,'Report - ALL (DASHBOARD)'!$W$3) -> 50.96102746 | T73: =INDEX('Compile Data'!$DZ$121:$EU$202,$O73,'Report - ALL (DASHBOARD)'!$W$3) -> 50.95833302
A74: 1967 | B74: =INDEX('Compile Data'!$J$12:$AE$93,$A74-1921,'Report - ALL (DASHBOARD)'!$W$3) -> 49.66750844 | C74: =INDEX('Compile Data'!$AH$12:$BC$93,$A74-1921,'Report - ALL (DASHBOARD)'!$W$3) -> 49.66904036 | D74: =INDEX('Compile Data'!$BF$12:$CA$93,$A74-1921,'Report - ALL (DASHBOARD)'!$W$3) -> 49.65693156 | E74: =INDEX('Compile Data'!$DZ$12:$EU$93,$A74-1921,'Report - ALL (DASHBOARD)'!$W$3) -> 49.6706953 | O74: 46 | P74: 0.5555555556 | Q74: =INDEX('Compile Data'!$J$121:$AE$202,$O74,'Report - ALL (DASHBOARD)'!$W$3) -> 50.92280515 | R74: =INDEX('Compile Data'!$AH$121:$BC$202,$O74,'Report - ALL (DASHBOARD)'!$W$3) -> 50.95785999 | S74: =INDEX('Compile Data'!$BF$121:$CA$202,$O74,'Report - ALL (DASHBOARD)'!$W$3) -> 50.93919818 | T74: =INDEX('Compile Data'!$DZ$121:$EU$202,$O74,'Report - ALL (DASHBOARD)'!$W$3) -> 50.95692762
A75: 1968 | B75: =INDEX('Compile Data'!$J$12:$AE$93,$A75-1921,'Report - ALL (DASHBOARD)'!$W$3) -> 51.38728301 | C75: =INDEX('Compile Data'!$AH$12:$BC$93,$A75-1921,'Report - ALL (DASHBOARD)'!$W$3) -> 51.39448516 | D75: =INDEX('Compile Data'!$BF$12:$CA$93,$A75-1921,'Report - ALL (DASHBOARD)'!$W$3) -> 51.42544429 | E75: =INDEX('Compile Data'!$DZ$12:$EU$93,$A75-1921,'Report - ALL (DASHBOARD)'!$W$3) -> 51.39245383 | O75: 47 | P75: 0.5679012346 | Q75: =INDEX('Compile Data'!$J$121:$AE$202,$O75,'Report - ALL (DASHBOARD)'!$W$3) -> 50.91550096 | R75: =INDEX('Compile Data'!$AH$121:$BC$202,$O75,'Report - ALL (DASHBOARD)'!$W$3) -> 50.90865993 | S75: =INDEX('Compile Data'!$BF$121:$CA$202,$O75,'Report - ALL (DASHBOARD)'!$W$3) -> 50.92826557 | T75: =INDEX('Compile Data'!$DZ$121:$EU$202,$O75,'Report - ALL (DASHBOARD)'!$W$3) -> 50.90703551
A76: 1969 | B76: =INDEX('Compile Data'!$J$12:$AE$93,$A76-1921,'Report - ALL (DASHBOARD)'!$W$3) -> 50.0911808 | C76: =INDEX('Compile Data'!$AH$12:$BC$93,$A76-1921,'Report - ALL (DASHBOARD)'!$W$3) -> 50.10028998 | D76: =INDEX('Compile Data'!$BF$12:$CA$93,$A76-1921,'Report - ALL (DASHBOARD)'!$W$3) -> 50.08400822 | E76: =INDEX('Compile Data'!$DZ$12:$EU$93,$A76-1921,'Report - ALL (DASHBOARD)'!$W$3) -> 50.097531 | O76: 48 | P76: 0.5802469136 | Q76: =INDEX('Compile Data'!$J$121:$AE$202,$O76,'Report - ALL (DASHBOARD)'!$W$3) -> 50.90867488 | R76: =INDEX('Compile Data'!$AH$121:$BC$202,$O76,'Report - ALL (DASHBOARD)'!$W$3) -> 50.90356954 | S76: =INDEX('Compile Data'!$BF$121:$CA$202,$O76,'Report - ALL (DASHBOARD)'!$W$3) -> 50.89563497 | T76: =INDEX('Compile Data'!$DZ$121:$EU$202,$O76,'Report - ALL (DASHBOARD)'!$W$3) -> 50.9004364
A77: 1970 | B77: =INDEX('Compile Data'!$J$12:$AE$93,$A77-1921,'Report - ALL (DASHBOARD)'!$W$3) -> 50.49364758 | C77: =INDEX('Compile Data'!$AH$12:$BC$93,$A77-1921,'Report - ALL (DASHBOARD)'!$W$3) -> 50.50089232 | D77: =INDEX('Compile Data'!$BF$12:$CA$93,$A77-1921,'Report - ALL (DASHBOARD)'!$W$3) -> 50.49506887 | E77: =INDEX('Compile Data'!$DZ$12:$EU$93,$A77-1921,'Report - ALL (DASHBOARD)'!$W$3) -> 50.50028865 | O77: 49 | P77: 0.5925925926 | Q77: =INDEX('Compile Data'!$J$121:$AE$202,$O77,'Report - ALL (DASHBOARD)'!$W$3) -> 50.8216753 | R77: =INDEX('Compile Data'!$AH$121:$BC$202,$O77,'Report - ALL (DASHBOARD)'!$W$3) -> 50.83269691 | S77: =INDEX('Compile Data'!$BF$121:$CA$202,$O77,'Report - ALL (DASHBOARD)'!$W$3) -> 50.88372644 | T77: =INDEX('Compile Data'!$DZ$121:$EU$202,$O77,'Report - ALL (DASHBOARD)'!$W$3) -> 50.83018939
A78: 1971 | B78: =INDEX('Compile Data'!$J$12:$AE$93,$A78-1921,'Report - ALL (DASHBOARD)'!$W$3) -> 50.18724696 | C78: =INDEX('Compile Data'!$AH$12:$BC$93,$A78-1921,'Report - ALL (DASHBOARD)'!$W$3) -> 50.18619442 | D78: =INDEX('Compile Data'!$BF$12:$CA$93,$A78-1921,'Report - ALL (DASHBOARD)'!$W$3) -> 50.18725681 | E78: =INDEX('Compile Data'!$DZ$12:$EU$93,$A78-1921,'Report - ALL (DASHBOARD)'!$W$3) -> 50.18892097 | O78: 50 | P78: 0.6049382716 | Q78: =INDEX('Compile Data'!$J$121:$AE$202,$O78,'Report - ALL (DASHBOARD)'!$W$3) -> 50.80665016 | R78: =INDEX('Compile Data'!$AH$121:$BC$202,$O78,'Report - ALL (DASHBOARD)'!$W$3) -> 50.81940142 | S78: =INDEX('Compile Data'!$BF$121:$CA$202,$O78,'Report - ALL (DASHBOARD)'!$W$3) -> 50.8491106 | T78: =INDEX('Compile Data'!$DZ$121:$EU$202,$O78,'Report - ALL (DASHBOARD)'!$W$3) -> 50.81967417
A79: 1972 | B79: =INDEX('Compile Data'!$J$12:$AE$93,$A79-1921,'Report - ALL (DASHBOARD)'!$W$3) -> 50.59951274 | C79: =INDEX('Compile Data'!$AH$12:$BC$93,$A79-1921,'Report - ALL (DASHBOARD)'!$W$3) -> 50.60215537 | D79: =INDEX('Compile Data'!$BF$12:$CA$93,$A79-1921,'Report - ALL (DASHBOARD)'!$W$3) -> 50.61456172 | E79: =INDEX('Compile Data'!$DZ$12:$EU$93,$A79-1921,'Report - ALL (DASHBOARD)'!$W$3) -> 50.60162799 | O79: 51 | P79: 0.6172839506 | Q79: =INDEX('Compile Data'!$J$121:$AE$202,$O79,'Report - ALL (DASHBOARD)'!$W$3) -> 50.77428277 | R79: =INDEX('Compile Data'!$AH$121:$BC$202,$O79,'Report - ALL (DASHBOARD)'!$W$3) -> 50.7651399 | S79: =INDEX('Compile Data'!$BF$121:$CA$202,$O79,'Report - ALL (DASHBOARD)'!$W$3) -> 50.76344649 | T79: =INDEX('Compile Data'!$DZ$121:$EU$202,$O79,'Report - ALL (DASHBOARD)'!$W$3) -> 50.76313559
A80: 1973 | B80: =INDEX('Compile Data'!$J$12:$AE$93,$A80-1921,'Report - ALL (DASHBOARD)'!$W$3) -> 50.35733414 | C80: =INDEX('Compile Data'!$AH$12:$BC$93,$A80-1921,'Report - ALL (DASHBOARD)'!$W$3) -> 50.36351713 | D80: =INDEX('Compile Data'!$BF$12:$CA$93,$A80-1921,'Report - ALL (DASHBOARD)'!$W$3) -> 50.37738005 | E80: =INDEX('Compile Data'!$DZ$12:$EU$93,$A80-1921,'Report - ALL (DASHBOARD)'!$W$3) -> 50.3634065 | O80: 52 | P80: 0.6296296296 | Q80: =INDEX('Compile Data'!$J$121:$AE$202,$O80,'Report - ALL (DASHBOARD)'!$W$3) -> 50.7630523 | R80: =INDEX('Compile Data'!$AH$121:$BC$202,$O80,'Report - ALL (DASHBOARD)'!$W$3) -> 50.73856767 | S80: =INDEX('Compile Data'!$BF$121:$CA$202,$O80,'Report - ALL (DASHBOARD)'!$W$3) -> 50.73103078 | T80: =INDEX('Compile Data'!$DZ$121:$EU$202,$O80,'Report - ALL (DASHBOARD)'!$W$3) -> 50.74338404
A81: 1974 | B81: =INDEX('Compile Data'!$J$12:$AE$93,$A81-1921,'Report - ALL (DASHBOARD)'!$W$3) -> 49.65370687 | C81: =INDEX('Compile Data'!$AH$12:$BC$93,$A81-1921,'Report - ALL (DASHBOARD)'!$W$3) -> 49.65830326 | D81: =INDEX('Compile Data'!$BF$12:$CA$93,$A81-1921,'Report - ALL (DASHBOARD)'!$W$3) -> 49.63962491 | E81: =INDEX('Compile Data'!$DZ$12:$EU$93,$A81-1921,'Report - ALL (DASHBOARD)'!$W$3) -> 49.65521781 | O81: 53 | P81: 0.6419753086 | Q81: =INDEX('Compile Data'!$J$121:$AE$202,$O81,'Report - ALL (DASHBOARD)'!$W$3) -> 50.7311945 | R81: =INDEX('Compile Data'!$AH$121:$BC$202,$O81,'Report - ALL (DASHBOARD)'!$W$3) -> 50.73480479 | S81: =INDEX('Compile Data'!$BF$121:$CA$202,$O81,'Report - ALL (DASHBOARD)'!$W$3) -> 50.72919718 | T81: =INDEX('Compile Data'!$DZ$121:$EU$202,$O81,'Report - ALL (DASHBOARD)'!$W$3) -> 50.73283418
A82: 1975 | B82: =INDEX('Compile Data'!$J$12:$AE$93,$A82-1921,'Report - ALL (DASHBOARD)'!$W$3) -> 50.7630523 | C82: =INDEX('Compile Data'!$AH$12:$BC$93,$A82-1921,'Report - ALL (DASHBOARD)'!$W$3) -> 50.7651399 | D82: =INDEX('Compile Data'!$BF$12:$CA$93,$A82-1921,'Report - ALL (DASHBOARD)'!$W$3) -> 50.76344649 | E82: =INDEX('Compile Data'!$DZ$12:$EU$93,$A82-1921,'Report - ALL (DASHBOARD)'!$W$3) -> 50.76313559 | O82: 54 | P82: 0.6543209877 | Q82: =INDEX('Compile Data'!$J$121:$AE$202,$O82,'Report - ALL (DASHBOARD)'!$W$3) -> 50.70399253 | R82: =INDEX('Compile Data'!$AH$121:$BC$202,$O82,'Report - ALL (DASHBOARD)'!$W$3) -> 50.69382127 | S82: =INDEX('Compile Data'!$BF$121:$CA$202,$O82,'Report - ALL (DASHBOARD)'!$W$3) -> 50.68150043 | T82: =INDEX('Compile Data'!$DZ$121:$EU$202,$O82,'Report - ALL (DASHBOARD)'!$W$3) -> 50.69113413
A83: 1976 | B83: =INDEX('Compile Data'!$J$12:$AE$93,$A83-1921,'Report - ALL (DASHBOARD)'!$W$3) -> 51.88754272 | C83: =INDEX('Compile Data'!$AH$12:$BC$93,$A83-1921,'Report - ALL (DASHBOARD)'!$W$3) -> 51.90158812 | D83: =INDEX('Compile Data'!$BF$12:$CA$93,$A83-1921,'Report - ALL (DASHBOARD)'!$W$3) -> 51.90308634 | E83: =INDEX('Compile Data'!$DZ$12:$EU$93,$A83-1921,'Report - ALL (DASHBOARD)'!$W$3) -> 51.89573288 | O83: 55 | P83: 0.6666666667 | Q83: =INDEX('Compile Data'!$J$121:$AE$202,$O83,'Report - ALL (DASHBOARD)'!$W$3) -> 50.63207022 | R83: =INDEX('Compile Data'!$AH$121:$BC$202,$O83,'Report - ALL (DASHBOARD)'!$W$3) -> 50.62905788 | S83: =INDEX('Compile Data'!$BF$121:$CA$202,$O83,'Report - ALL (DASHBOARD)'!$W$3) -> 50.62549114 | T83: =INDEX('Compile Data'!$DZ$121:$EU$202,$O83,'Report - ALL (DASHBOARD)'!$W$3) -> 50.62250551
A84: 1977 | B84: =INDEX('Compile Data'!$J$12:$AE$93,$A84-1921,'Report - ALL (DASHBOARD)'!$W$3) -> 53.69580396 | C84: =INDEX('Compile Data'!$AH$12:$BC$93,$A84-1921,'Report - ALL (DASHBOARD)'!$W$3) -> 53.49254131 | D84: =INDEX('Compile Data'!$BF$12:$CA$93,$A84-1921,'Report - ALL (DASHBOARD)'!$W$3) -> 53.39207586 | E84: =INDEX('Compile Data'!$DZ$12:$EU$93,$A84-1921,'Report - ALL (DASHBOARD)'!$W$3) -> 53.49365838 | O84: 56 | P84: 0.6790123457 | Q84: =INDEX('Compile Data'!$J$121:$AE$202,$O84,'Report - ALL (DASHBOARD)'!$W$3) -> 50.59951274 | R84: =INDEX('Compile Data'!$AH$121:$BC$202,$O84,'Report - ALL (DASHBOARD)'!$W$3) -> 50.60215537 | S84: =INDEX('Compile Data'!$BF$121:$CA$202,$O84,'Report - ALL (DASHBOARD)'!$W$3) -> 50.61518669 | T84: =INDEX('Compile Data'!$DZ$121:$EU$202,$O84,'Report - ALL (DASHBOARD)'!$W$3) -> 50.60162799
A85: 1978 | B85: =INDEX('Compile Data'!$J$12:$AE$93,$A85-1921,'Report - ALL (DASHBOARD)'!$W$3) -> 50.93377336 | C85: =INDEX('Compile Data'!$AH$12:$BC$93,$A85-1921,'Report - ALL (DASHBOARD)'!$W$3) -> 51.07838217 | D85: =INDEX('Compile Data'!$BF$12:$CA$93,$A85-1921,'Report - ALL (DASHBOARD)'!$W$3) -> 51.12489827 | E85: =INDEX('Compile Data'!$DZ$12:$EU$93,$A85-1921,'Report - ALL (DASHBOARD)'!$W$3) -> 51.07883867 | O85: 57 | P85: 0.6913580247 | Q85: =INDEX('Compile Data'!$J$121:$AE$202,$O85,'Report - ALL (DASHBOARD)'!$W$3) -> 50.57583332 | R85: =INDEX('Compile Data'!$AH$121:$BC$202,$O85,'Report - ALL (DASHBOARD)'!$W$3) -> 50.58106518 | S85: =INDEX('Compile Data'!$BF$121:$CA$202,$O85,'Report - ALL (DASHBOARD)'!$W$3) -> 50.61456172 | T85: =INDEX('Compile Data'!$DZ$121:$EU$202,$O85,'Report - ALL (DASHBOARD)'!$W$3) -> 50.58355204
A86: 1979 | B86: =INDEX('Compile Data'!$J$12:$AE$93,$A86-1921,'Report - ALL (DASHBOARD)'!$W$3) -> 51.3390398 | C86: =INDEX('Compile Data'!$AH$12:$BC$93,$A86-1921,'Report - ALL (DASHBOARD)'!$W$3) -> 51.35790666 | D86: =INDEX('Compile Data'!$BF$12:$CA$93,$A86-1921,'Report - ALL (DASHBOARD)'!$W$3) -> 51.39470959 | E86: =INDEX('Compile Data'!$DZ$12:$EU$93,$A86-1921,'Report - ALL (DASHBOARD)'!$W$3) -> 51.36588605 | O86: 58 | P86: 0.7037037037 | Q86: =INDEX('Compile Data'!$J$121:$AE$202,$O86,'Report - ALL (DASHBOARD)'!$W$3) -> 50.49487718 | R86: =INDEX('Compile Data'!$AH$121:$BC$202,$O86,'Report - ALL (DASHBOARD)'!$W$3) -> 50.50089232 | S86: =INDEX('Compile Data'!$BF$121:$CA$202,$O86,'Report - ALL (DASHBOARD)'!$W$3) -> 50.49506887 | T86: =INDEX('Compile Data'!$DZ$121:$EU$202,$O86,'Report - ALL (DASHBOARD)'!$W$3) -> 50.50028865
A87: 1980 | B87: =INDEX('Compile Data'!$J$12:$AE$93,$A87-1921,'Report - ALL (DASHBOARD)'!$W$3) -> 50.93844318 | C87: =INDEX('Compile Data'!$AH$12:$BC$93,$A87-1921,'Report - ALL (DASHBOARD)'!$W$3) -> 50.9587237 | D87: =INDEX('Compile Data'!$BF$12:$CA$93,$A87-1921,'Report - ALL (DASHBOARD)'!$W$3) -> 50.93919818 | E87: =INDEX('Compile Data'!$DZ$12:$EU$93,$A87-1921,'Report - ALL (DASHBOARD)'!$W$3) -> 50.95833302 | O87: 59 | P87: 0.7160493827 | Q87: =INDEX('Compile Data'!$J$121:$AE$202,$O87,'Report - ALL (DASHBOARD)'!$W$3) -> 50.49364758 | R87: =INDEX('Compile Data'!$AH$121:$BC$202,$O87,'Report - ALL (DASHBOARD)'!$W$3) -> 50.47342968 | S87: =INDEX('Compile Data'!$BF$121:$CA$202,$O87,'Report - ALL (DASHBOARD)'!$W$3) -> 50.47406546 | T87: =INDEX('Compile Data'!$DZ$121:$EU$202,$O87,'Report - ALL (DASHBOARD)'!$W$3) -> 50.47113069
A88: 1981 | B88: =INDEX('Compile Data'!$J$12:$AE$93,$A88-1921,'Report - ALL (DASHBOARD)'!$W$3) -> 51.21167151 | C88: =INDEX('Compile Data'!$AH$12:$BC$93,$A88-1921,'Report - ALL (DASHBOARD)'!$W$3) -> 51.20500215 | D88: =INDEX('Compile Data'!$BF$12:$CA$93,$A88-1921,'Report - ALL (DASHBOARD)'!$W$3) -> 51.20849578 | E88: =INDEX('Compile Data'!$DZ$12:$EU$93,$A88-1921,'Report - ALL (DASHBOARD)'!$W$3) -> 51.20518939 | O88: 60 | P88: 0.7283950617 | Q88: =INDEX('Compile Data'!$J$121:$AE$202,$O88,'Report - ALL (DASHBOARD)'!$W$3) -> 50.41006788 | R88: =INDEX('Compile Data'!$AH$121:$BC$202,$O88,'Report - ALL (DASHBOARD)'!$W$3) -> 50.42065112 | S88: =INDEX('Compile Data'!$BF$121:$CA$202,$O88,'Report - ALL (DASHBOARD)'!$W$3) -> 50.41970698 | T88: =INDEX('Compile Data'!$DZ$121:$EU$202,$O88,'Report - ALL (DASHBOARD)'!$W$3) -> 50.41935444
A89: 1982 | B89: =INDEX('Compile Data'!$J$12:$AE$93,$A89-1921,'Report - ALL (DASHBOARD)'!$W$3) -> 50.08003298 | C89: =INDEX('Compile Data'!$AH$12:$BC$93,$A89-1921,'Report - ALL (DASHBOARD)'!$W$3) -> 50.08829562 | D89: =INDEX('Compile Data'!$BF$12:$CA$93,$A89-1921,'Report - ALL (DASHBOARD)'!$W$3) -> 50.07296626 | E89: =INDEX('Compile Data'!$DZ$12:$EU$93,$A89-1921,'Report - ALL (DASHBOARD)'!$W$3) -> 50.08980878 | O89: 61 | P89: 0.7407407407 | Q89: =INDEX('Compile Data'!$J$121:$AE$202,$O89,'Report - ALL (DASHBOARD)'!$W$3) -> 50.35733414 | R89: =INDEX('Compile Data'!$AH$121:$BC$202,$O89,'Report - ALL (DASHBOARD)'!$W$3) -> 50.36351713 | S89: =INDEX('Compile Data'!$BF$121:$CA$202,$O89,'Report - ALL (DASHBOARD)'!$W$3) -> 50.37738005 | T89: =INDEX('Compile Data'!$DZ$121:$EU$202,$O89,'Report - ALL (DASHBOARD)'!$W$3) -> 50.3634065
A90: 1983 | B90: =INDEX('Compile Data'!$J$12:$AE$93,$A90-1921,'Report - ALL (DASHBOARD)'!$W$3) -> 49.74928792 | C90: =INDEX('Compile Data'!$AH$12:$BC$93,$A90-1921,'Report - ALL (DASHBOARD)'!$W$3) -> 49.74985854 | D90: =INDEX('Compile Data'!$BF$12:$CA$93,$A90-1921,'Report - ALL (DASHBOARD)'!$W$3) -> 49.74316692 | E90: =INDEX('Compile Data'!$DZ$12:$EU$93,$A90-1921,'Report - ALL (DASHBOARD)'!$W$3) -> 49.74858983 | O90: 62 | P90: 0.7530864198 | Q90: =INDEX('Compile Data'!$J$121:$AE$202,$O90,'Report - ALL (DASHBOARD)'!$W$3) -> 50.30571238 | R90: =INDEX('Compile Data'!$AH$121:$BC$202,$O90,'Report - ALL (DASHBOARD)'!$W$3) -> 50.31531588 | S90: =INDEX('Compile Data'!$BF$121:$CA$202,$O90,'Report - ALL (DASHBOARD)'!$W$3) -> 50.31410376 | T90: =INDEX('Compile Data'!$DZ$121:$EU$202,$O90,'Report - ALL (DASHBOARD)'!$W$3) -> 50.31303978
A91: 1984 | B91: =INDEX('Compile Data'!$J$12:$AE$93,$A91-1921,'Report - ALL (DASHBOARD)'!$W$3) -> 51.07468605 | C91: =INDEX('Compile Data'!$AH$12:$BC$93,$A91-1921,'Report - ALL (DASHBOARD)'!$W$3) -> 51.07343896 | D91: =INDEX('Compile Data'!$BF$12:$CA$93,$A91-1921,'Report - ALL (DASHBOARD)'!$W$3) -> 51.06891569 | E91: =INDEX('Compile Data'!$DZ$12:$EU$93,$A91-1921,'Report - ALL (DASHBOARD)'!$W$3) -> 51.07453219 | O91: 63 | P91: 0.7654320988 | Q91: =INDEX('Compile Data'!$J$121:$AE$202,$O91,'Report - ALL (DASHBOARD)'!$W$3) -> 50.28564103 | R91: =INDEX('Compile Data'!$AH$121:$BC$202,$O91,'Report - ALL (DASHBOARD)'!$W$3) -> 50.28039805 | S91: =INDEX('Compile Data'!$BF$121:$CA$202,$O91,'Report - ALL (DASHBOARD)'!$W$3) -> 50.28020096 | T91: =INDEX('Compile Data'!$DZ$121:$EU$202,$O91,'Report - ALL (DASHBOARD)'!$W$3) -> 50.28037802
A92: 1985 | B92: =INDEX('Compile Data'!$J$12:$AE$93,$A92-1921,'Report - ALL (DASHBOARD)'!$W$3) -> 51.43520514 | C92: =INDEX('Compile Data'!$AH$12:$BC$93,$A92-1921,'Report - ALL (DASHBOARD)'!$W$3) -> 51.41046588 | D92: =INDEX('Compile Data'!$BF$12:$CA$93,$A92-1921,'Report - ALL (DASHBOARD)'!$W$3) -> 51.44921684 | E92: =INDEX('Compile Data'!$DZ$12:$EU$93,$A92-1921,'Report - ALL (DASHBOARD)'!$W$3) -> 51.41102982 | O92: 64 | P92: 0.7777777778 | Q92: =INDEX('Compile Data'!$J$121:$AE$202,$O92,'Report - ALL (DASHBOARD)'!$W$3) -> 50.18724696 | R92: =INDEX('Compile Data'!$AH$121:$BC$202,$O92,'Report - ALL (DASHBOARD)'!$W$3) -> 50.18619442 | S92: =INDEX('Compile Data'!$BF$121:$CA$202,$O92,'Report - ALL (DASHBOARD)'!$W$3) -> 50.19432576 | T92: =INDEX('Compile Data'!$DZ$121:$EU$202,$O92,'Report - ALL (DASHBOARD)'!$W$3) -> 50.18892097
A93: 1986 | B93: =INDEX('Compile Data'!$J$12:$AE$93,$A93-1921,'Report - ALL (DASHBOARD)'!$W$3) -> 51.0949351 | C93: =INDEX('Compile Data'!$AH$12:$BC$93,$A93-1921,'Report - ALL (DASHBOARD)'!$W$3) -> 51.13135974 | D93: =INDEX('Compile Data'!$BF$12:$CA$93,$A93-1921,'Report - ALL (DASHBOARD)'!$W$3) -> 51.12239997 | E93: =INDEX('Compile Data'!$DZ$12:$EU$93,$A93-1921,'Report - ALL (DASHBOARD)'!$W$3) -> 51.13138803 | O93: 65 | P93: =(O93-1)/81 -> 0.7901234568 | Q93: =INDEX('Compile Data'!$J$121:$AE$202,$O93,'Report - ALL (DASHBOARD)'!$W$3) -> 50.1724151 | R93: =INDEX('Compile Data'!$AH$121:$BC$202,$O93,'Report - ALL (DASHBOARD)'!$W$3) -> 50.17659696 | S93: =INDEX('Compile Data'!$BF$121:$CA$202,$O93,'Report - ALL (DASHBOARD)'!$W$3) -> 50.18874518 | T93: =INDEX('Compile Data'!$DZ$121:$EU$202,$O93,'Report - ALL (DASHBOARD)'!$W$3) -> 50.17480024
A94: 1987 | B94: =INDEX('Compile Data'!$J$12:$AE$93,$A94-1921,'Report - ALL (DASHBOARD)'!$W$3) -> 51.61166573 | C94: =INDEX('Compile Data'!$AH$12:$BC$93,$A94-1921,'Report - ALL (DASHBOARD)'!$W$3) -> 51.51344681 | D94: =INDEX('Compile Data'!$BF$12:$CA$93,$A94-1921,'Report - ALL (DASHBOARD)'!$W$3) -> 51.47662989 | E94: =INDEX('Compile Data'!$DZ$12:$EU$93,$A94-1921,'Report - ALL (DASHBOARD)'!$W$3) -> 51.5060873 | O94: 66 | P94: 0.8024691358 | Q94: =INDEX('Compile Data'!$J$121:$AE$202,$O94,'Report - ALL (DASHBOARD)'!$W$3) -> 50.15939935 | R94: =INDEX('Compile Data'!$AH$121:$BC$202,$O94,'Report - ALL (DASHBOARD)'!$W$3) -> 50.16535759 | S94: =INDEX('Compile Data'!$BF$121:$CA$202,$O94,'Report - ALL (DASHBOARD)'!$W$3) -> 50.18725681 | T94: =INDEX('Compile Data'!$DZ$121:$EU$202,$O94,'Report - ALL (DASHBOARD)'!$W$3) -> 50.16483974
A95: =A94+1 -> 1988 | B95: =INDEX('Compile Data'!$J$12:$AE$93,$A95-1921,'Report - ALL (DASHBOARD)'!$W$3) -> 51.51125622 | C95: =INDEX('Compile Data'!$AH$12:$BC$93,$A95-1921,'Report - ALL (DASHBOARD)'!$W$3) -> 51.57933966 | D95: =INDEX('Compile Data'!$BF$12:$CA$93,$A95-1921,'Report - ALL (DASHBOARD)'!$W$3) -> 51.6844244 | E95: =INDEX('Compile Data'!$DZ$12:$EU$93,$A95-1921,'Report - ALL (DASHBOARD)'!$W$3) -> 51.58351008 | O95: 67 | P95: 0.8148148148 | Q95: =INDEX('Compile Data'!$J$121:$AE$202,$O95,'Report - ALL (DASHBOARD)'!$W$3) -> 50.14455509 | R95: =INDEX('Compile Data'!$AH$121:$BC$202,$O95,'Report - ALL (DASHBOARD)'!$W$3) -> 50.14916992 | S95: =INDEX('Compile Data'!$BF$121:$CA$202,$O95,'Report - ALL (DASHBOARD)'!$W$3) -> 50.15743542 | T95: =INDEX('Compile Data'!$DZ$121:$EU$202,$O95,'Report - ALL (DASHBOARD)'!$W$3) -> 50.14804872
A96: 1989 | B96: =INDEX('Compile Data'!$J$12:$AE$93,$A96-1921,'Report - ALL (DASHBOARD)'!$W$3) -> 52.14660327 | C96: =INDEX('Compile Data'!$AH$12:$BC$93,$A96-1921,'Report - ALL (DASHBOARD)'!$W$3) -> 52.25660515 | D96: =INDEX('Compile Data'!$BF$12:$CA$93,$A96-1921,'Report - ALL (DASHBOARD)'!$W$3) -> 52.25503381 | E96: =INDEX('Compile Data'!$DZ$12:$EU$93,$A96-1921,'Report - ALL (DASHBOARD)'!$W$3) -> 52.25128301 | O96: 68 | P96: 0.8271604938 | Q96: =INDEX('Compile Data'!$J$121:$AE$202,$O96,'Report - ALL (DASHBOARD)'!$W$3) -> 50.14329052 | R96: =INDEX('Compile Data'!$AH$121:$BC$202,$O96,'Report - ALL (DASHBOARD)'!$W$3) -> 50.1446085 | S96: =INDEX('Compile Data'!$BF$121:$CA$202,$O96,'Report - ALL (DASHBOARD)'!$W$3) -> 50.1470445 | T96: =INDEX('Compile Data'!$DZ$121:$EU$202,$O96,'Report - ALL (DASHBOARD)'!$W$3) -> 50.14067078
A97: 1990 | B97: =INDEX('Compile Data'!$J$12:$AE$93,$A97-1921,'Report - ALL (DASHBOARD)'!$W$3) -> 52.1301136 | C97: =INDEX('Compile Data'!$AH$12:$BC$93,$A97-1921,'Report - ALL (DASHBOARD)'!$W$3) -> 52.28938039 | D97: =INDEX('Compile Data'!$BF$12:$CA$93,$A97-1921,'Report - ALL (DASHBOARD)'!$W$3) -> 52.30336157 | E97: =INDEX('Compile Data'!$DZ$12:$EU$93,$A97-1921,'Report - ALL (DASHBOARD)'!$W$3) -> 52.30711333 | O97: 69 | P97: 0.8395061728 | Q97: =INDEX('Compile Data'!$J$121:$AE$202,$O97,'Report - ALL (DASHBOARD)'!$W$3) -> 50.0911808 | R97: =INDEX('Compile Data'!$AH$121:$BC$202,$O97,'Report - ALL (DASHBOARD)'!$W$3) -> 50.10028998 | S97: =INDEX('Compile Data'!$BF$121:$CA$202,$O97,'Report - ALL (DASHBOARD)'!$W$3) -> 50.08400822 | T97: =INDEX('Compile Data'!$DZ$121:$EU$202,$O97,'Report - ALL (DASHBOARD)'!$W$3) -> 50.097531
A98: 1991 | B98: =INDEX('Compile Data'!$J$12:$AE$93,$A98-1921,'Report - ALL (DASHBOARD)'!$W$3) -> 53.08076032 | C98: =INDEX('Compile Data'!$AH$12:$BC$93,$A98-1921,'Report - ALL (DASHBOARD)'!$W$3) -> 52.99649588 | D98: =INDEX('Compile Data'!$BF$12:$CA$93,$A98-1921,'Report - ALL (DASHBOARD)'!$W$3) -> 52.98906517 | E98: =INDEX('Compile Data'!$DZ$12:$EU$93,$A98-1921,'Report - ALL (DASHBOARD)'!$W$3) -> 52.98844051 | O98: 70 | P98: 0.8518518519 | Q98: =INDEX('Compile Data'!$J$121:$AE$202,$O98,'Report - ALL (DASHBOARD)'!$W$3) -> 50.08003298 | R98: =INDEX('Compile Data'!$AH$121:$BC$202,$O98,'Report - ALL (DASHBOARD)'!$W$3) -> 50.08829562 | S98: =INDEX('Compile Data'!$BF$121:$CA$202,$O98,'Report - ALL (DASHBOARD)'!$W$3) -> 50.07296626 | T98: =INDEX('Compile Data'!$DZ$121:$EU$202,$O98,'Report - ALL (DASHBOARD)'!$W$3) -> 50.08980878
A99: 1992 | B99: =INDEX('Compile Data'!$J$12:$AE$93,$A99-1921,'Report - ALL (DASHBOARD)'!$W$3) -> 52.80780125 | C99: =INDEX('Compile Data'!$AH$12:$BC$93,$A99-1921,'Report - ALL (DASHBOARD)'!$W$3) -> 52.66303031 | D99: =INDEX('Compile Data'!$BF$12:$CA$93,$A99-1921,'Report - ALL (DASHBOARD)'!$W$3) -> 52.65280978 | E99: =INDEX('Compile Data'!$DZ$12:$EU$93,$A99-1921,'Report - ALL (DASHBOARD)'!$W$3) -> 52.66531054 | O99: 71 | P99: 0.8641975309 | Q99: =INDEX('Compile Data'!$J$121:$AE$202,$O99,'Report - ALL (DASHBOARD)'!$W$3) -> 50.03411102 | R99: =INDEX('Compile Data'!$AH$121:$BC$202,$O99,'Report - ALL (DASHBOARD)'!$W$3) -> 50.02378209 | S99: =INDEX('Compile Data'!$BF$121:$CA$202,$O99,'Report - ALL (DASHBOARD)'!$W$3) -> 50.01215045 | T99: =INDEX('Compile Data'!$DZ$121:$EU$202,$O99,'Report - ALL (DASHBOARD)'!$W$3) -> 50.0257117
A100: 1993 | B100: =INDEX('Compile Data'!$J$12:$AE$93,$A100-1921,'Report - ALL (DASHBOARD)'!$W$3) -> 51.33001423 | C100: =INDEX('Compile Data'!$AH$12:$BC$93,$A100-1921,'Report - ALL (DASHBOARD)'!$W$3) -> 51.34284147 | D100: =INDEX('Compile Data'!$BF$12:$CA$93,$A100-1921,'Report - ALL (DASHBOARD)'!$W$3) -> 51.33995851 | E100: =INDEX('Compile Data'!$DZ$12:$EU$93,$A100-1921,'Report - ALL (DASHBOARD)'!$W$3) -> 51.3427283 | O100: 72 | P100: 0.8765432099 | Q100: =INDEX('Compile Data'!$J$121:$AE$202,$O100,'Report - ALL (DASHBOARD)'!$W$3) -> 50.02333895 | R100: =INDEX('Compile Data'!$AH$121:$BC$202,$O100,'Report - ALL (DASHBOARD)'!$W$3) -> 50.01762613 | S100: =INDEX('Compile Data'!$BF$121:$CA$202,$O100,'Report - ALL (DASHBOARD)'!$W$3) -> 50.00543308 | T100: =INDEX('Compile Data'!$DZ$121:$EU$202,$O100,'Report - ALL (DASHBOARD)'!$W$3) -> 50.01321379
A101: 1994 | B101: =INDEX('Compile Data'!$J$12:$AE$93,$A101-1921,'Report - ALL (DASHBOARD)'!$W$3) -> 52.62615681 | C101: =INDEX('Compile Data'!$AH$12:$BC$93,$A101-1921,'Report - ALL (DASHBOARD)'!$W$3) -> 52.74429893 | D101: =INDEX('Compile Data'!$BF$12:$CA$93,$A101-1921,'Report - ALL (DASHBOARD)'!$W$3) -> 52.74629466 | E101: =INDEX('Compile Data'!$DZ$12:$EU$93,$A101-1921,'Report - ALL (DASHBOARD)'!$W$3) -> 52.74005413 | O101: 73 | P101: 0.8888888889 | Q101: =INDEX('Compile Data'!$J$121:$AE$202,$O101,'Report - ALL (DASHBOARD)'!$W$3) -> 49.92924372 | R101: =INDEX('Compile Data'!$AH$121:$BC$202,$O101,'Report - ALL (DASHBOARD)'!$W$3) -> 49.93800036 | S101: =INDEX('Compile Data'!$BF$121:$CA$202,$O101,'Report - ALL (DASHBOARD)'!$W$3) -> 49.95841153 | T101: =INDEX('Compile Data'!$DZ$121:$EU$202,$O101,'Report - ALL (DASHBOARD)'!$W$3) -> 49.93835958
A102: 1995 | B102: =INDEX('Compile Data'!$J$12:$AE$93,$A102-1921,'Report - ALL (DASHBOARD)'!$W$3) -> 50.77428277 | C102: =INDEX('Compile Data'!$AH$12:$BC$93,$A102-1921,'Report - ALL (DASHBOARD)'!$W$3) -> 50.69382127 | D102: =INDEX('Compile Data'!$BF$12:$CA$93,$A102-1921,'Report - ALL (DASHBOARD)'!$W$3) -> 50.68150043 | E102: =INDEX('Compile Data'!$DZ$12:$EU$93,$A102-1921,'Report - ALL (DASHBOARD)'!$W$3) -> 50.69113413 | O102: 74 | P102: 0.9012345679 | Q102: =INDEX('Compile Data'!$J$121:$AE$202,$O102,'Report - ALL (DASHBOARD)'!$W$3) -> 49.92648824 | R102: =INDEX('Compile Data'!$AH$121:$BC$202,$O102,'Report - ALL (DASHBOARD)'!$W$3) -> 49.92783451 | S102: =INDEX('Compile Data'!$BF$121:$CA$202,$O102,'Report - ALL (DASHBOARD)'!$W$3) -> 49.92796199 | T102: =INDEX('Compile Data'!$DZ$121:$EU$202,$O102,'Report - ALL (DASHBOARD)'!$W$3) -> 49.92842992
A103: 1996 | B103: =INDEX('Compile Data'!$J$12:$AE$93,$A103-1921,'Report - ALL (DASHBOARD)'!$W$3) -> 52.55738131 | C103: =INDEX('Compile Data'!$AH$12:$BC$93,$A103-1921,'Report - ALL (DASHBOARD)'!$W$3) -> 52.56171036 | D103: =INDEX('Compile Data'!$BF$12:$CA$93,$A103-1921,'Report - ALL (DASHBOARD)'!$W$3) -> 52.56585217 | E103: =INDEX('Compile Data'!$DZ$12:$EU$93,$A103-1921,'Report - ALL (DASHBOARD)'!$W$3) -> 52.56194655 | O103: 75 | P103: 0.9135802469 | Q103: =INDEX('Compile Data'!$J$121:$AE$202,$O103,'Report - ALL (DASHBOARD)'!$W$3) -> 49.86942514 | R103: =INDEX('Compile Data'!$AH$121:$BC$202,$O103,'Report - ALL (DASHBOARD)'!$W$3) -> 49.91163254 | S103: =INDEX('Compile Data'!$BF$121:$CA$202,$O103,'Report - ALL (DASHBOARD)'!$W$3) -> 49.90493902 | T103: =INDEX('Compile Data'!$DZ$121:$EU$202,$O103,'Report - ALL (DASHBOARD)'!$W$3) -> 49.92209117
A104: 1997 | B104: =INDEX('Compile Data'!$J$12:$AE$93,$A104-1921,'Report - ALL (DASHBOARD)'!$W$3) -> 51.54023584 | C104: =INDEX('Compile Data'!$AH$12:$BC$93,$A104-1921,'Report - ALL (DASHBOARD)'!$W$3) -> 51.53929202 | D104: =INDEX('Compile Data'!$BF$12:$CA$93,$A104-1921,'Report - ALL (DASHBOARD)'!$W$3) -> 51.53767999 | E104: =INDEX('Compile Data'!$DZ$12:$EU$93,$A104-1921,'Report - ALL (DASHBOARD)'!$W$3) -> 51.53730297 | O104: 76 | P104: 0.9259259259 | Q104: =INDEX('Compile Data'!$J$121:$AE$202,$O104,'Report - ALL (DASHBOARD)'!$W$3) -> 49.86658478 | R104: =INDEX('Compile Data'!$AH$121:$BC$202,$O104,'Report - ALL (DASHBOARD)'!$W$3) -> 49.87969049 | S104: =INDEX('Compile Data'!$BF$121:$CA$202,$O104,'Report - ALL (DASHBOARD)'!$W$3) -> 49.90457757 | T104: =INDEX('Compile Data'!$DZ$121:$EU$202,$O104,'Report - ALL (DASHBOARD)'!$W$3) -> 49.88230451
A105: 1998 | B105: =INDEX('Compile Data'!$J$12:$AE$93,$A105-1921,'Report - ALL (DASHBOARD)'!$W$3) -> 50.63207022 | C105: =INDEX('Compile Data'!$AH$12:$BC$93,$A105-1921,'Report - ALL (DASHBOARD)'!$W$3) -> 50.62905788 | D105: =INDEX('Compile Data'!$BF$12:$CA$93,$A105-1921,'Report - ALL (DASHBOARD)'!$W$3) -> 50.62549114 | E105: =INDEX('Compile Data'!$DZ$12:$EU$93,$A105-1921,'Report - ALL (DASHBOARD)'!$W$3) -> 50.62250551 | O105: 77 | P105: 0.9382716049 | Q105: =INDEX('Compile Data'!$J$121:$AE$202,$O105,'Report - ALL (DASHBOARD)'!$W$3) -> 49.8242623 | R105: =INDEX('Compile Data'!$AH$121:$BC$202,$O105,'Report - ALL (DASHBOARD)'!$W$3) -> 49.82153098 | S105: =INDEX('Compile Data'!$BF$121:$CA$202,$O105,'Report - ALL (DASHBOARD)'!$W$3) -> 49.82446512 | T105: =INDEX('Compile Data'!$DZ$121:$EU$202,$O105,'Report - ALL (DASHBOARD)'!$W$3) -> 49.82155736
A106: 1999 | B106: =INDEX('Compile Data'!$J$12:$AE$93,$A106-1921,'Report - ALL (DASHBOARD)'!$W$3) -> 51.45416292 | C106: =INDEX('Compile Data'!$AH$12:$BC$93,$A106-1921,'Report - ALL (DASHBOARD)'!$W$3) -> 51.46082878 | D106: =INDEX('Compile Data'!$BF$12:$CA$93,$A106-1921,'Report - ALL (DASHBOARD)'!$W$3) -> 51.46042411 | E106: =INDEX('Compile Data'!$DZ$12:$EU$93,$A106-1921,'Report - ALL (DASHBOARD)'!$W$3) -> 51.45979691 | O106: 78 | P106: 0.950617284 | Q106: =INDEX('Compile Data'!$J$121:$AE$202,$O106,'Report - ALL (DASHBOARD)'!$W$3) -> 49.74928792 | R106: =INDEX('Compile Data'!$AH$121:$BC$202,$O106,'Report - ALL (DASHBOARD)'!$W$3) -> 49.74985854 | S106: =INDEX('Compile Data'!$BF$121:$CA$202,$O106,'Report - ALL (DASHBOARD)'!$W$3) -> 49.74316692 | T106: =INDEX('Compile Data'!$DZ$121:$EU$202,$O106,'Report - ALL (DASHBOARD)'!$W$3) -> 49.74858983
A107: 2000 | B107: =INDEX('Compile Data'!$J$12:$AE$93,$A107-1921,'Report - ALL (DASHBOARD)'!$W$3) -> 51.80267366 | C107: =INDEX('Compile Data'!$AH$12:$BC$93,$A107-1921,'Report - ALL (DASHBOARD)'!$W$3) -> 51.80363401 | D107: =INDEX('Compile Data'!$BF$12:$CA$93,$A107-1921,'Report - ALL (DASHBOARD)'!$W$3) -> 51.82444604 | E107: =INDEX('Compile Data'!$DZ$12:$EU$93,$A107-1921,'Report - ALL (DASHBOARD)'!$W$3) -> 51.80590343 | O107: 79 | P107: 0.962962963 | Q107: =INDEX('Compile Data'!$J$121:$AE$202,$O107,'Report - ALL (DASHBOARD)'!$W$3) -> 49.67767111 | R107: =INDEX('Compile Data'!$AH$121:$BC$202,$O107,'Report - ALL (DASHBOARD)'!$W$3) -> 49.68870227 | S107: =INDEX('Compile Data'!$BF$121:$CA$202,$O107,'Report - ALL (DASHBOARD)'!$W$3) -> 49.66026433 | T107: =INDEX('Compile Data'!$DZ$121:$EU$202,$O107,'Report - ALL (DASHBOARD)'!$W$3) -> 49.68825817
A108: 2001 | B108: =INDEX('Compile Data'!$J$12:$AE$93,$A108-1921,'Report - ALL (DASHBOARD)'!$W$3) -> 52.50473531 | C108: =INDEX('Compile Data'!$AH$12:$BC$93,$A108-1921,'Report - ALL (DASHBOARD)'!$W$3) -> 52.50745169 | D108: =INDEX('Compile Data'!$BF$12:$CA$93,$A108-1921,'Report - ALL (DASHBOARD)'!$W$3) -> 52.47508589 | E108: =INDEX('Compile Data'!$DZ$12:$EU$93,$A108-1921,'Report - ALL (DASHBOARD)'!$W$3) -> 52.5096213 | O108: 80 | P108: 0.975308642 | Q108: =INDEX('Compile Data'!$J$121:$AE$202,$O108,'Report - ALL (DASHBOARD)'!$W$3) -> 49.66750844 | R108: =INDEX('Compile Data'!$AH$121:$BC$202,$O108,'Report - ALL (DASHBOARD)'!$W$3) -> 49.66904036 | S108: =INDEX('Compile Data'!$BF$121:$CA$202,$O108,'Report - ALL (DASHBOARD)'!$W$3) -> 49.65693156 | T108: =INDEX('Compile Data'!$DZ$121:$EU$202,$O108,'Report - ALL (DASHBOARD)'!$W$3) -> 49.6706953
A109: 2002 | B109: =INDEX('Compile Data'!$J$12:$AE$93,$A109-1921,'Report - ALL (DASHBOARD)'!$W$3) -> 51.59737873 | C109: =INDEX('Compile Data'!$AH$12:$BC$93,$A109-1921,'Report - ALL (DASHBOARD)'!$W$3) -> 51.61715126 | D109: =INDEX('Compile Data'!$BF$12:$CA$93,$A109-1921,'Report - ALL (DASHBOARD)'!$W$3) -> 51.62421799 | E109: =INDEX('Compile Data'!$DZ$12:$EU$93,$A109-1921,'Report - ALL (DASHBOARD)'!$W$3) -> 51.61601671 | O109: 81 | P109: 0.987654321 | Q109: =INDEX('Compile Data'!$J$121:$AE$202,$O109,'Report - ALL (DASHBOARD)'!$W$3) -> 49.65370687 | R109: =INDEX('Compile Data'!$AH$121:$BC$202,$O109,'Report - ALL (DASHBOARD)'!$W$3) -> 49.65830326 | S109: =INDEX('Compile Data'!$BF$121:$CA$202,$O109,'Report - ALL (DASHBOARD)'!$W$3) -> 49.63962491 | T109: =INDEX('Compile Data'!$DZ$121:$EU$202,$O109,'Report - ALL (DASHBOARD)'!$W$3) -> 49.65521781
A110: 2003 | B110: =INDEX('Compile Data'!$J$12:$AE$93,$A110-1921,'Report - ALL (DASHBOARD)'!$W$3) -> 51.03051726 | C110: =INDEX('Compile Data'!$AH$12:$BC$93,$A110-1921,'Report - ALL (DASHBOARD)'!$W$3) -> 51.04344432 | D110: =INDEX('Compile Data'!$BF$12:$CA$93,$A110-1921,'Report - ALL (DASHBOARD)'!$W$3) -> 51.01720524 | E110: =INDEX('Compile Data'!$DZ$12:$EU$93,$A110-1921,'Report - ALL (DASHBOARD)'!$W$3) -> 51.0379591 | O110: 82 | P110: 1 | Q110: =INDEX('Compile Data'!$J$121:$AE$202,$O110,'Report - ALL (DASHBOARD)'!$W$3) ->  | R110: =INDEX('Compile Data'!$AH$121:$BC$202,$O110,'Report - ALL (DASHBOARD)'!$W$3) ->  | S110: =INDEX('Compile Data'!$BF$121:$CA$202,$O110,'Report - ALL (DASHBOARD)'!$W$3) ->  | T110: =INDEX('Compile Data'!$DZ$121:$EU$202,$O110,'Report - ALL (DASHBOARD)'!$W$3) -> 

Sheet Compile Data
B1: =Control!$C$9 -> NAA 011221 | C1: =Control!$C$10 -> Alt 1A 011221 | D1: =Control!$C$11 -> Alt 1B 011221 | E1: =Control!$C$12 -> Alt 2 011221 | AA1: =$B$8 -> PER-AVER | AY1: =$C$8 -> PER-AVER | BW1: ='Compile Data'!$D$8 -> PER-AVER | CU1: ='Compile Data'!$E$8 -> PER-AVER | DS1: ='Compile Data'!#REF! ->  | EQ1: ='Compile Data'!$E$8 -> PER-AVER
A2: Index: | B2: ='Report - ALL (DASHBOARD)'!W1 -> 10 | C2: =B2 -> 10 | D2: 10 | E2: 10
A3: Convert? | B3: =IF('Report - ALL (DASHBOARD)'!W4,1,0) -> 1 | C3: 1 | D3: 1 | E3: 1
A4: Column: | B4: =VLOOKUP(B$2,Control!$A$35:$J$96,7) -> J | C4: J | D4: J | E4: J
A5: Title: | B5: =VLOOKUP(B$2,Control!$A$35:$J$96,10) -> Sacramento River Below Clear Creek Temperature | C5: =VLOOKUP(C$2,Control!$A$35:$J$96,10) -> Sacramento River Below Clear Creek Temperature | D5: =VLOOKUP(D$2,Control!$A$35:$J$96,10) -> Sacramento River Below Clear Creek Temperature | E5: =VLOOKUP(E$2,Control!$A$35:$J$82,10) -> Sacramento River Below Clear Creek Temperature
A6: Parameter: | B6: =INDIRECT(CONCATENATE("'",B$1,"'!",B$4,2)) -> BLW CLEAR CREEK | C6: BLW CLEAR CREEK | D6: BLW CLEAR CREEK | E6: BLW CLEAR CREEK
B7: =INDIRECT(CONCATENATE("'",B$1,"'!",B$4,3)) -> TEMP | C7: TEMP | D7: TEMP | E7: TEMP
A8: Type: | B8: =TRIM(VLOOKUP(B$2,Control!$A$35:$J$82,9)) -> PER-AVER | C8: =TRIM(VLOOKUP(C$2,Control!$A$35:$J$82,9)) -> PER-AVER | D8: =TRIM(VLOOKUP(D$2,Control!$A$35:$J$82,9)) -> PER-AVER | E8: =TRIM(VLOOKUP(E$2,Control!$A$35:$J$82,9)) -> PER-AVER | I8: =CONCATENATE(TRIM(B$1),": ",TRIM(B$5)," - ",TRIM(B$6)," ",TRIM(B$7)," (",TRIM(B$10),") ",TRIM(B$11)) -> NAA 011221: Sacramento River Below Clear Creek Temperature - BLW CLEAR CREEK TEMP (DEGF) | AG8: =CONCATENATE(TRIM(C$1),": ",TRIM(C$5)," - ",TRIM(C$6)," ",TRIM(C$7)," (",TRIM(C$10),") ",TRIM(C$11)) -> Alt 1A 011221: Sacramento River Below Clear Creek Temperature - BLW CLEAR CREEK TEMP (DEGF) | BE8: =CONCATENATE(TRIM('Compile Data'!D$1),": ",TRIM('Compile Data'!D$5)," - ",TRIM('Compile Data'!D$6)," ",TRIM('Compile Data'!D$7)," (",TRIM('Compile Data'!D$10),") ",TRIM('Compile Data'!D$11)) -> Alt 1B 011221: Sacramento River Below Clear Creek Temperature - BLW CLEAR CREEK TEMP (DEGF) | CC8: =CONCATENATE(TRIM('Compile Data'!E$1),": ",TRIM('Compile Data'!E$5)," - ",TRIM('Compile Data'!E$6)," ",TRIM('Compile Data'!E$7)," (",TRIM('Compile Data'!E$10),") ",TRIM('Compile Data'!E$11)) -> Alt 2 011221: Sacramento River Below Clear Creek Temperature - BLW CLEAR CREEK TEMP (DEGF) | DA8: =CONCATENATE(TRIM('Compile Data'!#REF!),": ",TRIM('Compile Data'!#REF!)," - ",TRIM('Compile Data'!#REF!)," ",TRIM('Compile Data'!#REF!)," (",TRIM('Compile Data'!#REF!),") ",TRIM('Compile Data'!#REF!)) ->  | DY8: =CONCATENATE(TRIM('Compile Data'!E$1),": ",TRIM('Compile Data'!E$5)," - ",TRIM('Compile Data'!E$6)," ",TRIM('Compile Data'!E$7)," (",TRIM('Compile Data'!E$10),") ",TRIM('Compile Data'!E$11)) -> Alt 2 011221: Sacramento River Below Clear Creek Temperature - BLW CLEAR CREEK TEMP (DEGF)
A9: Units-native: | B9: =TRIM(INDIRECT(CONCATENATE("'",B$1,"'!",B$4,11))) -> DEGF | C9: DEGF | D9: DEGF | E9: DEGF
A10: Units-shown: | B10: =IF(AND(B$3>0,B$9="CFS"),"TAF",B$9) -> DEGF | C10: DEGF | D10: DEGF | E10: DEGF | W10: Jan-Dec | X10: Mar-Feb | Y10: Oct-Sep | AA10: Oct-Jan | AB10: Dec-Feb | AC10: Mar-Jun | AD10: Jun-Sep | AE10: Sep-Nov | AU10: Jan-Dec | AV10: Mar-Feb | AW10: Oct-Sep | AY10: Oct-Jan | AZ10: Dec-Feb | BA10: Mar-Jun | BB10: Jun-Sep | BC10: Sep-Nov | BS10: Jan-Dec | BT10: Mar-Feb | BU10: Oct-Sep | BW10: Oct-Jan | BX10: Dec-Feb | BY10: Mar-Jun | BZ10: Jun-Sep | CA10: Sep-Nov | CQ10: Jan-Dec | CR10: Mar-Feb | CS10: Oct-Sep | CU10: Oct-Jan | CV10: Dec-Feb | CW10: Mar-Jun | CX10: Jun-Sep | CY10: Sep-Nov | DO10: Jan-Dec | DP10: Mar-Feb | DQ10: Oct-Sep | DS10: Oct-Jan | DT10: Dec-Feb | DU10: Mar-Jun | DV10: Jun-Sep | DW10: Sep-Nov | EM10: Jan-Dec | EN10: Mar-Feb | EO10: Oct-Sep | EQ10: Oct-Jan | ER10: Dec-Feb | ES10: Mar-Jun | ET10: Jun-Sep | EU10: Sep-Nov
A11: Date | B11: =IF(ISNUMBER(FIND("PRV",B$6)),"SHIFTED","") ->  | I11: YEAR | J11: OCT | K11: NOV | L11: DEC | M11: JAN | N11: FEB | O11: MAR | P11: APR | Q11: MAY | R11: JUN | S11: JUL | T11: AUG | U11: SEP | W11: =IF(AND($B$10="TAF",$B$8="PER-AVER"),"TOT","AVG") -> AVG | X11: =IF(AND($B$10="TAF",$B$8="PER-AVER"),"TOT","AVG") -> AVG | Y11: =IF(AND($B$10="TAF",$B$8="PER-AVER"),"TOT","AVG") -> AVG | AA11: =IF(AND($B$10="TAF",$B$8="PER-AVER"),"TOT","AVG") -> AVG | AB11: =IF(AND($B$10="TAF",$B$8="PER-AVER"),"TOT","AVG") -> AVG | AC11: =IF(AND($B$10="TAF",$B$8="PER-AVER"),"TOT","AVG") -> AVG | AD11: =IF(AND($B$10="TAF",$B$8="PER-AVER"),"TOT","AVG") -> AVG | AE11: =IF(AND($B$10="TAF",$B$8="PER-AVER"),"TOT","AVG") -> AVG | AG11: YEAR | AH11: OCT | AI11: NOV | AJ11: DEC | AK11: JAN | AL11: FEB | AM11: MAR | AN11: APR | AO11: MAY | AP11: JUN | AQ11: JUL | AR11: AUG | AS11: SEP | AU11: =IF(AND($C$10="TAF",$C$8="PER-AVER"),"TOT","AVG") -> AVG | AV11: =IF(AND($C$10="TAF",$C$8="PER-AVER"),"TOT","AVG") -> AVG | AW11: =IF(AND($C$10="TAF",$C$8="PER-AVER"),"TOT","AVG") -> AVG | AY11: =IF(AND($C$10="TAF",$C$8="PER-AVER"),"TOT","AVG") -> AVG | AZ11: =IF(AND($C$10="TAF",$C$8="PER-AVER"),"TOT","AVG") -> AVG | BA11: =IF(AND($C$10="TAF",$C$8="PER-AVER"),"TOT","AVG") -> AVG | BB11: =IF(AND($C$10="TAF",$C$8="PER-AVER"),"TOT","AVG") -> AVG | BC11: =IF(AND($C$10="TAF",$C$8="PER-AVER"),"TOT","AVG") -> AVG | BE11: YEAR | BF11: OCT | BG11: NOV | BH11: DEC | BI11: JAN | BJ11: FEB | BK11: MAR | BL11: APR | BM11: MAY | BN11: JUN | BO11: JUL | BP11: AUG | BQ11: SEP | BS11: =IF(AND('Compile Data'!$D$10="TAF",'Compile Data'!$D$8="PER-AVER"),"TOT","AVG") -> AVG | BT11: =IF(AND('Compile Data'!$D$10="TAF",'Compile Data'!$D$8="PER-AVER"),"TOT","AVG") -> AVG | BU11: =IF(AND('Compile Data'!$D$10="TAF",'Compile Data'!$D$8="PER-AVER"),"TOT","AVG") -> AVG | BW11: =IF(AND('Compile Data'!$D$10="TAF",'Compile Data'!$D$8="PER-AVER"),"TOT","AVG") -> AVG | BX11: =IF(AND('Compile Data'!$D$10="TAF",'Compile Data'!$D$8="PER-AVER"),"TOT","AVG") -> AVG | BY11: =IF(AND('Compile Data'!$D$10="TAF",'Compile Data'!$D$8="PER-AVER"),"TOT","AVG") -> AVG | BZ11: =IF(AND('Compile Data'!$D$10="TAF",'Compile Data'!$D$8="PER-AVER"),"TOT","AVG") -> AVG | CA11: =IF(AND('Compile Data'!$D$10="TAF",'Compile Data'!$D$8="PER-AVER"),"TOT","AVG") -> AVG | CC11: YEAR | CD11: OCT | CE11: NOV | CF11: DEC | CG11: JAN | CH11: FEB | CI11: MAR | CJ11: APR | CK11: MAY | CL11: JUN | CM11: JUL | CN11: AUG | CO11: SEP | CQ11: =IF(AND('Compile Data'!$E$10="TAF",'Compile Data'!$E$8="PER-AVER"),"TOT","AVG") -> AVG | CR11: =IF(AND('Compile Data'!$E$10="TAF",'Compile Data'!$E$8="PER-AVER"),"TOT","AVG") -> AVG | CS11: =IF(AND('Compile Data'!$E$10="TAF",'Compile Data'!$E$8="PER-AVER"),"TOT","AVG") -> AVG | CU11: =IF(AND('Compile Data'!$E$10="TAF",'Compile Data'!$E$8="PER-AVER"),"TOT","AVG") -> AVG | CV11: =IF(AND('Compile Data'!$E$10="TAF",'Compile Data'!$E$8="PER-AVER"),"TOT","AVG") -> AVG | CW11: =IF(AND('Compile Data'!$E$10="TAF",'Compile Data'!$E$8="PER-AVER"),"TOT","AVG") -> AVG | CX11: =IF(AND('Compile Data'!$E$10="TAF",'Compile Data'!$E$8="PER-AVER"),"TOT","AVG") -> AVG | CY11: =IF(AND('Compile Data'!$E$10="TAF",'Compile Data'!$E$8="PER-AVER"),"TOT","AVG") -> AVG | DA11: YEAR | DB11: OCT | DC11: NOV | DD11: DEC | DE11: JAN | DF11: FEB | DG11: MAR | DH11: APR | DI11: MAY | DJ11: JUN | DK11: JUL | DL11: AUG | DM11: SEP | DO11: =IF(AND('Compile Data'!#REF!="TAF",'Compile Data'!#REF!="PER-AVER"),"TOT","AVG") ->  | DP11: =IF(AND('Compile Data'!#REF!="TAF",'Compile Data'!#REF!="PER-AVER"),"TOT","AVG") ->  | DQ11: =IF(AND('Compile Data'!#REF!="TAF",'Compile Data'!#REF!="PER-AVER"),"TOT","AVG") ->  | DS11: =IF(AND('Compile Data'!#REF!="TAF",'Compile Data'!#REF!="PER-AVER"),"TOT","AVG") ->  | DT11: =IF(AND('Compile Data'!#REF!="TAF",'Compile Data'!#REF!="PER-AVER"),"TOT","AVG") ->  | DU11: =IF(AND('Compile Data'!#REF!="TAF",'Compile Data'!#REF!="PER-AVER"),"TOT","AVG") ->  | DV11: =IF(AND('Compile Data'!#REF!="TAF",'Compile Data'!#REF!="PER-AVER"),"TOT","AVG") ->  | DW11: =IF(AND('Compile Data'!#REF!="TAF",'Compile Data'!#REF!="PER-AVER"),"TOT","AVG") ->  | DY11: YEAR | DZ11: OCT | EA11: NOV | EB11: DEC | EC11: JAN | ED11: FEB | EE11: MAR | EF11: APR | EG11: MAY | EH11: JUN | EI11: JUL | EJ11: AUG | EK11: SEP | EM11: =IF(AND('Compile Data'!$D$10="TAF",'Compile Data'!$D$8="PER-AVER"),"TOT","AVG") -> AVG | EN11: =IF(AND('Compile Data'!$D$10="TAF",'Compile Data'!$D$8="PER-AVER"),"TOT","AVG") -> AVG | EO11: =IF(AND('Compile Data'!$D$10="TAF",'Compile Data'!$D$8="PER-AVER"),"TOT","AVG") -> AVG | EQ11: =IF(AND('Compile Data'!$D$10="TAF",'Compile Data'!$D$8="PER-AVER"),"TOT","AVG") -> AVG | ER11: =IF(AND('Compile Data'!$D$10="TAF",'Compile Data'!$D$8="PER-AVER"),"TOT","AVG") -> AVG | ES11: =IF(AND('Compile Data'!$D$10="TAF",'Compile Data'!$D$8="PER-AVER"),"TOT","AVG") -> AVG | ET11: =IF(AND('Compile Data'!$D$10="TAF",'Compile Data'!$D$8="PER-AVER"),"TOT","AVG") -> AVG | EU11: =IF(AND('Compile Data'!$D$10="TAF",'Compile Data'!$D$8="PER-AVER"),"TOT","AVG") -> AVG
A12: 1921-09-30 | I12: 1922 | J12: =NA() ->  | K12: =NA() ->  | L12: =NA() ->  | M12: =B16 -> 45.86698914 | N12: =B17 -> 45.62512207 | O12: =B18 -> 48.1643486 | P12: =B19 -> 51.29597473 | Q12: =B20 -> 51.0175209 | R12: =B21 -> 51.81781769 | S12: =B22 -> 51.83929825 | T12: =B23 -> 51.76369858 | U12: =B24 -> 51.04671097 | W12: =IF(W$11="AVG",AVERAGE(M12:U12,J13:L13),SUM(M12:U12,J13:L13)) -> 50.41826884 | X12: =IF(X$11="AVG",AVERAGE(O12:U12,J13:N13),SUM(O12:U12,J13:N13)) -> 50.70561155 | Y12: =NA() ->  | AA12: =NA() ->  | AB12: =NA() ->  | AC12: =IF(AC$11="AVG",IF(AA$1="INST-VAL",AVERAGE(N12:Q12,O12:R12),AVERAGE(O12:R12)),SUM(O12:R12)) -> 50.57391548 | AD12: =IF(AD$11="AVG",IF(AA$1="INST-VAL",AVERAGE(Q12:T12,R12:U12),AVERAGE(R12:U12)),SUM(R12:U12)) -> 51.61688137 | AE12: =IF(AE$11="AVG",IF(AA$1="INST-VAL",AVERAGE(T12:U12,J13,U12,J13:K13),AVERAGE(U12,J13:K13)),SUM(U12,J13:K13)) -> 52.17153295 | AG12: 1922 | AH12: =NA() ->  | AI12: =NA() ->  | AJ12: =NA() ->  | AK12: ='Compile Data'!C16 -> 45.87044525 | AL12: ='Compile Data'!C17 -> 45.62424469 | AM12: ='Compile Data'!C18 -> 48.18862915 | AN12: ='Compile Data'!C19 -> 51.25356293 | AO12: ='Compile Data'!C20 -> 51.02145386 | AP12: ='Compile Data'!C21 -> 51.94972992 | AQ12: ='Compile Data'!C22 -> 51.86492538 | AR12: ='Compile Data'!C23 -> 51.76841354 | AS12: ='Compile Data'!C24 -> 50.97625732 | AU12: =IF(AU$11="AVG",AVERAGE(AK12:AS12,AH13:AJ13),SUM(AK12:AS12,AH13:AJ13)) -> 50.42383353 | AV12: =IF(AV$11="AVG",AVERAGE(AM12:AS12,AH13:AL13),SUM(AM12:AS12,AH13:AL13)) -> 50.71056016 | AW12: =NA() ->  | AY12: =NA() ->  | AZ12: =NA() ->  | BA12: =IF(BA$11="AVG",IF(AY$1="INST-VAL",AVERAGE(AL12:AO12,AM12:AP12),AVERAGE(AM12:AP12)),SUM(AM12:AP12)) -> 50.60334396 | BB12: =IF(BB$11="AVG",IF(AY$1="INST-VAL",AVERAGE(AO12:AR12,AP12:AS12),AVERAGE(AP12:AS12)),SUM(AP12:AS12)) -> 51.63983154 | BC12: =IF(BC$11="AVG",IF(AY$1="INST-VAL",AVERAGE(AR12:AS12,AH13,AS12,AH13:AI13),AVERAGE(AS12,AH13:AI13)),SUM(AS12,AH13:AI13)) -> 52.14256922 | BE12: 1922 | BF12: =NA() ->  | BG12: =NA() ->  | BH12: =NA() ->  | BI12: ='Compile Data'!D16 -> 45.87252426 | BJ12: ='Compile Data'!D17 -> 45.63713455 | BK12: ='Compile Data'!D18 -> 48.23376465 | BL12: ='Compile Data'!D19 -> 51.05755615 | BM12: ='Compile Data'!D20 -> 51.0097084 | BN12: ='Compile Data'!D21 -> 51.954422 | BO12: ='Compile Data'!D22 -> 52.05846786 | BP12: ='Compile Data'!D23 -> 51.77032471 | BQ12: ='Compile Data'!D24 -> 50.79842377 | BS12: =IF(BS$11="AVG",AVERAGE(BI12:BQ12,BF13:BH13),SUM(BI12:BQ12,BF13:BH13)) -> 50.40684573 | BT12: =IF(BT$11="AVG",AVERAGE(BK12:BQ12,BF13:BJ13),SUM(BK12:BQ12,BF13:BJ13)) -> 50.69262822 | BU12: =NA() ->  | BW12: =NA() ->  | BX12: =NA() ->  | BY12: =IF(BY$11="AVG",IF(BW$1="INST-VAL",AVERAGE(BJ12:BM12,BK12:BN12),AVERAGE(BK12:BN12)),SUM(BK12:BN12)) -> 50.5638628 | BZ12: =IF(BZ$11="AVG",IF(BW$1="INST-VAL",AVERAGE(BM12:BP12,BN12:BQ12),AVERAGE(BN12:BQ12)),SUM(BN12:BQ12)) -> 51.64540958 | CA12: =IF(CA$11="AVG",IF(BW$1="INST-VAL",AVERAGE(BP12:BQ12,BF13,BQ12,BF13:BG13),AVERAGE(BQ12,BF13:BG13)),SUM(BQ12,BF13:BG13)) -> 52.06295904 | CC12: 1922 | CD12: ='Compile Data'!E13 -> 0 | CE12: ='Compile Data'!E14 -> 0 | CF12: ='Compile Data'!E15 -> 0 | CG12: ='Compile Data'!E16 -> 45.87044525 | CH12: ='Compile Data'!E17 -> 45.62424469 | CI12: ='Compile Data'!E18 -> 48.18862915 | CJ12: ='Compile Data'!E19 -> 51.25356293 | CK12: ='Compile Data'!E20 -> 51.02145386 | CL12: ='Compile Data'!E21 -> 51.94972992 | CM12: ='Compile Data'!E22 -> 51.86492538 | CN12: ='Compile Data'!E23 -> 51.76841354 | CO12: ='Compile Data'!E24 -> 50.97625732 | CQ12: =IF(CQ$11="AVG",AVERAGE(CG12:CO12,CD13:CF13),SUM(CG12:CO12,CD13:CF13)) -> 50.42383353 | CR12: =IF(CR$11="AVG",AVERAGE(CI12:CO12,CD13:CH13),SUM(CI12:CO12,CD13:CH13)) -> 50.71056016 | CW12: =IF(CW$11="AVG",IF(CU$1="INST-VAL",AVERAGE(CH12:CK12,CI12:CL12),AVERAGE(CI12:CL12)),SUM(CI12:CL12)) -> 50.60334396 | CX12: =IF(CX$11="AVG",IF(CU$1="INST-VAL",AVERAGE(CK12:CN12,CL12:CO12),AVERAGE(CL12:CO12)),SUM(CL12:CO12)) -> 51.63983154 | CY12: =IF(CY$11="AVG",IF(CU$1="INST-VAL",AVERAGE(CN12:CO12,CD13,CO12,CD13:CE13),AVERAGE(CO12,CD13:CE13)),SUM(CO12,CD13:CE13)) -> 52.14256922 | DA12: 1922 | DB12: ='Compile Data'!#REF! ->  | DC12: ='Compile Data'!#REF! ->  | DD12: ='Compile Data'!#REF! ->  | DE12: ='Compile Data'!#REF! ->  | DF12: ='Compile Data'!#REF! ->  | DG12: ='Compile Data'!#REF! ->  | DH12: ='Compile Data'!#REF! ->  | DI12: ='Compile Data'!#REF! ->  | DJ12: ='Compile Data'!#REF! ->  | DK12: ='Compile Data'!#REF! ->  | DL12: ='Compile Data'!#REF! ->  | DM12: ='Compile Data'!#REF! ->  | DO12: =IF(DO$11="AVG",AVERAGE(DE12:DM12,DB13:DD13),SUM(DE12:DM12,DB13:DD13)) ->  | DP12: =IF(DP$11="AVG",AVERAGE(DG12:DM12,DB13:DF13),SUM(DG12:DM12,DB13:DF13)) ->  | DU12: =IF(DU$11="AVG",IF(DS$1="INST-VAL",AVERAGE(DF12:DI12,DG12:DJ12),AVERAGE(DG12:DJ12)),SUM(DG12:DJ12)) ->  | DV12: =IF(DV$11="AVG",IF(DS$1="INST-VAL",AVERAGE(DI12:DL12,DJ12:DM12),AVERAGE(DJ12:DM12)),SUM(DJ12:DM12)) ->  | DW12: =IF(DW$11="AVG",IF(DS$1="INST-VAL",AVERAGE(DL12:DM12,DB13,DM12,DB13:DC13),AVERAGE(DM12,DB13:DC13)),SUM(DM12,DB13:DC13)) ->  | DY12: 1922 | DZ12: =NA() ->  | EA12: =NA() ->  | EB12: =NA() ->  | EC12: ='Compile Data'!E16 -> 45.87044525 | ED12: ='Compile Data'!E17 -> 45.62424469 | EE12: ='Compile Data'!E18 -> 48.18862915 | EF12: ='Compile Data'!E19 -> 51.25356293 | EG12: ='Compile Data'!E20 -> 51.02145386 | EH12: ='Compile Data'!E21 -> 51.94972992 | EI12: ='Compile Data'!E22 -> 51.86492538 | EJ12: ='Compile Data'!E23 -> 51.76841354 | EK12: ='Compile Data'!E24 -> 50.97625732 | EM12: =IF(EM$11="AVG",AVERAGE(EC12:EK12,DZ13:EB13),SUM(EC12:EK12,DZ13:EB13)) -> 50.42383353 | EN12: =IF(EN$11="AVG",AVERAGE(EE12:EK12,DZ13:ED13),SUM(EE12:EK12,DZ13:ED13)) -> 50.71056016 | EO12: =NA() ->  | EQ12: =NA() ->  | ER12: =NA() ->  | ES12: =IF(ES$11="AVG",IF(EQ$1="INST-VAL",AVERAGE(ED12:EG12,EE12:EH12),AVERAGE(EE12:EH12)),SUM(EE12:EH12)) -> 50.60334396 | ET12: =IF(ET$11="AVG",IF(EQ$1="INST-VAL",AVERAGE(EG12:EJ12,EH12:EK12),AVERAGE(EH12:EK12)),SUM(EH12:EK12)) -> 51.63983154 | EU12: =IF(EU$11="AVG",IF(EQ$1="INST-VAL",AVERAGE(EJ12:EK12,DZ13,EK12,DZ13:EA13),AVERAGE(EK12,DZ13:EA13)),SUM(EK12,DZ13:EA13)) -> 52.14256922
A13: 1921-10-31 | I13: 1923 | J13: =B25 -> 51.89820862 | K13: =B26 -> 53.56967926 | L13: =B27 -> 51.11385727 | M13: =B28 -> 47.52082062 | N13: =B29 -> 47.41940308 | O13: =B30 -> 50.95542908 | P13: =B31 -> 53.18655396 | Q13: =B32 -> 51.91106415 | R13: =B33 -> 51.35770798 | S13: =B34 -> 51.78261185 | T13: =B35 -> 51.64431763 | U13: =B36 -> 52.60756683 | W13: 51.38943132 | X13: 51.65567271 | Y13: =IF(Y$11="AVG",AVERAGE(J13:U13),SUM(J13:U13)) -> 51.24726836 | AA13: =IF(AA$11="AVG",IF(AA$1="INST-VAL",AVERAGE(U12,J13:L13,J13:M13),AVERAGE(J13:M13)),SUM(J13:M13)) -> 51.02564144 | AB13: =IF(AB$11="AVG",IF(AA$1="INST-VAL",AVERAGE(K13:M13,L13:N13),AVERAGE(L13:N13)),SUM(L13:N13)) -> 48.68469365 | AC13: 51.85268879 | AD13: 51.84805107 | AE13: 52.97638321 | AG13: 1923 | AH13: ='Compile Data'!C25 -> 51.87754822 | AI13: ='Compile Data'!C26 -> 53.57390213 | AJ13: ='Compile Data'!C27 -> 51.11688995 | AK13: ='Compile Data'!C28 -> 47.51626205 | AL13: ='Compile Data'!C29 -> 47.41914749 | AM13: ='Compile Data'!C30 -> 50.94835281 | AN13: ='Compile Data'!C31 -> 53.13541412 | AO13: ='Compile Data'!C32 -> 51.99878693 | AP13: ='Compile Data'!C33 -> 51.41131592 | AQ13: ='Compile Data'!C34 -> 51.80760193 | AR13: ='Compile Data'!C35 -> 51.78165054 | AS13: ='Compile Data'!C36 -> 52.49571991 | AU13: =IF(AU$11="AVG",AVERAGE(AK13:AS13,AH14:AJ14),SUM(AK13:AS13,AH14:AJ14)) -> 51.39230887 | AV13: =IF(AV$11="AVG",AVERAGE(AM13:AS13,AH14:AL14),SUM(AM13:AS13,AH14:AL14)) -> 51.65332921 | AW13: =IF(AW$11="AVG",AVERAGE(AH13:AS13),SUM(AH13:AS13)) -> 51.25688267 | AY13: =IF(AY$11="AVG",IF(AY$1="INST-VAL",AVERAGE(AS12,AH13:AJ13,AH13:AK13),AVERAGE(AH13:AK13)),SUM(AH13:AK13)) -> 51.02115059 | AZ13: =IF(AZ$11="AVG",IF(AY$1="INST-VAL",AVERAGE(AI13:AK13,AJ13:AL13),AVERAGE(AJ13:AL13)),SUM(AJ13:AL13)) -> 48.68409983 | BA13: =IF(BA$11="AVG",IF(AY$1="INST-VAL",AVERAGE(AL13:AO13,AM13:AP13),AVERAGE(AM13:AP13)),SUM(AM13:AP13)) -> 51.87346745 | BB13: =IF(BB$11="AVG",IF(AY$1="INST-VAL",AVERAGE(AO13:AR13,AP13:AS13),AVERAGE(AP13:AS13)),SUM(AP13:AS13)) -> 51.87407207 | BC13: =IF(BC$11="AVG",IF(AY$1="INST-VAL",AVERAGE(AR13:AS13,AH14,AS13,AH14:AI14),AVERAGE(AS13,AH14:AI14)),SUM(AS13,AH14:AI14)) -> 52.93001811 | BE13: 1923 | BF13: ='Compile Data'!D25 -> 51.85019302 | BG13: ='Compile Data'!D26 -> 53.54026031 | BH13: ='Compile Data'!D27 -> 51.09936905 | BI13: ='Compile Data'!D28 -> 47.50932312 | BJ13: ='Compile Data'!D29 -> 47.42972565 | BK13: ='Compile Data'!D30 -> 50.94565201 | BL13: ='Compile Data'!D31 -> 53.12083435 | BM13: ='Compile Data'!D32 -> 52.00242996 | BN13: ='Compile Data'!D33 -> 51.4013176 | BO13: ='Compile Data'!D34 -> 51.80054092 | BP13: ='Compile Data'!D35 -> 51.76874924 | BQ13: ='Compile Data'!D36 -> 52.50654602 | BS13: =IF(BS$11="AVG",AVERAGE(BI13:BQ13,BF14:BH14),SUM(BI13:BQ13,BF14:BH14)) -> 51.3880221 | BT13: =IF(BT$11="AVG",AVERAGE(BK13:BQ13,BF14:BJ14),SUM(BK13:BQ13,BF14:BJ14)) -> 51.64905039 | BU13: =IF(BU$11="AVG",AVERAGE(BF13:BQ13),SUM(BF13:BQ13)) -> 51.24791177 | BW13: =IF(BW$11="AVG",IF(BW$1="INST-VAL",AVERAGE(BQ12,BF13:BH13,BF13:BI13),AVERAGE(BF13:BI13)),SUM(BF13:BI13)) -> 50.99978638 | BX13: =IF(BX$11="AVG",IF(BW$1="INST-VAL",AVERAGE(BG13:BI13,BH13:BJ13),AVERAGE(BH13:BJ13)),SUM(BH13:BJ13)) -> 48.67947261 | BY13: =IF(BY$11="AVG",IF(BW$1="INST-VAL",AVERAGE(BJ13:BM13,BK13:BN13),AVERAGE(BK13:BN13)),SUM(BK13:BN13)) -> 51.86755848 | BZ13: =IF(BZ$11="AVG",IF(BW$1="INST-VAL",AVERAGE(BM13:BP13,BN13:BQ13),AVERAGE(BN13:BQ13)),SUM(BN13:BQ13)) -> 51.86928844 | CA13: =IF(CA$11="AVG",IF(BW$1="INST-VAL",AVERAGE(BP13:BQ13,BF14,BQ13,BF14:BG14),AVERAGE(BQ13,BF14:BG14)),SUM(BQ13,BF14:BG14)) -> 52.92790349 | CC13: 1923 | CD13: ='Compile Data'!E25 -> 51.87754822 | CE13: ='Compile Data'!E26 -> 53.57390213 | CF13: ='Compile Data'!E27 -> 51.11688995 | CG13: ='Compile Data'!E28 -> 47.51626205 | CH13: ='Compile Data'!E29 -> 47.41914749 | CI13: ='Compile Data'!E30 -> 50.94835281 | CJ13: ='Compile Data'!E31 -> 53.13541412 | CK13: ='Compile Data'!E32 -> 51.99878693 | CL13: ='Compile Data'!E33 -> 51.41131592 | CM13: ='Compile Data'!E34 -> 51.80760193 | CN13: ='Compile Data'!E35 -> 51.78165054 | CO13: ='Compile Data'!E36 -> 52.49571991 | CQ13: =IF(CQ$11="AVG",AVERAGE(CG13:CO13,CD14:CF14),SUM(CG13:CO13,CD14:CF14)) -> 51.39230887 | CR13: =IF(CR$11="AVG",AVERAGE(CI13:CO13,CD14:CH14),SUM(CI13:CO13,CD14:CH14)) -> 51.65332921 | CS13: =IF(CS$11="AVG",AVERAGE(CD13:CO13),SUM(CD13:CO13)) -> 51.25688267 | CU13: =IF(CU$11="AVG",IF(CU$1="INST-VAL",AVERAGE(CO12,CD13:CF13,CD13:CG13),AVERAGE(CD13:CG13)),SUM(CD13:CG13)) -> 51.02115059 | CV13: =IF(CV$11="AVG",IF(CU$1="INST-VAL",AVERAGE(CE13:CG13,CF13:CH13),AVERAGE(CF13:CH13)),SUM(CF13:CH13)) -> 48.68409983 | CW13: =IF(CW$11="AVG",IF(CU$1="INST-VAL",AVERAGE(CH13:CK13,CI13:CL13),AVERAGE(CI13:CL13)),SUM(CI13:CL13)) -> 51.87346745 | CX13: =IF(CX$11="AVG",IF(CU$1="INST-VAL",AVERAGE(CK13:CN13,CL13:CO13),AVERAGE(CL13:CO13)),SUM(CL13:CO13)) -> 51.87407207 | CY13: =IF(CY$11="AVG",IF(CU$1="INST-VAL",AVERAGE(CN13:CO13,CD14,CO13,CD14:CE14),AVERAGE(CO13,CD14:CE14)),SUM(CO13,CD14:CE14)) -> 52.93001811 | DA13: 1923 | DB13: ='Compile Data'!#REF! ->  | DC13: ='Compile Data'!#REF! ->  | DD13: ='Compile Data'!#REF! ->  | DE13: ='Compile Data'!#REF! ->  | DF13: ='Compile Data'!#REF! ->  | DG13: ='Compile Data'!#REF! ->  | DH13: ='Compile Data'!#REF! ->  | DI13: ='Compile Data'!#REF! ->  | DJ13: ='Compile Data'!#REF! ->  | DK13: ='Compile Data'!#REF! ->  | DL13: ='Compile Data'!#REF! ->  | DM13: ='Compile Data'!#REF! ->  | DO13: =IF(DO$11="AVG",AVERAGE(DE13:DM13,DB14:DD14),SUM(DE13:DM13,DB14:DD14)) ->  | DP13: =IF(DP$11="AVG",AVERAGE(DG13:DM13,DB14:DF14),SUM(DG13:DM13,DB14:DF14)) ->  | DQ13: =IF(DQ$11="AVG",AVERAGE(DB13:DM13),SUM(DB13:DM13)) ->  | DS13: =IF(DS$11="AVG",IF(DS$1="INST-VAL",AVERAGE(DM12,DB13:DD13,DB13:DE13),AVERAGE(DB13:DE13)),SUM(DB13:DE13)) ->  | DT13: =IF(DT$11="AVG",IF(DS$1="INST-VAL",AVERAGE(DC13:DE13,DD13:DF13),AVERAGE(DD13:DF13)),SUM(DD13:DF13)) ->  | DU13: =IF(DU$11="AVG",IF(DS$1="INST-VAL",AVERAGE(DF13:DI13,DG13:DJ13),AVERAGE(DG13:DJ13)),SUM(DG13:DJ13)) ->  | DV13: =IF(DV$11="AVG",IF(DS$1="INST-VAL",AVERAGE(DI13:DL13,DJ13:DM13),AVERAGE(DJ13:DM13)),SUM(DJ13:DM13)) ->  | DW13: =IF(DW$11="AVG",IF(DS$1="INST-VAL",AVERAGE(DL13:DM13,DB14,DM13,DB14:DC14),AVERAGE(DM13,DB14:DC14)),SUM(DM13,DB14:DC14)) ->  | DY13: 1923 | DZ13: ='Compile Data'!E25 -> 51.87754822 | EA13: ='Compile Data'!E26 -> 53.57390213 | EB13: ='Compile Data'!E27 -> 51.11688995 | EC13: ='Compile Data'!E28 -> 47.51626205 | ED13: ='Compile Data'!E29 -> 47.41914749 | EE13: ='Compile Data'!E30 -> 50.94835281 | EF13: ='Compile Data'!E31 -> 53.13541412 | EG13: ='Compile Data'!E32 -> 51.99878693 | EH13: ='Compile Data'!E33 -> 51.41131592 | EI13: ='Compile Data'!E34 -> 51.80760193 | EJ13: ='Compile Data'!E35 -> 51.78165054 | EK13: ='Compile Data'!E36 -> 52.49571991 | EM13: 51.39230887 | EN13: 51.65332921 | EO13: =IF(EO$11="AVG",AVERAGE(DZ13:EK13),SUM(DZ13:EK13)) -> 51.25688267 | EQ13: =IF(EQ$11="AVG",IF(EQ$1="INST-VAL",AVERAGE(EK12,DZ13:EB13,DZ13:EC13),AVERAGE(DZ13:EC13)),SUM(DZ13:EC13)) -> 51.02115059 | ER13: =IF(ER$11="AVG",IF(EQ$1="INST-VAL",AVERAGE(EA13:EC13,EB13:ED13),AVERAGE(EB13:ED13)),SUM(EB13:ED13)) -> 48.68409983 | ES13: 51.87346745 | ET13: 51.87407207 | EU13: 52.93001811
A14: 1921-11-30 | I14: 1924 | J14: =B37 -> 52.01070023 | K14: =B38 -> 54.31088257 | L14: =B39 -> 51.96611786 | M14: =B40 -> 48.79593658 | N14: =B41 -> 49.33918381 | O14: =B42 -> 49.12997055 | P14: =B43 -> 51.1334877 | Q14: =B44 -> 53.98318863 | R14: =B45 -> 55.86037827 | S14: =B46 -> 52.36655426 | T14: =B47 -> 52.82830048 | U14: =B48 -> 55.4389267 | W14: 52.38552825 | X14: 52.05600007 | Y14: 52.26363564 | AA14: 51.77090931 | AB14: 50.03374608 | AC14: 52.52675629 | AD14: 54.12353992 | AE14: 55.22843933 | AG14: 1924 | AH14: ='Compile Data'!C37 -> 51.96279907 | AI14: ='Compile Data'!C38 -> 54.33153534 | AJ14: ='Compile Data'!C39 -> 51.89912033 | AK14: ='Compile Data'!C40 -> 48.76207352 | AL14: ='Compile Data'!C41 -> 49.30558014 | AM14: ='Compile Data'!C42 -> 49.09983826 | AN14: ='Compile Data'!C43 -> 51.1100235 | AO14: ='Compile Data'!C44 -> 53.78120041 | AP14: ='Compile Data'!C45 -> 55.84084702 | AQ14: ='Compile Data'!C46 -> 52.34514236 | AR14: ='Compile Data'!C47 -> 52.81408691 | AS14: ='Compile Data'!C48 -> 55.28345871 | AU14: 52.30744108 | AV14: 51.99828211 | AW14: 52.2113088 | AY14: 51.73888206 | AZ14: 49.98892466 | BA14: 52.45797729 | BB14: 54.07088375 | BC14: 55.02680969 | BE14: 1924 | BF14: ='Compile Data'!D37 -> 51.9559021 | BG14: ='Compile Data'!D38 -> 54.32126236 | BH14: ='Compile Data'!D39 -> 51.89398193 | BI14: ='Compile Data'!D40 -> 48.76411819 | BJ14: ='Compile Data'!D41 -> 49.30727005 | BK14: ='Compile Data'!D42 -> 49.08396149 | BL14: ='Compile Data'!D43 -> 51.10699463 | BM14: ='Compile Data'!D44 -> 53.78449249 | BN14: ='Compile Data'!D45 -> 55.85063934 | BO14: ='Compile Data'!D46 -> 52.3421669 | BP14: ='Compile Data'!D47 -> 52.79203033 | BQ14: ='Compile Data'!D48 -> 55.29014969 | BS14: 52.3101457 | BT14: 51.9980669 | BU14: 52.20774746 | BW14: 51.73381615 | BX14: 49.98845673 | BY14: 52.45652199 | BZ14: 54.06874657 | CA14: 55.04972076 | CC14: 1924 | CD14: ='Compile Data'!E37 -> 51.96279907 | CE14: ='Compile Data'!E38 -> 54.33153534 | CF14: ='Compile Data'!E39 -> 51.89912033 | CG14: ='Compile Data'!E40 -> 48.76207352 | CH14: ='Compile Data'!E41 -> 49.30558014 | CI14: ='Compile Data'!E42 -> 49.09983826 | CJ14: ='Compile Data'!E43 -> 51.1100235 | CK14: ='Compile Data'!E44 -> 53.78120041 | CL14: ='Compile Data'!E45 -> 55.84084702 | CM14: ='Compile Data'!E46 -> 52.33640289 | CN14: ='Compile Data'!E47 -> 52.82312393 | CO14: ='Compile Data'!E48 -> 55.35923004 | CQ14: 52.3014253 | CR14: 51.99591764 | CS14: 52.21764787 | CU14: 51.73888206 | CV14: 49.98892466 | CW14: 52.45797729 | CX14: 54.08990097 | CY14: 54.99816132 | DA14: 1924 | DB14: ='Compile Data'!#REF! ->  | DC14: ='Compile Data'!#REF! ->  | DD14: ='Compile Data'!#REF! ->  | DE14: ='Compile Data'!#REF! ->  | DF14: ='Compile Data'!#REF! ->  | DG14: ='Compile Data'!#REF! ->  | DH14: ='Compile Data'!#REF! ->  | DI14: ='Compile Data'!#REF! ->  | DJ14: ='Compile Data'!#REF! ->  | DK14: ='Compile Data'!#REF! ->  | DL14: ='Compile Data'!#REF! ->  | DM14: ='Compile Data'!#REF! ->  | DY14: 1924 | DZ14: ='Compile Data'!E37 -> 51.96279907 | EA14: ='Compile Data'!E38 -> 54.33153534 | EB14: ='Compile Data'!E39 -> 51.89912033 | EC14: ='Compile Data'!E40 -> 48.76207352 | ED14: ='Compile Data'!E41 -> 49.30558014 | EE14: ='Compile Data'!E42 -> 49.09983826 | EF14: ='Compile Data'!E43 -> 51.1100235 | EG14: ='Compile Data'!E44 -> 53.78120041 | EH14: ='Compile Data'!E45 -> 55.84084702 | EI14: ='Compile Data'!E46 -> 52.33640289 | EJ14: ='Compile Data'!E47 -> 52.82312393 | EK14: ='Compile Data'!E48 -> 55.35923004 | EM14: 52.3014253 | EN14: 51.99591764 | EO14: 52.21764787 | EQ14: 51.73888206 | ER14: 49.98892466 | ES14: 52.45797729 | ET14: 54.08990097 | EU14: 54.99816132
A15: 1921-12-31 | I15: 1925 | J15: =B49 -> 56.28923035 | K15: =B50 -> 53.95716095 | L15: =B51 -> 49.50402069 | M15: =B52 -> 47.09355545 | N15: =B53 -> 47.08722687 | O15: =B54 -> 48.73402405 | P15: =B55 -> 51.41685867 | Q15: =B56 -> 52.55155945 | R15: =B57 -> 52.07055283 | S15: =B58 -> 51.39328003 | T15: =B59 -> 51.86101532 | U15: =B60 -> 51.08818436 | W15: 50.88186487 | X15: 50.99517695 | Y15: 51.08722242 | AA15: 51.71099186 | AB15: 47.89493434 | AC15: 51.19324875 | AD15: 51.60325813 | AE15: 52.36460368 | AG15: 1925 | AH15: ='Compile Data'!C49 -> 55.85247803 | AI15: ='Compile Data'!C50 -> 53.94449234 | AJ15: ='Compile Data'!C51 -> 49.55007172 | AK15: ='Compile Data'!C52 -> 47.25904846 | AL15: ='Compile Data'!C53 -> 47.09869766 | AM15: ='Compile Data'!C54 -> 48.76720428 | AN15: ='Compile Data'!C55 -> 51.49646378 | AO15: ='Compile Data'!C56 -> 52.79913712 | AP15: ='Compile Data'!C57 -> 52.18459702 | AQ15: ='Compile Data'!C58 -> 51.34434891 | AR15: ='Compile Data'!C59 -> 51.8058548 | AS15: ='Compile Data'!C60 -> 51.08448029 | AU15: 50.92189503 | AV15: 51.02253342 | AW15: 51.0989062 | AY15: 51.65152264 | AZ15: 47.96927261 | BA15: 51.31185055 | BB15: 51.60482025 | BC15: 52.34888967 | BE15: 1925 | BF15: ='Compile Data'!D49 -> 55.91638184 | BG15: ='Compile Data'!D50 -> 53.94263077 | BH15: ='Compile Data'!D51 -> 49.54091263 | BI15: ='Compile Data'!D52 -> 47.22964478 | BJ15: ='Compile Data'!D53 -> 47.09679794 | BK15: ='Compile Data'!D54 -> 48.75878525 | BL15: ='Compile Data'!D55 -> 51.48095322 | BM15: ='Compile Data'!D56 -> 52.79869461 | BN15: ='Compile Data'!D57 -> 52.25395966 | BO15: ='Compile Data'!D58 -> 51.32606125 | BP15: ='Compile Data'!D59 -> 51.81414032 | BQ15: ='Compile Data'!D60 -> 51.09160614 | BS15: 50.919336 | BT15: 51.02269586 | BU15: 51.10421403 | BW15: 51.6573925 | BX15: 47.95578512 | BY15: 51.32309818 | BZ15: 51.62144184 | CA15: 52.34312312 | CC15: 1925 | CD15: ='Compile Data'!E49 -> 55.7235527 | CE15: ='Compile Data'!E50 -> 53.9117012 | CF15: ='Compile Data'!E51 -> 49.56352997 | CG15: ='Compile Data'!E52 -> 47.30503464 | CH15: ='Compile Data'!E53 -> 47.0965271 | CI15: ='Compile Data'!E54 -> 48.76781845 | CJ15: ='Compile Data'!E55 -> 51.56011963 | CK15: ='Compile Data'!E56 -> 52.78915787 | CL15: ='Compile Data'!E57 -> 52.19388962 | CM15: ='Compile Data'!E58 -> 51.33558655 | CN15: ='Compile Data'!E59 -> 51.80450821 | CO15: ='Compile Data'!E60 -> 51.12223816 | CQ15: 50.92990494 | CR15: 51.02724266 | CS15: 51.09780534 | CU15: 51.62595463 | CV15: 47.9883639 | CW15: 51.32774639 | CX15: 51.61405563 | CY15: 52.35491308 | DA15: 1925 | DB15: ='Compile Data'!#REF! ->  | DC15: ='Compile Data'!#REF! ->  | DD15: ='Compile Data'!#REF! ->  | DE15: ='Compile Data'!#REF! ->  | DF15: ='Compile Data'!#REF! ->  | DG15: ='Compile Data'!#REF! ->  | DH15: ='Compile Data'!#REF! ->  | DI15: ='Compile Data'!#REF! ->  | DJ15: ='Compile Data'!#REF! ->  | DK15: ='Compile Data'!#REF! ->  | DL15: ='Compile Data'!#REF! ->  | DM15: ='Compile Data'!#REF! ->  | DY15: 1925 | DZ15: ='Compile Data'!E49 -> 55.7235527 | EA15: ='Compile Data'!E50 -> 53.9117012 | EB15: ='Compile Data'!E51 -> 49.56352997 | EC15: ='Compile Data'!E52 -> 47.30503464 | ED15: ='Compile Data'!E53 -> 47.0965271 | EE15: ='Compile Data'!E54 -> 48.76781845 | EF15: ='Compile Data'!E55 -> 51.56011963 | EG15: ='Compile Data'!E56 -> 52.78915787 | EH15: ='Compile Data'!E57 -> 52.19388962 | EI15: ='Compile Data'!E58 -> 51.33558655 | EJ15: ='Compile Data'!E59 -> 51.80450821 | EK15: ='Compile Data'!E60 -> 51.12223816 | EM15: 50.92990494 | EN15: 51.02724266 | EO15: 51.09780534 | EQ15: 51.62595463 | ER15: 47.9883639 | ES15: 51.32774639 | ET15: 51.61405563 | EU15: 52.35491308
A16: 1922-01-31 | B16: =INDIRECT(CONCATENATE("'",B$1,"'!",B$4,(YEAR($A16)-1921)*12+MONTH($A16)+3+IF(ISNUMBER(FIND("PRV",B$6)),1,0)))*IF(AND(B$3>0,TRIM(B$9)="CFS"),Conv_Flags!$C16,1) -> 45.86698914 | C16: =IF(INDIRECT(CONCATENATE("'",C$1,"'!",C$4,(YEAR($A16)-1921)*12+MONTH($A16)+3+IF(ISNUMBER(FIND("PRV",C$6)),1,0)))=-901,NA(),INDIRECT(CONCATENATE("'",C$1,"'!",C$4,(YEAR($A16)-1921)*12+MONTH($A16)+3+IF(ISNUMBER(FIND("PRV",C$6)),1,0)))*IF(AND(C$3>0,TRIM(C$9)="CFS"),Conv_Flags!$C16,1)) -> 45.87044525 | D16: =IF(INDIRECT(CONCATENATE("'",D$1,"'!",D$4,(YEAR($A16)-1921)*12+MONTH($A16)+3+IF(ISNUMBER(FIND("PRV",D$6)),1,0)))=-901,NA(),INDIRECT(CONCATENATE("'",D$1,"'!",D$4,(YEAR($A16)-1921)*12+MONTH($A16)+3+IF(ISNUMBER(FIND("PRV",D$6)),1,0)))*IF(AND(D$3>0,TRIM(D$9)="CFS"),Conv_Flags!$C16,1)) -> 45.87252426 | E16: =IF(INDIRECT(CONCATENATE("'",E$1,"'!",E$4,(YEAR($A16)-1921)*12+MONTH($A16)+3+IF(ISNUMBER(FIND("PRV",E$6)),1,0)))=-901,NA(),INDIRECT(CONCATENATE("'",E$1,"'!",E$4,(YEAR($A16)-1921)*12+MONTH($A16)+3+IF(ISNUMBER(FIND("PRV",E$6)),1,0)))*IF(AND(E$3>0,TRIM(E$9)="CFS"),Conv_Flags!$C16,1)) -> 45.87044525 | I16: 1926 | J16: =B61 -> 52.13686371 | K16: =B62 -> 53.86876297 | L16: =B63 -> 51.28049469 | M16: =B64 -> 48.02466965 | N16: =B65 -> 47.5158577 | O16: =B66 -> 50.25582886 | P16: =B67 -> 54.29219818 | Q16: =B68 -> 53.6000824 | R16: =B69 -> 52.60035324 | S16: =B70 -> 52.06718445 | T16: =B71 -> 52.72558594 | U16: =B72 -> 52.60937881 | W16: 51.70816676 | X16: 51.41801135 | Y16: 51.74810505 | AA16: 51.32769775 | AB16: 48.94034068 | AC16: 52.68711567 | AD16: 52.50062561 | AE16: 53.10413488 | AG16: 1926 | AH16: ='Compile Data'!C61 -> 52.18562317 | AI16: ='Compile Data'!C62 -> 53.77656555 | AJ16: ='Compile Data'!C63 -> 51.2607193 | AK16: ='Compile Data'!C64 -> 48.02095413 | AL16: ='Compile Data'!C65 -> 47.54445267 | AM16: ='Compile Data'!C66 -> 50.24970627 | AN16: ='Compile Data'!C67 -> 54.33238983 | AO16: ='Compile Data'!C68 -> 53.51036072 | AP16: ='Compile Data'!C69 -> 52.6950264 | AQ16: ='Compile Data'!C70 -> 51.95353317 | AR16: ='Compile Data'!C71 -> 52.70108795 | AS16: ='Compile Data'!C72 -> 52.64900208 | AU16: 51.70611127 | AV16: 51.4146506 | AW16: 51.73995177 | AY16: 51.31096554 | AZ16: 48.94204203 | BA16: 52.6968708 | BB16: 52.4996624 | BC16: 53.11500804 | BE16: 1926 | BF16: ='Compile Data'!D61 -> 52.16862488 | BG16: ='Compile Data'!D62 -> 53.76913834 | BH16: ='Compile Data'!D63 -> 51.24362564 | BI16: ='Compile Data'!D64 -> 48.0205307 | BJ16: ='Compile Data'!D65 -> 47.54623032 | BK16: ='Compile Data'!D66 -> 50.2837677 | BL16: ='Compile Data'!D67 -> 54.31322479 | BM16: ='Compile Data'!D68 -> 52.73604584 | BN16: ='Compile Data'!D69 -> 52.05430603 | BO16: ='Compile Data'!D70 -> 51.53517151 | BP16: ='Compile Data'!D71 -> 52.52923584 | BQ16: ='Compile Data'!D72 -> 52.54386139 | BS16: 51.51312224 | BT16: 51.24863529 | BU16: 51.56198025 | BW16: 51.30047989 | BX16: 48.93679555 | BY16: 52.34683609 | BZ16: 52.16564369 | CA16: 52.99614461 | CC16: 1926 | CD16: ='Compile Data'!E61 -> 52.1709404 | CE16: ='Compile Data'!E62 -> 53.77156067 | CF16: ='Compile Data'!E63 -> 51.24147797 | CG16: ='Compile Data'!E64 -> 48.02270126 | CH16: ='Compile Data'!E65 -> 47.54691315 | CI16: ='Compile Data'!E66 -> 50.21643829 | CJ16: ='Compile Data'!E67 -> 54.30992508 | CK16: ='Compile Data'!E68 -> 53.50106049 | CL16: ='Compile Data'!E69 -> 52.68779373 | CM16: ='Compile Data'!E70 -> 51.94651794 | CN16: ='Compile Data'!E71 -> 52.70505524 | CO16: ='Compile Data'!E72 -> 52.6466713 | CQ16: 51.6969169 | CR16: 51.40602016 | CS16: 51.73058796 | CU16: 51.30167007 | CV16: 48.93703079 | CW16: 52.6788044 | CX16: 52.49650955 | CY16: 53.09954071 | DA16: 1926 | DB16: ='Compile Data'!#REF! ->  | DC16: ='Compile Data'!#REF! ->  | DD16: ='Compile Data'!#REF! ->  | DE16: ='Compile Data'!#REF! ->  | DF16: ='Compile Data'!#REF! ->  | DG16: ='Compile Data'!#REF! ->  | DH16: ='Compile Data'!#REF! ->  | DI16: ='Compile Data'!#REF! ->  | DJ16: ='Compile Data'!#REF! ->  | DK16: ='Compile Data'!#REF! ->  | DL16: ='Compile Data'!#REF! ->  | DM16: ='Compile Data'!#REF! ->  | DY16: 1926 | DZ16: ='Compile Data'!E61 -> 52.1709404 | EA16: ='Compile Data'!E62 -> 53.77156067 | EB16: ='Compile Data'!E63 -> 51.24147797 | EC16: ='Compile Data'!E64 -> 48.02270126 | ED16: ='Compile Data'!E65 -> 47.54691315 | EE16: ='Compile Data'!E66 -> 50.21643829 | EF16: ='Compile Data'!E67 -> 54.30992508 | EG16: ='Compile Data'!E68 -> 53.50106049 | EH16: ='Compile Data'!E69 -> 52.68779373 | EI16: ='Compile Data'!E70 -> 51.94651794 | EJ16: ='Compile Data'!E71 -> 52.70505524 | EK16: ='Compile Data'!E72 -> 52.6466713 | EM16: 51.6969169 | EN16: 51.40602016 | EO16: 51.73058796 | EQ16: 51.30167007 | ER16: 48.93703079 | ES16: 52.6788044 | ET16: 52.49650955 | EU16: 53.09954071
A17: 1922-02-28 | B17: =IF(INDIRECT(CONCATENATE("'",B$1,"'!",B$4,(YEAR($A17)-1921)*12+MONTH($A17)+3+IF(ISNUMBER(FIND("PRV",B$6)),1,0)))=-901,NA(),INDIRECT(CONCATENATE("'",B$1,"'!",B$4,(YEAR($A17)-1921)*12+MONTH($A17)+3+IF(ISNUMBER(FIND("PRV",B$6)),1,0)))*IF(AND(B$3>0,TRIM(B$9)="CFS"),Conv_Flags!$C17,1)) -> 45.62512207 | C17: =IF(INDIRECT(CONCATENATE("'",C$1,"'!",C$4,(YEAR($A17)-1921)*12+MONTH($A17)+3+IF(ISNUMBER(FIND("PRV",C$6)),1,0)))=-901,NA(),INDIRECT(CONCATENATE("'",C$1,"'!",C$4,(YEAR($A17)-1921)*12+MONTH($A17)+3+IF(ISNUMBER(FIND("PRV",C$6)),1,0)))*IF(AND(C$3>0,TRIM(C$9)="CFS"),Conv_Flags!$C17,1)) -> 45.62424469 | D17: =IF(INDIRECT(CONCATENATE("'",D$1,"'!",D$4,(YEAR($A17)-1921)*12+MONTH($A17)+3+IF(ISNUMBER(FIND("PRV",D$6)),1,0)))=-901,NA(),INDIRECT(CONCATENATE("'",D$1,"'!",D$4,(YEAR($A17)-1921)*12+MONTH($A17)+3+IF(ISNUMBER(FIND("PRV",D$6)),1,0)))*IF(AND(D$3>0,TRIM(D$9)="CFS"),Conv_Flags!$C17,1)) -> 45.63713455 | E17: =IF(INDIRECT(CONCATENATE("'",E$1,"'!",E$4,(YEAR($A17)-1921)*12+MONTH($A17)+3+IF(ISNUMBER(FIND("PRV",E$6)),1,0)))=-901,NA(),INDIRECT(CONCATENATE("'",E$1,"'!",E$4,(YEAR($A17)-1921)*12+MONTH($A17)+3+IF(ISNUMBER(FIND("PRV",E$6)),1,0)))*IF(AND(E$3>0,TRIM(E$9)="CFS"),Conv_Flags!$C17,1)) -> 45.62424469 | I17: 1927 | J17: =B73 -> 53.11463928 | K17: =B74 -> 53.58838654 | L17: =B75 -> 50.10383606 | M17: =B76 -> 46.8849678 | N17: =B77 -> 45.17369461 | O17: =B78 -> 47.82128143 | P17: =B79 -> 49.79927826 | Q17: =B80 -> 51.44459152 | R17: =B81 -> 51.85700989 | S17: =B82 -> 51.04845428 | T17: =B83 -> 51.18059921 | U17: =B84 -> 50.05224228 | W17: 50.05765279 | X17: 50.29454072 | Y17: 50.1724151 | AA17: 50.92295742 | AB17: 47.38749949 | AC17: 50.23054028 | AD17: 51.03457642 | AE17: 51.67980194 | AG17: 1927 | AH17: ='Compile Data'!C73 -> 53.15687943 | AI17: ='Compile Data'!C74 -> 53.53914261 | AJ17: ='Compile Data'!C75 -> 50.12080002 | AK17: ='Compile Data'!C76 -> 46.89754105 | AL17: ='Compile Data'!C77 -> 45.17033768 | AM17: ='Compile Data'!C78 -> 47.81602478 | AN17: ='Compile Data'!C79 -> 49.78792953 | AO17: ='Compile Data'!C80 -> 51.43387985 | AP17: ='Compile Data'!C81 -> 51.90905762 | AQ17: ='Compile Data'!C82 -> 51.0242157 | AR17: ='Compile Data'!C83 -> 51.18207169 | AS17: ='Compile Data'!C84 -> 50.08128357 | AU17: 50.06229019 | AV17: 50.2963597 | AW17: 50.17659696 | AY17: 50.92859077 | AZ17: 47.39622625 | BA17: 50.23672295 | BB17: 51.04915714 | BC17: 51.69885508 | BE17: 1927 | BF17: ='Compile Data'!D73 -> 52.5410881 | BG17: ='Compile Data'!D74 -> 53.90348434 | BH17: ='Compile Data'!D75 -> 50.15052032 | BI17: ='Compile Data'!D76 -> 47.08272552 | BJ17: ='Compile Data'!D77 -> 45.31019211 | BK17: ='Compile Data'!D78 -> 47.8551445 | BL17: ='Compile Data'!D79 -> 49.83634949 | BM17: ='Compile Data'!D80 -> 51.48197937 | BN17: ='Compile Data'!D81 -> 51.91419983 | BO17: ='Compile Data'!D82 -> 51.04457092 | BP17: ='Compile Data'!D83 -> 51.18084717 | BQ17: ='Compile Data'!D84 -> 50.0308075 | BS17: 50.11028735 | BT17: 50.32378674 | BU17: 50.19432576 | BW17: 50.91945457 | BX17: 47.51447932 | BY17: 50.2719183 | BZ17: 51.04260635 | CA17: 51.70439275 | CC17: 1927 | CD17: ='Compile Data'!E73 -> 53.13830566 | CE17: ='Compile Data'!E74 -> 53.51364517 | CF17: ='Compile Data'!E75 -> 50.12797546 | CG17: ='Compile Data'!E76 -> 46.90038681 | CH17: ='Compile Data'!E77 -> 45.1784668 | CI17: ='Compile Data'!E78 -> 47.82662582 | CJ17: ='Compile Data'!E79 -> 49.79264832 | CK17: ='Compile Data'!E80 -> 51.43782806 | CL17: ='Compile Data'!E81 -> 51.91460037 | CM17: ='Compile Data'!E82 -> 51.02720261 | CN17: ='Compile Data'!E83 -> 51.18531799 | CO17: ='Compile Data'!E84 -> 50.05459976 | CQ17: 50.06370004 | CR17: 50.29807123 | CS17: 50.17480024 | CU17: 50.92007828 | CV17: 47.40227636 | CW17: 50.24292564 | CX17: 51.04543018 | CY17: 51.68750127 | DA17: 1927 | DB17: ='Compile Data'!#REF! ->  | DC17: ='Compile Data'!#REF! ->  | DD17: ='Compile Data'!#REF! ->  | DE17: ='Compile Data'!#REF! ->  | DF17: ='Compile Data'!#REF! ->  | DG17: ='Compile Data'!#REF! ->  | DH17: ='Compile Data'!#REF! ->  | DI17: ='Compile Data'!#REF! ->  | DJ17: ='Compile Data'!#REF! ->  | DK17: ='Compile Data'!#REF! ->  | DL17: ='Compile Data'!#REF! ->  | DM17: ='Compile Data'!#REF! ->  | DY17: 1927 | DZ17: ='Compile Data'!E73 -> 53.13830566 | EA17: ='Compile Data'!E74 -> 53.51364517 | EB17: ='Compile Data'!E75 -> 50.12797546 | EC17: ='Compile Data'!E76 -> 46.90038681 | ED17: ='Compile Data'!E77 -> 45.1784668 | EE17: ='Compile Data'!E78 -> 47.82662582 | EF17: ='Compile Data'!E79 -> 49.79264832 | EG17: ='Compile Data'!E80 -> 51.43782806 | EH17: ='Compile Data'!E81 -> 51.91460037 | EI17: ='Compile Data'!E82 -> 51.02720261 | EJ17: ='Compile Data'!E83 -> 51.18531799 | EK17: ='Compile Data'!E84 -> 50.05459976 | EM17: 50.06370004 | EN17: 50.29807123 | EO17: 50.17480024 | EQ17: 50.92007828 | ER17: 47.40227636 | ES17: 50.24292564 | ET17: 51.04543018 | EU17: 51.68750127
A18: 1922-03-31 | B18: =IF(INDIRECT(CONCATENATE("'",B$1,"'!",B$4,(YEAR($A18)-1921)*12+MONTH($A18)+3+IF(ISNUMBER(FIND("PRV",B$6)),1,0)))=-901,NA(),INDIRECT(CONCATENATE("'",B$1,"'!",B$4,(YEAR($A18)-1921)*12+MONTH($A18)+3+IF(ISNUMBER(FIND("PRV",B$6)),1,0)))*IF(AND(B$3>0,TRIM(B$9)="CFS"),Conv_Flags!$C18,1)) -> 48.1643486 | C18: =IF(INDIRECT(CONCATENATE("'",C$1,"'!",C$4,(YEAR($A18)-1921)*12+MONTH($A18)+3+IF(ISNUMBER(FIND("PRV",C$6)),1,0)))=-901,NA(),INDIRECT(CONCATENATE("'",C$1,"'!",C$4,(YEAR($A18)-1921)*12+MONTH($A18)+3+IF(ISNUMBER(FIND("PRV",C$6)),1,0)))*IF(AND(C$3>0,TRIM(C$9)="CFS"),Conv_Flags!$C18,1)) -> 48.18862915 | D18: =IF(INDIRECT(CONCATENATE("'",D$1,"'!",D$4,(YEAR($A18)-1921)*12+MONTH($A18)+3+IF(ISNUMBER(FIND("PRV",D$6)),1,0)))=-901,NA(),INDIRECT(CONCATENATE("'",D$1,"'!",D$4,(YEAR($A18)-1921)*12+MONTH($A18)+3+IF(ISNUMBER(FIND("PRV",D$6)),1,0)))*IF(AND(D$3>0,TRIM(D$9)="CFS"),Conv_Flags!$C18,1)) -> 48.23376465 | E18: =IF(INDIRECT(CONCATENATE("'",E$1,"'!",E$4,(YEAR($A18)-1921)*12+MONTH($A18)+3+IF(ISNUMBER(FIND("PRV",E$6)),1,0)))=-901,NA(),INDIRECT(CONCATENATE("'",E$1,"'!",E$4,(YEAR($A18)-1921)*12+MONTH($A18)+3+IF(ISNUMBER(FIND("PRV",E$6)),1,0)))*IF(AND(E$3>0,TRIM(E$9)="CFS"),Conv_Flags!$C18,1)) -> 48.18862915 | I18: 1928 | J18: =B85 -> 51.79351044 | K18: =B86 -> 53.19365311 | L18: =B87 -> 50.44255066 | M18: =B88 -> 47.65870285 | N18: =B89 -> 47.24261475 | O18: =B90 -> 47.76773834 | P18: =B91 -> 52.59886932 | Q18: =B92 -> 52.8963356 | R18: =B93 -> 51.41280365 | S18: =B94 -> 50.67932129 | T18: =B95 -> 50.84938431 | U18: =B96 -> 50.37451553 | W18: 50.66207027 | X18: 50.64707375 | Y18: 50.57583332 | AA18: 50.77210426 | AB18: 48.44795609 | AC18: 51.16893673 | AD18: 50.8290062 | AE18: 51.80907567 | AG18: 1928 | AH18: ='Compile Data'!C85 -> 51.80903625 | AI18: ='Compile Data'!C86 -> 53.20624542 | AJ18: ='Compile Data'!C87 -> 50.42985916 | AK18: ='Compile Data'!C88 -> 47.65141296 | AL18: ='Compile Data'!C89 -> 47.22529984 | AM18: ='Compile Data'!C90 -> 47.75637817 | AN18: ='Compile Data'!C91 -> 52.5877533 | AO18: ='Compile Data'!C92 -> 53.01256943 | AP18: ='Compile Data'!C93 -> 51.39912415 | AQ18: ='Compile Data'!C94 -> 50.67242432 | AR18: ='Compile Data'!C95 -> 50.85906601 | AS18: ='Compile Data'!C96 -> 50.36361313 | AU18: 50.66153495 | AV18: 50.64774545 | AW18: 50.58106518 | AY18: 50.77413845 | AZ18: 48.43552399 | BA18: 51.18895626 | BB18: 50.8235569 | BC18: 51.79774857 | BE18: 1928 | BF18: ='Compile Data'!D85 -> 51.83684158 | BG18: ='Compile Data'!D86 -> 53.24552917 | BH18: ='Compile Data'!D87 -> 50.50426102 | BI18: ='Compile Data'!D88 -> 47.69752884 | BJ18: ='Compile Data'!D89 -> 47.25738144 | BK18: ='Compile Data'!D90 -> 47.78617859 | BL18: ='Compile Data'!D91 -> 52.60042953 | BM18: ='Compile Data'!D92 -> 53.04492569 | BN18: ='Compile Data'!D93 -> 51.57252502 | BO18: ='Compile Data'!D94 -> 50.65787125 | BP18: ='Compile Data'!D95 -> 50.93616867 | BQ18: ='Compile Data'!D96 -> 50.24259949 | BS18: 50.6835734 | BT18: 50.66580518 | BU18: 50.61518669 | BW18: 50.82104015 | BX18: 48.48639043 | BY18: 51.25101471 | BZ18: 50.85229111 | CA18: 51.76913198 | CC18: 1928 | CD18: ='Compile Data'!E85 -> 51.7944603 | CE18: ='Compile Data'!E86 -> 53.21344376 | CF18: ='Compile Data'!E87 -> 50.43881989 | CG18: ='Compile Data'!E88 -> 47.65775681 | CH18: ='Compile Data'!E89 -> 47.23355103 | CI18: ='Compile Data'!E90 -> 47.76250076 | CJ18: ='Compile Data'!E91 -> 52.59407425 | CK18: ='Compile Data'!E92 -> 53.01512527 | CL18: ='Compile Data'!E93 -> 51.40613556 | CM18: ='Compile Data'!E94 -> 50.66986847 | CN18: ='Compile Data'!E95 -> 50.86449432 | CO18: ='Compile Data'!E96 -> 50.3523941 | CQ18: 50.66295369 | CR18: 50.64847628 | CS18: 50.58355204 | CU18: 50.77612019 | CV18: 48.44337591 | CW18: 51.19445896 | CX18: 50.82322311 | CY18: 51.78876114 | DA18: 1928 | DB18: ='Compile Data'!#REF! ->  | DC18: ='Compile Data'!#REF! ->  | DD18: ='Compile Data'!#REF! ->  | DE18: ='Compile Data'!#REF! ->  | DF18: ='Compile Data'!#REF! ->  | DG18: ='Compile Data'!#REF! ->  | DH18: ='Compile Data'!#REF! ->  | DI18: ='Compile Data'!#REF! ->  | DJ18: ='Compile Data'!#REF! ->  | DK18: ='Compile Data'!#REF! ->  | DL18: ='Compile Data'!#REF! ->  | DM18: ='Compile Data'!#REF! ->  | DY18: 1928 | DZ18: ='Compile Data'!E85 -> 51.7944603 | EA18: ='Compile Data'!E86 -> 53.21344376 | EB18: ='Compile Data'!E87 -> 50.43881989 | EC18: ='Compile Data'!E88 -> 47.65775681 | ED18: ='Compile Data'!E89 -> 47.23355103 | EE18: ='Compile Data'!E90 -> 47.76250076 | EF18: ='Compile Data'!E91 -> 52.59407425 | EG18: ='Compile Data'!E92 -> 53.01512527 | EH18: ='Compile Data'!E93 -> 51.40613556 | EI18: ='Compile Data'!E94 -> 50.66986847 | EJ18: ='Compile Data'!E95 -> 50.86449432 | EK18: ='Compile Data'!E96 -> 50.3523941 | EM18: 50.66295369 | EN18: 50.64847628 | EO18: 50.58355204 | EQ18: 50.77612019 | ER18: 48.44337591 | ES18: 51.19445896 | ET18: 50.82322311 | EU18: 51.78876114
A19: 1922-04-30 | B19: =IF(INDIRECT(CONCATENATE("'",B$1,"'!",B$4,(YEAR($A19)-1921)*12+MONTH($A19)+3+IF(ISNUMBER(FIND("PRV",B$6)),1,0)))=-901,NA(),INDIRECT(CONCATENATE("'",B$1,"'!",B$4,(YEAR($A19)-1921)*12+MONTH($A19)+3+IF(ISNUMBER(FIND("PRV",B$6)),1,0)))*IF(AND(B$3>0,TRIM(B$9)="CFS"),Conv_Flags!$C19,1)) -> 51.29597473 | C19: =IF(INDIRECT(CONCATENATE("'",C$1,"'!",C$4,(YEAR($A19)-1921)*12+MONTH($A19)+3+IF(ISNUMBER(FIND("PRV",C$6)),1,0)))=-901,NA(),INDIRECT(CONCATENATE("'",C$1,"'!",C$4,(YEAR($A19)-1921)*12+MONTH($A19)+3+IF(ISNUMBER(FIND("PRV",C$6)),1,0)))*IF(AND(C$3>0,TRIM(C$9)="CFS"),Conv_Flags!$C19,1)) -> 51.25356293 | D19: =IF(INDIRECT(CONCATENATE("'",D$1,"'!",D$4,(YEAR($A19)-1921)*12+MONTH($A19)+3+IF(ISNUMBER(FIND("PRV",D$6)),1,0)))=-901,NA(),INDIRECT(CONCATENATE("'",D$1,"'!",D$4,(YEAR($A19)-1921)*12+MONTH($A19)+3+IF(ISNUMBER(FIND("PRV",D$6)),1,0)))*IF(AND(D$3>0,TRIM(D$9)="CFS"),Conv_Flags!$C19,1)) -> 51.05755615 | E19: =IF(INDIRECT(CONCATENATE("'",E$1,"'!",E$4,(YEAR($A19)-1921)*12+MONTH($A19)+3+IF(ISNUMBER(FIND("PRV",E$6)),1,0)))=-901,NA(),INDIRECT(CONCATENATE("'",E$1,"'!",E$4,(YEAR($A19)-1921)*12+MONTH($A19)+3+IF(ISNUMBER(FIND("PRV",E$6)),1,0)))*IF(AND(E$3>0,TRIM(E$9)="CFS"),Conv_Flags!$C19,1)) -> 51.25356293 | I19: 1929 | J19: =B97 -> 51.82100677 | K19: =B98 -> 53.23170471 | L19: =B99 -> 51.41184616 | M19: =B100 -> 47.10522461 | N19: =B101 -> 47.61613464 | O19: =B102 -> 49.17785645 | P19: =B103 -> 50.39559555 | Q19: =B104 -> 51.65690231 | R19: =B105 -> 54.39536285 | S19: =B106 -> 52.95488358 | T19: =B107 -> 53.00213623 | U19: =B108 -> 54.21083832 | W19: 51.84149742 | X19: 51.93534152 | Y19: 51.41495768 | AA19: 50.89244556 | AB19: 48.71106847 | AC19: 51.40642929 | AD19: 53.64080524 | AE19: 54.46713257 | AG19: 1929 | AH19: ='Compile Data'!C97 -> 51.83927155 | AI19: ='Compile Data'!C98 -> 53.19036102 | AJ19: ='Compile Data'!C99 -> 51.38114548 | AK19: ='Compile Data'!C100 -> 47.10126495 | AL19: ='Compile Data'!C101 -> 47.60997391 | AM19: ='Compile Data'!C102 -> 49.09423447 | AN19: ='Compile Data'!C103 -> 50.37483215 | AO19: ='Compile Data'!C104 -> 51.92042923 | AP19: ='Compile Data'!C105 -> 54.06919861 | AQ19: ='Compile Data'!C106 -> 53.03432846 | AR19: ='Compile Data'!C107 -> 52.68409348 | AS19: ='Compile Data'!C108 -> 53.81118393 | AU19: 51.77775542 | AV19: 51.8765707 | AW19: 51.34252644 | AY19: 50.87801075 | AZ19: 48.69746145 | BA19: 51.36467361 | BB19: 53.39970112 | BC19: 54.34870656 | BE19: 1929 | BF19: ='Compile Data'!D97 -> 51.82061768 | BG19: ='Compile Data'!D98 -> 53.24417877 | BH19: ='Compile Data'!D99 -> 51.34247589 | BI19: ='Compile Data'!D100 -> 47.1309433 | BJ19: ='Compile Data'!D101 -> 47.61074829 | BK19: ='Compile Data'!D102 -> 48.95890045 | BL19: ='Compile Data'!D103 -> 50.32913971 | BM19: ='Compile Data'!D104 -> 51.85193634 | BN19: ='Compile Data'!D105 -> 54.00641632 | BO19: ='Compile Data'!D106 -> 53.00645447 | BP19: ='Compile Data'!D107 -> 52.67141724 | BQ19: ='Compile Data'!D108 -> 53.76229095 | BS19: 51.75109704 | BT19: 51.85155869 | BU19: 51.31129328 | BW19: 50.88455391 | BX19: 48.69472249 | BY19: 51.28659821 | BZ19: 53.36164474 | CA19: 54.3498675 | CC19: 1929 | CD19: ='Compile Data'!E97 -> 51.82635117 | CE19: ='Compile Data'!E98 -> 53.18753815 | CF19: ='Compile Data'!E99 -> 51.38565445 | CG19: ='Compile Data'!E100 -> 47.10211563 | CH19: ='Compile Data'!E101 -> 47.61546326 | CI19: ='Compile Data'!E102 -> 49.10220337 | CJ19: ='Compile Data'!E103 -> 50.38124466 | CK19: ='Compile Data'!E104 -> 51.92156982 | CL19: ='Compile Data'!E105 -> 54.08008957 | CM19: ='Compile Data'!E106 -> 53.04402161 | CN19: ='Compile Data'!E107 -> 52.68845749 | CO19: ='Compile Data'!E108 -> 53.81235123 | CQ19: 51.78437169 | CR19: 51.88435555 | CS19: 51.34558837 | CU19: 50.87541485 | CV19: 48.70107778 | CW19: 51.37127686 | CX19: 53.40622997 | CY19: 54.36318715 | DA19: 1929 | DB19: ='Compile Data'!#REF! ->  | DC19: ='Compile Data'!#REF! ->  | DD19: ='Compile Data'!#REF! ->  | DE19: ='Compile Data'!#REF! ->  | DF19: ='Compile Data'!#REF! ->  | DG19: ='Compile Data'!#REF! ->  | DH19: ='Compile Data'!#REF! ->  | DI19: ='Compile Data'!#REF! ->  | DJ19: ='Compile Data'!#REF! ->  | DK19: ='Compile Data'!#REF! ->  | DL19: ='Compile Data'!#REF! ->  | DM19: ='Compile Data'!#REF! ->  | DY19: 1929 | DZ19: ='Compile Data'!E97 -> 51.82635117 | EA19: ='Compile Data'!E98 -> 53.18753815 | EB19: ='Compile Data'!E99 -> 51.38565445 | EC19: ='Compile Data'!E100 -> 47.10211563 | ED19: ='Compile Data'!E101 -> 47.61546326 | EE19: ='Compile Data'!E102 -> 49.10220337 | EF19: ='Compile Data'!E103 -> 50.38124466 | EG19: ='Compile Data'!E104 -> 51.92156982 | EH19: ='Compile Data'!E105 -> 54.08008957 | EI19: ='Compile Data'!E106 -> 53.04402161 | EJ19: ='Compile Data'!E107 -> 52.68845749 | EK19: ='Compile Data'!E108 -> 53.81235123 | EM19: 51.78437169 | EN19: 51.88435555 | EO19: 51.34558837 | EQ19: 50.87541485 | ER19: 48.70107778 | ES19: 51.37127686 | ET19: 53.40622997 | EU19: 54.36318715
A20: 1922-05-31 | B20: =IF(INDIRECT(CONCATENATE("'",B$1,"'!",B$4,(YEAR($A20)-1921)*12+MONTH($A20)+3+IF(ISNUMBER(FIND("PRV",B$6)),1,0)))=-901,NA(),INDIRECT(CONCATENATE("'",B$1,"'!",B$4,(YEAR($A20)-1921)*12+MONTH($A20)+3+IF(ISNUMBER(FIND("PRV",B$6)),1,0)))*IF(AND(B$3>0,TRIM(B$9)="CFS"),Conv_Flags!$C20,1)) -> 51.0175209 | C20: =IF(INDIRECT(CONCATENATE("'",C$1,"'!",C$4,(YEAR($A20)-1921)*12+MONTH($A20)+3+IF(ISNUMBER(FIND("PRV",C$6)),1,0)))=-901,NA(),INDIRECT(CONCATENATE("'",C$1,"'!",C$4,(YEAR($A20)-1921)*12+MONTH($A20)+3+IF(ISNUMBER(FIND("PRV",C$6)),1,0)))*IF(AND(C$3>0,TRIM(C$9)="CFS"),Conv_Flags!$C20,1)) -> 51.02145386 | D20: =IF(INDIRECT(CONCATENATE("'",D$1,"'!",D$4,(YEAR($A20)-1921)*12+MONTH($A20)+3+IF(ISNUMBER(FIND("PRV",D$6)),1,0)))=-901,NA(),INDIRECT(CONCATENATE("'",D$1,"'!",D$4,(YEAR($A20)-1921)*12+MONTH($A20)+3+IF(ISNUMBER(FIND("PRV",D$6)),1,0)))*IF(AND(D$3>0,TRIM(D$9)="CFS"),Conv_Flags!$C20,1)) -> 51.0097084 | E20: =IF(INDIRECT(CONCATENATE("'",E$1,"'!",E$4,(YEAR($A20)-1921)*12+MONTH($A20)+3+IF(ISNUMBER(FIND("PRV",E$6)),1,0)))=-901,NA(),INDIRECT(CONCATENATE("'",E$1,"'!",E$4,(YEAR($A20)-1921)*12+MONTH($A20)+3+IF(ISNUMBER(FIND("PRV",E$6)),1,0)))*IF(AND(E$3>0,TRIM(E$9)="CFS"),Conv_Flags!$C20,1)) -> 51.02145386 | I20: 1930 | J20: =B109 -> 54.80302811 | K20: =B110 -> 54.38753128 | L20: =B111 -> 52.39247513 | M20: =B112 -> 47.74476624 | N20: =B113 -> 48.10272217 | O20: =B114 -> 49.05615616 | P20: =B115 -> 51.33700562 | Q20: =B116 -> 54.93151474 | R20: =B117 -> 52.19417572 | S20: =B118 -> 52.1660614 | T20: =B119 -> 52.37359619 | U20: =B120 -> 52.85365677 | W20: 51.71181266 | X20: 51.8251435 | Y20: 51.86189079 | AA20: 52.33195019 | AB20: 49.41332118 | AC20: 51.87971306 | AD20: 52.39687252 | AE20: 53.39431381 | AG20: 1930 | AH20: ='Compile Data'!C109 -> 54.72210693 | AI20: ='Compile Data'!C110 -> 54.51282883 | AJ20: ='Compile Data'!C111 -> 52.39859009 | AK20: ='Compile Data'!C112 -> 47.78409576 | AL20: ='Compile Data'!C113 -> 48.11292648 | AM20: ='Compile Data'!C114 -> 49.04720688 | AN20: ='Compile Data'!C115 -> 52.32377625 | AO20: ='Compile Data'!C116 -> 55.2684021 | AP20: ='Compile Data'!C117 -> 52.40894318 | AQ20: ='Compile Data'!C118 -> 52.17363739 | AR20: ='Compile Data'!C119 -> 52.67878723 | AS20: ='Compile Data'!C120 -> 53.03755951 | AU20: 51.88240941 | AV20: 51.96348159 | AW20: 52.03907172 | AY20: 52.3544054 | AZ20: 49.43187078 | BA20: 52.2620821 | BB20: 52.57473183 | BC20: 53.49373881 | BE20: 1930 | BF20: ='Compile Data'!D109 -> 54.71504211 | BG20: ='Compile Data'!D110 -> 54.57226944 | BH20: ='Compile Data'!D111 -> 52.3976059 | BI20: ='Compile Data'!D112 -> 47.81078339 | BJ20: ='Compile Data'!D113 -> 48.13644791 | BK20: ='Compile Data'!D114 -> 49.05820465 | BL20: ='Compile Data'!D115 -> 52.84945679 | BM20: ='Compile Data'!D116 -> 55.24081421 | BN20: ='Compile Data'!D117 -> 52.52402115 | BO20: ='Compile Data'!D118 -> 52.15734482 | BP20: ='Compile Data'!D119 -> 52.70424652 | BQ20: ='Compile Data'!D120 -> 53.03053665 | BS20: 51.93632825 | BT20: 52.00843398 | BU20: 52.09973113 | BW20: 52.37392521 | BX20: 49.44827906 | BY20: 52.4181242 | BZ20: 52.60403728 | CA20: 53.50510661 | CC20: 1930 | CD20: ='Compile Data'!E109 -> 54.74515152 | CE20: ='Compile Data'!E110 -> 54.53205872 | CF20: ='Compile Data'!E111 -> 52.38773346 | CG20: ='Compile Data'!E112 -> 47.79331589 | CH20: ='Compile Data'!E113 -> 48.12406921 | CI20: ='Compile Data'!E114 -> 49.05570602 | CJ20: ='Compile Data'!E115 -> 52.45877838 | CK20: ='Compile Data'!E116 -> 55.27194214 | CL20: ='Compile Data'!E117 -> 52.40219116 | CM20: ='Compile Data'!E118 -> 52.16727448 | CN20: ='Compile Data'!E119 -> 52.68024063 | CO20: ='Compile Data'!E120 -> 53.02531052 | CQ20: 51.89460818 | CR20: 51.9742171 | CS20: 52.05364768 | CU20: 52.3645649 | CV20: 49.43503952 | CW20: 52.29715443 | CX20: 52.5687542 | CY20: 53.49144363 | DA20: 1930 | DB20: ='Compile Data'!#REF! ->  | DC20: ='Compile Data'!#REF! ->  | DD20: ='Compile Data'!#REF! ->  | DE20: ='Compile Data'!#REF! ->  | DF20: ='Compile Data'!#REF! ->  | DG20: ='Compile Data'!#REF! ->  | DH20: ='Compile Data'!#REF! ->  | DI20: ='Compile Data'!#REF! ->  | DJ20: ='Compile Data'!#REF! ->  | DK20: ='Compile Data'!#REF! ->  | DL20: ='Compile Data'!#REF! ->  | DM20: ='Compile Data'!#REF! ->  | DY20: 1930 | DZ20: ='Compile Data'!E109 -> 54.74515152 | EA20: ='Compile Data'!E110 -> 54.53205872 | EB20: ='Compile Data'!E111 -> 52.38773346 | EC20: ='Compile Data'!E112 -> 47.79331589 | ED20: ='Compile Data'!E113 -> 48.12406921 | EE20: ='Compile Data'!E114 -> 49.05570602 | EF20: ='Compile Data'!E115 -> 52.45877838 | EG20: ='Compile Data'!E116 -> 55.27194214 | EH20: ='Compile Data'!E117 -> 52.40219116 | EI20: ='Compile Data'!E118 -> 52.16727448 | EJ20: ='Compile Data'!E119 -> 52.68024063 | EK20: ='Compile Data'!E120 -> 53.02531052 | EM20: 51.89460818 | EN20: 51.9742171 | EO20: 52.05364768 | EQ20: 52.3645649 | ER20: 49.43503952 | ES20: 52.29715443 | ET20: 52.5687542 | EU20: 53.49144363
A21: 1922-06-30 | B21: =IF(INDIRECT(CONCATENATE("'",B$1,"'!",B$4,(YEAR($A21)-1921)*12+MONTH($A21)+3+IF(ISNUMBER(FIND("PRV",B$6)),1,0)))=-901,NA(),INDIRECT(CONCATENATE("'",B$1,"'!",B$4,(YEAR($A21)-1921)*12+MONTH($A21)+3+IF(ISNUMBER(FIND("PRV",B$6)),1,0)))*IF(AND(B$3>0,TRIM(B$9)="CFS"),Conv_Flags!$C21,1)) -> 51.81781769 | C21: =IF(INDIRECT(CONCATENATE("'",C$1,"'!",C$4,(YEAR($A21)-1921)*12+MONTH($A21)+3+IF(ISNUMBER(FIND("PRV",C$6)),1,0)))=-901,NA(),INDIRECT(CONCATENATE("'",C$1,"'!",C$4,(YEAR($A21)-1921)*12+MONTH($A21)+3+IF(ISNUMBER(FIND("PRV",C$6)),1,0)))*IF(AND(C$3>0,TRIM(C$9)="CFS"),Conv_Flags!$C21,1)) -> 51.94972992 | D21: =IF(INDIRECT(CONCATENATE("'",D$1,"'!",D$4,(YEAR($A21)-1921)*12+MONTH($A21)+3+IF(ISNUMBER(FIND("PRV",D$6)),1,0)))=-901,NA(),INDIRECT(CONCATENATE("'",D$1,"'!",D$4,(YEAR($A21)-1921)*12+MONTH($A21)+3+IF(ISNUMBER(FIND("PRV",D$6)),1,0)))*IF(AND(D$3>0,TRIM(D$9)="CFS"),Conv_Flags!$C21,1)) -> 51.954422 | E21: =IF(INDIRECT(CONCATENATE("'",E$1,"'!",E$4,(YEAR($A21)-1921)*12+MONTH($A21)+3+IF(ISNUMBER(FIND("PRV",E$6)),1,0)))=-901,NA(),INDIRECT(CONCATENATE("'",E$1,"'!",E$4,(YEAR($A21)-1921)*12+MONTH($A21)+3+IF(ISNUMBER(FIND("PRV",E$6)),1,0)))*IF(AND(E$3>0,TRIM(E$9)="CFS"),Conv_Flags!$C21,1)) -> 51.94972992 | I21: 1931 | J21: =B121 -> 53.09030533 | K21: =B122 -> 54.23897934 | L21: =B123 -> 52.45281219 | M21: =B124 -> 48.85168076 | N21: =B125 -> 48.35577774 | O21: =B126 -> 49.77164841 | P21: =B127 -> 52.02956772 | Q21: =B128 -> 54.44939041 | R21: =B129 -> 56.30656052 | S21: =B130 -> 52.6302948 | T21: =B131 -> 53.34380341 | U21: =B132 -> 54.91597366 | W21: 52.6579059 | X21: 52.07842827 | Y21: 52.53639952 | AA21: 52.1584444 | AB21: 49.8867569 | AC21: 53.13929176 | AD21: 54.2991581 | AE21: 55.45261765 | AG21: 1931 | AH21: ='Compile Data'!C121 -> 53.11222839 | AI21: ='Compile Data'!C122 -> 54.33142853 | AJ21: ='Compile Data'!C123 -> 52.30992126 | AK21: ='Compile Data'!C124 -> 48.66563797 | AL21: ='Compile Data'!C125 -> 48.20425034 | AM21: ='Compile Data'!C126 -> 49.82432175 | AN21: ='Compile Data'!C127 -> 51.46071625 | AO21: ='Compile Data'!C128 -> 54.64879608 | AP21: ='Compile Data'!C129 -> 56.36930466 | AQ21: ='Compile Data'!C130 -> 52.62598801 | AR21: ='Compile Data'!C131 -> 53.1283226 | AS21: ='Compile Data'!C132 -> 55.16776276 | AU21: 52.64803664 | AV21: 52.08052921 | AW21: 52.48738988 | AY21: 52.10480404 | AZ21: 49.72660319 | BA21: 53.07578468 | BB21: 54.32284451 | BC21: 55.68587748 | BE21: 1931 | BF21: ='Compile Data'!D121 -> 53.11754227 | BG21: ='Compile Data'!D122 -> 54.36724091 | BH21: ='Compile Data'!D123 -> 52.23929977 | BI21: ='Compile Data'!D124 -> 48.62535477 | BJ21: ='Compile Data'!D125 -> 48.18714523 | BK21: ='Compile Data'!D126 -> 49.80524826 | BL21: ='Compile Data'!D127 -> 51.36513901 | BM21: ='Compile Data'!D128 -> 54.63882828 | BN21: ='Compile Data'!D129 -> 56.37744141 | BO21: ='Compile Data'!D130 -> 52.62374878 | BP21: ='Compile Data'!D131 -> 53.12372208 | BQ21: ='Compile Data'!D132 -> 54.94610596 | BS21: 52.59170787 | BT21: 52.03658326 | BU21: 52.45140139 | BW21: 52.08735943 | BX21: 49.68393326 | BY21: 53.04666424 | BZ21: 54.26775455 | CA21: 55.52269363 | CC21: 1931 | CD21: ='Compile Data'!E121 -> 53.11832428 | CE21: ='Compile Data'!E122 -> 54.33069611 | CF21: ='Compile Data'!E123 -> 52.30744934 | CG21: ='Compile Data'!E124 -> 48.66500092 | CH21: ='Compile Data'!E125 -> 48.20769119 | CI21: ='Compile Data'!E126 -> 49.82429123 | CJ21: ='Compile Data'!E127 -> 51.45510483 | CK21: ='Compile Data'!E128 -> 54.64952469 | CL21: ='Compile Data'!E129 -> 56.37418747 | CM21: ='Compile Data'!E130 -> 52.63101196 | CN21: ='Compile Data'!E131 -> 53.12441635 | CO21: ='Compile Data'!E132 -> 55.1460495 | CQ21: 52.63995934 | CR21: 52.0708402 | CS21: 52.48614566 | CU21: 52.10536766 | CV21: 49.72671382 | CW21: 53.07577705 | CX21: 54.31891632 | CY21: 55.66694768 | DA21: 1931 | DB21: ='Compile Data'!#REF! ->  | DC21: ='Compile Data'!#REF! ->  | DD21: ='Compile Data'!#REF! ->  | DE21: ='Compile Data'!#REF! ->  | DF21: ='Compile Data'!#REF! ->  | DG21: ='Compile Data'!#REF! ->  | DH21: ='Compile Data'!#REF! ->  | DI21: ='Compile Data'!#REF! ->  | DJ21: ='Compile Data'!#REF! ->  | DK21: ='Compile Data'!#REF! ->  | DL21: ='Compile Data'!#REF! ->  | DM21: ='Compile Data'!#REF! ->  | DY21: 1931 | DZ21: ='Compile Data'!E121 -> 53.11832428 | EA21: ='Compile Data'!E122 -> 54.33069611 | EB21: ='Compile Data'!E123 -> 52.30744934 | EC21: ='Compile Data'!E124 -> 48.66500092 | ED21: ='Compile Data'!E125 -> 48.20769119 | EE21: ='Compile Data'!E126 -> 49.82429123 | EF21: ='Compile Data'!E127 -> 51.45510483 | EG21: ='Compile Data'!E128 -> 54.64952469 | EH21: ='Compile Data'!E129 -> 56.37418747 | EI21: ='Compile Data'!E130 -> 52.63101196 | EJ21: ='Compile Data'!E131 -> 53.12441635 | EK21: ='Compile Data'!E132 -> 55.1460495 | EM21: 52.63995934 | EN21: 52.0708402 | EO21: 52.48614566 | EQ21: 52.10536766 | ER21: 49.72671382 | ES21: 53.07577705 | ET21: 54.31891632 | EU21: 55.66694768
A22: 1922-07-31 | B22: =IF(INDIRECT(CONCATENATE("'",B$1,"'!",B$4,(YEAR($A22)-1921)*12+MONTH($A22)+3+IF(ISNUMBER(FIND("PRV",B$6)),1,0)))=-901,NA(),INDIRECT(CONCATENATE("'",B$1,"'!",B$4,(YEAR($A22)-1921)*12+MONTH($A22)+3+IF(ISNUMBER(FIND("PRV",B$6)),1,0)))*IF(AND(B$3>0,TRIM(B$9)="CFS"),Conv_Flags!$C22,1)) -> 51.83929825 | C22: =IF(INDIRECT(CONCATENATE("'",C$1,"'!",C$4,(YEAR($A22)-1921)*12+MONTH($A22)+3+IF(ISNUMBER(FIND("PRV",C$6)),1,0)))=-901,NA(),INDIRECT(CONCATENATE("'",C$1,"'!",C$4,(YEAR($A22)-1921)*12+MONTH($A22)+3+IF(ISNUMBER(FIND("PRV",C$6)),1,0)))*IF(AND(C$3>0,TRIM(C$9)="CFS"),Conv_Flags!$C22,1)) -> 51.86492538 | D22: =IF(INDIRECT(CONCATENATE("'",D$1,"'!",D$4,(YEAR($A22)-1921)*12+MONTH($A22)+3+IF(ISNUMBER(FIND("PRV",D$6)),1,0)))=-901,NA(),INDIRECT(CONCATENATE("'",D$1,"'!",D$4,(YEAR($A22)-1921)*12+MONTH($A22)+3+IF(ISNUMBER(FIND("PRV",D$6)),1,0)))*IF(AND(D$3>0,TRIM(D$9)="CFS"),Conv_Flags!$C22,1)) -> 52.05846786 | E22: =IF(INDIRECT(CONCATENATE("'",E$1,"'!",E$4,(YEAR($A22)-1921)*12+MONTH($A22)+3+IF(ISNUMBER(FIND("PRV",E$6)),1,0)))=-901,NA(),INDIRECT(CONCATENATE("'",E$1,"'!",E$4,(YEAR($A22)-1921)*12+MONTH($A22)+3+IF(ISNUMBER(FIND("PRV",E$6)),1,0)))*IF(AND(E$3>0,TRIM(E$9)="CFS"),Conv_Flags!$C22,1)) -> 51.86492538 | I22: 1932 | J22: =B133 -> 56.67586899 | K22: =B134 -> 54.76601028 | L22: =B135 -> 49.79829407 | M22: =B136 -> 45.44993973 | N22: =B137 -> 44.80378723 | O22: =B138 -> 48.87576675 | P22: =B139 -> 52.02399445 | Q22: =B140 -> 54.97115326 | R22: =B141 -> 56.28049469 | S22: =B142 -> 53.50395203 | T22: =B143 -> 53.11159515 | U22: =B144 -> 54.84569168 | W22: 51.87568474 | X22: 52.13007259 | Y22: 52.09221236 | AA22: 51.67252827 | AB22: 46.68400701 | AC22: 53.03785229 | AD22: 54.43543339 | AE22: 54.52479299 | AG22: 1932 | AH22: ='Compile Data'!C133 -> 57.12185669 | AI22: ='Compile Data'!C134 -> 54.768013 | AJ22: ='Compile Data'!C135 -> 49.79146957 | AK22: ='Compile Data'!C136 -> 45.36262512 | AL22: ='Compile Data'!C137 -> 44.69717407 | AM22: ='Compile Data'!C138 -> 48.71459579 | AN22: ='Compile Data'!C139 -> 52.10375977 | AO22: ='Compile Data'!C140 -> 54.89926147 | AP22: ='Compile Data'!C141 -> 56.55130386 | AQ22: ='Compile Data'!C142 -> 53.53397369 | AR22: ='Compile Data'!C143 -> 53.11615753 | AS22: ='Compile Data'!C144 -> 54.78211212 | AU22: 51.87399197 | AV22: 52.13856856 | AW22: 52.12019189 | AY22: 51.7609911 | AZ22: 46.61708959 | BA22: 53.06723022 | BB22: 54.4958868 | BC22: 54.52264786 | BE22: 1932 | BF22: ='Compile Data'!D133 -> 56.88598251 | BG22: ='Compile Data'!D134 -> 54.73599243 | BH22: ='Compile Data'!D135 -> 49.78578568 | BI22: ='Compile Data'!D136 -> 45.41374588 | BJ22: ='Compile Data'!D137 -> 44.73725891 | BK22: ='Compile Data'!D138 -> 48.80438614 | BL22: ='Compile Data'!D139 -> 52.03840256 | BM22: ='Compile Data'!D140 -> 54.71130371 | BN22: ='Compile Data'!D141 -> 56.33139801 | BO22: ='Compile Data'!D142 -> 53.44314957 | BP22: ='Compile Data'!D143 -> 53.04898834 | BQ22: ='Compile Data'!D144 -> 54.79928589 | BS22: 51.83420404 | BT22: 52.09796206 | BU22: 52.06130664 | BW22: 51.70537663 | BX22: 46.64559682 | BY22: 52.9713726 | BZ22: 54.40570545 | CA22: 54.52095795 | CC22: 1932 | CD22: ='Compile Data'!E133 -> 57.09487152 | CE22: ='Compile Data'!E134 -> 54.75992203 | CF22: ='Compile Data'!E135 -> 49.74744034 | CG22: ='Compile Data'!E136 -> 45.36898041 | CH22: ='Compile Data'!E137 -> 44.67428207 | CI22: ='Compile Data'!E138 -> 48.70687866 | CJ22: ='Compile Data'!E139 -> 52.08647537 | CK22: ='Compile Data'!E140 -> 54.92419434 | CL22: ='Compile Data'!E141 -> 56.49971008 | CM22: ='Compile Data'!E142 -> 53.49798965 | CN22: ='Compile Data'!E143 -> 53.11215591 | CO22: ='Compile Data'!E144 -> 54.7616539 | CQ22: 51.86207422 | CR22: 52.12913513 | CS22: 52.10287952 | CU22: 51.74280357 | CV22: 46.59690094 | CW22: 53.05431461 | CX22: 54.46787739 | CY22: 54.51267624 | DA22: 1932 | DB22: ='Compile Data'!#REF! ->  | DC22: ='Compile Data'!#REF! ->  | DD22: ='Compile Data'!#REF! ->  | DE22: ='Compile Data'!#REF! ->  | DF22: ='Compile Data'!#REF! ->  | DG22: ='Compile Data'!#REF! ->  | DH22: ='Compile Data'!#REF! ->  | DI22: ='Compile Data'!#REF! ->  | DJ22: ='Compile Data'!#REF! ->  | DK22: ='Compile Data'!#REF! ->  | DL22: ='Compile Data'!#REF! ->  | DM22: ='Compile Data'!#REF! ->  | DY22: 1932 | DZ22: ='Compile Data'!E133 -> 57.09487152 | EA22: ='Compile Data'!E134 -> 54.75992203 | EB22: ='Compile Data'!E135 -> 49.74744034 | EC22: ='Compile Data'!E136 -> 45.36898041 | ED22: ='Compile Data'!E137 -> 44.67428207 | EE22: ='Compile Data'!E138 -> 48.70687866 | EF22: ='Compile Data'!E139 -> 52.08647537 | EG22: ='Compile Data'!E140 -> 54.92419434 | EH22: ='Compile Data'!E141 -> 56.49971008 | EI22: ='Compile Data'!E142 -> 53.49798965 | EJ22: ='Compile Data'!E143 -> 53.11215591 | EK22: ='Compile Data'!E144 -> 54.7616539 | EM22: 51.86207422 | EN22: 52.12913513 | EO22: 52.10287952 | EQ22: 51.74280357 | ER22: 46.59690094 | ES22: 53.05431461 | ET22: 54.46787739 | EU22: 54.51267624
A23: 1922-08-31 | B23: =IF(INDIRECT(CONCATENATE("'",B$1,"'!",B$4,(YEAR($A23)-1921)*12+MONTH($A23)+3+IF(ISNUMBER(FIND("PRV",B$6)),1,0)))=-901,NA(),INDIRECT(CONCATENATE("'",B$1,"'!",B$4,(YEAR($A23)-1921)*12+MONTH($A23)+3+IF(ISNUMBER(FIND("PRV",B$6)),1,0)))*IF(AND(B$3>0,TRIM(B$9)="CFS"),Conv_Flags!$C23,1)) -> 51.76369858 | C23: =IF(INDIRECT(CONCATENATE("'",C$1,"'!",C$4,(YEAR($A23)-1921)*12+MONTH($A23)+3+IF(ISNUMBER(FIND("PRV",C$6)),1,0)))=-901,NA(),INDIRECT(CONCATENATE("'",C$1,"'!",C$4,(YEAR($A23)-1921)*12+MONTH($A23)+3+IF(ISNUMBER(FIND("PRV",C$6)),1,0)))*IF(AND(C$3>0,TRIM(C$9)="CFS"),Conv_Flags!$C23,1)) -> 51.76841354 | D23: =IF(INDIRECT(CONCATENATE("'",D$1,"'!",D$4,(YEAR($A23)-1921)*12+MONTH($A23)+3+IF(ISNUMBER(FIND("PRV",D$6)),1,0)))=-901,NA(),INDIRECT(CONCATENATE("'",D$1,"'!",D$4,(YEAR($A23)-1921)*12+MONTH($A23)+3+IF(ISNUMBER(FIND("PRV",D$6)),1,0)))*IF(AND(D$3>0,TRIM(D$9)="CFS"),Conv_Flags!$C23,1)) -> 51.77032471 | E23: =IF(INDIRECT(CONCATENATE("'",E$1,"'!",E$4,(YEAR($A23)-1921)*12+MONTH($A23)+3+IF(ISNUMBER(FIND("PRV",E$6)),1,0)))=-901,NA(),INDIRECT(CONCATENATE("'",E$1,"'!",E$4,(YEAR($A23)-1921)*12+MONTH($A23)+3+IF(ISNUMBER(FIND("PRV",E$6)),1,0)))*IF(AND(E$3>0,TRIM(E$9)="CFS"),Conv_Flags!$C23,1)) -> 51.76841354 | I23: 1933 | J23: =B145 -> 54.90002441 | K23: =B146 -> 53.82866287 | L23: =B147 -> 49.9131546 | M23: =B148 -> 47.06040955 | N23: =B149 -> 46.24597168 | O23: =B150 -> 48.98258972 | P23: =B151 -> 51.76052094 | Q23: =B152 -> 53.49240112 | R23: =B153 -> 56.18993378 | S23: =B154 -> 53.32850647 | T23: =B155 -> 52.4802475 | U23: =B156 -> 54.43056107 | W23: 52.22452418 | X23: 52.13566049 | Y23: 51.88441531 | AA23: 51.42556286 | AB23: 47.73984528 | AC23: 52.60636139 | AD23: 54.1073122 | AE23: 55.19284185 | AG23: 1933 | AH23: ='Compile Data'!C145 -> 54.92985535 | AI23: ='Compile Data'!C146 -> 53.8559761 | AJ23: ='Compile Data'!C147 -> 49.9411087 | AK23: ='Compile Data'!C148 -> 47.0317688 | AL23: ='Compile Data'!C149 -> 46.20294952 | AM23: ='Compile Data'!C150 -> 48.91000748 | AN23: ='Compile Data'!C151 -> 51.77659225 | AO23: ='Compile Data'!C152 -> 53.7131424 | AP23: ='Compile Data'!C153 -> 56.24633026 | AQ23: ='Compile Data'!C154 -> 53.33506775 | AR23: ='Compile Data'!C155 -> 53.22575378 | AS23: ='Compile Data'!C156 -> 54.36329651 | AU23: 52.14985752 | AV23: 52.06282711 | AW23: 51.96098741 | AY23: 51.43967724 | AZ23: 47.72527568 | BA23: 52.6615181 | BB23: 54.29261208 | BC23: 54.63159434 | BE23: 1933 | BF23: ='Compile Data'!D145 -> 54.86029816 | BG23: ='Compile Data'!D146 -> 53.90328979 | BH23: ='Compile Data'!D147 -> 49.9189415 | BI23: ='Compile Data'!D148 -> 47.05698395 | BJ23: ='Compile Data'!D149 -> 46.25911713 | BK23: ='Compile Data'!D150 -> 48.96767807 | BL23: ='Compile Data'!D151 -> 51.8360405 | BM23: ='Compile Data'!D152 -> 53.58891678 | BN23: ='Compile Data'!D153 -> 56.20863342 | BO23: ='Compile Data'!D154 -> 53.38844299 | BP23: ='Compile Data'!D155 -> 52.31118774 | BQ23: ='Compile Data'!D156 -> 54.59238052 | BS23: 52.23574797 | BT23: 52.12869962 | BU23: 51.90765921 | BW23: 51.43487835 | BX23: 47.74501419 | BY23: 52.65031719 | BZ23: 54.12516117 | CA23: 55.19289398 | CC23: 1933 | CD23: ='Compile Data'!E145 -> 54.92212296 | CE23: ='Compile Data'!E146 -> 53.85425186 | CF23: ='Compile Data'!E147 -> 49.93619537 | CG23: ='Compile Data'!E148 -> 47.03811646 | CH23: ='Compile Data'!E149 -> 46.20987701 | CI23: ='Compile Data'!E150 -> 48.91098404 | CJ23: ='Compile Data'!E151 -> 51.78549957 | CK23: ='Compile Data'!E152 -> 53.69942856 | CL23: ='Compile Data'!E153 -> 56.24481583 | CM23: ='Compile Data'!E154 -> 53.34125519 | CN23: ='Compile Data'!E155 -> 52.33298492 | CO23: ='Compile Data'!E156 -> 54.33992386 | CQ23: 52.26133347 | CR23: 52.15186977 | CS23: 51.8846213 | CU23: 51.43767166 | CV23: 47.72806295 | CW23: 52.660182 | CX23: 54.06474495 | CY23: 55.30307897 | DA23: 1933 | DB23: ='Compile Data'!#REF! ->  | DC23: ='Compile Data'!#REF! ->  | DD23: ='Compile Data'!#REF! ->  | DE23: ='Compile Data'!#REF! ->  | DF23: ='Compile Data'!#REF! ->  | DG23: ='Compile Data'!#REF! ->  | DH23: ='Compile Data'!#REF! ->  | DI23: ='Compile Data'!#REF! ->  | DJ23: ='Compile Data'!#REF! ->  | DK23: ='Compile Data'!#REF! ->  | DL23: ='Compile Data'!#REF! ->  | DM23: ='Compile Data'!#REF! ->  | DY23: 1933 | DZ23: ='Compile Data'!E145 -> 54.92212296 | EA23: ='Compile Data'!E146 -> 53.85425186 | EB23: ='Compile Data'!E147 -> 49.93619537 | EC23: ='Compile Data'!E148 -> 47.03811646 | ED23: ='Compile Data'!E149 -> 46.20987701 | EE23: ='Compile Data'!E150 -> 48.91098404 | EF23: ='Compile Data'!E151 -> 51.78549957 | EG23: ='Compile Data'!E152 -> 53.69942856 | EH23: ='Compile Data'!E153 -> 56.24481583 | EI23: ='Compile Data'!E154 -> 53.34125519 | EJ23: ='Compile Data'!E155 -> 52.33298492 | EK23: ='Compile Data'!E156 -> 54.33992386 | EM23: 52.26133347 | EN23: 52.15186977 | EO23: 51.8846213 | EQ23: 51.43767166 | ER23: 47.72806295 | ES23: 52.660182 | ET23: 54.06474495 | EU23: 55.30307897
A24: 1922-09-30 | B24: =IF(INDIRECT(CONCATENATE("'",B$1,"'!",B$4,(YEAR($A24)-1921)*12+MONTH($A24)+3+IF(ISNUMBER(FIND("PRV",B$6)),1,0)))=-901,NA(),INDIRECT(CONCATENATE("'",B$1,"'!",B$4,(YEAR($A24)-1921)*12+MONTH($A24)+3+IF(ISNUMBER(FIND("PRV",B$6)),1,0)))*IF(AND(B$3>0,TRIM(B$9)="CFS"),Conv_Flags!$C24,1)) -> 51.04671097 | C24: =IF(INDIRECT(CONCATENATE("'",C$1,"'!",C$4,(YEAR($A24)-1921)*12+MONTH($A24)+3+IF(ISNUMBER(FIND("PRV",C$6)),1,0)))=-901,NA(),INDIRECT(CONCATENATE("'",C$1,"'!",C$4,(YEAR($A24)-1921)*12+MONTH($A24)+3+IF(ISNUMBER(FIND("PRV",C$6)),1,0)))*IF(AND(C$3>0,TRIM(C$9)="CFS"),Conv_Flags!$C24,1)) -> 50.97625732 | D24: =IF(INDIRECT(CONCATENATE("'",D$1,"'!",D$4,(YEAR($A24)-1921)*12+MONTH($A24)+3+IF(ISNUMBER(FIND("PRV",D$6)),1,0)))=-901,NA(),INDIRECT(CONCATENATE("'",D$1,"'!",D$4,(YEAR($A24)-1921)*12+MONTH($A24)+3+IF(ISNUMBER(FIND("PRV",D$6)),1,0)))*IF(AND(D$3>0,TRIM(D$9)="CFS"),Conv_Flags!$C24,1)) -> 50.79842377 | E24: =IF(INDIRECT(CONCATENATE("'",E$1,"'!",E$4,(YEAR($A24)-1921)*12+MONTH($A24)+3+IF(ISNUMBER(FIND("PRV",E$6)),1,0)))=-901,NA(),INDIRECT(CONCATENATE("'",E$1,"'!",E$4,(YEAR($A24)-1921)*12+MONTH($A24)+3+IF(ISNUMBER(FIND("PRV",E$6)),1,0)))*IF(AND(E$3>0,TRIM(E$9)="CFS"),Conv_Flags!$C24,1)) -> 50.97625732 | I24: 1934 | J24: =B157 -> 55.59714127 | K24: =B158 -> 55.55082321 | L24: =B159 -> 51.57518387 | M24: =B160 -> 46.23921967 | N24: =B161 -> 46.00079727 | O24: =B162 -> 49.86478424 | P24: =B163 -> 53.00112534 | Q24: =B164 -> 54.51847458 | R24: =B165 -> 56.0330658 | S24: =B166 -> 52.78859329 | T24: =B167 -> 52.22158051 | U24: =B168 -> 54.91272736 | W24: 52.37184842 | X24: 52.34130351 | Y24: 52.35862637 | AA24: 52.240592 | AB24: 47.93840027 | AC24: 53.35436249 | AD24: 53.98899174 | AE24: 55.76606369 | AG24: 1934 | AH24: ='Compile Data'!C157 -> 55.11739349 | AI24: ='Compile Data'!C158 -> 54.41409302 | AJ24: ='Compile Data'!C159 -> 51.46189499 | AK24: ='Compile Data'!C160 -> 46.18681335 | AL24: ='Compile Data'!C161 -> 46.00354004 | AM24: ='Compile Data'!C162 -> 49.83725739 | AN24: ='Compile Data'!C163 -> 52.95009613 | AO24: ='Compile Data'!C164 -> 54.52310181 | AP24: ='Compile Data'!C165 -> 55.96293259 | AQ24: ='Compile Data'!C166 -> 52.84807587 | AR24: ='Compile Data'!C167 -> 52.20251846 | AS24: ='Compile Data'!C168 -> 54.5758667 | AU24: 52.34044997 | AV24: 52.31261444 | AW24: 52.17363199 | AY24: 51.79504871 | AZ24: 47.88408279 | BA24: 53.31834698 | BB24: 53.8973484 | BC24: 55.71954473 | BE24: 1934 | BF24: ='Compile Data'!D157 -> 55.31548691 | BG24: ='Compile Data'!D158 -> 55.67081451 | BH24: ='Compile Data'!D159 -> 51.63329315 | BI24: ='Compile Data'!D160 -> 46.16853333 | BJ24: ='Compile Data'!D161 -> 45.86298752 | BK24: ='Compile Data'!D162 -> 49.90477753 | BL24: ='Compile Data'!D163 -> 53.3152771 | BM24: ='Compile Data'!D164 -> 54.86232376 | BN24: ='Compile Data'!D165 -> 56.05059814 | BO24: ='Compile Data'!D166 -> 52.77209091 | BP24: ='Compile Data'!D167 -> 52.22413635 | BQ24: ='Compile Data'!D168 -> 55.0137558 | BS24: 52.46389008 | BT24: 52.43813833 | BU24: 52.39950625 | BW24: 52.19703197 | BX24: 47.88827133 | BY24: 53.53324413 | BZ24: 54.0151453 | CA24: 56.03387451 | CC24: 1934 | CD24: ='Compile Data'!E157 -> 55.72569275 | CE24: ='Compile Data'!E158 -> 55.8436203 | CF24: ='Compile Data'!E159 -> 51.6638031 | CG24: ='Compile Data'!E160 -> 46.13279724 | CH24: ='Compile Data'!E161 -> 45.80163193 | CI24: ='Compile Data'!E162 -> 49.89762878 | CJ24: ='Compile Data'!E163 -> 53.37157822 | CK24: ='Compile Data'!E164 -> 54.93815994 | CL24: ='Compile Data'!E165 -> 56.05614853 | CM24: ='Compile Data'!E166 -> 52.7755928 | CN24: ='Compile Data'!E167 -> 52.21854019 | CO24: ='Compile Data'!E168 -> 55.27305222 | CQ24: 52.50230535 | CR24: 52.47356764 | CS24: 52.47485383 | CU24: 52.34147835 | CV24: 47.86607742 | CW24: 53.56587887 | CX24: 54.08083344 | CY24: 56.20808029 | DA24: 1934 | DB24: ='Compile Data'!#REF! ->  | DC24: ='Compile Data'!#REF! ->  | DD24: ='Compile Data'!#REF! ->  | DE24: ='Compile Data'!#REF! ->  | DF24: ='Compile Data'!#REF! ->  | DG24: ='Compile Data'!#REF! ->  | DH24: ='Compile Data'!#REF! ->  | DI24: ='Compile Data'!#REF! ->  | DJ24: ='Compile Data'!#REF! ->  | DK24: ='Compile Data'!#REF! ->  | DL24: ='Compile Data'!#REF! ->  | DM24: ='Compile Data'!#REF! ->  | DY24: 1934 | DZ24: ='Compile Data'!E157 -> 55.72569275 | EA24: ='Compile Data'!E158 -> 55.8436203 | EB24: ='Compile Data'!E159 -> 51.6638031 | EC24: ='Compile Data'!E160 -> 46.13279724 | ED24: ='Compile Data'!E161 -> 45.80163193 | EE24: ='Compile Data'!E162 -> 49.89762878 | EF24: ='Compile Data'!E163 -> 53.37157822 | EG24: ='Compile Data'!E164 -> 54.93815994 | EH24: ='Compile Data'!E165 -> 56.05614853 | EI24: ='Compile Data'!E166 -> 52.7755928 | EJ24: ='Compile Data'!E167 -> 52.21854019 | EK24: ='Compile Data'!E168 -> 55.27305222 | EM24: 52.50230535 | EN24: 52.47356764 | EO24: 52.47485383 | EQ24: 52.34147835 | ER24: 47.86607742 | ES24: 53.56587887 | ET24: 54.08083344 | EU24: 56.20808029
A25: 1922-10-31 | B25: =IF(INDIRECT(CONCATENATE("'",B$1,"'!",B$4,(YEAR($A25)-1921)*12+MONTH($A25)+3+IF(ISNUMBER(FIND("PRV",B$6)),1,0)))=-901,NA(),INDIRECT(CONCATENATE("'",B$1,"'!",B$4,(YEAR($A25)-1921)*12+MONTH($A25)+3+IF(ISNUMBER(FIND("PRV",B$6)),1,0)))*IF(AND(B$3>0,TRIM(B$9)="CFS"),Conv_Flags!$C25,1)) -> 51.89820862 | C25: =IF(INDIRECT(CONCATENATE("'",C$1,"'!",C$4,(YEAR($A25)-1921)*12+MONTH($A25)+3+IF(ISNUMBER(FIND("PRV",C$6)),1,0)))=-901,NA(),INDIRECT(CONCATENATE("'",C$1,"'!",C$4,(YEAR($A25)-1921)*12+MONTH($A25)+3+IF(ISNUMBER(FIND("PRV",C$6)),1,0)))*IF(AND(C$3>0,TRIM(C$9)="CFS"),Conv_Flags!$C25,1)) -> 51.87754822 | D25: =IF(INDIRECT(CONCATENATE("'",D$1,"'!",D$4,(YEAR($A25)-1921)*12+MONTH($A25)+3+IF(ISNUMBER(FIND("PRV",D$6)),1,0)))=-901,NA(),INDIRECT(CONCATENATE("'",D$1,"'!",D$4,(YEAR($A25)-1921)*12+MONTH($A25)+3+IF(ISNUMBER(FIND("PRV",D$6)),1,0)))*IF(AND(D$3>0,TRIM(D$9)="CFS"),Conv_Flags!$C25,1)) -> 51.85019302 | E25: =IF(INDIRECT(CONCATENATE("'",E$1,"'!",E$4,(YEAR($A25)-1921)*12+MONTH($A25)+3+IF(ISNUMBER(FIND("PRV",E$6)),1,0)))=-901,NA(),INDIRECT(CONCATENATE("'",E$1,"'!",E$4,(YEAR($A25)-1921)*12+MONTH($A25)+3+IF(ISNUMBER(FIND("PRV",E$6)),1,0)))*IF(AND(E$3>0,TRIM(E$9)="CFS"),Conv_Flags!$C25,1)) -> 51.87754822 | I25: 1935 | J25: =B169 -> 57.53469467 | K25: =B170 -> 54.85076904 | L25: =B171 -> 50.49634933 | M25: =B172 -> 46.97658157 | N25: =B173 -> 44.89689636 | O25: =B174 -> 46.81420898 | P25: =B175 -> 50.54099274 | Q25: =B176 -> 52.70032501 | R25: =B177 -> 53.28600311 | S25: =B178 -> 52.02583313 | T25: =B179 -> 52.12194061 | U25: =B180 -> 53.38204956 | W25: 51.02925809 | X25: 51.16274389 | Y25: 51.30222034 | AA25: 52.46459866 | AB25: 47.45660909 | AC25: 50.83538246 | AD25: 52.7039566 | AE25: 53.9076678 | AG25: 1935 | AH25: ='Compile Data'!C169 -> 57.75135803 | AI25: ='Compile Data'!C170 -> 54.83140945 | AJ25: ='Compile Data'!C171 -> 50.41242981 | AK25: ='Compile Data'!C172 -> 46.87877655 | AL25: ='Compile Data'!C173 -> 44.97755051 | AM25: ='Compile Data'!C174 -> 46.81573868 | AN25: ='Compile Data'!C175 -> 50.57509232 | AO25: ='Compile Data'!C176 -> 53.21404648 | AP25: ='Compile Data'!C177 -> 53.25310516 | AQ25: ='Compile Data'!C178 -> 52.02581406 | AR25: ='Compile Data'!C179 -> 52.11913681 | AS25: ='Compile Data'!C180 -> 53.34593582 | AU25: 51.05538623 | AV25: 51.18583393 | AW25: 51.35003281 | AY25: 52.46849346 | AZ25: 47.42291896 | BA25: 50.96449566 | BB25: 52.68599796 | BC25: 53.85708745 | BE25: 1935 | BF25: ='Compile Data'!D169 -> 58.25385284 | BG25: ='Compile Data'!D170 -> 54.83401489 | BH25: ='Compile Data'!D171 -> 50.30433273 | BI25: ='Compile Data'!D172 -> 46.8707428 | BJ25: ='Compile Data'!D173 -> 44.85175705 | BK25: ='Compile Data'!D174 -> 46.7199707 | BL25: ='Compile Data'!D175 -> 50.61539078 | BM25: ='Compile Data'!D176 -> 53.25405884 | BN25: ='Compile Data'!D177 -> 53.46796417 | BO25: ='Compile Data'!D178 -> 52.02930832 | BP25: ='Compile Data'!D179 -> 52.18413162 | BQ25: ='Compile Data'!D180 -> 53.34858322 | BS25: 51.06722005 | BT25: 51.20551491 | BU25: 51.394509 | BW25: 52.56573582 | BX25: 47.34227753 | BY25: 51.01434612 | BZ25: 52.75749683 | CA25: 53.86980184 | CC25: 1935 | CD25: ='Compile Data'!E169 -> 58.53450394 | CE25: ='Compile Data'!E170 -> 54.81668472 | CF25: ='Compile Data'!E171 -> 50.21134567 | CG25: ='Compile Data'!E172 -> 46.81163406 | CH25: ='Compile Data'!E173 -> 44.77794266 | CI25: ='Compile Data'!E174 -> 46.61432648 | CJ25: ='Compile Data'!E175 -> 50.64328384 | CK25: ='Compile Data'!E176 -> 53.3188858 | CL25: ='Compile Data'!E177 -> 53.438694 | CM25: ='Compile Data'!E178 -> 52.05664825 | CN25: ='Compile Data'!E179 -> 52.0483551 | CO25: ='Compile Data'!E180 -> 53.32365799 | CQ25: 51.04611397 | CR25: 51.20335706 | CS25: 51.38299688 | CU25: 52.5935421 | CV25: 47.26697413 | CW25: 51.00379753 | CX25: 52.71683884 | CY25: 53.85099157 | DA25: 1935 | DB25: ='Compile Data'!#REF! ->  | DC25: ='Compile Data'!#REF! ->  | DD25: ='Compile Data'!#REF! ->  | DE25: ='Compile Data'!#REF! ->  | DF25: ='Compile Data'!#REF! ->  | DG25: ='Compile Data'!#REF! ->  | DH25: ='Compile Data'!#REF! ->  | DI25: ='Compile Data'!#REF! ->  | DJ25: ='Compile Data'!#REF! ->  | DK25: ='Compile Data'!#REF! ->  | DL25: ='Compile Data'!#REF! ->  | DM25: ='Compile Data'!#REF! ->  | DY25: 1935 | DZ25: ='Compile Data'!E169 -> 58.53450394 | EA25: ='Compile Data'!E170 -> 54.81668472 | EB25: ='Compile Data'!E171 -> 50.21134567 | EC25: ='Compile Data'!E172 -> 46.81163406 | ED25: ='Compile Data'!E173 -> 44.77794266 | EE25: ='Compile Data'!E174 -> 46.61432648 | EF25: ='Compile Data'!E175 -> 50.64328384 | EG25: ='Compile Data'!E176 -> 53.3188858 | EH25: ='Compile Data'!E177 -> 53.438694 | EI25: ='Compile Data'!E178 -> 52.05664825 | EJ25: ='Compile Data'!E179 -> 52.0483551 | EK25: ='Compile Data'!E180 -> 53.32365799 | EM25: 51.04611397 | EN25: 51.20335706 | EO25: 51.38299688 | EQ25: 52.5935421 | ER25: 47.26697413 | ES25: 51.00379753 | ET25: 52.71683884 | EU25: 53.85099157
A26: 1922-11-30 | B26: =IF(INDIRECT(CONCATENATE("'",B$1,"'!",B$4,(YEAR($A26)-1921)*12+MONTH($A26)+3+IF(ISNUMBER(FIND("PRV",B$6)),1,0)))=-901,NA(),INDIRECT(CONCATENATE("'",B$1,"'!",B$4,(YEAR($A26)-1921)*12+MONTH($A26)+3+IF(ISNUMBER(FIND("PRV",B$6)),1,0)))*IF(AND(B$3>0,TRIM(B$9)="CFS"),Conv_Flags!$C26,1)) -> 53.56967926 | C26: =IF(INDIRECT(CONCATENATE("'",C$1,"'!",C$4,(YEAR($A26)-1921)*12+MONTH($A26)+3+IF(ISNUMBER(FIND("PRV",C$6)),1,0)))=-901,NA(),INDIRECT(CONCATENATE("'",C$1,"'!",C$4,(YEAR($A26)-1921)*12+MONTH($A26)+3+IF(ISNUMBER(FIND("PRV",C$6)),1,0)))*IF(AND(C$3>0,TRIM(C$9)="CFS"),Conv_Flags!$C26,1)) -> 53.57390213 | D26: =IF(INDIRECT(CONCATENATE("'",D$1,"'!",D$4,(YEAR($A26)-1921)*12+MONTH($A26)+3+IF(ISNUMBER(FIND("PRV",D$6)),1,0)))=-901,NA(),INDIRECT(CONCATENATE("'",D$1,"'!",D$4,(YEAR($A26)-1921)*12+MONTH($A26)+3+IF(ISNUMBER(FIND("PRV",D$6)),1,0)))*IF(AND(D$3>0,TRIM(D$9)="CFS"),Conv_Flags!$C26,1)) -> 53.54026031 | E26: =IF(INDIRECT(CONCATENATE("'",E$1,"'!",E$4,(YEAR($A26)-1921)*12+MONTH($A26)+3+IF(ISNUMBER(FIND("PRV",E$6)),1,0)))=-901,NA(),INDIRECT(CONCATENATE("'",E$1,"'!",E$4,(YEAR($A26)-1921)*12+MONTH($A26)+3+IF(ISNUMBER(FIND("PRV",E$6)),1,0)))*IF(AND(E$3>0,TRIM(E$9)="CFS"),Conv_Flags!$C26,1)) -> 53.57390213 | I26: 1936 | J26: =B181 -> 54.75600052 | K26: =B182 -> 53.58495331 | L26: =B183 -> 51.26531219 | M26: =B184 -> 47.84733582 | N26: =B185 -> 45.62797165 | O26: =B186 -> 49.24036789 | P26: =B187 -> 52.33794785 | Q26: =B188 -> 53.16083145 | R26: =B189 -> 52.4026947 | S26: =B190 -> 51.58068085 | T26: =B191 -> 51.84391403 | U26: =B192 -> 52.09086227 | W26: 51.10004965 | X26: 51.18483893 | Y26: 51.31157271 | AA26: 51.86340046 | AB26: 48.24687322 | AC26: 51.78546047 | AD26: 51.97953796 | AE26: 52.74728139 | AG26: 1936 | AH26: ='Compile Data'!C181 -> 54.66585922 | AI26: ='Compile Data'!C182 -> 53.55946732 | AJ26: ='Compile Data'!C183 -> 51.23411179 | AK26: ='Compile Data'!C184 -> 47.84008408 | AL26: ='Compile Data'!C185 -> 45.58161545 | AM26: ='Compile Data'!C186 -> 49.26995468 | AN26: ='Compile Data'!C187 -> 52.30392456 | AO26: ='Compile Data'!C188 -> 53.22156906 | AP26: ='Compile Data'!C189 -> 52.50248718 | AQ26: ='Compile Data'!C190 -> 51.51059723 | AR26: ='Compile Data'!C191 -> 51.85783386 | AS26: ='Compile Data'!C192 -> 52.10629272 | AU26: 51.10241572 | AV26: 51.18794886 | AW26: 51.3044831 | AY26: 51.8248806 | AZ26: 48.21860377 | BA26: 51.82448387 | BB26: 51.99430275 | BC26: 52.74969101 | BE26: 1936 | BF26: ='Compile Data'!D181 -> 54.68599319 | BG26: ='Compile Data'!D182 -> 53.5748291 | BH26: ='Compile Data'!D183 -> 51.20391083 | BI26: ='Compile Data'!D184 -> 47.82091522 | BJ26: ='Compile Data'!D185 -> 45.56112289 | BK26: ='Compile Data'!D186 -> 49.26740646 | BL26: ='Compile Data'!D187 -> 52.30384827 | BM26: ='Compile Data'!D188 -> 53.21379852 | BN26: ='Compile Data'!D189 -> 52.50083923 | BO26: ='Compile Data'!D190 -> 51.79164124 | BP26: ='Compile Data'!D191 -> 51.84218597 | BQ26: ='Compile Data'!D192 -> 52.09376907 | BS26: 51.10126591 | BT26: 51.18355624 | BU26: 51.32168833 | BW26: 51.82141209 | BX26: 48.19531631 | BY26: 51.82147312 | BZ26: 52.05710888 | CA26: 52.69955317 | CC26: 1936 | CD26: ='Compile Data'!E181 -> 54.6567421 | CE26: ='Compile Data'!E182 -> 53.57257462 | CF26: ='Compile Data'!E183 -> 51.29062271 | CG26: ='Compile Data'!E184 -> 47.84897232 | CH26: ='Compile Data'!E185 -> 45.62752151 | CI26: ='Compile Data'!E186 -> 49.263134 | CJ26: ='Compile Data'!E187 -> 52.30261612 | CK26: ='Compile Data'!E188 -> 53.20943451 | CL26: ='Compile Data'!E189 -> 52.49328995 | CM26: ='Compile Data'!E190 -> 51.49367142 | CN26: ='Compile Data'!E191 -> 51.85319901 | CO26: ='Compile Data'!E192 -> 52.10205078 | CQ26: 51.10061868 | CR26: 51.1798741 | CS26: 51.30948575 | CU26: 51.84222794 | CV26: 48.25570552 | CW26: 51.81711864 | CX26: 51.98555279 | CY26: 52.74306234 | DA26: 1936 | DB26: ='Compile Data'!#REF! ->  | DC26: ='Compile Data'!#REF! ->  | DD26: ='Compile Data'!#REF! ->  | DE26: ='Compile Data'!#REF! ->  | DF26: ='Compile Data'!#REF! ->  | DG26: ='Compile Data'!#REF! ->  | DH26: ='Compile Data'!#REF! ->  | DI26: ='Compile Data'!#REF! ->  | DJ26: ='Compile Data'!#REF! ->  | DK26: ='Compile Data'!#REF! ->  | DL26: ='Compile Data'!#REF! ->  | DM26: ='Compile Data'!#REF! ->  | DY26: 1936 | DZ26: ='Compile Data'!E181 -> 54.6567421 | EA26: ='Compile Data'!E182 -> 53.57257462 | EB26: ='Compile Data'!E183 -> 51.29062271 | EC26: ='Compile Data'!E184 -> 47.84897232 | ED26: ='Compile Data'!E185 -> 45.62752151 | EE26: ='Compile Data'!E186 -> 49.263134 | EF26: ='Compile Data'!E187 -> 52.30261612 | EG26: ='Compile Data'!E188 -> 53.20943451 | EH26: ='Compile Data'!E189 -> 52.49328995 | EI26: ='Compile Data'!E190 -> 51.49367142 | EJ26: ='Compile Data'!E191 -> 51.85319901 | EK26: ='Compile Data'!E192 -> 52.10205078 | EM26: 51.10061868 | EN26: 51.1798741 | EO26: 51.30948575 | EQ26: 51.84222794 | ER26: 48.25570552 | ES26: 51.81711864 | ET26: 51.98555279 | EU26: 52.74306234
A27: 1922-12-31 | B27: =IF(INDIRECT(CONCATENATE("'",B$1,"'!",B$4,(YEAR($A27)-1921)*12+MONTH($A27)+3+IF(ISNUMBER(FIND("PRV",B$6)),1,0)))=-901,NA(),INDIRECT(CONCATENATE("'",B$1,"'!",B$4,(YEAR($A27)-1921)*12+MONTH($A27)+3+IF(ISNUMBER(FIND("PRV",B$6)),1,0)))*IF(AND(B$3>0,TRIM(B$9)="CFS"),Conv_Flags!$C27,1)) -> 51.11385727 | C27: =IF(INDIRECT(CONCATENATE("'",C$1,"'!",C$4,(YEAR($A27)-1921)*12+MONTH($A27)+3+IF(ISNUMBER(FIND("PRV",C$6)),1,0)))=-901,NA(),INDIRECT(CONCATENATE("'",C$1,"'!",C$4,(YEAR($A27)-1921)*12+MONTH($A27)+3+IF(ISNUMBER(FIND("PRV",C$6)),1,0)))*IF(AND(C$3>0,TRIM(C$9)="CFS"),Conv_Flags!$C27,1)) -> 51.11688995 | D27: =IF(INDIRECT(CONCATENATE("'",D$1,"'!",D$4,(YEAR($A27)-1921)*12+MONTH($A27)+3+IF(ISNUMBER(FIND("PRV",D$6)),1,0)))=-901,NA(),INDIRECT(CONCATENATE("'",D$1,"'!",D$4,(YEAR($A27)-1921)*12+MONTH($A27)+3+IF(ISNUMBER(FIND("PRV",D$6)),1,0)))*IF(AND(D$3>0,TRIM(D$9)="CFS"),Conv_Flags!$C27,1)) -> 51.09936905 | E27: =IF(INDIRECT(CONCATENATE("'",E$1,"'!",E$4,(YEAR($A27)-1921)*12+MONTH($A27)+3+IF(ISNUMBER(FIND("PRV",E$6)),1,0)))=-901,NA(),INDIRECT(CONCATENATE("'",E$1,"'!",E$4,(YEAR($A27)-1921)*12+MONTH($A27)+3+IF(ISNUMBER(FIND("PRV",E$6)),1,0)))*IF(AND(E$3>0,TRIM(E$9)="CFS"),Conv_Flags!$C27,1)) -> 51.11688995 | I27: 1937 | J27: =B193 -> 52.3026619 | K27: =B194 -> 53.84832001 | L27: =B195 -> 50.91700745 | M27: =B196 -> 47.71402359 | N27: =B197 -> 46.77875519 | O27: =B198 -> 48.41425705 | P27: =B199 -> 51.69201279 | Q27: =B200 -> 54.57238007 | R27: =B201 -> 53.25764084 | S27: =B202 -> 51.6715126 | T27: =B203 -> 52.20146942 | U27: =B204 -> 51.86030197 | W27: 51.15981293 | X27: 50.85484123 | Y27: 51.26919524 | AA27: 51.19550323 | AB27: 48.46992874 | AC27: 51.98407269 | AD27: 52.24773121 | AE27: 52.68344625 | AG27: 1937 | AH27: ='Compile Data'!C193 -> 52.29814148 | AI27: ='Compile Data'!C194 -> 53.84463882 | AJ27: ='Compile Data'!C195 -> 50.89184952 | AK27: ='Compile Data'!C196 -> 47.68854523 | AL27: ='Compile Data'!C197 -> 46.759552 | AM27: ='Compile Data'!C198 -> 48.39555359 | AN27: ='Compile Data'!C199 -> 51.68513107 | AO27: ='Compile Data'!C200 -> 54.81291962 | AP27: ='Compile Data'!C201 -> 53.40937042 | AQ27: ='Compile Data'!C202 -> 51.59313583 | AR27: ='Compile Data'!C203 -> 52.1931572 | AS27: ='Compile Data'!C204 -> 51.88251114 | AU27: 51.17907079 | AV27: 50.87555599 | AW27: 51.28787549 | AY27: 51.18079376 | AZ27: 48.44664892 | BA27: 52.07574368 | BB27: 52.26954365 | BC27: 52.68576813 | BE27: 1937 | BF27: ='Compile Data'!D193 -> 52.27917099 | BG27: ='Compile Data'!D194 -> 53.72571945 | BH27: ='Compile Data'!D195 -> 50.81477356 | BI27: ='Compile Data'!D196 -> 47.63267517 | BJ27: ='Compile Data'!D197 -> 46.73684692 | BK27: ='Compile Data'!D198 -> 48.37016296 | BL27: ='Compile Data'!D199 -> 51.80410004 | BM27: ='Compile Data'!D200 -> 54.79218674 | BN27: ='Compile Data'!D201 -> 53.52263641 | BO27: ='Compile Data'!D202 -> 51.65167618 | BP27: ='Compile Data'!D203 -> 52.19497681 | BQ27: ='Compile Data'!D204 -> 51.83375931 | BS27: 51.1931483 | BT27: 50.88852278 | BU27: 51.27989038 | BW27: 51.11308479 | BX27: 48.39476522 | BY27: 52.12227154 | BZ27: 52.30076218 | CA27: 52.71522649 | CC27: 1937 | CD27: ='Compile Data'!E193 -> 52.29030228 | CE27: ='Compile Data'!E194 -> 53.83683395 | CF27: ='Compile Data'!E195 -> 50.88639832 | CG27: ='Compile Data'!E196 -> 47.67702484 | CH27: ='Compile Data'!E197 -> 46.75053406 | CI27: ='Compile Data'!E198 -> 48.39210892 | CJ27: ='Compile Data'!E199 -> 51.67712402 | CK27: ='Compile Data'!E200 -> 54.80851746 | CL27: ='Compile Data'!E201 -> 53.40189743 | CM27: ='Compile Data'!E202 -> 51.60109711 | CN27: ='Compile Data'!E203 -> 52.19062805 | CO27: ='Compile Data'!E204 -> 51.87337494 | CQ27: 51.17323017 | CR27: 50.87042618 | CS27: 51.28215345 | CU27: 51.17263985 | CV27: 48.43798574 | CW27: 52.06991196 | CX27: 52.26674938 | CY27: 52.67754364 | DA27: 1937 | DB27: ='Compile Data'!#REF! ->  | DC27: ='Compile Data'!#REF! ->  | DD27: ='Compile Data'!#REF! ->  | DE27: ='Compile Data'!#REF! ->  | DF27: ='Compile Data'!#REF! ->  | DG27: ='Compile Data'!#REF! ->  | DH27: ='Compile Data'!#REF! ->  | DI27: ='Compile Data'!#REF! ->  | DJ27: ='Compile Data'!#REF! ->  | DK27: ='Compile Data'!#REF! ->  | DL27: ='Compile Data'!#REF! ->  | DM27: ='Compile Data'!#REF! ->  | DY27: 1937 | DZ27: ='Compile Data'!E193 -> 52.29030228 | EA27: ='Compile Data'!E194 -> 53.83683395 | EB27: ='Compile Data'!E195 -> 50.88639832 | EC27: ='Compile Data'!E196 -> 47.67702484 | ED27: ='Compile Data'!E197 -> 46.75053406 | EE27: ='Compile Data'!E198 -> 48.39210892 | EF27: ='Compile Data'!E199 -> 51.67712402 | EG27: ='Compile Data'!E200 -> 54.80851746 | EH27: ='Compile Data'!E201 -> 53.40189743 | EI27: ='Compile Data'!E202 -> 51.60109711 | EJ27: ='Compile Data'!E203 -> 52.19062805 | EK27: ='Compile Data'!E204 -> 51.87337494 | EM27: 51.17323017 | EN27: 50.87042618 | EO27: 51.28215345 | EQ27: 51.17263985 | ER27: 48.43798574 | ES27: 52.06991196 | ET27: 52.26674938 | EU27: 52.67754364
A28: 1923-01-31 | B28: =IF(INDIRECT(CONCATENATE("'",B$1,"'!",B$4,(YEAR($A28)-1921)*12+MONTH($A28)+3+IF(ISNUMBER(FIND("PRV",B$6)),1,0)))=-901,NA(),INDIRECT(CONCATENATE("'",B$1,"'!",B$4,(YEAR($A28)-1921)*12+MONTH($A28)+3+IF(ISNUMBER(FIND("PRV",B$6)),1,0)))*IF(AND(B$3>0,TRIM(B$9)="CFS"),Conv_Flags!$C28,1)) -> 47.52082062 | C28: =IF(INDIRECT(CONCATENATE("'",C$1,"'!",C$4,(YEAR($A28)-1921)*12+MONTH($A28)+3+IF(ISNUMBER(FIND("PRV",C$6)),1,0)))=-901,NA(),INDIRECT(CONCATENATE("'",C$1,"'!",C$4,(YEAR($A28)-1921)*12+MONTH($A28)+3+IF(ISNUMBER(FIND("PRV",C$6)),1,0)))*IF(AND(C$3>0,TRIM(C$9)="CFS"),Conv_Flags!$C28,1)) -> 47.51626205 | D28: =IF(INDIRECT(CONCATENATE("'",D$1,"'!",D$4,(YEAR($A28)-1921)*12+MONTH($A28)+3+IF(ISNUMBER(FIND("PRV",D$6)),1,0)))=-901,NA(),INDIRECT(CONCATENATE("'",D$1,"'!",D$4,(YEAR($A28)-1921)*12+MONTH($A28)+3+IF(ISNUMBER(FIND("PRV",D$6)),1,0)))*IF(AND(D$3>0,TRIM(D$9)="CFS"),Conv_Flags!$C28,1)) -> 47.50932312 | E28: =IF(INDIRECT(CONCATENATE("'",E$1,"'!",E$4,(YEAR($A28)-1921)*12+MONTH($A28)+3+IF(ISNUMBER(FIND("PRV",E$6)),1,0)))=-901,NA(),INDIRECT(CONCATENATE("'",E$1,"'!",E$4,(YEAR($A28)-1921)*12+MONTH($A28)+3+IF(ISNUMBER(FIND("PRV",E$6)),1,0)))*IF(AND(E$3>0,TRIM(E$9)="CFS"),Conv_Flags!$C28,1)) -> 47.51626205 | I28: 1938 | J28: =B205 -> 52.6052742 | K28: =B206 -> 53.58476257 | L28: =B207 -> 49.56536484 | M28: =B208 -> 46.14678192 | N28: =B209 -> 44.68633652 | O28: =B210 -> 45.24442673 | P28: =B211 -> 49.83945084 | Q28: =B212 -> 52.30243683 | R28: =B213 -> 53.05410385 | S28: =B214 -> 51.85331345 | T28: =B215 -> 51.24132538 | U28: =B216 -> 50.15649033 | W28: 50.1600488 | X28: 50.68583711 | Y28: 50.02333895 | AA28: 50.47554588 | AB28: 46.79949443 | AC28: 50.11010456 | AD28: 51.57630825 | AE28: 51.70975367 | AG28: 1938 | AH28: ='Compile Data'!C205 -> 52.59397888 | AI28: ='Compile Data'!C206 -> 53.58081436 | AJ28: ='Compile Data'!C207 -> 49.55418015 | AK28: ='Compile Data'!C208 -> 46.14572906 | AL28: ='Compile Data'!C209 -> 44.66019058 | AM28: ='Compile Data'!C210 -> 45.23320389 | AN28: ='Compile Data'!C211 -> 49.83725739 | AO28: ='Compile Data'!C212 -> 52.3081131 | AP28: ='Compile Data'!C213 -> 53.05430984 | AQ28: ='Compile Data'!C214 -> 51.85240173 | AR28: ='Compile Data'!C215 -> 51.23551178 | AS28: ='Compile Data'!C216 -> 50.15582275 | AU28: 50.15719159 | AV28: 50.68538475 | AW28: 50.01762613 | AY28: 50.46867561 | AZ28: 46.78669993 | BA28: 50.10822105 | BB28: 51.57451153 | BC28: 51.71162923 | BE28: 1938 | BF28: ='Compile Data'!D205 -> 52.65953064 | BG28: ='Compile Data'!D206 -> 53.65238953 | BH28: ='Compile Data'!D207 -> 49.46683884 | BI28: ='Compile Data'!D208 -> 46.08248901 | BJ28: ='Compile Data'!D209 -> 44.63152695 | BK28: ='Compile Data'!D210 -> 45.21233749 | BL28: ='Compile Data'!D211 -> 49.83301544 | BM28: ='Compile Data'!D212 -> 52.31511307 | BN28: ='Compile Data'!D213 -> 53.05196762 | BO28: ='Compile Data'!D214 -> 51.85654068 | BP28: ='Compile Data'!D215 -> 51.24243927 | BQ28: ='Compile Data'!D216 -> 50.14161682 | BS28: 50.13780944 | BT28: 50.67291196 | BU28: 50.01215045 | BW28: 50.465312 | BX28: 46.7269516 | BY28: 50.10310841 | BZ28: 51.5731411 | CA28: 51.68959427 | CC28: 1938 | CD28: ='Compile Data'!E205 -> 52.58401108 | CE28: ='Compile Data'!E206 -> 53.5752449 | CF28: ='Compile Data'!E207 -> 49.54719925 | CG28: ='Compile Data'!E208 -> 46.13538361 | CH28: ='Compile Data'!E209 -> 44.65852737 | CI28: ='Compile Data'!E210 -> 45.22862244 | CJ28: ='Compile Data'!E211 -> 49.83921432 | CK28: ='Compile Data'!E212 -> 52.30820465 | CL28: ='Compile Data'!E213 -> 53.05084229 | CM28: ='Compile Data'!E214 -> 51.85162354 | CN28: ='Compile Data'!E215 -> 51.23891068 | CO28: ='Compile Data'!E216 -> 50.1407814 | CQ28: 50.15430005 | CR28: 50.68319956 | CS28: 50.01321379 | CU28: 50.46045971 | CV28: 46.78037008 | CW28: 50.10672092 | CX28: 51.57053947 | CY28: 51.70369339 | DA28: 1938 | DB28: ='Compile Data'!#REF! ->  | DC28: ='Compile Data'!#REF! ->  | DD28: ='Compile Data'!#REF! ->  | DE28: ='Compile Data'!#REF! ->  | DF28: ='Compile Data'!#REF! ->  | DG28: ='Compile Data'!#REF! ->  | DH28: ='Compile Data'!#REF! ->  | DI28: ='Compile Data'!#REF! ->  | DJ28: ='Compile Data'!#REF! ->  | DK28: ='Compile Data'!#REF! ->  | DL28: ='Compile Data'!#REF! ->  | DM28: ='Compile Data'!#REF! ->  | DY28: 1938 | DZ28: ='Compile Data'!E205 -> 52.58401108 | EA28: ='Compile Data'!E206 -> 53.5752449 | EB28: ='Compile Data'!E207 -> 49.54719925 | EC28: ='Compile Data'!E208 -> 46.13538361 | ED28: ='Compile Data'!E209 -> 44.65852737 | EE28: ='Compile Data'!E210 -> 45.22862244 | EF28: ='Compile Data'!E211 -> 49.83921432 | EG28: ='Compile Data'!E212 -> 52.30820465 | EH28: ='Compile Data'!E213 -> 53.05084229 | EI28: ='Compile Data'!E214 -> 51.85162354 | EJ28: ='Compile Data'!E215 -> 51.23891068 | EK28: ='Compile Data'!E216 -> 50.1407814 | EM28: 50.15430005 | EN28: 50.68319956 | EO28: 50.01321379 | EQ28: 50.46045971 | ER28: 46.78037008 | ES28: 50.10672092 | ET28: 51.57053947 | EU28: 51.70369339
A29: 1923-02-28 | B29: =IF(INDIRECT(CONCATENATE("'",B$1,"'!",B$4,(YEAR($A29)-1921)*12+MONTH($A29)+3+IF(ISNUMBER(FIND("PRV",B$6)),1,0)))=-901,NA(),INDIRECT(CONCATENATE("'",B$1,"'!",B$4,(YEAR($A29)-1921)*12+MONTH($A29)+3+IF(ISNUMBER(FIND("PRV",B$6)),1,0)))*IF(AND(B$3>0,TRIM(B$9)="CFS"),Conv_Flags!$C29,1)) -> 47.41940308 | C29: =IF(INDIRECT(CONCATENATE("'",C$1,"'!",C$4,(YEAR($A29)-1921)*12+MONTH($A29)+3+IF(ISNUMBER(FIND("PRV",C$6)),1,0)))=-901,NA(),INDIRECT(CONCATENATE("'",C$1,"'!",C$4,(YEAR($A29)-1921)*12+MONTH($A29)+3+IF(ISNUMBER(FIND("PRV",C$6)),1,0)))*IF(AND(C$3>0,TRIM(C$9)="CFS"),Conv_Flags!$C29,1)) -> 47.41914749 | D29: =IF(INDIRECT(CONCATENATE("'",D$1,"'!",D$4,(YEAR($A29)-1921)*12+MONTH($A29)+3+IF(ISNUMBER(FIND("PRV",D$6)),1,0)))=-901,NA(),INDIRECT(CONCATENATE("'",D$1,"'!",D$4,(YEAR($A29)-1921)*12+MONTH($A29)+3+IF(ISNUMBER(FIND("PRV",D$6)),1,0)))*IF(AND(D$3>0,TRIM(D$9)="CFS"),Conv_Flags!$C29,1)) -> 47.42972565 | E29: =IF(INDIRECT(CONCATENATE("'",E$1,"'!",E$4,(YEAR($A29)-1921)*12+MONTH($A29)+3+IF(ISNUMBER(FIND("PRV",E$6)),1,0)))=-901,NA(),INDIRECT(CONCATENATE("'",E$1,"'!",E$4,(YEAR($A29)-1921)*12+MONTH($A29)+3+IF(ISNUMBER(FIND("PRV",E$6)),1,0)))*IF(AND(E$3>0,TRIM(E$9)="CFS"),Conv_Flags!$C29,1)) -> 47.41914749 | I29: 1939 | J29: =B217 -> 51.19479752 | K29: =B218 -> 53.77797318 | L29: =B219 -> 52.42314911 | M29: =B220 -> 49.18099976 | N29: =B221 -> 47.96157837 | O29: =B222 -> 49.90706253 | P29: =B223 -> 53.67718506 | Q29: =B224 -> 53.53192902 | R29: =B225 -> 51.77274323 | S29: =B226 -> 51.90148926 | T29: =B227 -> 52.23176193 | U29: =B228 -> 53.23913574 | W29: 51.83445072 | X29: 51.49990431 | Y29: 51.73331706 | AA29: 51.64422989 | AB29: 49.85524241 | AC29: 52.22222996 | AD29: 52.28628254 | AE29: 53.19449615 | AG29: 1939 | AH29: ='Compile Data'!C217 -> 51.19773102 | AI29: ='Compile Data'!C218 -> 53.78133392 | AJ29: ='Compile Data'!C219 -> 52.42469406 | AK29: ='Compile Data'!C220 -> 49.18146133 | AL29: ='Compile Data'!C221 -> 47.96277618 | AM29: ='Compile Data'!C222 -> 49.90802765 | AN29: ='Compile Data'!C223 -> 53.67761993 | AO29: ='Compile Data'!C224 -> 53.49454117 | AP29: ='Compile Data'!C225 -> 52.07049561 | AQ29: ='Compile Data'!C226 -> 51.89590454 | AR29: ='Compile Data'!C227 -> 52.12434006 | AS29: ='Compile Data'!C228 -> 52.93532181 | AU29: 51.8120629 | AV29: 51.48130099 | AW29: 51.72118727 | AY29: 51.64630508 | AZ29: 49.85631053 | BA29: 52.28767109 | BB29: 52.2565155 | BC29: 53.05039724 | BE29: 1939 | BF29: ='Compile Data'!D217 -> 51.19126129 | BG29: ='Compile Data'!D218 -> 53.73590469 | BH29: ='Compile Data'!D219 -> 52.35950089 | BI29: ='Compile Data'!D220 -> 49.16719055 | BJ29: ='Compile Data'!D221 -> 47.96805573 | BK29: ='Compile Data'!D222 -> 49.94896317 | BL29: ='Compile Data'!D223 -> 53.63677216 | BM29: ='Compile Data'!D224 -> 53.62640762 | BN29: ='Compile Data'!D225 -> 52.15928268 | BO29: ='Compile Data'!D226 -> 51.92323303 | BP29: ='Compile Data'!D227 -> 52.11857605 | BQ29: ='Compile Data'!D228 -> 52.85730743 | BS29: 51.85714213 | BT29: 51.5101757 | BU29: 51.72437127 | BW29: 51.61346436 | BX29: 49.83158239 | BY29: 52.34285641 | BZ29: 52.2645998 | CA29: 53.201238 | CC29: 1939 | CD29: ='Compile Data'!E217 -> 51.18959808 | CE29: ='Compile Data'!E218 -> 53.78070068 | CF29: ='Compile Data'!E219 -> 52.42919159 | CG29: ='Compile Data'!E220 -> 49.18452835 | CH29: ='Compile Data'!E221 -> 47.95617676 | CI29: ='Compile Data'!E222 -> 49.90082169 | CJ29: ='Compile Data'!E223 -> 53.67068863 | CK29: ='Compile Data'!E224 -> 53.49039459 | CL29: ='Compile Data'!E225 -> 52.03334427 | CM29: ='Compile Data'!E226 -> 51.89523315 | CN29: ='Compile Data'!E227 -> 52.13218307 | CO29: ='Compile Data'!E228 -> 52.92638779 | CQ29: 51.80503114 | CR29: 51.47535324 | CS29: 51.71577072 | CU29: 51.64600468 | CV29: 49.85663223 | CW29: 52.27381229 | CX29: 52.24678707 | CY29: 53.04417038 | DA29: 1939 | DB29: ='Compile Data'!#REF! ->  | DC29: ='Compile Data'!#REF! ->  | DD29: ='Compile Data'!#REF! ->  | DE29: ='Compile Data'!#REF! ->  | DF29: ='Compile Data'!#REF! ->  | DG29: ='Compile Data'!#REF! ->  | DH29: ='Compile Data'!#REF! ->  | DI29: ='Compile Data'!#REF! ->  | DJ29: ='Compile Data'!#REF! ->  | DK29: ='Compile Data'!#REF! ->  | DL29: ='Compile Data'!#REF! ->  | DM29: ='Compile Data'!#REF! ->  | DY29: 1939 | DZ29: ='Compile Data'!E217 -> 51.18959808 | EA29: ='Compile Data'!E218 -> 53.78070068 | EB29: ='Compile Data'!E219 -> 52.42919159 | EC29: ='Compile Data'!E220 -> 49.18452835 | ED29: ='Compile Data'!E221 -> 47.95617676 | EE29: ='Compile Data'!E222 -> 49.90082169 | EF29: ='Compile Data'!E223 -> 53.67068863 | EG29: ='Compile Data'!E224 -> 53.49039459 | EH29: ='Compile Data'!E225 -> 52.03334427 | EI29: ='Compile Data'!E226 -> 51.89523315 | EJ29: ='Compile Data'!E227 -> 52.13218307 | EK29: ='Compile Data'!E228 -> 52.92638779 | EM29: 51.80503114 | EN29: 51.47535324 | EO29: 51.71577072 | EQ29: 51.64600468 | ER29: 49.85663223 | ES29: 52.27381229 | ET29: 52.24678707 | EU29: 53.04417038
A30: 1923-03-31 | B30: =IF(INDIRECT(CONCATENATE("'",B$1,"'!",B$4,(YEAR($A30)-1921)*12+MONTH($A30)+3+IF(ISNUMBER(FIND("PRV",B$6)),1,0)))=-901,NA(),INDIRECT(CONCATENATE("'",B$1,"'!",B$4,(YEAR($A30)-1921)*12+MONTH($A30)+3+IF(ISNUMBER(FIND("PRV",B$6)),1,0)))*IF(AND(B$3>0,TRIM(B$9)="CFS"),Conv_Flags!$C30,1)) -> 50.95542908 | C30: =IF(INDIRECT(CONCATENATE("'",C$1,"'!",C$4,(YEAR($A30)-1921)*12+MONTH($A30)+3+IF(ISNUMBER(FIND("PRV",C$6)),1,0)))=-901,NA(),INDIRECT(CONCATENATE("'",C$1,"'!",C$4,(YEAR($A30)-1921)*12+MONTH($A30)+3+IF(ISNUMBER(FIND("PRV",C$6)),1,0)))*IF(AND(C$3>0,TRIM(C$9)="CFS"),Conv_Flags!$C30,1)) -> 50.94835281 | D30: =IF(INDIRECT(CONCATENATE("'",D$1,"'!",D$4,(YEAR($A30)-1921)*12+MONTH($A30)+3+IF(ISNUMBER(FIND("PRV",D$6)),1,0)))=-901,NA(),INDIRECT(CONCATENATE("'",D$1,"'!",D$4,(YEAR($A30)-1921)*12+MONTH($A30)+3+IF(ISNUMBER(FIND("PRV",D$6)),1,0)))*IF(AND(D$3>0,TRIM(D$9)="CFS"),Conv_Flags!$C30,1)) -> 50.94565201 | E30: =IF(INDIRECT(CONCATENATE("'",E$1,"'!",E$4,(YEAR($A30)-1921)*12+MONTH($A30)+3+IF(ISNUMBER(FIND("PRV",E$6)),1,0)))=-901,NA(),INDIRECT(CONCATENATE("'",E$1,"'!",E$4,(YEAR($A30)-1921)*12+MONTH($A30)+3+IF(ISNUMBER(FIND("PRV",E$6)),1,0)))*IF(AND(E$3>0,TRIM(E$9)="CFS"),Conv_Flags!$C30,1)) -> 50.94835281 | I30: 1940 | J30: =B229 -> 52.26704788 | K30: =B230 -> 54.07730484 | L30: =B231 -> 52.26517105 | M30: =B232 -> 47.74621582 | N30: =B233 -> 45.38180542 | O30: =B234 -> 46.29901886 | P30: =B235 -> 53.116436 | Q30: =B236 -> 54.31451416 | R30: =B237 -> 52.13272858 | S30: =B238 -> 50.62449265 | T30: =B239 -> 51.06420898 | U30: =B240 -> 50.3908577 | W30: 50.57657623 | X30: 50.42576885 | Y30: 50.80665016 | AA30: 51.5889349 | AB30: 48.46439743 | AC30: 51.4656744 | AD30: 51.05307198 | AE30: 52.0023791 | AG30: 1940 | AH30: ='Compile Data'!C229 -> 52.17301559 | AI30: ='Compile Data'!C230 -> 54.04285431 | AJ30: ='Compile Data'!C231 -> 52.27839661 | AK30: ='Compile Data'!C232 -> 47.76673508 | AL30: ='Compile Data'!C233 -> 45.40835953 | AM30: ='Compile Data'!C234 -> 46.31905746 | AN30: ='Compile Data'!C235 -> 53.13972092 | AO30: ='Compile Data'!C236 -> 54.57831192 | AP30: ='Compile Data'!C237 -> 51.87566757 | AQ30: ='Compile Data'!C238 -> 50.66106033 | AR30: ='Compile Data'!C239 -> 51.13298416 | AS30: ='Compile Data'!C240 -> 50.45665359 | AU30: 50.60032558 | AV30: 50.4423418 | AW30: 50.81940142 | AY30: 51.5652504 | AZ30: 48.48449707 | BA30: 51.47818947 | BB30: 51.03159142 | BC30: 52.01813126 | BE30: 1940 | BF30: ='Compile Data'!D229 -> 52.46682739 | BG30: ='Compile Data'!D230 -> 54.27957916 | BH30: ='Compile Data'!D231 -> 52.13351059 | BI30: ='Compile Data'!D232 -> 47.65854645 | BJ30: ='Compile Data'!D233 -> 45.31310272 | BK30: ='Compile Data'!D234 -> 46.26432037 | BL30: ='Compile Data'!D235 -> 53.10810089 | BM30: ='Compile Data'!D236 -> 54.54159164 | BN30: ='Compile Data'!D237 -> 52.42173004 | BO30: ='Compile Data'!D238 -> 50.61841965 | BP30: ='Compile Data'!D239 -> 51.10035324 | BQ30: ='Compile Data'!D240 -> 50.28324509 | BS30: 50.6058197 | BT30: 50.46008396 | BU30: 50.8491106 | BW30: 51.6346159 | BX30: 48.36838659 | BY30: 51.58393574 | BZ30: 51.105937 | CA30: 51.95456441 | CC30: 1940 | CD30: ='Compile Data'!E229 -> 52.1671257 | CE30: ='Compile Data'!E230 -> 54.03899765 | CF30: ='Compile Data'!E231 -> 52.26449203 | CG30: ='Compile Data'!E232 -> 47.76650238 | CH30: ='Compile Data'!E233 -> 45.41806793 | CI30: ='Compile Data'!E234 -> 46.32276917 | CJ30: ='Compile Data'!E235 -> 53.13955307 | CK30: ='Compile Data'!E236 -> 54.58182526 | CL30: ='Compile Data'!E237 -> 51.88050079 | CM30: ='Compile Data'!E238 -> 50.66162109 | CN30: ='Compile Data'!E239 -> 51.13694382 | CO30: ='Compile Data'!E240 -> 50.45769119 | CQ30: 50.60128371 | CR30: 50.44316387 | CS30: 50.81967417 | CU30: 51.55927944 | CV30: 48.48302078 | CW30: 51.48116207 | CX30: 51.03418922 | CY30: 52.01131566 | DA30: 1940 | DB30: ='Compile Data'!#REF! ->  | DC30: ='Compile Data'!#REF! ->  | DD30: ='Compile Data'!#REF! ->  | DE30: ='Compile Data'!#REF! ->  | DF30: ='Compile Data'!#REF! ->  | DG30: ='Compile Data'!#REF! ->  | DH30: ='Compile Data'!#REF! ->  | DI30: ='Compile Data'!#REF! ->  | DJ30: ='Compile Data'!#REF! ->  | DK30: ='Compile Data'!#REF! ->  | DL30: ='Compile Data'!#REF! ->  | DM30: ='Compile Data'!#REF! ->  | DY30: 1940 | DZ30: ='Compile Data'!E229 -> 52.1671257 | EA30: ='Compile Data'!E230 -> 54.03899765 | EB30: ='Compile Data'!E231 -> 52.26449203 | EC30: ='Compile Data'!E232 -> 47.76650238 | ED30: ='Compile Data'!E233 -> 45.41806793 | EE30: ='Compile Data'!E234 -> 46.32276917 | EF30: ='Compile Data'!E235 -> 53.13955307 | EG30: ='Compile Data'!E236 -> 54.58182526 | EH30: ='Compile Data'!E237 -> 51.88050079 | EI30: ='Compile Data'!E238 -> 50.66162109 | EJ30: ='Compile Data'!E239 -> 51.13694382 | EK30: ='Compile Data'!E240 -> 50.45769119 | EM30: 50.60128371 | EN30: 50.44316387 | EO30: 50.81967417 | EQ30: 51.55927944 | ER30: 48.48302078 | ES30: 51.48116207 | ET30: 51.03418922 | EU30: 52.01131566
A31: 1923-04-30 | B31: =IF(INDIRECT(CONCATENATE("'",B$1,"'!",B$4,(YEAR($A31)-1921)*12+MONTH($A31)+3+IF(ISNUMBER(FIND("PRV",B$6)),1,0)))=-901,NA(),INDIRECT(CONCATENATE("'",B$1,"'!",B$4,(YEAR($A31)-1921)*12+MONTH($A31)+3+IF(ISNUMBER(FIND("PRV",B$6)),1,0)))*IF(AND(B$3>0,TRIM(B$9)="CFS"),Conv_Flags!$C31,1)) -> 53.18655396 | C31: =IF(INDIRECT(CONCATENATE("'",C$1,"'!",C$4,(YEAR($A31)-1921)*12+MONTH($A31)+3+IF(ISNUMBER(FIND("PRV",C$6)),1,0)))=-901,NA(),INDIRECT(CONCATENATE("'",C$1,"'!",C$4,(YEAR($A31)-1921)*12+MONTH($A31)+3+IF(ISNUMBER(FIND("PRV",C$6)),1,0)))*IF(AND(C$3>0,TRIM(C$9)="CFS"),Conv_Flags!$C31,1)) -> 53.13541412 | D31: =IF(INDIRECT(CONCATENATE("'",D$1,"'!",D$4,(YEAR($A31)-1921)*12+MONTH($A31)+3+IF(ISNUMBER(FIND("PRV",D$6)),1,0)))=-901,NA(),INDIRECT(CONCATENATE("'",D$1,"'!",D$4,(YEAR($A31)-1921)*12+MONTH($A31)+3+IF(ISNUMBER(FIND("PRV",D$6)),1,0)))*IF(AND(D$3>0,TRIM(D$9)="CFS"),Conv_Flags!$C31,1)) -> 53.12083435 | E31: =IF(INDIRECT(CONCATENATE("'",E$1,"'!",E$4,(YEAR($A31)-1921)*12+MONTH($A31)+3+IF(ISNUMBER(FIND("PRV",E$6)),1,0)))=-901,NA(),INDIRECT(CONCATENATE("'",E$1,"'!",E$4,(YEAR($A31)-1921)*12+MONTH($A31)+3+IF(ISNUMBER(FIND("PRV",E$6)),1,0)))*IF(AND(E$3>0,TRIM(E$9)="CFS"),Conv_Flags!$C31,1)) -> 53.13541412 | I31: 1941 | J31: =B241 -> 51.9119072 | K31: =B242 -> 53.70437241 | L31: =B243 -> 50.23235703 | M31: =B244 -> 46.50419998 | N31: =B245 -> 44.81413269 | O31: =B246 -> 46.83950043 | P31: =B247 -> 49.70158005 | Q31: =B248 -> 50.15313721 | R31: =B249 -> 51.78616714 | S31: =B250 -> 51.18654633 | T31: =B251 -> 50.96180725 | U31: =B252 -> 50.09543991 | W31: 49.84980361 | X31: 49.85292085 | Y31: 49.8242623 | AA31: 50.58820915 | AB31: 47.18356323 | AC31: 49.62009621 | AD31: 51.00749016 | AE31: 51.76282628 | AG31: 1941 | AH31: ='Compile Data'!C241 -> 51.91225433 | AI31: ='Compile Data'!C242 -> 53.68548584 | AJ31: ='Compile Data'!C243 -> 50.26761627 | AK31: ='Compile Data'!C244 -> 46.47657776 | AL31: ='Compile Data'!C245 -> 44.80271149 | AM31: ='Compile Data'!C246 -> 46.83586121 | AN31: ='Compile Data'!C247 -> 49.69565201 | AO31: ='Compile Data'!C248 -> 50.14832306 | AP31: ='Compile Data'!C249 -> 51.79739761 | AQ31: ='Compile Data'!C250 -> 51.19037247 | AR31: ='Compile Data'!C251 -> 50.96432495 | AS31: ='Compile Data'!C252 -> 50.08179474 | AU31: 49.84671434 | AV31: 49.85340722 | AW31: 49.82153098 | AY31: 50.58548355 | AZ31: 47.18230184 | BA31: 49.61930847 | BB31: 51.00847244 | BC31: 51.76443481 | BE31: 1941 | BF31: ='Compile Data'!D241 -> 51.88050842 | BG31: ='Compile Data'!D242 -> 53.69993973 | BH31: ='Compile Data'!D243 -> 50.37997818 | BI31: ='Compile Data'!D244 -> 46.43954468 | BJ31: ='Compile Data'!D245 -> 44.7832756 | BK31: ='Compile Data'!D246 -> 46.81965637 | BL31: ='Compile Data'!D247 -> 49.7022171 | BM31: ='Compile Data'!D248 -> 50.15923309 | BN31: ='Compile Data'!D249 -> 51.79957581 | BO31: ='Compile Data'!D250 -> 51.18735504 | BP31: ='Compile Data'!D251 -> 50.96360397 | BQ31: ='Compile Data'!D252 -> 50.07869339 | BS31: 49.84163348 | BT31: 49.85190582 | BU31: 49.82446512 | BW31: 50.59999275 | BX31: 47.20093282 | BY31: 49.62017059 | BZ31: 51.00730705 | CA31: 51.76456579 | CC31: 1941 | CD31: ='Compile Data'!E241 -> 51.87950897 | CE31: ='Compile Data'!E242 -> 53.69674683 | CF31: ='Compile Data'!E243 -> 50.27367401 | CG31: ='Compile Data'!E244 -> 46.48227692 | CH31: ='Compile Data'!E245 -> 44.80485535 | CI31: ='Compile Data'!E246 -> 46.8368988 | CJ31: ='Compile Data'!E247 -> 49.69768906 | CK31: ='Compile Data'!E248 -> 50.15887833 | CL31: ='Compile Data'!E249 -> 51.79307938 | CM31: ='Compile Data'!E250 -> 51.19107056 | CN31: ='Compile Data'!E251 -> 50.95428085 | CO31: ='Compile Data'!E252 -> 50.08972931 | CQ31: 49.84818109 | CR31: 49.85376453 | CS31: 49.82155736 | CU31: 50.58305168 | CV31: 47.18693542 | CW31: 49.62163639 | CX31: 51.00704002 | CY31: 51.76660411 | DA31: 1941 | DB31: ='Compile Data'!#REF! ->  | DC31: ='Compile Data'!#REF! ->  | DD31: ='Compile Data'!#REF! ->  | DE31: ='Compile Data'!#REF! ->  | DF31: ='Compile Data'!#REF! ->  | DG31: ='Compile Data'!#REF! ->  | DH31: ='Compile Data'!#REF! ->  | DI31: ='Compile Data'!#REF! ->  | DJ31: ='Compile Data'!#REF! ->  | DK31: ='Compile Data'!#REF! ->  | DL31: ='Compile Data'!#REF! ->  | DM31: ='Compile Data'!#REF! ->  | DY31: 1941 | DZ31: ='Compile Data'!E241 -> 51.87950897 | EA31: ='Compile Data'!E242 -> 53.69674683 | EB31: ='Compile Data'!E243 -> 50.27367401 | EC31: ='Compile Data'!E244 -> 46.48227692 | ED31: ='Compile Data'!E245 -> 44.80485535 | EE31: ='Compile Data'!E246 -> 46.8368988 | EF31: ='Compile Data'!E247 -> 49.69768906 | EG31: ='Compile Data'!E248 -> 50.15887833 | EH31: ='Compile Data'!E249 -> 51.79307938 | EI31: ='Compile Data'!E250 -> 51.19107056 | EJ31: ='Compile Data'!E251 -> 50.95428085 | EK31: ='Compile Data'!E252 -> 50.08972931 | EM31: 49.84818109 | EN31: 49.85376453 | EO31: 49.82155736 | EQ31: 50.58305168 | ER31: 47.18693542 | ES31: 49.62163639 | ET31: 51.00704002 | EU31: 51.76660411
A32: 1923-05-31 | B32: =IF(INDIRECT(CONCATENATE("'",B$1,"'!",B$4,(YEAR($A32)-1921)*12+MONTH($A32)+3+IF(ISNUMBER(FIND("PRV",B$6)),1,0)))=-901,NA(),INDIRECT(CONCATENATE("'",B$1,"'!",B$4,(YEAR($A32)-1921)*12+MONTH($A32)+3+IF(ISNUMBER(FIND("PRV",B$6)),1,0)))*IF(AND(B$3>0,TRIM(B$9)="CFS"),Conv_Flags!$C32,1)) -> 51.91106415 | C32: =IF(INDIRECT(CONCATENATE("'",C$1,"'!",C$4,(YEAR($A32)-1921)*12+MONTH($A32)+3+IF(ISNUMBER(FIND("PRV",C$6)),1,0)))=-901,NA(),INDIRECT(CONCATENATE("'",C$1,"'!",C$4,(YEAR($A32)-1921)*12+MONTH($A32)+3+IF(ISNUMBER(FIND("PRV",C$6)),1,0)))*IF(AND(C$3>0,TRIM(C$9)="CFS"),Conv_Flags!$C32,1)) -> 51.99878693 | D32: =IF(INDIRECT(CONCATENATE("'",D$1,"'!",D$4,(YEAR($A32)-1921)*12+MONTH($A32)+3+IF(ISNUMBER(FIND("PRV",D$6)),1,0)))=-901,NA(),INDIRECT(CONCATENATE("'",D$1,"'!",D$4,(YEAR($A32)-1921)*12+MONTH($A32)+3+IF(ISNUMBER(FIND("PRV",D$6)),1,0)))*IF(AND(D$3>0,TRIM(D$9)="CFS"),Conv_Flags!$C32,1)) -> 52.00242996 | E32: =IF(INDIRECT(CONCATENATE("'",E$1,"'!",E$4,(YEAR($A32)-1921)*12+MONTH($A32)+3+IF(ISNUMBER(FIND("PRV",E$6)),1,0)))=-901,NA(),INDIRECT(CONCATENATE("'",E$1,"'!",E$4,(YEAR($A32)-1921)*12+MONTH($A32)+3+IF(ISNUMBER(FIND("PRV",E$6)),1,0)))*IF(AND(E$3>0,TRIM(E$9)="CFS"),Conv_Flags!$C32,1)) -> 51.99878693 | I32: 1942 | J32: =B253 -> 51.38028717 | K32: =B254 -> 53.81275177 | L32: =B255 -> 50.96209335 | M32: =B256 -> 46.55143738 | N32: =B257 -> 44.80430222 | O32: =B258 -> 47.7543602 | P32: =B259 -> 51.6022377 | Q32: =B260 -> 50.05508041 | R32: =B261 -> 51.95667267 | S32: =B262 -> 51.67213058 | T32: =B263 -> 51.38826752 | U32: =B264 -> 49.79504013 | W32: 50.12019507 | X32: 50.30850633 | Y32: 50.14455509 | AA32: 50.67664242 | AB32: 47.43927765 | AC32: 50.34208775 | AD32: 51.20302773 | AE32: 51.57131068 | AG32: 1942 | AH32: ='Compile Data'!C253 -> 51.38720322 | AI32: ='Compile Data'!C254 -> 53.82430649 | AJ32: ='Compile Data'!C255 -> 50.95604706 | AK32: ='Compile Data'!C256 -> 46.55566788 | AL32: ='Compile Data'!C257 -> 44.803936 | AM32: ='Compile Data'!C258 -> 47.75475693 | AN32: ='Compile Data'!C259 -> 51.64207077 | AO32: ='Compile Data'!C260 -> 50.04632187 | AP32: ='Compile Data'!C261 -> 51.95571136 | AQ32: ='Compile Data'!C262 -> 51.67453003 | AR32: ='Compile Data'!C263 -> 51.3996048 | AS32: ='Compile Data'!C264 -> 49.78988266 | AU32: 50.12362448 | AV32: 50.31146749 | AW32: 50.14916992 | AY32: 50.68080616 | AZ32: 47.43855031 | BA32: 50.34971523 | BB32: 51.20493221 | BC32: 51.569767 | BE32: 1942 | BF32: ='Compile Data'!D253 -> 51.39148331 | BG32: ='Compile Data'!D254 -> 53.82352066 | BH32: ='Compile Data'!D255 -> 50.95144272 | BI32: ='Compile Data'!D256 -> 46.54683685 | BJ32: ='Compile Data'!D257 -> 44.79925156 | BK32: ='Compile Data'!D258 -> 47.75106049 | BL32: ='Compile Data'!D259 -> 51.63951111 | BM32: ='Compile Data'!D260 -> 50.04452515 | BN32: ='Compile Data'!D261 -> 51.95457458 | BO32: ='Compile Data'!D262 -> 51.67238998 | BP32: ='Compile Data'!D263 -> 51.39929962 | BQ32: ='Compile Data'!D264 -> 49.79063797 | BS32: 50.1213452 | BT32: 50.30986468 | BU32: 50.1470445 | BW32: 50.67832088 | BX32: 47.43251038 | BY32: 50.34741783 | BZ32: 51.20422554 | CA32: 51.56941859 | CC32: 1942 | CD32: ='Compile Data'!E253 -> 51.38621521 | CE32: ='Compile Data'!E254 -> 53.8238678 | CF32: ='Compile Data'!E255 -> 50.95933151 | CG32: ='Compile Data'!E256 -> 46.55226517 | CH32: ='Compile Data'!E257 -> 44.80186844 | CI32: ='Compile Data'!E258 -> 47.75359344 | CJ32: ='Compile Data'!E259 -> 51.64054871 | CK32: ='Compile Data'!E260 -> 50.0449028 | CL32: ='Compile Data'!E261 -> 51.95649719 | CM32: ='Compile Data'!E262 -> 51.671772 | CN32: ='Compile Data'!E263 -> 51.38997269 | CO32: ='Compile Data'!E264 -> 49.79574966 | CQ32: 50.11933581 | CR32: 50.30755202 | CS32: 50.14804872 | CU32: 50.68041992 | CV32: 47.43782171 | CW32: 50.34888554 | CX32: 51.20349789 | CY32: 51.55788549 | DA32: 1942 | DB32: ='Compile Data'!#REF! ->  | DC32: ='Compile Data'!#REF! ->  | DD32: ='Compile Data'!#REF! ->  | DE32: ='Compile Data'!#REF! ->  | DF32: ='Compile Data'!#REF! ->  | DG32: ='Compile Data'!#REF! ->  | DH32: ='Compile Data'!#REF! ->  | DI32: ='Compile Data'!#REF! ->  | DJ32: ='Compile Data'!#REF! ->  | DK32: ='Compile Data'!#REF! ->  | DL32: ='Compile Data'!#REF! ->  | DM32: ='Compile Data'!#REF! ->  | DY32: 1942 | DZ32: ='Compile Data'!E253 -> 51.38621521 | EA32: ='Compile Data'!E254 -> 53.8238678 | EB32: ='Compile Data'!E255 -> 50.95933151 | EC32: ='Compile Data'!E256 -> 46.55226517 | ED32: ='Compile Data'!E257 -> 44.80186844 | EE32: ='Compile Data'!E258 -> 47.75359344 | EF32: ='Compile Data'!E259 -> 51.64054871 | EG32: ='Compile Data'!E260 -> 50.0449028 | EH32: ='Compile Data'!E261 -> 51.95649719 | EI32: ='Compile Data'!E262 -> 51.671772 | EJ32: ='Compile Data'!E263 -> 51.38997269 | EK32: ='Compile Data'!E264 -> 49.79574966 | EM32: 50.11933581 | EN32: 50.30755202 | EO32: 50.14804872 | EQ32: 50.68041992 | ER32: 47.43782171 | ES32: 50.34888554 | ET32: 51.20349789 | EU32: 51.55788549
A33: 1923-06-30 | B33: =IF(INDIRECT(CONCATENATE("'",B$1,"'!",B$4,(YEAR($A33)-1921)*12+MONTH($A33)+3+IF(ISNUMBER(FIND("PRV",B$6)),1,0)))=-901,NA(),INDIRECT(CONCATENATE("'",B$1,"'!",B$4,(YEAR($A33)-1921)*12+MONTH($A33)+3+IF(ISNUMBER(FIND("PRV",B$6)),1,0)))*IF(AND(B$3>0,TRIM(B$9)="CFS"),Conv_Flags!$C33,1)) -> 51.35770798 | C33: =IF(INDIRECT(CONCATENATE("'",C$1,"'!",C$4,(YEAR($A33)-1921)*12+MONTH($A33)+3+IF(ISNUMBER(FIND("PRV",C$6)),1,0)))=-901,NA(),INDIRECT(CONCATENATE("'",C$1,"'!",C$4,(YEAR($A33)-1921)*12+MONTH($A33)+3+IF(ISNUMBER(FIND("PRV",C$6)),1,0)))*IF(AND(C$3>0,TRIM(C$9)="CFS"),Conv_Flags!$C33,1)) -> 51.41131592 | D33: =IF(INDIRECT(CONCATENATE("'",D$1,"'!",D$4,(YEAR($A33)-1921)*12+MONTH($A33)+3+IF(ISNUMBER(FIND("PRV",D$6)),1,0)))=-901,NA(),INDIRECT(CONCATENATE("'",D$1,"'!",D$4,(YEAR($A33)-1921)*12+MONTH($A33)+3+IF(ISNUMBER(FIND("PRV",D$6)),1,0)))*IF(AND(D$3>0,TRIM(D$9)="CFS"),Conv_Flags!$C33,1)) -> 51.4013176 | E33: =IF(INDIRECT(CONCATENATE("'",E$1,"'!",E$4,(YEAR($A33)-1921)*12+MONTH($A33)+3+IF(ISNUMBER(FIND("PRV",E$6)),1,0)))=-901,NA(),INDIRECT(CONCATENATE("'",E$1,"'!",E$4,(YEAR($A33)-1921)*12+MONTH($A33)+3+IF(ISNUMBER(FIND("PRV",E$6)),1,0)))*IF(AND(E$3>0,TRIM(E$9)="CFS"),Conv_Flags!$C33,1)) -> 51.41131592 | I33: 1943 | J33: =B265 -> 51.53977203 | K33: =B266 -> 53.37911987 | L33: =B267 -> 50.94392014 | M33: =B268 -> 47.51040268 | N33: =B269 -> 46.10507202 | O33: =B270 -> 47.170784 | P33: =B271 -> 51.30353546 | Q33: =B272 -> 51.70872116 | R33: =B273 -> 51.73434067 | S33: =B274 -> 50.55505371 | T33: =B275 -> 51.3705101 | U33: =B276 -> 50.34731674 | W33: 50.47276624 | X33: 50.67359352 | Y33: 50.30571238 | AA33: 50.84330368 | AB33: 48.18646495 | AC33: 50.47934532 | AD33: 51.00180531 | AE33: 52.11130651 | AG33: 1943 | AH33: ='Compile Data'!C265 -> 51.54605103 | AI33: ='Compile Data'!C266 -> 53.37336731 | AJ33: ='Compile Data'!C267 -> 50.94159317 | AK33: ='Compile Data'!C268 -> 47.50947952 | AL33: ='Compile Data'!C269 -> 46.10424042 | AM33: ='Compile Data'!C270 -> 47.17079926 | AN33: ='Compile Data'!C271 -> 51.30356598 | AO33: ='Compile Data'!C272 -> 51.70969772 | AP33: ='Compile Data'!C273 -> 51.83246231 | AQ33: ='Compile Data'!C274 -> 50.5647316 | AR33: ='Compile Data'!C275 -> 51.37018967 | AS33: ='Compile Data'!C276 -> 50.35761261 | AU33: 50.48107592 | AV33: 50.67996597 | AW33: 50.31531588 | AY33: 50.84262276 | AZ33: 48.18510437 | BA33: 50.50413132 | BB33: 51.03124905 | BC33: 52.11527761 | BE33: 1943 | BF33: ='Compile Data'!D265 -> 51.54486847 | BG33: ='Compile Data'!D266 -> 53.37274933 | BH33: ='Compile Data'!D267 -> 50.94043732 | BI33: ='Compile Data'!D268 -> 47.50727463 | BJ33: ='Compile Data'!D269 -> 46.10104752 | BK33: ='Compile Data'!D270 -> 47.170784 | BL33: ='Compile Data'!D271 -> 51.30355835 | BM33: ='Compile Data'!D272 -> 51.70898056 | BN33: ='Compile Data'!D273 -> 51.83110809 | BO33: ='Compile Data'!D274 -> 50.56306076 | BP33: ='Compile Data'!D275 -> 51.36896515 | BQ33: ='Compile Data'!D276 -> 50.35641098 | BS33: 50.47498417 | BT33: 50.67538834 | BU33: 50.31410376 | BW33: 50.84133244 | BX33: 48.18291982 | BY33: 50.50360775 | BZ33: 51.02988625 | CA33: 52.09816996 | CC33: 1943 | CD33: ='Compile Data'!E265 -> 51.52234268 | CE33: ='Compile Data'!E266 -> 53.35556412 | CF33: ='Compile Data'!E267 -> 50.94695282 | CG33: ='Compile Data'!E268 -> 47.51330185 | CH33: ='Compile Data'!E269 -> 46.09942627 | CI33: ='Compile Data'!E270 -> 47.17276764 | CJ33: ='Compile Data'!E271 -> 51.30364609 | CK33: ='Compile Data'!E272 -> 51.71081543 | CL33: ='Compile Data'!E273 -> 51.83556747 | CM33: ='Compile Data'!E274 -> 50.56174469 | CN33: ='Compile Data'!E275 -> 51.36896133 | CO33: ='Compile Data'!E276 -> 50.36538696 | CQ33: 50.48277346 | CR33: 50.68193817 | CS33: 50.31303978 | CU33: 50.83454037 | CV33: 48.18656031 | CW33: 50.50569916 | CX33: 51.03291512 | CY33: 52.12101618 | DA33: 1943 | DB33: ='Compile Data'!#REF! ->  | DC33: ='Compile Data'!#REF! ->  | DD33: ='Compile Data'!#REF! ->  | DE33: ='Compile Data'!#REF! ->  | DF33: ='Compile Data'!#REF! ->  | DG33: ='Compile Data'!#REF! ->  | DH33: ='Compile Data'!#REF! ->  | DI33: ='Compile Data'!#REF! ->  | DJ33: ='Compile Data'!#REF! ->  | DK33: ='Compile Data'!#REF! ->  | DL33: ='Compile Data'!#REF! ->  | DM33: ='Compile Data'!#REF! ->  | DY33: 1943 | DZ33: ='Compile Data'!E265 -> 51.52234268 | EA33: ='Compile Data'!E266 -> 53.35556412 | EB33: ='Compile Data'!E267 -> 50.94695282 | EC33: ='Compile Data'!E268 -> 47.51330185 | ED33: ='Compile Data'!E269 -> 46.09942627 | EE33: ='Compile Data'!E270 -> 47.17276764 | EF33: ='Compile Data'!E271 -> 51.30364609 | EG33: ='Compile Data'!E272 -> 51.71081543 | EH33: ='Compile Data'!E273 -> 51.83556747 | EI33: ='Compile Data'!E274 -> 50.56174469 | EJ33: ='Compile Data'!E275 -> 51.36896133 | EK33: ='Compile Data'!E276 -> 50.36538696 | EM33: 50.48277346 | EN33: 50.68193817 | EO33: 50.31303978 | EQ33: 50.83454037 | ER33: 48.18656031 | ES33: 50.50569916 | ET33: 51.03291512 | EU33: 52.12101618
A34: 1923-07-31 | B34: =IF(INDIRECT(CONCATENATE("'",B$1,"'!",B$4,(YEAR($A34)-1921)*12+MONTH($A34)+3+IF(ISNUMBER(FIND("PRV",B$6)),1,0)))=-901,NA(),INDIRECT(CONCATENATE("'",B$1,"'!",B$4,(YEAR($A34)-1921)*12+MONTH($A34)+3+IF(ISNUMBER(FIND("PRV",B$6)),1,0)))*IF(AND(B$3>0,TRIM(B$9)="CFS"),Conv_Flags!$C34,1)) -> 51.78261185 | C34: =IF(INDIRECT(CONCATENATE("'",C$1,"'!",C$4,(YEAR($A34)-1921)*12+MONTH($A34)+3+IF(ISNUMBER(FIND("PRV",C$6)),1,0)))=-901,NA(),INDIRECT(CONCATENATE("'",C$1,"'!",C$4,(YEAR($A34)-1921)*12+MONTH($A34)+3+IF(ISNUMBER(FIND("PRV",C$6)),1,0)))*IF(AND(C$3>0,TRIM(C$9)="CFS"),Conv_Flags!$C34,1)) -> 51.80760193 | D34: =IF(INDIRECT(CONCATENATE("'",D$1,"'!",D$4,(YEAR($A34)-1921)*12+MONTH($A34)+3+IF(ISNUMBER(FIND("PRV",D$6)),1,0)))=-901,NA(),INDIRECT(CONCATENATE("'",D$1,"'!",D$4,(YEAR($A34)-1921)*12+MONTH($A34)+3+IF(ISNUMBER(FIND("PRV",D$6)),1,0)))*IF(AND(D$3>0,TRIM(D$9)="CFS"),Conv_Flags!$C34,1)) -> 51.80054092 | E34: =IF(INDIRECT(CONCATENATE("'",E$1,"'!",E$4,(YEAR($A34)-1921)*12+MONTH($A34)+3+IF(ISNUMBER(FIND("PRV",E$6)),1,0)))=-901,NA(),INDIRECT(CONCATENATE("'",E$1,"'!",E$4,(YEAR($A34)-1921)*12+MONTH($A34)+3+IF(ISNUMBER(FIND("PRV",E$6)),1,0)))*IF(AND(E$3>0,TRIM(E$9)="CFS"),Conv_Flags!$C34,1)) -> 51.80760193 | I34: 1944 | J34: =B277 -> 51.91664124 | K34: =B278 -> 54.06996155 | L34: =B279 -> 51.88085556 | M34: =B280 -> 48.73064804 | N34: =B281 -> 47.29475403 | O34: =B282 -> 49.00270462 | P34: =B283 -> 52.4175148 | Q34: =B284 -> 54.26779938 | R34: =B285 -> 51.84736633 | S34: =B286 -> 51.50880432 | T34: =B287 -> 52.10624313 | U34: =B288 -> 52.74274445 | W34: 51.33767955 | X34: 51.21732299 | Y34: 51.48216979 | AA34: 51.6495266 | AB34: 49.30208588 | AC34: 51.88384628 | AD34: 52.05128956 | AE34: 52.83399455 | AG34: 1944 | AH34: ='Compile Data'!C277 -> 51.92140579 | AI34: ='Compile Data'!C278 -> 54.06681442 | AJ34: ='Compile Data'!C279 -> 51.86191177 | AK34: ='Compile Data'!C280 -> 48.71281815 | AL34: ='Compile Data'!C281 -> 47.2875824 | AM34: ='Compile Data'!C282 -> 48.99980927 | AN34: ='Compile Data'!C283 -> 52.61226273 | AO34: ='Compile Data'!C284 -> 54.23001862 | AP34: ='Compile Data'!C285 -> 51.853508 | AQ34: ='Compile Data'!C286 -> 51.49760437 | AR34: ='Compile Data'!C287 -> 52.10797119 | AS34: ='Compile Data'!C288 -> 52.79111481 | AU34: 51.35384496 | AV34: 51.23335711 | AW34: 51.49523513 | AY34: 51.64073753 | AZ34: 49.28743744 | BA34: 51.92389965 | BB34: 52.06254959 | BC34: 52.85839208 | BE34: 1944 | BF34: ='Compile Data'!D277 -> 51.92137527 | BG34: ='Compile Data'!D278 -> 54.01672363 | BH34: ='Compile Data'!D279 -> 51.85052109 | BI34: ='Compile Data'!D280 -> 48.71537018 | BJ34: ='Compile Data'!D281 -> 47.29780197 | BK34: ='Compile Data'!D282 -> 49.00828934 | BL34: ='Compile Data'!D283 -> 52.96438599 | BM34: ='Compile Data'!D284 -> 54.60519028 | BN34: ='Compile Data'!D285 -> 52.05825424 | BO34: ='Compile Data'!D286 -> 51.47969818 | BP34: ='Compile Data'!D287 -> 52.12253189 | BQ34: ='Compile Data'!D288 -> 52.72269058 | BS34: 51.41216469 | BT34: 51.28577995 | BU34: 51.56356939 | BW34: 51.62599754 | BX34: 49.28789775 | BY34: 52.15902996 | BZ34: 52.09579372 | CA34: 52.81195831 | CC34: 1944 | CD34: ='Compile Data'!E277 -> 51.92663193 | CE34: ='Compile Data'!E278 -> 54.07102966 | CF34: ='Compile Data'!E279 -> 51.86400223 | CG34: ='Compile Data'!E280 -> 48.71418762 | CH34: ='Compile Data'!E281 -> 47.288517 | CI34: ='Compile Data'!E282 -> 49.00178146 | CJ34: ='Compile Data'!E283 -> 52.63059235 | CK34: ='Compile Data'!E284 -> 54.23884201 | CL34: ='Compile Data'!E285 -> 51.83917236 | CM34: ='Compile Data'!E286 -> 51.49410629 | CN34: ='Compile Data'!E287 -> 52.11043549 | CO34: ='Compile Data'!E288 -> 52.7935791 | CQ34: 51.35727819 | CR34: 51.23803457 | CS34: 51.49773979 | CU34: 51.64396286 | CV34: 49.28890228 | CW34: 51.92759705 | CX34: 52.05932331 | CY34: 52.86638387 | DA34: 1944 | DB34: ='Compile Data'!#REF! ->  | DC34: ='Compile Data'!#REF! ->  | DD34: ='Compile Data'!#REF! ->  | DE34: ='Compile Data'!#REF! ->  | DF34: ='Compile Data'!#REF! ->  | DG34: ='Compile Data'!#REF! ->  | DH34: ='Compile Data'!#REF! ->  | DI34: ='Compile Data'!#REF! ->  | DJ34: ='Compile Data'!#REF! ->  | DK34: ='Compile Data'!#REF! ->  | DL34: ='Compile Data'!#REF! ->  | DM34: ='Compile Data'!#REF! ->  | DY34: 1944 | DZ34: ='Compile Data'!E277 -> 51.92663193 | EA34: ='Compile Data'!E278 -> 54.07102966 | EB34: ='Compile Data'!E279 -> 51.86400223 | EC34: ='Compile Data'!E280 -> 48.71418762 | ED34: ='Compile Data'!E281 -> 47.288517 | EE34: ='Compile Data'!E282 -> 49.00178146 | EF34: ='Compile Data'!E283 -> 52.63059235 | EG34: ='Compile Data'!E284 -> 54.23884201 | EH34: ='Compile Data'!E285 -> 51.83917236 | EI34: ='Compile Data'!E286 -> 51.49410629 | EJ34: ='Compile Data'!E287 -> 52.11043549 | EK34: ='Compile Data'!E288 -> 52.7935791 | EM34: 51.35727819 | EN34: 51.23803457 | EO34: 51.49773979 | EQ34: 51.64396286 | ER34: 49.28890228 | ES34: 51.92759705 | ET34: 52.05932331 | EU34: 52.86638387
A35: 1923-08-31 | B35: =IF(INDIRECT(CONCATENATE("'",B$1,"'!",B$4,(YEAR($A35)-1921)*12+MONTH($A35)+3+IF(ISNUMBER(FIND("PRV",B$6)),1,0)))=-901,NA(),INDIRECT(CONCATENATE("'",B$1,"'!",B$4,(YEAR($A35)-1921)*12+MONTH($A35)+3+IF(ISNUMBER(FIND("PRV",B$6)),1,0)))*IF(AND(B$3>0,TRIM(B$9)="CFS"),Conv_Flags!$C35,1)) -> 51.64431763 | C35: =IF(INDIRECT(CONCATENATE("'",C$1,"'!",C$4,(YEAR($A35)-1921)*12+MONTH($A35)+3+IF(ISNUMBER(FIND("PRV",C$6)),1,0)))=-901,NA(),INDIRECT(CONCATENATE("'",C$1,"'!",C$4,(YEAR($A35)-1921)*12+MONTH($A35)+3+IF(ISNUMBER(FIND("PRV",C$6)),1,0)))*IF(AND(C$3>0,TRIM(C$9)="CFS"),Conv_Flags!$C35,1)) -> 51.78165054 | D35: =IF(INDIRECT(CONCATENATE("'",D$1,"'!",D$4,(YEAR($A35)-1921)*12+MONTH($A35)+3+IF(ISNUMBER(FIND("PRV",D$6)),1,0)))=-901,NA(),INDIRECT(CONCATENATE("'",D$1,"'!",D$4,(YEAR($A35)-1921)*12+MONTH($A35)+3+IF(ISNUMBER(FIND("PRV",D$6)),1,0)))*IF(AND(D$3>0,TRIM(D$9)="CFS"),Conv_Flags!$C35,1)) -> 51.76874924 | E35: =IF(INDIRECT(CONCATENATE("'",E$1,"'!",E$4,(YEAR($A35)-1921)*12+MONTH($A35)+3+IF(ISNUMBER(FIND("PRV",E$6)),1,0)))=-901,NA(),INDIRECT(CONCATENATE("'",E$1,"'!",E$4,(YEAR($A35)-1921)*12+MONTH($A35)+3+IF(ISNUMBER(FIND("PRV",E$6)),1,0)))*IF(AND(E$3>0,TRIM(E$9)="CFS"),Conv_Flags!$C35,1)) -> 51.78165054 | I35: 1945 | J35: =B289 -> 52.57577133 | K35: =B290 -> 53.18346786 | L35: =B291 -> 50.37433624 | M35: =B292 -> 47.6603775 | N35: =B293 -> 46.92074585 | O35: =B294 -> 48.12593079 | P35: =B295 -> 51.86552429 | Q35: =B296 -> 51.45039749 | R35: =B297 -> 51.8312149 | S35: =B298 -> 51.20487213 | T35: =B299 -> 51.74822235 | U35: =B300 -> 51.83347321 | W35: 50.50138092 | X35: 50.08882236 | Y35: 50.7311945 | AA35: 50.94848824 | AB35: 48.31848653 | AC35: 50.81826687 | AD35: 51.65444565 | AE35: 52.28099823 | AG35: 1945 | AH35: ='Compile Data'!C289 -> 52.59604645 | AI35: ='Compile Data'!C290 -> 53.18801498 | AJ35: ='Compile Data'!C291 -> 50.36938858 | AK35: ='Compile Data'!C292 -> 47.66025543 | AL35: ='Compile Data'!C293 -> 46.89429092 | AM35: ='Compile Data'!C294 -> 48.14796448 | AN35: ='Compile Data'!C295 -> 51.87268829 | AO35: ='Compile Data'!C296 -> 51.45576477 | AP35: ='Compile Data'!C297 -> 51.91157913 | AQ35: ='Compile Data'!C298 -> 51.17044449 | AR35: ='Compile Data'!C299 -> 51.75479126 | AS35: ='Compile Data'!C300 -> 51.84158325 | AU35: 50.50241597 | AV35: 50.09303602 | AW35: 50.73856767 | AY35: 50.95342636 | AZ35: 48.30797831 | BA35: 50.84699917 | BB35: 51.66959953 | BC35: 52.26031494 | BE35: 1945 | BF35: ='Compile Data'!D289 -> 52.55222321 | BG35: ='Compile Data'!D290 -> 53.16096115 | BH35: ='Compile Data'!D291 -> 50.25857925 | BI35: ='Compile Data'!D292 -> 47.62852478 | BJ35: ='Compile Data'!D293 -> 46.86803055 | BK35: ='Compile Data'!D294 -> 48.14307022 | BL35: ='Compile Data'!D295 -> 51.87763977 | BM35: ='Compile Data'!D296 -> 51.45604324 | BN35: ='Compile Data'!D297 -> 52.06805801 | BO35: ='Compile Data'!D298 -> 51.14234924 | BP35: ='Compile Data'!D299 -> 51.75722885 | BQ35: ='Compile Data'!D300 -> 51.83765793 | BS35: 50.5073452 | BT35: 50.10066636 | BU35: 50.72919718 | BW35: 50.9000721 | BX35: 48.25171153 | BY35: 50.88620281 | BZ35: 51.70132351 | CA35: 52.26258469 | CC35: 1945 | CD35: ='Compile Data'!E289 -> 52.60534286 | CE35: ='Compile Data'!E290 -> 53.20022964 | CF35: ='Compile Data'!E291 -> 50.37055206 | CG35: ='Compile Data'!E292 -> 47.66599274 | CH35: ='Compile Data'!E293 -> 46.90578842 | CI35: ='Compile Data'!E294 -> 48.1518898 | CJ35: ='Compile Data'!E295 -> 51.87867355 | CK35: ='Compile Data'!E296 -> 51.4636116 | CL35: ='Compile Data'!E297 -> 51.90761185 | CM35: ='Compile Data'!E298 -> 51.17473602 | CN35: ='Compile Data'!E299 -> 51.75716019 | CO35: ='Compile Data'!E300 -> 51.83901978 | CQ35: 50.50622749 | CR35: 50.09456062 | CS35: 50.74338404 | CU35: 50.96052933 | CV35: 48.31411107 | CW35: 50.8504467 | CX35: 51.66963196 | CY35: 52.26140722 | DA35: 1945 | DB35: ='Compile Data'!#REF! ->  | DC35: ='Compile Data'!#REF! ->  | DD35: ='Compile Data'!#REF! ->  | DE35: ='Compile Data'!#REF! ->  | DF35: ='Compile Data'!#REF! ->  | DG35: ='Compile Data'!#REF! ->  | DH35: ='Compile Data'!#REF! ->  | DI35: ='Compile Data'!#REF! ->  | DJ35: ='Compile Data'!#REF! ->  | DK35: ='Compile Data'!#REF! ->  | DL35: ='Compile Data'!#REF! ->  | DM35: ='Compile Data'!#REF! ->  | DY35: 1945 | DZ35: ='Compile Data'!E289 -> 52.60534286 | EA35: ='Compile Data'!E290 -> 53.20022964 | EB35: ='Compile Data'!E291 -> 50.37055206 | EC35: ='Compile Data'!E292 -> 47.66599274 | ED35: ='Compile Data'!E293 -> 46.90578842 | EE35: ='Compile Data'!E294 -> 48.1518898 | EF35: ='Compile Data'!E295 -> 51.87867355 | EG35: ='Compile Data'!E296 -> 51.4636116 | EH35: ='Compile Data'!E297 -> 51.90761185 | EI35: ='Compile Data'!E298 -> 51.17473602 | EJ35: ='Compile Data'!E299 -> 51.75716019 | EK35: ='Compile Data'!E300 -> 51.83901978 | EM35: 50.50622749 | EN35: 50.09456062 | EO35: 50.74338404 | EQ35: 50.96052933 | ER35: 48.31411107 | ES35: 50.8504467 | ET35: 51.66963196 | EU35: 52.26140722
A36: 1923-09-30 | B36: =IF(INDIRECT(CONCATENATE("'",B$1,"'!",B$4,(YEAR($A36)-1921)*12+MONTH($A36)+3+IF(ISNUMBER(FIND("PRV",B$6)),1,0)))=-901,NA(),INDIRECT(CONCATENATE("'",B$1,"'!",B$4,(YEAR($A36)-1921)*12+MONTH($A36)+3+IF(ISNUMBER(FIND("PRV",B$6)),1,0)))*IF(AND(B$3>0,TRIM(B$9)="CFS"),Conv_Flags!$C36,1)) -> 52.60756683 | C36: =IF(INDIRECT(CONCATENATE("'",C$1,"'!",C$4,(YEAR($A36)-1921)*12+MONTH($A36)+3+IF(ISNUMBER(FIND("PRV",C$6)),1,0)))=-901,NA(),INDIRECT(CONCATENATE("'",C$1,"'!",C$4,(YEAR($A36)-1921)*12+MONTH($A36)+3+IF(ISNUMBER(FIND("PRV",C$6)),1,0)))*IF(AND(C$3>0,TRIM(C$9)="CFS"),Conv_Flags!$C36,1)) -> 52.49571991 | D36: =IF(INDIRECT(CONCATENATE("'",D$1,"'!",D$4,(YEAR($A36)-1921)*12+MONTH($A36)+3+IF(ISNUMBER(FIND("PRV",D$6)),1,0)))=-901,NA(),INDIRECT(CONCATENATE("'",D$1,"'!",D$4,(YEAR($A36)-1921)*12+MONTH($A36)+3+IF(ISNUMBER(FIND("PRV",D$6)),1,0)))*IF(AND(D$3>0,TRIM(D$9)="CFS"),Conv_Flags!$C36,1)) -> 52.50654602 | E36: =IF(INDIRECT(CONCATENATE("'",E$1,"'!",E$4,(YEAR($A36)-1921)*12+MONTH($A36)+3+IF(ISNUMBER(FIND("PRV",E$6)),1,0)))=-901,NA(),INDIRECT(CONCATENATE("'",E$1,"'!",E$4,(YEAR($A36)-1921)*12+MONTH($A36)+3+IF(ISNUMBER(FIND("PRV",E$6)),1,0)))*IF(AND(E$3>0,TRIM(E$9)="CFS"),Conv_Flags!$C36,1)) -> 52.49571991 | I36: 1946 | J36: =B301 -> 52.13167953 | K36: =B302 -> 52.87784195 | L36: =B303 -> 48.36629105 | M36: =B304 -> 44.91511536 | N36: =B305 -> 44.71530533 | O36: =B306 -> 48.11148071 | P36: =B307 -> 51.15390015 | Q36: =B308 -> 51.57892227 | R36: =B309 -> 51.22759247 | S36: =B310 -> 50.80492783 | T36: =B311 -> 51.44062042 | U36: =B312 -> 51.79418182 | W36: 49.94716899 | X36: 50.27871609 | Y36: 49.92648824 | AA36: 49.57273197 | AB36: 45.99890391 | AC36: 50.5179739 | AD36: 51.31683064 | AE36: 51.98482513 | AG36: 1946 | AH36: ='Compile Data'!C301 -> 52.14200592 | AI36: ='Compile Data'!C302 -> 52.79735565 | AJ36: ='Compile Data'!C303 -> 48.3802681 | AK36: ='Compile Data'!C304 -> 44.92089844 | AL36: ='Compile Data'!C305 -> 44.72108841 | AM36: ='Compile Data'!C306 -> 48.09820557 | AN36: ='Compile Data'!C307 -> 51.12905502 | AO36: ='Compile Data'!C308 -> 51.65178299 | AP36: ='Compile Data'!C309 -> 51.22692108 | AQ36: ='Compile Data'!C310 -> 50.81612015 | AR36: ='Compile Data'!C311 -> 51.43409348 | AS36: ='Compile Data'!C312 -> 51.81621933 | AU36: 49.95205371 | AV36: 50.28100999 | AW36: 49.92783451 | AY36: 49.56013203 | AZ36: 46.00741831 | BA36: 50.52649117 | BB36: 51.32333851 | BC36: 51.98805873 | BE36: 1946 | BF36: ='Compile Data'!D301 -> 52.12518311 | BG36: ='Compile Data'!D302 -> 52.82491302 | BH36: ='Compile Data'!D303 -> 48.35944366 | BI36: ='Compile Data'!D304 -> 44.90935898 | BJ36: ='Compile Data'!D305 -> 44.70705032 | BK36: ='Compile Data'!D306 -> 48.10501099 | BL36: ='Compile Data'!D307 -> 51.13858795 | BM36: ='Compile Data'!D308 -> 51.65142059 | BN36: ='Compile Data'!D309 -> 51.2539444 | BO36: ='Compile Data'!D310 -> 50.80191422 | BP36: ='Compile Data'!D311 -> 51.44094849 | BQ36: ='Compile Data'!D312 -> 51.8177681 | BS36: 49.9370114 | BT36: 50.27231948 | BU36: 49.92796199 | BW36: 49.55472469 | BX36: 45.99195099 | BY36: 50.53724098 | BZ36: 51.3286438 | CA36: 51.94050598 | CC36: 1946 | CD36: ='Compile Data'!E301 -> 52.14388275 | CE36: ='Compile Data'!E302 -> 52.80131912 | CF36: ='Compile Data'!E303 -> 48.3850441 | CG36: ='Compile Data'!E304 -> 44.91971588 | CH36: ='Compile Data'!E305 -> 44.71206284 | CI36: ='Compile Data'!E306 -> 48.0974617 | CJ36: ='Compile Data'!E307 -> 51.13801956 | CK36: ='Compile Data'!E308 -> 51.64723206 | CL36: ='Compile Data'!E309 -> 51.22496796 | CM36: ='Compile Data'!E310 -> 50.8173027 | CN36: ='Compile Data'!E311 -> 51.43554306 | CO36: ='Compile Data'!E312 -> 51.81860733 | CQ36: 49.94940281 | CR36: 50.27984015 | CS36: 49.92842992 | CU36: 49.56249046 | CV36: 46.0056076 | CW36: 50.52692032 | CX36: 51.32410526 | CY36: 51.97652944 | DA36: 1946 | DB36: ='Compile Data'!#REF! ->  | DC36: ='Compile Data'!#REF! ->  | DD36: ='Compile Data'!#REF! ->  | DE36: ='Compile Data'!#REF! ->  | DF36: ='Compile Data'!#REF! ->  | DG36: ='Compile Data'!#REF! ->  | DH36: ='Compile Data'!#REF! ->  | DI36: ='Compile Data'!#REF! ->  | DJ36: ='Compile Data'!#REF! ->  | DK36: ='Compile Data'!#REF! ->  | DL36: ='Compile Data'!#REF! ->  | DM36: ='Compile Data'!#REF! ->  | DY36: 1946 | DZ36: ='Compile Data'!E301 -> 52.14388275 | EA36: ='Compile Data'!E302 -> 52.80131912 | EB36: ='Compile Data'!E303 -> 48.3850441 | EC36: ='Compile Data'!E304 -> 44.91971588 | ED36: ='Compile Data'!E305 -> 44.71206284 | EE36: ='Compile Data'!E306 -> 48.0974617 | EF36: ='Compile Data'!E307 -> 51.13801956 | EG36: ='Compile Data'!E308 -> 51.64723206 | EH36: ='Compile Data'!E309 -> 51.22496796 | EI36: ='Compile Data'!E310 -> 50.8173027 | EJ36: ='Compile Data'!E311 -> 51.43554306 | EK36: ='Compile Data'!E312 -> 51.81860733 | EM36: 49.94940281 | EN36: 50.27984015 | EO36: 49.92842992 | EQ36: 49.56249046 | ER36: 46.0056076 | ES36: 50.52692032 | ET36: 51.32410526 | EU36: 51.97652944
A37: 1923-10-31 | B37: =IF(INDIRECT(CONCATENATE("'",B$1,"'!",B$4,(YEAR($A37)-1921)*12+MONTH($A37)+3+IF(ISNUMBER(FIND("PRV",B$6)),1,0)))=-901,NA(),INDIRECT(CONCATENATE("'",B$1,"'!",B$4,(YEAR($A37)-1921)*12+MONTH($A37)+3+IF(ISNUMBER(FIND("PRV",B$6)),1,0)))*IF(AND(B$3>0,TRIM(B$9)="CFS"),Conv_Flags!$C37,1)) -> 52.01070023 | C37: =IF(INDIRECT(CONCATENATE("'",C$1,"'!",C$4,(YEAR($A37)-1921)*12+MONTH($A37)+3+IF(ISNUMBER(FIND("PRV",C$6)),1,0)))=-901,NA(),INDIRECT(CONCATENATE("'",C$1,"'!",C$4,(YEAR($A37)-1921)*12+MONTH($A37)+3+IF(ISNUMBER(FIND("PRV",C$6)),1,0)))*IF(AND(C$3>0,TRIM(C$9)="CFS"),Conv_Flags!$C37,1)) -> 51.96279907 | D37: =IF(INDIRECT(CONCATENATE("'",D$1,"'!",D$4,(YEAR($A37)-1921)*12+MONTH($A37)+3+IF(ISNUMBER(FIND("PRV",D$6)),1,0)))=-901,NA(),INDIRECT(CONCATENATE("'",D$1,"'!",D$4,(YEAR($A37)-1921)*12+MONTH($A37)+3+IF(ISNUMBER(FIND("PRV",D$6)),1,0)))*IF(AND(D$3>0,TRIM(D$9)="CFS"),Conv_Flags!$C37,1)) -> 51.9559021 | E37: =IF(INDIRECT(CONCATENATE("'",E$1,"'!",E$4,(YEAR($A37)-1921)*12+MONTH($A37)+3+IF(ISNUMBER(FIND("PRV",E$6)),1,0)))=-901,NA(),INDIRECT(CONCATENATE("'",E$1,"'!",E$4,(YEAR($A37)-1921)*12+MONTH($A37)+3+IF(ISNUMBER(FIND("PRV",E$6)),1,0)))*IF(AND(E$3>0,TRIM(E$9)="CFS"),Conv_Flags!$C37,1)) -> 51.96279907 | I37: 1947 | J37: =B313 -> 51.71201324 | K37: =B314 -> 52.44828033 | L37: =B315 -> 49.4636879 | M37: =B316 -> 46.66556931 | N37: =B317 -> 46.9434166 | O37: =B318 -> 49.42915726 | P37: =B319 -> 54.31062698 | Q37: =B320 -> 52.67901611 | R37: =B321 -> 51.27440262 | S37: =B322 -> 51.1212883 | T37: =B323 -> 52.09680176 | U37: =B324 -> 52.8417511 | W37: 51.1694142 | X37: 51.16085593 | Y37: 50.91550096 | AA37: 50.0723877 | AB37: 47.69089127 | AC37: 51.92330074 | AD37: 51.83356094 | AE37: 52.91858673 | AG37: 1947 | AH37: ='Compile Data'!C313 -> 51.71461487 | AI37: ='Compile Data'!C314 -> 52.43334198 | AJ37: ='Compile Data'!C315 -> 49.46230316 | AK37: ='Compile Data'!C316 -> 46.65390396 | AL37: ='Compile Data'!C317 -> 46.93555832 | AM37: ='Compile Data'!C318 -> 49.42771149 | AN37: ='Compile Data'!C319 -> 54.31772995 | AO37: ='Compile Data'!C320 -> 52.67381287 | AP37: ='Compile Data'!C321 -> 51.25350189 | AQ37: ='Compile Data'!C322 -> 51.09356308 | AR37: ='Compile Data'!C323 -> 52.0507164 | AS37: ='Compile Data'!C324 -> 52.88716125 | AU37: 51.16908105 | AV37: 51.16447767 | AW37: 50.90865993 | AY37: 50.06604099 | AZ37: 47.68392181 | BA37: 51.91818905 | BB37: 51.82123566 | BC37: 52.93040466 | BE37: 1947 | BF37: ='Compile Data'!D313 -> 51.71572495 | BG37: ='Compile Data'!D314 -> 52.2880249 | BH37: ='Compile Data'!D315 -> 49.41438293 | BI37: ='Compile Data'!D316 -> 46.68512726 | BJ37: ='Compile Data'!D317 -> 46.95497894 | BK37: ='Compile Data'!D318 -> 49.46010208 | BL37: ='Compile Data'!D319 -> 54.30123901 | BM37: ='Compile Data'!D320 -> 52.65670776 | BN37: ='Compile Data'!D321 -> 51.25003815 | BO37: ='Compile Data'!D322 -> 51.10580826 | BP37: ='Compile Data'!D323 -> 52.05346298 | BQ37: ='Compile Data'!D324 -> 52.8620224 | BS37: 51.17323685 | BT37: 51.16416804 | BU37: 50.89563497 | BW37: 50.02581501 | BX37: 47.68482971 | BY37: 51.91702175 | BZ37: 51.81783295 | CA37: 52.92924118 | CC37: 1947 | CD37: ='Compile Data'!E313 -> 51.71143723 | CE37: ='Compile Data'!E314 -> 52.39954376 | CF37: ='Compile Data'!E315 -> 49.47093964 | CG37: ='Compile Data'!E316 -> 46.65900421 | CH37: ='Compile Data'!E317 -> 46.93802261 | CI37: ='Compile Data'!E318 -> 49.42987823 | CJ37: ='Compile Data'!E319 -> 54.31697845 | CK37: ='Compile Data'!E320 -> 52.67080307 | CL37: ='Compile Data'!E321 -> 51.25671387 | CM37: ='Compile Data'!E322 -> 51.09554291 | CN37: ='Compile Data'!E323 -> 52.05426025 | CO37: ='Compile Data'!E324 -> 52.88130188 | CQ37: 51.17016411 | CR37: 51.16581853 | CS37: 50.90703551 | CU37: 50.06023121 | CV37: 47.68932215 | CW37: 51.91859341 | CX37: 51.82195473 | CY37: 52.92882919 | DA37: 1947 | DB37: ='Compile Data'!#REF! ->  | DC37: ='Compile Data'!#REF! ->  | DD37: ='Compile Data'!#REF! ->  | DE37: ='Compile Data'!#REF! ->  | DF37: ='Compile Data'!#REF! ->  | DG37: ='Compile Data'!#REF! ->  | DH37: ='Compile Data'!#REF! ->  | DI37: ='Compile Data'!#REF! ->  | DJ37: ='Compile Data'!#REF! ->  | DK37: ='Compile Data'!#REF! ->  | DL37: ='Compile Data'!#REF! ->  | DM37: ='Compile Data'!#REF! ->  | DY37: 1947 | DZ37: ='Compile Data'!E313 -> 51.71143723 | EA37: ='Compile Data'!E314 -> 52.39954376 | EB37: ='Compile Data'!E315 -> 49.47093964 | EC37: ='Compile Data'!E316 -> 46.65900421 | ED37: ='Compile Data'!E317 -> 46.93802261 | EE37: ='Compile Data'!E318 -> 49.42987823 | EF37: ='Compile Data'!E319 -> 54.31697845 | EG37: ='Compile Data'!E320 -> 52.67080307 | EH37: ='Compile Data'!E321 -> 51.25671387 | EI37: ='Compile Data'!E322 -> 51.09554291 | EJ37: ='Compile Data'!E323 -> 52.05426025 | EK37: ='Compile Data'!E324 -> 52.88130188 | EM37: 51.17016411 | EN37: 51.16581853 | EO37: 50.90703551 | EQ37: 50.06023121 | ER37: 47.68932215 | ES37: 51.91859341 | ET37: 51.82195473 | EU37: 52.92882919
A38: 1923-11-30 | B38: =IF(INDIRECT(CONCATENATE("'",B$1,"'!",B$4,(YEAR($A38)-1921)*12+MONTH($A38)+3+IF(ISNUMBER(FIND("PRV",B$6)),1,0)))=-901,NA(),INDIRECT(CONCATENATE("'",B$1,"'!",B$4,(YEAR($A38)-1921)*12+MONTH($A38)+3+IF(ISNUMBER(FIND("PRV",B$6)),1,0)))*IF(AND(B$3>0,TRIM(B$9)="CFS"),Conv_Flags!$C38,1)) -> 54.31088257 | C38: =IF(INDIRECT(CONCATENATE("'",C$1,"'!",C$4,(YEAR($A38)-1921)*12+MONTH($A38)+3+IF(ISNUMBER(FIND("PRV",C$6)),1,0)))=-901,NA(),INDIRECT(CONCATENATE("'",C$1,"'!",C$4,(YEAR($A38)-1921)*12+MONTH($A38)+3+IF(ISNUMBER(FIND("PRV",C$6)),1,0)))*IF(AND(C$3>0,TRIM(C$9)="CFS"),Conv_Flags!$C38,1)) -> 54.33153534 | D38: =IF(INDIRECT(CONCATENATE("'",D$1,"'!",D$4,(YEAR($A38)-1921)*12+MONTH($A38)+3+IF(ISNUMBER(FIND("PRV",D$6)),1,0)))=-901,NA(),INDIRECT(CONCATENATE("'",D$1,"'!",D$4,(YEAR($A38)-1921)*12+MONTH($A38)+3+IF(ISNUMBER(FIND("PRV",D$6)),1,0)))*IF(AND(D$3>0,TRIM(D$9)="CFS"),Conv_Flags!$C38,1)) -> 54.32126236 | E38: =IF(INDIRECT(CONCATENATE("'",E$1,"'!",E$4,(YEAR($A38)-1921)*12+MONTH($A38)+3+IF(ISNUMBER(FIND("PRV",E$6)),1,0)))=-901,NA(),INDIRECT(CONCATENATE("'",E$1,"'!",E$4,(YEAR($A38)-1921)*12+MONTH($A38)+3+IF(ISNUMBER(FIND("PRV",E$6)),1,0)))*IF(AND(E$3>0,TRIM(E$9)="CFS"),Conv_Flags!$C38,1)) -> 54.33153534 | I38: 1948 | J38: =B325 -> 52.56122208 | K38: =B326 -> 53.35278702 | L38: =B327 -> 50.7569313 | M38: =B328 -> 47.50243759 | N38: =B329 -> 46.00384903 | O38: =B330 -> 47.54524612 | P38: =B331 -> 50.09928513 | Q38: =B332 -> 50.14082718 | R38: =B333 -> 51.80893326 | S38: =B334 -> 51.17169952 | T38: =B335 -> 51.73566437 | U38: =B336 -> 50.74880981 | W38: 50.29040941 | X38: 50.40528647 | Y38: 50.28564103 | AA38: 51.0433445 | AB38: 48.08773931 | AC38: 49.89857292 | AD38: 51.36627674 | AE38: 52.18552653 | AG38: 1948 | AH38: ='Compile Data'!C325 -> 52.51593781 | AI38: ='Compile Data'!C326 -> 53.38811493 | AJ38: ='Compile Data'!C327 -> 50.83126068 | AK38: ='Compile Data'!C328 -> 47.51322556 | AL38: ='Compile Data'!C329 -> 46.02099609 | AM38: ='Compile Data'!C330 -> 47.53732681 | AN38: ='Compile Data'!C331 -> 50.25040054 | AO38: ='Compile Data'!C332 -> 50.14608383 | AP38: ='Compile Data'!C333 -> 51.81003189 | AQ38: ='Compile Data'!C334 -> 51.18144226 | AR38: ='Compile Data'!C335 -> 51.72870255 | AS38: ='Compile Data'!C336 -> 50.44125366 | AU38: 50.30797513 | AV38: 50.42459393 | AW38: 50.28039805 | AY38: 51.06213474 | AZ38: 48.12182744 | BA38: 49.93596077 | BB38: 51.29035759 | BC38: 52.18100866 | BE38: 1948 | BF38: ='Compile Data'!D325 -> 52.54228973 | BG38: ='Compile Data'!D326 -> 53.38341141 | BH38: ='Compile Data'!D327 -> 50.82365417 | BI38: ='Compile Data'!D328 -> 47.51340485 | BJ38: ='Compile Data'!D329 -> 46.01787567 | BK38: ='Compile Data'!D330 -> 47.53873444 | BL38: ='Compile Data'!D331 -> 50.22221375 | BM38: ='Compile Data'!D332 -> 50.15551376 | BN38: ='Compile Data'!D333 -> 51.80598068 | BO38: ='Compile Data'!D334 -> 51.22102737 | BP38: ='Compile Data'!D335 -> 51.72846985 | BQ38: ='Compile Data'!D336 -> 50.40983582 | BS38: 50.30100346 | BT38: 50.41881847 | BU38: 50.28020096 | BW38: 51.06569004 | BX38: 48.11831156 | BY38: 49.93061066 | BZ38: 51.29132843 | CA38: 52.14593252 | CC38: 1948 | CD38: ='Compile Data'!E325 -> 52.52301025 | CE38: ='Compile Data'!E326 -> 53.38217545 | CF38: ='Compile Data'!E327 -> 50.83427811 | CG38: ='Compile Data'!E328 -> 47.51750565 | CH38: ='Compile Data'!E329 -> 46.02737427 | CI38: ='Compile Data'!E330 -> 47.53840256 | CJ38: ='Compile Data'!E331 -> 50.24298477 | CK38: ='Compile Data'!E332 -> 50.14193344 | CL38: ='Compile Data'!E333 -> 51.80776215 | CM38: ='Compile Data'!E334 -> 51.17459869 | CN38: ='Compile Data'!E335 -> 51.72803116 | CO38: ='Compile Data'!E336 -> 50.4464798 | CQ38: 50.30439599 | CR38: 50.42038854 | CS38: 50.28037802 | CU38: 51.06424236 | CV38: 48.12638601 | CW38: 49.93277073 | CX38: 51.28921795 | CY38: 52.16817729 | DA38: 1948 | DB38: ='Compile Data'!#REF! ->  | DC38: ='Compile Data'!#REF! ->  | DD38: ='Compile Data'!#REF! ->  | DE38: ='Compile Data'!#REF! ->  | DF38: ='Compile Data'!#REF! ->  | DG38: ='Compile Data'!#REF! ->  | DH38: ='Compile Data'!#REF! ->  | DI38: ='Compile Data'!#REF! ->  | DJ38: ='Compile Data'!#REF! ->  | DK38: ='Compile Data'!#REF! ->  | DL38: ='Compile Data'!#REF! ->  | DM38: ='Compile Data'!#REF! ->  | DY38: 1948 | DZ38: ='Compile Data'!E325 -> 52.52301025 | EA38: ='Compile Data'!E326 -> 53.38217545 | EB38: ='Compile Data'!E327 -> 50.83427811 | EC38: ='Compile Data'!E328 -> 47.51750565 | ED38: ='Compile Data'!E329 -> 46.02737427 | EE38: ='Compile Data'!E330 -> 47.53840256 | EF38: ='Compile Data'!E331 -> 50.24298477 | EG38: ='Compile Data'!E332 -> 50.14193344 | EH38: ='Compile Data'!E333 -> 51.80776215 | EI38: ='Compile Data'!E334 -> 51.17459869 | EJ38: ='Compile Data'!E335 -> 51.72803116 | EK38: ='Compile Data'!E336 -> 50.4464798 | EM38: 50.30439599 | EN38: 50.42038854 | EO38: 50.28037802 | EQ38: 51.06424236 | ER38: 48.12638601 | ES38: 49.93277073 | ET38: 51.28921795 | EU38: 52.16817729
A39: 1923-12-31 | B39: =IF(INDIRECT(CONCATENATE("'",B$1,"'!",B$4,(YEAR($A39)-1921)*12+MONTH($A39)+3+IF(ISNUMBER(FIND("PRV",B$6)),1,0)))=-901,NA(),INDIRECT(CONCATENATE("'",B$1,"'!",B$4,(YEAR($A39)-1921)*12+MONTH($A39)+3+IF(ISNUMBER(FIND("PRV",B$6)),1,0)))*IF(AND(B$3>0,TRIM(B$9)="CFS"),Conv_Flags!$C39,1)) -> 51.96611786 | C39: =IF(INDIRECT(CONCATENATE("'",C$1,"'!",C$4,(YEAR($A39)-1921)*12+MONTH($A39)+3+IF(ISNUMBER(FIND("PRV",C$6)),1,0)))=-901,NA(),INDIRECT(CONCATENATE("'",C$1,"'!",C$4,(YEAR($A39)-1921)*12+MONTH($A39)+3+IF(ISNUMBER(FIND("PRV",C$6)),1,0)))*IF(AND(C$3>0,TRIM(C$9)="CFS"),Conv_Flags!$C39,1)) -> 51.89912033 | D39: =IF(INDIRECT(CONCATENATE("'",D$1,"'!",D$4,(YEAR($A39)-1921)*12+MONTH($A39)+3+IF(ISNUMBER(FIND("PRV",D$6)),1,0)))=-901,NA(),INDIRECT(CONCATENATE("'",D$1,"'!",D$4,(YEAR($A39)-1921)*12+MONTH($A39)+3+IF(ISNUMBER(FIND("PRV",D$6)),1,0)))*IF(AND(D$3>0,TRIM(D$9)="CFS"),Conv_Flags!$C39,1)) -> 51.89398193 | E39: =IF(INDIRECT(CONCATENATE("'",E$1,"'!",E$4,(YEAR($A39)-1921)*12+MONTH($A39)+3+IF(ISNUMBER(FIND("PRV",E$6)),1,0)))=-901,NA(),INDIRECT(CONCATENATE("'",E$1,"'!",E$4,(YEAR($A39)-1921)*12+MONTH($A39)+3+IF(ISNUMBER(FIND("PRV",E$6)),1,0)))*IF(AND(E$3>0,TRIM(E$9)="CFS"),Conv_Flags!$C39,1)) -> 51.89912033 | I39: 1949 | J39: =B337 -> 51.9510498 | K39: =B338 -> 53.85671997 | L39: =B339 -> 50.92039108 | M39: =B340 -> 47.74245453 | N39: =B341 -> 47.14235687 | O39: =B342 -> 47.1979866 | P39: =B343 -> 53.30413055 | Q39: =B344 -> 52.4693222 | R39: =B345 -> 51.75101852 | S39: =B346 -> 50.98401642 | T39: =B347 -> 51.76266098 | U39: =B348 -> 51.99155426 | W39: 50.83863544 | X39: 50.71099091 | Y39: 50.92280515 | AA39: 51.11765385 | AB39: 48.60173416 | AC39: 51.18061447 | AD39: 51.62231255 | AE39: 52.41654078 | AG39: 1949 | AH39: ='Compile Data'!C337 -> 52.23212814 | AI39: ='Compile Data'!C338 -> 53.86964417 | AJ39: ='Compile Data'!C339 -> 50.96446609 | AK39: ='Compile Data'!C340 -> 47.77161026 | AL39: ='Compile Data'!C341 -> 47.1620369 | AM39: ='Compile Data'!C342 -> 47.20817947 | AN39: ='Compile Data'!C343 -> 53.30054092 | AO39: ='Compile Data'!C344 -> 52.30797195 | AP39: ='Compile Data'!C345 -> 51.82609558 | AQ39: ='Compile Data'!C346 -> 51.03815842 | AR39: ='Compile Data'!C347 -> 51.81906509 | AS39: ='Compile Data'!C348 -> 51.99442291 | AU39: 50.84824912 | AV39: 50.71550369 | AW39: 50.95785999 | AY39: 51.20946217 | AZ39: 48.63270442 | BA39: 51.16069698 | BB39: 51.6694355 | BC39: 52.43705495 | BE39: 1949 | BF39: ='Compile Data'!D337 -> 52.17192841 | BG39: ='Compile Data'!D338 -> 53.85603333 | BH39: ='Compile Data'!D339 -> 50.97102356 | BI39: ='Compile Data'!D340 -> 47.77875519 | BJ39: ='Compile Data'!D341 -> 47.16630554 | BK39: ='Compile Data'!D342 -> 47.20668411 | BL39: ='Compile Data'!D343 -> 53.31453323 | BM39: ='Compile Data'!D344 -> 52.39721298 | BN39: ='Compile Data'!D345 -> 51.80931854 | BO39: ='Compile Data'!D346 -> 51.04635239 | BP39: ='Compile Data'!D347 -> 51.81010437 | BQ39: ='Compile Data'!D348 -> 52.00407791 | BS39: 50.85734367 | BT39: 50.72287432 | BU39: 50.96102746 | BW39: 51.19443512 | BX39: 48.63869476 | BY39: 51.18193722 | BZ39: 51.6674633 | CA39: 52.4445432 | CC39: 1949 | CD39: ='Compile Data'!E337 -> 52.20014954 | CE39: ='Compile Data'!E338 -> 53.85790253 | CF39: ='Compile Data'!E339 -> 50.96962738 | CG39: ='Compile Data'!E340 -> 47.77202606 | CH39: ='Compile Data'!E341 -> 47.1647644 | CI39: ='Compile Data'!E342 -> 47.21560669 | CJ39: ='Compile Data'!E343 -> 53.31114578 | CK39: ='Compile Data'!E344 -> 52.31187439 | CL39: ='Compile Data'!E345 -> 51.82519913 | CM39: ='Compile Data'!E346 -> 51.03508759 | CN39: ='Compile Data'!E347 -> 51.82094193 | CO39: ='Compile Data'!E348 -> 51.998806 | CQ39: 50.84854857 | CR39: 50.71885554 | CS39: 50.95692762 | CU39: 51.19992638 | CV39: 48.63547262 | CW39: 51.1659565 | CX39: 51.67000866 | CY39: 52.42783356 | DA39: 1949 | DB39: ='Compile Data'!#REF! ->  | DC39: ='Compile Data'!#REF! ->  | DD39: ='Compile Data'!#REF! ->  | DE39: ='Compile Data'!#REF! ->  | DF39: ='Compile Data'!#REF! ->  | DG39: ='Compile Data'!#REF! ->  | DH39: ='Compile Data'!#REF! ->  | DI39: ='Compile Data'!#REF! ->  | DJ39: ='Compile Data'!#REF! ->  | DK39: ='Compile Data'!#REF! ->  | DL39: ='Compile Data'!#REF! ->  | DM39: ='Compile Data'!#REF! ->  | DY39: 1949 | DZ39: ='Compile Data'!E337 -> 52.20014954 | EA39: ='Compile Data'!E338 -> 53.85790253 | EB39: ='Compile Data'!E339 -> 50.96962738 | EC39: ='Compile Data'!E340 -> 47.77202606 | ED39: ='Compile Data'!E341 -> 47.1647644 | EE39: ='Compile Data'!E342 -> 47.21560669 | EF39: ='Compile Data'!E343 -> 53.31114578 | EG39: ='Compile Data'!E344 -> 52.31187439 | EH39: ='Compile Data'!E345 -> 51.82519913 | EI39: ='Compile Data'!E346 -> 51.03508759 | EJ39: ='Compile Data'!E347 -> 51.82094193 | EK39: ='Compile Data'!E348 -> 51.998806 | EM39: 50.84854857 | EN39: 50.71885554 | EO39: 50.95692762 | EQ39: 51.19992638 | ER39: 48.63547262 | ES39: 51.1659565 | ET39: 51.67000866 | EU39: 52.42783356
A40: 1924-01-31 | B40: =IF(INDIRECT(CONCATENATE("'",B$1,"'!",B$4,(YEAR($A40)-1921)*12+MONTH($A40)+3+IF(ISNUMBER(FIND("PRV",B$6)),1,0)))=-901,NA(),INDIRECT(CONCATENATE("'",B$1,"'!",B$4,(YEAR($A40)-1921)*12+MONTH($A40)+3+IF(ISNUMBER(FIND("PRV",B$6)),1,0)))*IF(AND(B$3>0,TRIM(B$9)="CFS"),Conv_Flags!$C40,1)) -> 48.79593658 | C40: =IF(INDIRECT(CONCATENATE("'",C$1,"'!",C$4,(YEAR($A40)-1921)*12+MONTH($A40)+3+IF(ISNUMBER(FIND("PRV",C$6)),1,0)))=-901,NA(),INDIRECT(CONCATENATE("'",C$1,"'!",C$4,(YEAR($A40)-1921)*12+MONTH($A40)+3+IF(ISNUMBER(FIND("PRV",C$6)),1,0)))*IF(AND(C$3>0,TRIM(C$9)="CFS"),Conv_Flags!$C40,1)) -> 48.76207352 | D40: =IF(INDIRECT(CONCATENATE("'",D$1,"'!",D$4,(YEAR($A40)-1921)*12+MONTH($A40)+3+IF(ISNUMBER(FIND("PRV",D$6)),1,0)))=-901,NA(),INDIRECT(CONCATENATE("'",D$1,"'!",D$4,(YEAR($A40)-1921)*12+MONTH($A40)+3+IF(ISNUMBER(FIND("PRV",D$6)),1,0)))*IF(AND(D$3>0,TRIM(D$9)="CFS"),Conv_Flags!$C40,1)) -> 48.76411819 | E40: =IF(INDIRECT(CONCATENATE("'",E$1,"'!",E$4,(YEAR($A40)-1921)*12+MONTH($A40)+3+IF(ISNUMBER(FIND("PRV",E$6)),1,0)))=-901,NA(),INDIRECT(CONCATENATE("'",E$1,"'!",E$4,(YEAR($A40)-1921)*12+MONTH($A40)+3+IF(ISNUMBER(FIND("PRV",E$6)),1,0)))*IF(AND(E$3>0,TRIM(E$9)="CFS"),Conv_Flags!$C40,1)) -> 48.76207352 | I40: 1950 | J40: =B349 -> 51.81285477 | K40: =B350 -> 53.44521332 | L40: =B351 -> 50.4600563 | M40: =B352 -> 47.02527237 | N40: =B353 -> 46.32780457 | O40: =B354 -> 48.99300766 | P40: =B355 -> 53.43845749 | Q40: =B356 -> 52.54849625 | R40: =B357 -> 52.19537735 | S40: =B358 -> 51.89678192 | T40: =B359 -> 51.98492432 | U40: =B360 -> 52.29706955 | W40: 50.99428368 | X40: 50.79145622 | Y40: 51.03544299 | AA40: 50.68584919 | AB40: 47.93771108 | AC40: 51.79383469 | AD40: 52.09353828 | AE40: 52.65030034 | AG40: 1950 | AH40: ='Compile Data'!C349 -> 51.83031845 | AI40: ='Compile Data'!C350 -> 53.48642349 | AJ40: ='Compile Data'!C351 -> 50.43416595 | AK40: ='Compile Data'!C352 -> 47.00716782 | AL40: ='Compile Data'!C353 -> 46.33353424 | AM40: ='Compile Data'!C354 -> 48.96240234 | AN40: ='Compile Data'!C355 -> 53.47310638 | AO40: ='Compile Data'!C356 -> 52.63709259 | AP40: ='Compile Data'!C357 -> 52.25914764 | AQ40: ='Compile Data'!C358 -> 51.76122665 | AR40: ='Compile Data'!C359 -> 51.98857498 | AS40: ='Compile Data'!C360 -> 52.53562546 | AU40: 51.01742458 | AV40: 50.8159469 | AW40: 51.0590655 | AY40: 50.68951893 | AZ40: 47.924956 | BA40: 51.83293724 | BB40: 52.13614368 | BC40: 52.73624674 | BE40: 1950 | BF40: ='Compile Data'!D349 -> 51.82705307 | BG40: ='Compile Data'!D350 -> 53.50249863 | BH40: ='Compile Data'!D351 -> 50.42522812 | BI40: ='Compile Data'!D352 -> 47.00785446 | BJ40: ='Compile Data'!D353 -> 46.32357407 | BK40: ='Compile Data'!D354 -> 48.98901367 | BL40: ='Compile Data'!D355 -> 53.41682434 | BM40: ='Compile Data'!D356 -> 52.60458374 | BN40: ='Compile Data'!D357 -> 52.25229263 | BO40: ='Compile Data'!D358 -> 51.90101242 | BP40: ='Compile Data'!D359 -> 51.97687531 | BQ40: ='Compile Data'!D360 -> 52.29218292 | BS40: 50.99689992 | BT40: 50.79500357 | BU40: 51.04324945 | BW40: 50.69065857 | BX40: 47.91888555 | BY40: 51.8156786 | BZ40: 52.10559082 | CA40: 52.64338938 | CC40: 1950 | CD40: ='Compile Data'!E349 -> 51.81134796 | CE40: ='Compile Data'!E350 -> 53.47334671 | CF40: ='Compile Data'!E351 -> 50.44243622 | CG40: ='Compile Data'!E352 -> 47.04063797 | CH40: ='Compile Data'!E353 -> 46.33983612 | CI40: ='Compile Data'!E354 -> 49.07907486 | CJ40: ='Compile Data'!E355 -> 53.40500641 | CK40: ='Compile Data'!E356 -> 52.60276031 | CL40: ='Compile Data'!E357 -> 52.25527191 | CM40: ='Compile Data'!E358 -> 51.73745346 | CN40: ='Compile Data'!E359 -> 51.95817566 | CO40: ='Compile Data'!E360 -> 52.52086639 | CQ40: 51.01189836 | CR40: 50.80651283 | CS40: 51.05551783 | CU40: 50.69194221 | CV40: 47.9409701 | CW40: 51.83552837 | CX40: 52.11794186 | CY40: 52.71640015 | DA40: 1950 | DB40: ='Compile Data'!#REF! ->  | DC40: ='Compile Data'!#REF! ->  | DD40: ='Compile Data'!#REF! ->  | DE40: ='Compile Data'!#REF! ->  | DF40: ='Compile Data'!#REF! ->  | DG40: ='Compile Data'!#REF! ->  | DH40: ='Compile Data'!#REF! ->  | DI40: ='Compile Data'!#REF! ->  | DJ40: ='Compile Data'!#REF! ->  | DK40: ='Compile Data'!#REF! ->  | DL40: ='Compile Data'!#REF! ->  | DM40: ='Compile Data'!#REF! ->  | DY40: 1950 | DZ40: ='Compile Data'!E349 -> 51.81134796 | EA40: ='Compile Data'!E350 -> 53.47334671 | EB40: ='Compile Data'!E351 -> 50.44243622 | EC40: ='Compile Data'!E352 -> 47.04063797 | ED40: ='Compile Data'!E353 -> 46.33983612 | EE40: ='Compile Data'!E354 -> 49.07907486 | EF40: ='Compile Data'!E355 -> 53.40500641 | EG40: ='Compile Data'!E356 -> 52.60276031 | EH40: ='Compile Data'!E357 -> 52.25527191 | EI40: ='Compile Data'!E358 -> 51.73745346 | EJ40: ='Compile Data'!E359 -> 51.95817566 | EK40: ='Compile Data'!E360 -> 52.52086639 | EM40: 51.01189836 | EN40: 50.80651283 | EO40: 51.05551783 | EQ40: 50.69194221 | ER40: 47.9409701 | ES40: 51.83552837 | ET40: 52.11794186 | EU40: 52.71640015
A41: 1924-02-29 | B41: =IF(INDIRECT(CONCATENATE("'",B$1,"'!",B$4,(YEAR($A41)-1921)*12+MONTH($A41)+3+IF(ISNUMBER(FIND("PRV",B$6)),1,0)))=-901,NA(),INDIRECT(CONCATENATE("'",B$1,"'!",B$4,(YEAR($A41)-1921)*12+MONTH($A41)+3+IF(ISNUMBER(FIND("PRV",B$6)),1,0)))*IF(AND(B$3>0,TRIM(B$9)="CFS"),Conv_Flags!$C41,1)) -> 49.33918381 | C41: =IF(INDIRECT(CONCATENATE("'",C$1,"'!",C$4,(YEAR($A41)-1921)*12+MONTH($A41)+3+IF(ISNUMBER(FIND("PRV",C$6)),1,0)))=-901,NA(),INDIRECT(CONCATENATE("'",C$1,"'!",C$4,(YEAR($A41)-1921)*12+MONTH($A41)+3+IF(ISNUMBER(FIND("PRV",C$6)),1,0)))*IF(AND(C$3>0,TRIM(C$9)="CFS"),Conv_Flags!$C41,1)) -> 49.30558014 | D41: =IF(INDIRECT(CONCATENATE("'",D$1,"'!",D$4,(YEAR($A41)-1921)*12+MONTH($A41)+3+IF(ISNUMBER(FIND("PRV",D$6)),1,0)))=-901,NA(),INDIRECT(CONCATENATE("'",D$1,"'!",D$4,(YEAR($A41)-1921)*12+MONTH($A41)+3+IF(ISNUMBER(FIND("PRV",D$6)),1,0)))*IF(AND(D$3>0,TRIM(D$9)="CFS"),Conv_Flags!$C41,1)) -> 49.30727005 | E41: =IF(INDIRECT(CONCATENATE("'",E$1,"'!",E$4,(YEAR($A41)-1921)*12+MONTH($A41)+3+IF(ISNUMBER(FIND("PRV",E$6)),1,0)))=-901,NA(),INDIRECT(CONCATENATE("'",E$1,"'!",E$4,(YEAR($A41)-1921)*12+MONTH($A41)+3+IF(ISNUMBER(FIND("PRV",E$6)),1,0)))*IF(AND(E$3>0,TRIM(E$9)="CFS"),Conv_Flags!$C41,1)) -> 49.30558014 | I41: 1951 | J41: =B361 -> 51.90904999 | K41: =B362 -> 53.74478149 | L41: =B363 -> 49.57038116 | M41: =B364 -> 45.8777504 | N41: =B365 -> 45.04139709 | O41: =B366 -> 47.77741623 | P41: =B367 -> 51.74075317 | Q41: =B368 -> 52.15086746 | R41: =B369 -> 51.50754929 | S41: =B370 -> 50.57893753 | T41: =B371 -> 51.13892746 | U41: =B372 -> 50.68167496 | W41: 49.99083742 | X41: 49.91041056 | Y41: 50.14329052 | AA41: 50.27549076 | AB41: 46.82984289 | AC41: 50.79414654 | AD41: 50.97677231 | AE41: 51.71175385 | AG41: 1951 | AH41: ='Compile Data'!C361 -> 51.92325592 | AI41: ='Compile Data'!C362 -> 53.74985886 | AJ41: ='Compile Data'!C363 -> 49.57810211 | AK41: ='Compile Data'!C364 -> 45.8853035 | AL41: ='Compile Data'!C365 -> 45.03766632 | AM41: ='Compile Data'!C366 -> 47.79443359 | AN41: ='Compile Data'!C367 -> 51.75813293 | AO41: ='Compile Data'!C368 -> 52.15520096 | AP41: ='Compile Data'!C369 -> 51.48256683 | AQ41: ='Compile Data'!C370 -> 50.55887222 | AR41: ='Compile Data'!C371 -> 51.13732147 | AS41: ='Compile Data'!C372 -> 50.67458725 | AU41: 49.99369971 | AV41: 49.91686598 | AW41: 50.1446085 | AY41: 50.2841301 | AZ41: 46.83369064 | BA41: 50.79758358 | BB41: 50.96333694 | BC41: 51.7143453 | BE41: 1951 | BF41: ='Compile Data'!D361 -> 51.88091278 | BG41: ='Compile Data'!D362 -> 53.75707245 | BH41: ='Compile Data'!D363 -> 49.56060028 | BI41: ='Compile Data'!D364 -> 45.87443542 | BJ41: ='Compile Data'!D365 -> 45.03423691 | BK41: ='Compile Data'!D366 -> 47.7749939 | BL41: ='Compile Data'!D367 -> 51.73590851 | BM41: ='Compile Data'!D368 -> 52.15739059 | BN41: ='Compile Data'!D369 -> 51.67597961 | BO41: ='Compile Data'!D370 -> 50.57697296 | BP41: ='Compile Data'!D371 -> 51.13529587 | BQ41: ='Compile Data'!D372 -> 50.72542572 | BS41: 50.0000089 | BT41: 49.91874345 | BU41: 50.15743542 | BW41: 50.26825523 | BX41: 46.82309087 | BY41: 50.83606815 | BZ41: 51.02841854 | CA41: 51.71600978 | CC41: 1951 | CD41: ='Compile Data'!E361 -> 51.87652206 | CE41: ='Compile Data'!E362 -> 53.75181198 | CF41: ='Compile Data'!E363 -> 49.57536316 | CG41: ='Compile Data'!E364 -> 45.88175201 | CH41: ='Compile Data'!E365 -> 45.03409576 | CI41: ='Compile Data'!E366 -> 47.77966309 | CJ41: ='Compile Data'!E367 -> 51.74679565 | CK41: ='Compile Data'!E368 -> 52.16093063 | CL41: ='Compile Data'!E369 -> 51.49834442 | CM41: ='Compile Data'!E370 -> 50.57361221 | CN41: ='Compile Data'!E371 -> 51.13573837 | CO41: ='Compile Data'!E372 -> 50.67341995 | CQ41: 49.99548658 | CR41: 49.91812388 | CS41: 50.14067078 | CU41: 50.2713623 | CV41: 46.83040365 | CW41: 50.79643345 | CX41: 50.97027874 | CY41: 51.72707494 | DA41: 1951 | DB41: ='Compile Data'!#REF! ->  | DC41: ='Compile Data'!#REF! ->  | DD41: ='Compile Data'!#REF! ->  | DE41: ='Compile Data'!#REF! ->  | DF41: ='Compile Data'!#REF! ->  | DG41: ='Compile Data'!#REF! ->  | DH41: ='Compile Data'!#REF! ->  | DI41: ='Compile Data'!#REF! ->  | DJ41: ='Compile Data'!#REF! ->  | DK41: ='Compile Data'!#REF! ->  | DL41: ='Compile Data'!#REF! ->  | DM41: ='Compile Data'!#REF! ->  | DY41: 1951 | DZ41: ='Compile Data'!E361 -> 51.87652206 | EA41: ='Compile Data'!E362 -> 53.75181198 | EB41: ='Compile Data'!E363 -> 49.57536316 | EC41: ='Compile Data'!E364 -> 45.88175201 | ED41: ='Compile Data'!E365 -> 45.03409576 | EE41: ='Compile Data'!E366 -> 47.77966309 | EF41: ='Compile Data'!E367 -> 51.74679565 | EG41: ='Compile Data'!E368 -> 52.16093063 | EH41: ='Compile Data'!E369 -> 51.49834442 | EI41: ='Compile Data'!E370 -> 50.57361221 | EJ41: ='Compile Data'!E371 -> 51.13573837 | EK41: ='Compile Data'!E372 -> 50.67341995 | EM41: 49.99548658 | EN41: 49.91812388 | EO41: 50.14067078 | EQ41: 50.2713623 | ER41: 46.83040365 | ES41: 50.79643345 | ET41: 50.97027874 | EU41: 51.72707494
A42: 1924-03-31 | B42: =IF(INDIRECT(CONCATENATE("'",B$1,"'!",B$4,(YEAR($A42)-1921)*12+MONTH($A42)+3+IF(ISNUMBER(FIND("PRV",B$6)),1,0)))=-901,NA(),INDIRECT(CONCATENATE("'",B$1,"'!",B$4,(YEAR($A42)-1921)*12+MONTH($A42)+3+IF(ISNUMBER(FIND("PRV",B$6)),1,0)))*IF(AND(B$3>0,TRIM(B$9)="CFS"),Conv_Flags!$C42,1)) -> 49.12997055 | C42: =IF(INDIRECT(CONCATENATE("'",C$1,"'!",C$4,(YEAR($A42)-1921)*12+MONTH($A42)+3+IF(ISNUMBER(FIND("PRV",C$6)),1,0)))=-901,NA(),INDIRECT(CONCATENATE("'",C$1,"'!",C$4,(YEAR($A42)-1921)*12+MONTH($A42)+3+IF(ISNUMBER(FIND("PRV",C$6)),1,0)))*IF(AND(C$3>0,TRIM(C$9)="CFS"),Conv_Flags!$C42,1)) -> 49.09983826 | D42: =IF(INDIRECT(CONCATENATE("'",D$1,"'!",D$4,(YEAR($A42)-1921)*12+MONTH($A42)+3+IF(ISNUMBER(FIND("PRV",D$6)),1,0)))=-901,NA(),INDIRECT(CONCATENATE("'",D$1,"'!",D$4,(YEAR($A42)-1921)*12+MONTH($A42)+3+IF(ISNUMBER(FIND("PRV",D$6)),1,0)))*IF(AND(D$3>0,TRIM(D$9)="CFS"),Conv_Flags!$C42,1)) -> 49.08396149 | E42: =IF(INDIRECT(CONCATENATE("'",E$1,"'!",E$4,(YEAR($A42)-1921)*12+MONTH($A42)+3+IF(ISNUMBER(FIND("PRV",E$6)),1,0)))=-901,NA(),INDIRECT(CONCATENATE("'",E$1,"'!",E$4,(YEAR($A42)-1921)*12+MONTH($A42)+3+IF(ISNUMBER(FIND("PRV",E$6)),1,0)))*IF(AND(E$3>0,TRIM(E$9)="CFS"),Conv_Flags!$C42,1)) -> 49.09983826 | I42: 1952 | J42: =B373 -> 51.70320892 | K42: =B374 -> 52.75037766 | L42: =B375 -> 48.94118881 | M42: =B376 -> 45.51386642 | N42: =B377 -> 44.44015884 | O42: =B378 -> 46.45432281 | P42: =B379 -> 49.57813644 | Q42: =B380 -> 51.28502274 | R42: =B381 -> 52.32043076 | S42: =B382 -> 51.45443344 | T42: =B383 -> 51.3379097 | U42: =B384 -> 50.35299683 | W42: 49.96414089 | X42: 50.19329484 | Y42: 49.67767111 | AA42: 49.72716045 | AB42: 46.29840469 | AC42: 49.90947819 | AD42: 51.36644268 | AE42: 51.9262619 | AG42: 1952 | AH42: ='Compile Data'!C373 -> 51.72151566 | AI42: ='Compile Data'!C374 -> 52.74693298 | AJ42: ='Compile Data'!C375 -> 48.97186279 | AK42: ='Compile Data'!C376 -> 45.5371933 | AL42: ='Compile Data'!C377 -> 44.46377182 | AM42: ='Compile Data'!C378 -> 46.46373367 | AN42: ='Compile Data'!C379 -> 49.5904541 | AO42: ='Compile Data'!C380 -> 51.27896881 | AP42: ='Compile Data'!C381 -> 52.32258987 | AQ42: ='Compile Data'!C382 -> 51.46330643 | AR42: ='Compile Data'!C383 -> 51.34179306 | AS42: ='Compile Data'!C384 -> 50.36230469 | AU42: 49.97148196 | AV42: 50.19749069 | AW42: 49.68870227 | AY42: 49.74437618 | AZ42: 46.32427597 | BA42: 49.91393661 | BB42: 51.37249851 | BC42: 51.92961884 | BE42: 1952 | BF42: ='Compile Data'!D373 -> 51.6905098 | BG42: ='Compile Data'!D374 -> 52.73209381 | BH42: ='Compile Data'!D375 -> 48.88686371 | BI42: ='Compile Data'!D376 -> 45.49942017 | BJ42: ='Compile Data'!D377 -> 44.43406677 | BK42: ='Compile Data'!D378 -> 46.44355011 | BL42: ='Compile Data'!D379 -> 49.58223724 | BM42: ='Compile Data'!D380 -> 51.28181458 | BN42: ='Compile Data'!D381 -> 52.32531357 | BO42: ='Compile Data'!D382 -> 51.45526123 | BP42: ='Compile Data'!D383 -> 51.33415222 | BQ42: ='Compile Data'!D384 -> 50.25788879 | BS42: 49.94950771 | BT42: 50.18364938 | BU42: 49.66026433 | BW42: 49.70222187 | BX42: 46.27345022 | BY42: 49.90822887 | BZ42: 51.34315395 | CA42: 51.86076228 | CC42: 1952 | CD42: ='Compile Data'!E373 -> 51.7396965 | CE42: ='Compile Data'!E374 -> 52.76810837 | CF42: ='Compile Data'!E375 -> 48.95368195 | CG42: ='Compile Data'!E376 -> 45.52624512 | CH42: ='Compile Data'!E377 -> 44.46125031 | CI42: ='Compile Data'!E378 -> 46.46183014 | CJ42: ='Compile Data'!E379 -> 49.58862686 | CK42: ='Compile Data'!E380 -> 51.27687073 | CL42: ='Compile Data'!E381 -> 52.32060242 | CM42: ='Compile Data'!E382 -> 51.46075058 | CN42: ='Compile Data'!E383 -> 51.34242249 | CO42: ='Compile Data'!E384 -> 50.3590126 | CQ42: 49.96917089 | CR42: 50.19625314 | CS42: 49.68825817 | CU42: 49.74693298 | CV42: 46.31372579 | CW42: 49.91198254 | CX42: 51.37069702 | CY42: 51.92715454 | DA42: 1952 | DB42: ='Compile Data'!#REF! ->  | DC42: ='Compile Data'!#REF! ->  | DD42: ='Compile Data'!#REF! ->  | DE42: ='Compile Data'!#REF! ->  | DF42: ='Compile Data'!#REF! ->  | DG42: ='Compile Data'!#REF! ->  | DH42: ='Compile Data'!#REF! ->  | DI42: ='Compile Data'!#REF! ->  | DJ42: ='Compile Data'!#REF! ->  | DK42: ='Compile Data'!#REF! ->  | DL42: ='Compile Data'!#REF! ->  | DM42: ='Compile Data'!#REF! ->  | DY42: 1952 | DZ42: ='Compile Data'!E373 -> 51.7396965 | EA42: ='Compile Data'!E374 -> 52.76810837 | EB42: ='Compile Data'!E375 -> 48.95368195 | EC42: ='Compile Data'!E376 -> 45.52624512 | ED42: ='Compile Data'!E377 -> 44.46125031 | EE42: ='Compile Data'!E378 -> 46.46183014 | EF42: ='Compile Data'!E379 -> 49.58862686 | EG42: ='Compile Data'!E380 -> 51.27687073 | EH42: ='Compile Data'!E381 -> 52.32060242 | EI42: ='Compile Data'!E382 -> 51.46075058 | EJ42: ='Compile Data'!E383 -> 51.34242249 | EK42: ='Compile Data'!E384 -> 50.3590126 | EM42: 49.96917089 | EN42: 50.19625314 | EO42: 49.68825817 | EQ42: 49.74693298 | ER42: 46.31372579 | ES42: 49.91198254 | ET42: 51.37069702 | EU42: 51.92715454
A43: 1924-04-30 | B43: =IF(INDIRECT(CONCATENATE("'",B$1,"'!",B$4,(YEAR($A43)-1921)*12+MONTH($A43)+3+IF(ISNUMBER(FIND("PRV",B$6)),1,0)))=-901,NA(),INDIRECT(CONCATENATE("'",B$1,"'!",B$4,(YEAR($A43)-1921)*12+MONTH($A43)+3+IF(ISNUMBER(FIND("PRV",B$6)),1,0)))*IF(AND(B$3>0,TRIM(B$9)="CFS"),Conv_Flags!$C43,1)) -> 51.1334877 | C43: =IF(INDIRECT(CONCATENATE("'",C$1,"'!",C$4,(YEAR($A43)-1921)*12+MONTH($A43)+3+IF(ISNUMBER(FIND("PRV",C$6)),1,0)))=-901,NA(),INDIRECT(CONCATENATE("'",C$1,"'!",C$4,(YEAR($A43)-1921)*12+MONTH($A43)+3+IF(ISNUMBER(FIND("PRV",C$6)),1,0)))*IF(AND(C$3>0,TRIM(C$9)="CFS"),Conv_Flags!$C43,1)) -> 51.1100235 | D43: =IF(INDIRECT(CONCATENATE("'",D$1,"'!",D$4,(YEAR($A43)-1921)*12+MONTH($A43)+3+IF(ISNUMBER(FIND("PRV",D$6)),1,0)))=-901,NA(),INDIRECT(CONCATENATE("'",D$1,"'!",D$4,(YEAR($A43)-1921)*12+MONTH($A43)+3+IF(ISNUMBER(FIND("PRV",D$6)),1,0)))*IF(AND(D$3>0,TRIM(D$9)="CFS"),Conv_Flags!$C43,1)) -> 51.10699463 | E43: =IF(INDIRECT(CONCATENATE("'",E$1,"'!",E$4,(YEAR($A43)-1921)*12+MONTH($A43)+3+IF(ISNUMBER(FIND("PRV",E$6)),1,0)))=-901,NA(),INDIRECT(CONCATENATE("'",E$1,"'!",E$4,(YEAR($A43)-1921)*12+MONTH($A43)+3+IF(ISNUMBER(FIND("PRV",E$6)),1,0)))*IF(AND(E$3>0,TRIM(E$9)="CFS"),Conv_Flags!$C43,1)) -> 51.1100235 | I43: 1953 | J43: =B385 -> 51.62741089 | K43: =B386 -> 53.79837799 | L43: =B387 -> 51.40662384 | M43: =B388 -> 46.73344803 | N43: =B389 -> 45.97042465 | O43: =B390 -> 48.40409088 | P43: =B391 -> 51.96505737 | Q43: =B392 -> 50.32528687 | R43: =B393 -> 51.43667221 | S43: =B394 -> 51.52616501 | T43: =B395 -> 51.46970367 | U43: =B396 -> 50.2575531 | W43: 50.21658134 | X43: 50.26638285 | Y43: 50.41006788 | AA43: 50.89146519 | AB43: 48.03683217 | AC43: 50.53277683 | AD43: 51.1725235 | AE43: 51.53816096 | AG43: 1953 | AH43: ='Compile Data'!C385 -> 51.62036896 | AI43: ='Compile Data'!C386 -> 53.80618286 | AJ43: ='Compile Data'!C387 -> 51.40711594 | AK43: ='Compile Data'!C388 -> 46.73832703 | AL43: ='Compile Data'!C389 -> 45.97474289 | AM43: ='Compile Data'!C390 -> 48.40259552 | AN43: ='Compile Data'!C391 -> 52.16081619 | AO43: ='Compile Data'!C392 -> 50.22939682 | AP43: ='Compile Data'!C393 -> 51.43148041 | AQ43: ='Compile Data'!C394 -> 51.51774597 | AR43: ='Compile Data'!C395 -> 51.48023987 | AS43: ='Compile Data'!C396 -> 50.27880096 | AU43: 50.22865327 | AV43: 50.2787803 | AW43: 50.42065112 | AY43: 50.8929987 | AZ43: 48.04006195 | BA43: 50.55607224 | BB43: 51.1770668 | BC43: 51.54682541 | BE43: 1953 | BF43: ='Compile Data'!D385 -> 51.60931015 | BG43: ='Compile Data'!D386 -> 53.71508789 | BH43: ='Compile Data'!D387 -> 51.45598984 | BI43: ='Compile Data'!D388 -> 46.75722504 | BJ43: ='Compile Data'!D389 -> 45.98596191 | BK43: ='Compile Data'!D390 -> 48.41525269 | BL43: ='Compile Data'!D391 -> 52.16115189 | BM43: ='Compile Data'!D392 -> 50.23395538 | BN43: ='Compile Data'!D393 -> 51.43783951 | BO43: ='Compile Data'!D394 -> 51.52393341 | BP43: ='Compile Data'!D395 -> 51.47797394 | BQ43: ='Compile Data'!D396 -> 50.26280212 | BS43: 50.2329572 | BT43: 50.28146807 | BU43: 50.41970698 | BW43: 50.88440323 | BX43: 48.06639226 | BY43: 50.56204987 | BZ43: 51.17563725 | CA43: 51.54320908 | CC43: 1953 | CD43: ='Compile Data'!E385 -> 51.6193161 | CE43: ='Compile Data'!E386 -> 53.80313492 | CF43: ='Compile Data'!E387 -> 51.4099884 | CG43: ='Compile Data'!E388 -> 46.73817444 | CH43: ='Compile Data'!E389 -> 45.97430801 | CI43: ='Compile Data'!E390 -> 48.40465164 | CJ43: ='Compile Data'!E391 -> 52.15507889 | CK43: ='Compile Data'!E392 -> 50.22727203 | CL43: ='Compile Data'!E393 -> 51.43444824 | CM43: ='Compile Data'!E394 -> 51.51425171 | CN43: ='Compile Data'!E395 -> 51.47865295 | CO43: ='Compile Data'!E396 -> 50.27297592 | CQ43: 50.2268095 | CR43: 50.27583631 | CS43: 50.41935444 | CU43: 50.89265347 | CV43: 48.04082362 | CW43: 50.5553627 | CX43: 51.17508221 | CY43: 51.54306666 | DA43: 1953 | DB43: ='Compile Data'!#REF! ->  | DC43: ='Compile Data'!#REF! ->  | DD43: ='Compile Data'!#REF! ->  | DE43: ='Compile Data'!#REF! ->  | DF43: ='Compile Data'!#REF! ->  | DG43: ='Compile Data'!#REF! ->  | DH43: ='Compile Data'!#REF! ->  | DI43: ='Compile Data'!#REF! ->  | DJ43: ='Compile Data'!#REF! ->  | DK43: ='Compile Data'!#REF! ->  | DL43: ='Compile Data'!#REF! ->  | DM43: ='Compile Data'!#REF! ->  | DY43: 1953 | DZ43: ='Compile Data'!E385 -> 51.6193161 | EA43: ='Compile Data'!E386 -> 53.80313492 | EB43: ='Compile Data'!E387 -> 51.4099884 | EC43: ='Compile Data'!E388 -> 46.73817444 | ED43: ='Compile Data'!E389 -> 45.97430801 | EE43: ='Compile Data'!E390 -> 48.40465164 | EF43: ='Compile Data'!E391 -> 52.15507889 | EG43: ='Compile Data'!E392 -> 50.22727203 | EH43: ='Compile Data'!E393 -> 51.43444824 | EI43: ='Compile Data'!E394 -> 51.51425171 | EJ43: ='Compile Data'!E395 -> 51.47865295 | EK43: ='Compile Data'!E396 -> 50.27297592 | EM43: 50.2268095 | EN43: 50.27583631 | EO43: 50.41935444 | EQ43: 50.89265347 | ER43: 48.04082362 | ES43: 50.5553627 | ET43: 51.17508221 | EU43: 51.54306666
A44: 1924-05-31 | B44: =IF(INDIRECT(CONCATENATE("'",B$1,"'!",B$4,(YEAR($A44)-1921)*12+MONTH($A44)+3+IF(ISNUMBER(FIND("PRV",B$6)),1,0)))=-901,NA(),INDIRECT(CONCATENATE("'",B$1,"'!",B$4,(YEAR($A44)-1921)*12+MONTH($A44)+3+IF(ISNUMBER(FIND("PRV",B$6)),1,0)))*IF(AND(B$3>0,TRIM(B$9)="CFS"),Conv_Flags!$C44,1)) -> 53.98318863 | C44: =IF(INDIRECT(CONCATENATE("'",C$1,"'!",C$4,(YEAR($A44)-1921)*12+MONTH($A44)+3+IF(ISNUMBER(FIND("PRV",C$6)),1,0)))=-901,NA(),INDIRECT(CONCATENATE("'",C$1,"'!",C$4,(YEAR($A44)-1921)*12+MONTH($A44)+3+IF(ISNUMBER(FIND("PRV",C$6)),1,0)))*IF(AND(C$3>0,TRIM(C$9)="CFS"),Conv_Flags!$C44,1)) -> 53.78120041 | D44: =IF(INDIRECT(CONCATENATE("'",D$1,"'!",D$4,(YEAR($A44)-1921)*12+MONTH($A44)+3+IF(ISNUMBER(FIND("PRV",D$6)),1,0)))=-901,NA(),INDIRECT(CONCATENATE("'",D$1,"'!",D$4,(YEAR($A44)-1921)*12+MONTH($A44)+3+IF(ISNUMBER(FIND("PRV",D$6)),1,0)))*IF(AND(D$3>0,TRIM(D$9)="CFS"),Conv_Flags!$C44,1)) -> 53.78449249 | E44: =IF(INDIRECT(CONCATENATE("'",E$1,"'!",E$4,(YEAR($A44)-1921)*12+MONTH($A44)+3+IF(ISNUMBER(FIND("PRV",E$6)),1,0)))=-901,NA(),INDIRECT(CONCATENATE("'",E$1,"'!",E$4,(YEAR($A44)-1921)*12+MONTH($A44)+3+IF(ISNUMBER(FIND("PRV",E$6)),1,0)))*IF(AND(E$3>0,TRIM(E$9)="CFS"),Conv_Flags!$C44,1)) -> 53.78120041 | I44: 1954 | J44: =B397 -> 51.31765747 | K44: =B398 -> 53.03927231 | L44: =B399 -> 50.15364456 | M44: =B400 -> 47.57983017 | N44: =B401 -> 45.72166061 | O44: =B402 -> 47.25004578 | P44: =B403 -> 50.03069687 | Q44: =B404 -> 52.24311447 | R44: =B405 -> 51.42726135 | S44: =B406 -> 50.91052628 | T44: =B407 -> 51.43001175 | U44: =B408 -> 50.80907059 | W44: =IF(W$11="AVG",AVERAGE(M44:U44,J45:L45),SUM(M44:U44,J45:L45)) -> 50.25907707 | X44: =IF(X$11="AVG",AVERAGE(O44:U44,J45:N45),SUM(O44:U44,J45:N45)) -> 50.31830724 | Y44: =IF(Y$11="AVG",AVERAGE(J44:U44),SUM(J44:U44)) -> 50.15939935 | AA44: =IF(AA$11="AVG",IF(AA$1="INST-VAL",AVERAGE(U43,J44:L44,J44:M44),AVERAGE(J44:M44)),SUM(J44:M44)) -> 50.52260113 | AB44: =IF(AB$11="AVG",IF(AA$1="INST-VAL",AVERAGE(K44:M44,L44:N44),AVERAGE(L44:N44)),SUM(L44:N44)) -> 47.81837845 | AC44: =IF(AC$11="AVG",IF(AA$1="INST-VAL",AVERAGE(N44:Q44,O44:R44),AVERAGE(O44:R44)),SUM(O44:R44)) -> 50.23777962 | AD44: =IF(AD$11="AVG",IF(AA$1="INST-VAL",AVERAGE(Q44:T44,R44:U44),AVERAGE(R44:U44)),SUM(R44:U44)) -> 51.14421749 | AE44: =IF(AE$11="AVG",IF(AA$1="INST-VAL",AVERAGE(T44:U44,J45,U44,J45:K45),AVERAGE(U44,J45:K45)),SUM(U44,J45:K45)) -> 51.93024953 | AG44: 1954 | AH44: ='Compile Data'!C397 -> 51.31160355 | AI44: ='Compile Data'!C398 -> 53.05007172 | AJ44: ='Compile Data'!C399 -> 50.16801834 | AK44: ='Compile Data'!C400 -> 47.59025192 | AL44: ='Compile Data'!C401 -> 45.72434235 | AM44: ='Compile Data'!C402 -> 47.25453949 | AN44: ='Compile Data'!C403 -> 50.0433197 | AO44: ='Compile Data'!C404 -> 52.24956894 | AP44: ='Compile Data'!C405 -> 51.43402863 | AQ44: ='Compile Data'!C406 -> 50.90300751 | AR44: ='Compile Data'!C407 -> 51.43959808 | AS44: ='Compile Data'!C408 -> 50.81594086 | AU44: =IF(AU$11="AVG",AVERAGE(AK44:AS44,AH45:AJ45),SUM(AK44:AS44,AH45:AJ45)) -> 50.26592255 | AV44: =IF(AV$11="AVG",AVERAGE(AM44:AS44,AH45:AL45),SUM(AM44:AS44,AH45:AL45)) -> 50.32112058 | AW44: =IF(AW$11="AVG",AVERAGE(AH44:AS44),SUM(AH44:AS44)) -> 50.16535759 | AY44: =IF(AY$11="AVG",IF(AY$1="INST-VAL",AVERAGE(AS43,AH44:AJ44,AH44:AK44),AVERAGE(AH44:AK44)),SUM(AH44:AK44)) -> 50.52998638 | AZ44: =IF(AZ$11="AVG",IF(AY$1="INST-VAL",AVERAGE(AI44:AK44,AJ44:AL44),AVERAGE(AJ44:AL44)),SUM(AJ44:AL44)) -> 47.82753754 | BA44: =IF(BA$11="AVG",IF(AY$1="INST-VAL",AVERAGE(AL44:AO44,AM44:AP44),AVERAGE(AM44:AP44)),SUM(AM44:AP44)) -> 50.24536419 | BB44: =IF(BB$11="AVG",IF(AY$1="INST-VAL",AVERAGE(AO44:AR44,AP44:AS44),AVERAGE(AP44:AS44)),SUM(AP44:AS44)) -> 51.14814377 | BC44: =IF(BC$11="AVG",IF(AY$1="INST-VAL",AVERAGE(AR44:AS44,AH45,AS44,AH45:AI45),AVERAGE(AS44,AH45:AI45)),SUM(AS44,AH45:AI45)) -> 51.93144099 | BE44: 1954 | BF44: ='Compile Data'!D397 -> 51.31272888 | BG44: ='Compile Data'!D398 -> 53.05409622 | BH44: ='Compile Data'!D399 -> 50.17256546 | BI44: ='Compile Data'!D400 -> 47.59520721 | BJ44: ='Compile Data'!D401 -> 45.73011017 | BK44: ='Compile Data'!D402 -> 47.25553894 | BL44: ='Compile Data'!D403 -> 50.04353333 | BM44: ='Compile Data'!D404 -> 52.29109573 | BN44: ='Compile Data'!D405 -> 51.67089081 | BO44: ='Compile Data'!D406 -> 50.91252899 | BP44: ='Compile Data'!D407 -> 51.45530701 | BQ44: ='Compile Data'!D408 -> 50.77133942 | BS44: =IF(BS$11="AVG",AVERAGE(BI44:BQ44,BF45:BH45),SUM(BI44:BQ44,BF45:BH45)) -> 50.28074932 | BT44: =IF(BT$11="AVG",AVERAGE(BK44:BQ44,BF45:BJ45),SUM(BK44:BQ44,BF45:BJ45)) -> 50.33247121 | BU44: =IF(BU$11="AVG",AVERAGE(BF44:BQ44),SUM(BF44:BQ44)) -> 50.18874518 | BW44: =IF(BW$11="AVG",IF(BW$1="INST-VAL",AVERAGE(BQ43,BF44:BH44,BF44:BI44),AVERAGE(BF44:BI44)),SUM(BF44:BI44)) -> 50.53364944 | BX44: =IF(BX$11="AVG",IF(BW$1="INST-VAL",AVERAGE(BG44:BI44,BH44:BJ44),AVERAGE(BH44:BJ44)),SUM(BH44:BJ44)) -> 47.83262761 | BY44: =IF(BY$11="AVG",IF(BW$1="INST-VAL",AVERAGE(BJ44:BM44,BK44:BN44),AVERAGE(BK44:BN44)),SUM(BK44:BN44)) -> 50.3152647 | BZ44: =IF(BZ$11="AVG",IF(BW$1="INST-VAL",AVERAGE(BM44:BP44,BN44:BQ44),AVERAGE(BN44:BQ44)),SUM(BN44:BQ44)) -> 51.20251656 | CA44: =IF(CA$11="AVG",IF(BW$1="INST-VAL",AVERAGE(BP44:BQ44,BF45,BQ44,BF45:BG45),AVERAGE(BQ44,BF45:BG45)),SUM(BQ44,BF45:BG45)) -> 51.87150701 | CC44: 1954 | CD44: ='Compile Data'!E397 -> 51.30839157 | CE44: ='Compile Data'!E398 -> 53.04783249 | CF44: ='Compile Data'!E399 -> 50.16567612 | CG44: ='Compile Data'!E400 -> 47.58892441 | CH44: ='Compile Data'!E401 -> 45.71187973 | CI44: ='Compile Data'!E402 -> 47.25459671 | CJ44: ='Compile Data'!E403 -> 50.050354 | CK44: ='Compile Data'!E404 -> 52.25281906 | CL44: ='Compile Data'!E405 -> 51.4342041 | CM44: ='Compile Data'!E406 -> 50.90353012 | CN44: ='Compile Data'!E407 -> 51.44109344 | CO44: ='Compile Data'!E408 -> 50.81877518 | CQ44: =IF(CQ$11="AVG",AVERAGE(CG44:CO44,CD45:CF45),SUM(CG44:CO44,CD45:CF45)) -> 50.26558208 | CR44: =IF(CR$11="AVG",AVERAGE(CI44:CO44,CD45:CH45),SUM(CI44:CO44,CD45:CH45)) -> 50.32203261 | CS44: =IF(CS$11="AVG",AVERAGE(CD44:CO44),SUM(CD44:CO44)) -> 50.16483974 | CU44: =IF(CU$11="AVG",IF(CU$1="INST-VAL",AVERAGE(CO43,CD44:CF44,CD44:CG44),AVERAGE(CD44:CG44)),SUM(CD44:CG44)) -> 50.52770615 | CV44: =IF(CV$11="AVG",IF(CU$1="INST-VAL",AVERAGE(CE44:CG44,CF44:CH44),AVERAGE(CF44:CH44)),SUM(CF44:CH44)) -> 47.82216009 | CW44: =IF(CW$11="AVG",IF(CU$1="INST-VAL",AVERAGE(CH44:CK44,CI44:CL44),AVERAGE(CI44:CL44)),SUM(CI44:CL44)) -> 50.24799347 | CX44: =IF(CX$11="AVG",IF(CU$1="INST-VAL",AVERAGE(CK44:CN44,CL44:CO44),AVERAGE(CL44:CO44)),SUM(CL44:CO44)) -> 51.14940071 | CY44: =IF(CY$11="AVG",IF(CU$1="INST-VAL",AVERAGE(CN44:CO44,CD45,CO44,CD45:CE45),AVERAGE(CO44,CD45:CE45)),SUM(CO44,CD45:CE45)) -> 51.92959849 | DA44: 1954 | DB44: ='Compile Data'!#REF! ->  | DC44: ='Compile Data'!#REF! ->  | DD44: ='Compile Data'!#REF! ->  | DE44: ='Compile Data'!#REF! ->  | DF44: ='Compile Data'!#REF! ->  | DG44: ='Compile Data'!#REF! ->  | DH44: ='Compile Data'!#REF! ->  | DI44: ='Compile Data'!#REF! ->  | DJ44: ='Compile Data'!#REF! ->  | DK44: ='Compile Data'!#REF! ->  | DL44: ='Compile Data'!#REF! ->  | DM44: ='Compile Data'!#REF! ->  | DY44: 1954 | DZ44: ='Compile Data'!E397 -> 51.30839157 | EA44: ='Compile Data'!E398 -> 53.04783249 | EB44: ='Compile Data'!E399 -> 50.16567612 | EC44: ='Compile Data'!E400 -> 47.58892441 | ED44: ='Compile Data'!E401 -> 45.71187973 | EE44: ='Compile Data'!E402 -> 47.25459671 | EF44: ='Compile Data'!E403 -> 50.050354 | EG44: ='Compile Data'!E404 -> 52.25281906 | EH44: ='Compile Data'!E405 -> 51.4342041 | EI44: ='Compile Data'!E406 -> 50.90353012 | EJ44: ='Compile Data'!E407 -> 51.44109344 | EK44: ='Compile Data'!E408 -> 50.81877518 | EM44: 50.26558208 | EN44: 50.32203261 | EO44: 50.16483974 | EQ44: 50.52770615 | ER44: 47.82216009 | ES44: 50.24799347 | ET44: 51.14940071 | EU44: 51.92959849
A45: 1924-06-30 | B45: =IF(INDIRECT(CONCATENATE("'",B$1,"'!",B$4,(YEAR($A45)-1921)*12+MONTH($A45)+3+IF(ISNUMBER(FIND("PRV",B$6)),1,0)))=-901,NA(),INDIRECT(CONCATENATE("'",B$1,"'!",B$4,(YEAR($A45)-1921)*12+MONTH($A45)+3+IF(ISNUMBER(FIND("PRV",B$6)),1,0)))*IF(AND(B$3>0,TRIM(B$9)="CFS"),Conv_Flags!$C45,1)) -> 55.86037827 | C45: =IF(INDIRECT(CONCATENATE("'",C$1,"'!",C$4,(YEAR($A45)-1921)*12+MONTH($A45)+3+IF(ISNUMBER(FIND("PRV",C$6)),1,0)))=-901,NA(),INDIRECT(CONCATENATE("'",C$1,"'!",C$4,(YEAR($A45)-1921)*12+MONTH($A45)+3+IF(ISNUMBER(FIND("PRV",C$6)),1,0)))*IF(AND(C$3>0,TRIM(C$9)="CFS"),Conv_Flags!$C45,1)) -> 55.84084702 | D45: =IF(INDIRECT(CONCATENATE("'",D$1,"'!",D$4,(YEAR($A45)-1921)*12+MONTH($A45)+3+IF(ISNUMBER(FIND("PRV",D$6)),1,0)))=-901,NA(),INDIRECT(CONCATENATE("'",D$1,"'!",D$4,(YEAR($A45)-1921)*12+MONTH($A45)+3+IF(ISNUMBER(FIND("PRV",D$6)),1,0)))*IF(AND(D$3>0,TRIM(D$9)="CFS"),Conv_Flags!$C45,1)) -> 55.85063934 | E45: =IF(INDIRECT(CONCATENATE("'",E$1,"'!",E$4,(YEAR($A45)-1921)*12+MONTH($A45)+3+IF(ISNUMBER(FIND("PRV",E$6)),1,0)))=-901,NA(),INDIRECT(CONCATENATE("'",E$1,"'!",E$4,(YEAR($A45)-1921)*12+MONTH($A45)+3+IF(ISNUMBER(FIND("PRV",E$6)),1,0)))*IF(AND(E$3>0,TRIM(E$9)="CFS"),Conv_Flags!$C45,1)) -> 55.84084702 | I45: 1955 | J45: =B409 -> 51.80165482 | K45: =B410 -> 53.18002319 | L45: =B411 -> 50.72502899 | M45: =B412 -> 47.06308365 | N45: =B413 -> 46.94916916 | O45: =B414 -> 49.73684692 | P45: =B415 -> 52.77351761 | Q45: =B416 -> 52.92913437 | R45: =B417 -> 51.07455063 | S45: =B418 -> 51.25269699 | T45: =B419 -> 51.94898605 | U45: =B420 -> 53.03466415 | W45: 51.00402578 | X45: 50.53543504 | Y45: 51.03911304 | AA45: 50.69244766 | AB45: 48.2457606 | AC45: 51.62851238 | AD45: 51.82772446 | AE45: 52.82274246 | AG45: 1955 | AH45: ='Compile Data'!C409 -> 51.80641174 | AI45: ='Compile Data'!C410 -> 53.17197037 | AJ45: ='Compile Data'!C411 -> 50.75809097 | AK45: ='Compile Data'!C412 -> 47.05801773 | AL45: ='Compile Data'!C413 -> 46.91895294 | AM45: ='Compile Data'!C414 -> 49.73463058 | AN45: ='Compile Data'!C415 -> 52.93383408 | AO45: ='Compile Data'!C416 -> 52.93997955 | AP45: ='Compile Data'!C417 -> 51.10567474 | AQ45: ='Compile Data'!C418 -> 51.25790405 | AR45: ='Compile Data'!C419 -> 51.94303894 | AS45: ='Compile Data'!C420 -> 53.11491776 | AU45: 51.03205172 | AV45: 50.56223043 | AW45: 51.06195196 | AY45: 50.6986227 | AZ45: 48.24502055 | BA45: 51.67852974 | BB45: 51.85538387 | BC45: 52.90062459 | BE45: 1955 | BF45: ='Compile Data'!D409 -> 51.80992889 | BG45: ='Compile Data'!D410 -> 53.03325272 | BH45: ='Compile Data'!D411 -> 50.80025864 | BI45: ='Compile Data'!D412 -> 47.02319336 | BJ45: ='Compile Data'!D413 -> 46.92278671 | BK45: ='Compile Data'!D414 -> 49.69593811 | BL45: ='Compile Data'!D415 -> 52.87311935 | BM45: ='Compile Data'!D416 -> 52.89472198 | BN45: ='Compile Data'!D417 -> 51.1014595 | BO45: ='Compile Data'!D418 -> 51.25998306 | BP45: ='Compile Data'!D419 -> 51.96721268 | BQ45: ='Compile Data'!D420 -> 52.63885117 | BS45: 50.99923547 | BT45: 50.52981949 | BU45: 51.00172551 | BW45: 50.6666584 | BX45: 48.24874624 | BY45: 51.64130974 | BZ45: 51.7418766 | CA45: 52.82011922 | CC45: 1955 | CD45: ='Compile Data'!E409 -> 51.79335022 | CE45: ='Compile Data'!E410 -> 53.17667007 | CF45: ='Compile Data'!E411 -> 50.76078796 | CG45: ='Compile Data'!E412 -> 47.05905914 | CH45: ='Compile Data'!E413 -> 46.91915131 | CI45: ='Compile Data'!E414 -> 49.73511887 | CJ45: ='Compile Data'!E415 -> 52.93128586 | CK45: ='Compile Data'!E416 -> 52.93570328 | CL45: ='Compile Data'!E417 -> 51.10325623 | CM45: ='Compile Data'!E418 -> 51.25842285 | CN45: ='Compile Data'!E419 -> 51.94754028 | CO45: ='Compile Data'!E420 -> 53.1133728 | CQ45: 51.03124269 | CR45: 50.56114515 | CS45: 51.06114324 | CU45: 50.69746685 | CV45: 48.2463328 | CW45: 51.67634106 | CX45: 51.85564804 | CY45: 52.89957555 | DA45: 1955 | DB45: ='Compile Data'!#REF! ->  | DC45: ='Compile Data'!#REF! ->  | DD45: ='Compile Data'!#REF! ->  | DE45: ='Compile Data'!#REF! ->  | DF45: ='Compile Data'!#REF! ->  | DG45: ='Compile Data'!#REF! ->  | DH45: ='Compile Data'!#REF! ->  | DI45: ='Compile Data'!#REF! ->  | DJ45: ='Compile Data'!#REF! ->  | DK45: ='Compile Data'!#REF! ->  | DL45: ='Compile Data'!#REF! ->  | DM45: ='Compile Data'!#REF! ->  | DY45: 1955 | DZ45: ='Compile Data'!E409 -> 51.79335022 | EA45: ='Compile Data'!E410 -> 53.17667007 | EB45: ='Compile Data'!E411 -> 50.76078796 | EC45: ='Compile Data'!E412 -> 47.05905914 | ED45: ='Compile Data'!E413 -> 46.91915131 | EE45: ='Compile Data'!E414 -> 49.73511887 | EF45: ='Compile Data'!E415 -> 52.93128586 | EG45: ='Compile Data'!E416 -> 52.93570328 | EH45: ='Compile Data'!E417 -> 51.10325623 | EI45: ='Compile Data'!E418 -> 51.25842285 | EJ45: ='Compile Data'!E419 -> 51.94754028 | EK45: ='Compile Data'!E420 -> 53.1133728 | EM45: 51.03124269 | EN45: 50.56114515 | EO45: 51.06114324 | EQ45: 50.69746685 | ER45: 48.2463328 | ES45: 51.67634106 | ET45: 51.85564804 | EU45: 52.89957555
A46: 1924-07-31 | B46: =IF(INDIRECT(CONCATENATE("'",B$1,"'!",B$4,(YEAR($A46)-1921)*12+MONTH($A46)+3+IF(ISNUMBER(FIND("PRV",B$6)),1,0)))=-901,NA(),INDIRECT(CONCATENATE("'",B$1,"'!",B$4,(YEAR($A46)-1921)*12+MONTH($A46)+3+IF(ISNUMBER(FIND("PRV",B$6)),1,0)))*IF(AND(B$3>0,TRIM(B$9)="CFS"),Conv_Flags!$C46,1)) -> 52.36655426 | C46: =IF(INDIRECT(CONCATENATE("'",C$1,"'!",C$4,(YEAR($A46)-1921)*12+MONTH($A46)+3+IF(ISNUMBER(FIND("PRV",C$6)),1,0)))=-901,NA(),INDIRECT(CONCATENATE("'",C$1,"'!",C$4,(YEAR($A46)-1921)*12+MONTH($A46)+3+IF(ISNUMBER(FIND("PRV",C$6)),1,0)))*IF(AND(C$3>0,TRIM(C$9)="CFS"),Conv_Flags!$C46,1)) -> 52.34514236 | D46: =IF(INDIRECT(CONCATENATE("'",D$1,"'!",D$4,(YEAR($A46)-1921)*12+MONTH($A46)+3+IF(ISNUMBER(FIND("PRV",D$6)),1,0)))=-901,NA(),INDIRECT(CONCATENATE("'",D$1,"'!",D$4,(YEAR($A46)-1921)*12+MONTH($A46)+3+IF(ISNUMBER(FIND("PRV",D$6)),1,0)))*IF(AND(D$3>0,TRIM(D$9)="CFS"),Conv_Flags!$C46,1)) -> 52.3421669 | E46: =IF(INDIRECT(CONCATENATE("'",E$1,"'!",E$4,(YEAR($A46)-1921)*12+MONTH($A46)+3+IF(ISNUMBER(FIND("PRV",E$6)),1,0)))=-901,NA(),INDIRECT(CONCATENATE("'",E$1,"'!",E$4,(YEAR($A46)-1921)*12+MONTH($A46)+3+IF(ISNUMBER(FIND("PRV",E$6)),1,0)))*IF(AND(E$3>0,TRIM(E$9)="CFS"),Conv_Flags!$C46,1)) -> 52.33640289 | I46: 1956 | J46: =B421 -> 52.25862122 | K46: =B422 -> 53.17494202 | L46: =B423 -> 49.85209656 | M46: =B424 -> 44.96642303 | N46: =B425 -> 43.42274094 | O46: =B426 -> 47.31982422 | P46: =B427 -> 51.71403503 | Q46: =B428 -> 50.73176956 | R46: =B429 -> 52.41162872 | S46: =B430 -> 52.0045166 | T46: =B431 -> 51.22290802 | U46: =B432 -> 50.07141876 | W46: 49.99445947 | X46: 50.59442679 | Y46: 49.92924372 | AA46: 50.06302071 | AB46: 46.08042018 | AC46: 50.54431438 | AD46: 51.42761803 | AE46: 51.58328247 | AG46: 1956 | AH46: ='Compile Data'!C421 -> 52.4038353 | AI46: ='Compile Data'!C422 -> 53.18312073 | AJ46: ='Compile Data'!C423 -> 49.79071426 | AK46: ='Compile Data'!C424 -> 44.9353714 | AL46: ='Compile Data'!C425 -> 43.40374374 | AM46: ='Compile Data'!C426 -> 47.30866241 | AN46: ='Compile Data'!C427 -> 51.71315765 | AO46: ='Compile Data'!C428 -> 50.7241478 | AP46: ='Compile Data'!C429 -> 52.49690628 | AQ46: ='Compile Data'!C430 -> 52.07388687 | AR46: ='Compile Data'!C431 -> 51.14707565 | AS46: ='Compile Data'!C432 -> 50.07538223 | AU46: 49.99612999 | AV46: 50.60015615 | AW46: 49.93800036 | AY46: 50.07826042 | AZ46: 46.04327647 | BA46: 50.56071854 | BB46: 51.44831276 | BC46: 51.59069316 | BE46: 1956 | BF46: ='Compile Data'!D421 -> 52.26667023 | BG46: ='Compile Data'!D422 -> 53.55483627 | BH46: ='Compile Data'!D423 -> 49.79205322 | BI46: ='Compile Data'!D424 -> 44.91824341 | BJ46: ='Compile Data'!D425 -> 43.39474487 | BK46: ='Compile Data'!D426 -> 47.32637024 | BL46: ='Compile Data'!D427 -> 51.72954559 | BM46: ='Compile Data'!D428 -> 50.7254982 | BN46: ='Compile Data'!D429 -> 52.49520111 | BO46: ='Compile Data'!D430 -> 52.07552338 | BP46: ='Compile Data'!D431 -> 51.14674759 | BQ46: ='Compile Data'!D432 -> 50.0755043 | BS46: 49.99757067 | BT46: 50.6030817 | BU46: 49.95841153 | BW46: 50.13295078 | BX46: 46.03501383 | BY46: 50.56915379 | BZ46: 51.44824409 | CA46: 51.5957044 | CC46: 1956 | CD46: ='Compile Data'!E421 -> 52.40334702 | CE46: ='Compile Data'!E422 -> 53.18200684 | CF46: ='Compile Data'!E423 -> 49.7866478 | CG46: ='Compile Data'!E424 -> 44.93375015 | CH46: ='Compile Data'!E425 -> 43.40328979 | CI46: ='Compile Data'!E426 -> 47.30913544 | CJ46: ='Compile Data'!E427 -> 51.71873474 | CK46: ='Compile Data'!E428 -> 50.73340988 | CL46: ='Compile Data'!E429 -> 52.49695206 | CM46: ='Compile Data'!E430 -> 52.07315445 | CN46: ='Compile Data'!E431 -> 51.14319992 | CO46: ='Compile Data'!E432 -> 50.07668686 | CQ46: 49.99546941 | CR46: 50.59886678 | CS46: 49.93835958 | CU46: 50.07643795 | CV46: 46.04122925 | CW46: 50.56455803 | CX46: 51.44749832 | CY46: 51.58411916 | DA46: 1956 | DB46: ='Compile Data'!#REF! ->  | DC46: ='Compile Data'!#REF! ->  | DD46: ='Compile Data'!#REF! ->  | DE46: ='Compile Data'!#REF! ->  | DF46: ='Compile Data'!#REF! ->  | DG46: ='Compile Data'!#REF! ->  | DH46: ='Compile Data'!#REF! ->  | DI46: ='Compile Data'!#REF! ->  | DJ46: ='Compile Data'!#REF! ->  | DK46: ='Compile Data'!#REF! ->  | DL46: ='Compile Data'!#REF! ->  | DM46: ='Compile Data'!#REF! ->  | DY46: 1956 | DZ46: ='Compile Data'!E421 -> 52.40334702 | EA46: ='Compile Data'!E422 -> 53.18200684 | EB46: ='Compile Data'!E423 -> 49.7866478 | EC46: ='Compile Data'!E424 -> 44.93375015 | ED46: ='Compile Data'!E425 -> 43.40328979 | EE46: ='Compile Data'!E426 -> 47.30913544 | EF46: ='Compile Data'!E427 -> 51.71873474 | EG46: ='Compile Data'!E428 -> 50.73340988 | EH46: ='Compile Data'!E429 -> 52.49695206 | EI46: ='Compile Data'!E430 -> 52.07315445 | EJ46: ='Compile Data'!E431 -> 51.14319992 | EK46: ='Compile Data'!E432 -> 50.07668686 | EM46: 49.99546941 | EN46: 50.59886678 | EO46: 49.93835958 | EQ46: 50.07643795 | ER46: 46.04122925 | ES46: 50.56455803 | ET46: 51.44749832 | EU46: 51.58411916
A47: 1924-08-31 | B47: =IF(INDIRECT(CONCATENATE("'",B$1,"'!",B$4,(YEAR($A47)-1921)*12+MONTH($A47)+3+IF(ISNUMBER(FIND("PRV",B$6)),1,0)))=-901,NA(),INDIRECT(CONCATENATE("'",B$1,"'!",B$4,(YEAR($A47)-1921)*12+MONTH($A47)+3+IF(ISNUMBER(FIND("PRV",B$6)),1,0)))*IF(AND(B$3>0,TRIM(B$9)="CFS"),Conv_Flags!$C47,1)) -> 52.82830048 | C47: =IF(INDIRECT(CONCATENATE("'",C$1,"'!",C$4,(YEAR($A47)-1921)*12+MONTH($A47)+3+IF(ISNUMBER(FIND("PRV",C$6)),1,0)))=-901,NA(),INDIRECT(CONCATENATE("'",C$1,"'!",C$4,(YEAR($A47)-1921)*12+MONTH($A47)+3+IF(ISNUMBER(FIND("PRV",C$6)),1,0)))*IF(AND(C$3>0,TRIM(C$9)="CFS"),Conv_Flags!$C47,1)) -> 52.81408691 | D47: =IF(INDIRECT(CONCATENATE("'",D$1,"'!",D$4,(YEAR($A47)-1921)*12+MONTH($A47)+3+IF(ISNUMBER(FIND("PRV",D$6)),1,0)))=-901,NA(),INDIRECT(CONCATENATE("'",D$1,"'!",D$4,(YEAR($A47)-1921)*12+MONTH($A47)+3+IF(ISNUMBER(FIND("PRV",D$6)),1,0)))*IF(AND(D$3>0,TRIM(D$9)="CFS"),Conv_Flags!$C47,1)) -> 52.79203033 | E47: =IF(INDIRECT(CONCATENATE("'",E$1,"'!",E$4,(YEAR($A47)-1921)*12+MONTH($A47)+3+IF(ISNUMBER(FIND("PRV",E$6)),1,0)))=-901,NA(),INDIRECT(CONCATENATE("'",E$1,"'!",E$4,(YEAR($A47)-1921)*12+MONTH($A47)+3+IF(ISNUMBER(FIND("PRV",E$6)),1,0)))*IF(AND(E$3>0,TRIM(E$9)="CFS"),Conv_Flags!$C47,1)) -> 52.82312393 | I47: 1957 | J47: =B433 -> 51.17885971 | K47: =B434 -> 53.49956894 | L47: =B435 -> 51.3898201 | M47: =B436 -> 48.61327744 | N47: =B437 -> 46.97549438 | O47: =B438 -> 48.26123428 | P47: =B439 -> 53.32024384 | Q47: =B440 -> 50.94897842 | R47: =B441 -> 52.27963257 | S47: =B442 -> 50.78852844 | T47: =B443 -> 51.254879 | U47: =B444 -> 51.34958649 | W47: 50.81607914 | X47: 50.55343278 | Y47: 50.8216753 | AA47: 51.17038155 | AB47: 48.99286397 | AC47: 51.20252228 | AD47: 51.41815662 | AE47: 52.27788417 | AG47: 1957 | AH47: ='Compile Data'!C433 -> 51.18105698 | AI47: ='Compile Data'!C434 -> 53.51564026 | AJ47: ='Compile Data'!C435 -> 51.37852859 | AK47: ='Compile Data'!C436 -> 48.60372543 | AL47: ='Compile Data'!C437 -> 46.98370361 | AM47: ='Compile Data'!C438 -> 48.26725006 | AN47: ='Compile Data'!C439 -> 53.32081604 | AO47: ='Compile Data'!C440 -> 50.94559479 | AP47: ='Compile Data'!C441 -> 52.36231995 | AQ47: ='Compile Data'!C442 -> 50.79089355 | AR47: ='Compile Data'!C443 -> 51.27443695 | AS47: ='Compile Data'!C444 -> 51.36839676 | AU47: 50.82058112 | AV47: 50.5564963 | AW47: 50.83269691 | AY47: 51.16973782 | AZ47: 48.98865255 | BA47: 51.22399521 | BB47: 51.4490118 | BC47: 52.26228968 | BE47: 1957 | BF47: ='Compile Data'!D433 -> 51.18196487 | BG47: ='Compile Data'!D434 -> 53.52964401 | BH47: ='Compile Data'!D435 -> 51.3718605 | BI47: ='Compile Data'!D436 -> 48.60016632 | BJ47: ='Compile Data'!D437 -> 46.97895432 | BK47: ='Compile Data'!D438 -> 48.26589584 | BL47: ='Compile Data'!D439 -> 53.31986237 | BM47: ='Compile Data'!D440 -> 50.95077515 | BN47: ='Compile Data'!D441 -> 53.09226227 | BO47: ='Compile Data'!D442 -> 50.80289078 | BP47: ='Compile Data'!D443 -> 51.2244873 | BQ47: ='Compile Data'!D444 -> 51.28595352 | BS47: 50.85210927 | BT47: 50.58830388 | BU47: 50.88372644 | BW47: 51.17090893 | BX47: 48.98366038 | BY47: 51.40719891 | BZ47: 51.60139847 | CA47: 52.15929921 | CC47: 1957 | CD47: ='Compile Data'!E433 -> 51.18335342 | CE47: ='Compile Data'!E434 -> 53.4923172 | CF47: ='Compile Data'!E435 -> 51.38164902 | CG47: ='Compile Data'!E436 -> 48.60686874 | CH47: ='Compile Data'!E437 -> 46.97093964 | CI47: ='Compile Data'!E438 -> 48.26527405 | CJ47: ='Compile Data'!E439 -> 53.31892014 | CK47: ='Compile Data'!E440 -> 50.94956207 | CL47: ='Compile Data'!E441 -> 52.36255646 | CM47: ='Compile Data'!E442 -> 50.79112244 | CN47: ='Compile Data'!E443 -> 51.27439499 | CO47: ='Compile Data'!E444 -> 51.36531448 | CQ47: 50.81994851 | CR47: 50.55649408 | CS47: 50.83018939 | CU47: 51.1660471 | CV47: 48.9864858 | CW47: 51.22407818 | CX47: 51.44834709 | CY47: 52.2630043 | DA47: 1957 | DB47: ='Compile Data'!#REF! ->  | DC47: ='Compile Data'!#REF! ->  | DD47: ='Compile Data'!#REF! ->  | DE47: ='Compile Data'!#REF! ->  | DF47: ='Compile Data'!#REF! ->  | DG47: ='Compile Data'!#REF! ->  | DH47: ='Compile Data'!#REF! ->  | DI47: ='Compile Data'!#REF! ->  | DJ47: ='Compile Data'!#REF! ->  | DK47: ='Compile Data'!#REF! ->  | DL47: ='Compile Data'!#REF! ->  | DM47: ='Compile Data'!#REF! ->  | DY47: 1957 | DZ47: ='Compile Data'!E433 -> 51.18335342 | EA47: ='Compile Data'!E434 -> 53.4923172 | EB47: ='Compile Data'!E435 -> 51.38164902 | EC47: ='Compile Data'!E436 -> 48.60686874 | ED47: ='Compile Data'!E437 -> 46.97093964 | EE47: ='Compile Data'!E438 -> 48.26527405 | EF47: ='Compile Data'!E439 -> 53.31892014 | EG47: ='Compile Data'!E440 -> 50.94956207 | EH47: ='Compile Data'!E441 -> 52.36255646 | EI47: ='Compile Data'!E442 -> 50.79112244 | EJ47: ='Compile Data'!E443 -> 51.27439499 | EK47: ='Compile Data'!E444 -> 51.36531448 | EM47: 50.81994851 | EN47: 50.55649408 | EO47: 50.83018939 | EQ47: 51.1660471 | ER47: 48.9864858 | ES47: 51.22407818 | ET47: 51.44834709 | EU47: 52.2630043
A48: 1924-09-30 | B48: =IF(INDIRECT(CONCATENATE("'",B$1,"'!",B$4,(YEAR($A48)-1921)*12+MONTH($A48)+3+IF(ISNUMBER(FIND("PRV",B$6)),1,0)))=-901,NA(),INDIRECT(CONCATENATE("'",B$1,"'!",B$4,(YEAR($A48)-1921)*12+MONTH($A48)+3+IF(ISNUMBER(FIND("PRV",B$6)),1,0)))*IF(AND(B$3>0,TRIM(B$9)="CFS"),Conv_Flags!$C48,1)) -> 55.4389267 | C48: =IF(INDIRECT(CONCATENATE("'",C$1,"'!",C$4,(YEAR($A48)-1921)*12+MONTH($A48)+3+IF(ISNUMBER(FIND("PRV",C$6)),1,0)))=-901,NA(),INDIRECT(CONCATENATE("'",C$1,"'!",C$4,(YEAR($A48)-1921)*12+MONTH($A48)+3+IF(ISNUMBER(FIND("PRV",C$6)),1,0)))*IF(AND(C$3>0,TRIM(C$9)="CFS"),Conv_Flags!$C48,1)) -> 55.28345871 | D48: =IF(INDIRECT(CONCATENATE("'",D$1,"'!",D$4,(YEAR($A48)-1921)*12+MONTH($A48)+3+IF(ISNUMBER(FIND("PRV",D$6)),1,0)))=-901,NA(),INDIRECT(CONCATENATE("'",D$1,"'!",D$4,(YEAR($A48)-1921)*12+MONTH($A48)+3+IF(ISNUMBER(FIND("PRV",D$6)),1,0)))*IF(AND(D$3>0,TRIM(D$9)="CFS"),Conv_Flags!$C48,1)) -> 55.29014969 | E48: =IF(INDIRECT(CONCATENATE("'",E$1,"'!",E$4,(YEAR($A48)-1921)*12+MONTH($A48)+3+IF(ISNUMBER(FIND("PRV",E$6)),1,0)))=-901,NA(),INDIRECT(CONCATENATE("'",E$1,"'!",E$4,(YEAR($A48)-1921)*12+MONTH($A48)+3+IF(ISNUMBER(FIND("PRV",E$6)),1,0)))*IF(AND(E$3>0,TRIM(E$9)="CFS"),Conv_Flags!$C48,1)) -> 55.35923004 | I48: 1958 | J48: =B445 -> 52.01280594 | K48: =B446 -> 53.47126007 | L48: =B447 -> 50.51702881 | M48: =B448 -> 47.16850281 | N48: =B449 -> 45.26851273 | O48: =B450 -> 45.68782806 | P48: =B451 -> 49.87080002 | Q48: =B452 -> 51.70133972 | R48: =B453 -> 51.93416977 | S48: =B454 -> 51.18565369 | T48: =B455 -> 51.30867767 | U48: =B456 -> 50.28275299 | W48: 50.4754378 | X48: 51.04581865 | Y48: 50.03411102 | AA48: 50.79239941 | AB48: 47.65134811 | AC48: 49.79853439 | AD48: 51.17781353 | AE48: 52.28001785 | AG48: 1958 | AH48: ='Compile Data'!C445 -> 51.95570755 | AI48: ='Compile Data'!C446 -> 53.46276474 | AJ48: ='Compile Data'!C447 -> 50.51136398 | AK48: ='Compile Data'!C448 -> 47.15786362 | AL48: ='Compile Data'!C449 -> 45.26054764 | AM48: ='Compile Data'!C450 -> 45.68519974 | AN48: ='Compile Data'!C451 -> 49.86230087 | AO48: ='Compile Data'!C452 -> 51.68717957 | AP48: ='Compile Data'!C453 -> 51.93420029 | AQ48: ='Compile Data'!C454 -> 51.17696381 | AR48: ='Compile Data'!C455 -> 51.30860901 | AS48: ='Compile Data'!C456 -> 50.28268433 | AU48: 50.4701163 | AV48: 51.04181576 | AW48: 50.02378209 | AY48: 50.77192497 | AZ48: 47.64325841 | BA48: 49.79222012 | BB48: 51.17561436 | BC48: 52.27843221 | BE48: 1958 | BF48: ='Compile Data'!D445 -> 51.73020554 | BG48: ='Compile Data'!D446 -> 53.46173859 | BH48: ='Compile Data'!D447 -> 50.51211929 | BI48: ='Compile Data'!D448 -> 47.15591049 | BJ48: ='Compile Data'!D449 -> 45.25754547 | BK48: ='Compile Data'!D450 -> 45.68233109 | BL48: ='Compile Data'!D451 -> 49.85431671 | BM48: ='Compile Data'!D452 -> 51.68887711 | BN48: ='Compile Data'!D453 -> 51.93104935 | BO48: ='Compile Data'!D454 -> 51.17567825 | BP48: ='Compile Data'!D455 -> 51.31816864 | BQ48: ='Compile Data'!D456 -> 50.29725647 | BS48: 50.46872234 | BT48: 51.04015446 | BU48: 50.00543308 | BW48: 50.71499348 | BX48: 47.64185842 | BY48: 49.78914356 | BZ48: 51.18053818 | CA48: 52.27155558 | CC48: 1958 | CD48: ='Compile Data'!E445 -> 51.95948029 | CE48: ='Compile Data'!E446 -> 53.46421814 | CF48: ='Compile Data'!E447 -> 50.51073074 | CG48: ='Compile Data'!E448 -> 47.15618515 | CH48: ='Compile Data'!E449 -> 45.26016998 | CI48: ='Compile Data'!E450 -> 45.6841011 | CJ48: ='Compile Data'!E451 -> 49.86458969 | CK48: ='Compile Data'!E452 -> 51.69347763 | CL48: ='Compile Data'!E453 -> 51.93409348 | CM48: ='Compile Data'!E454 -> 51.17698669 | CN48: ='Compile Data'!E455 -> 51.30909729 | CO48: ='Compile Data'!E456 -> 50.29541016 | CQ48: 50.47021675 | CR48: 51.04225572 | CS48: 50.0257117 | CU48: 50.77265358 | CV48: 47.64236196 | CW48: 49.79406548 | CX48: 51.1788969 | CY48: 52.27809779 | DA48: 1958 | DB48: ='Compile Data'!#REF! ->  | DC48: ='Compile Data'!#REF! ->  | DD48: ='Compile Data'!#REF! ->  | DE48: ='Compile Data'!#REF! ->  | DF48: ='Compile Data'!#REF! ->  | DG48: ='Compile Data'!#REF! ->  | DH48: ='Compile Data'!#REF! ->  | DI48: ='Compile Data'!#REF! ->  | DJ48: ='Compile Data'!#REF! ->  | DK48: ='Compile Data'!#REF! ->  | DL48: ='Compile Data'!#REF! ->  | DM48: ='Compile Data'!#REF! ->  | DY48: 1958 | DZ48: ='Compile Data'!E445 -> 51.95948029 | EA48: ='Compile Data'!E446 -> 53.46421814 | EB48: ='Compile Data'!E447 -> 50.51073074 | EC48: ='Compile Data'!E448 -> 47.15618515 | ED48: ='Compile Data'!E449 -> 45.26016998 | EE48: ='Compile Data'!E450 -> 45.6841011 | EF48: ='Compile Data'!E451 -> 49.86458969 | EG48: ='Compile Data'!E452 -> 51.69347763 | EH48: ='Compile Data'!E453 -> 51.93409348 | EI48: ='Compile Data'!E454 -> 51.17698669 | EJ48: ='Compile Data'!E455 -> 51.30909729 | EK48: ='Compile Data'!E456 -> 50.29541016 | EM48: 50.47021675 | EN48: 51.04225572 | EO48: 50.0257117 | EQ48: 50.77265358 | ER48: 47.64236196 | ES48: 49.79406548 | ET48: 51.1788969 | EU48: 52.27809779
A49: 1924-10-31 | B49: =IF(INDIRECT(CONCATENATE("'",B$1,"'!",B$4,(YEAR($A49)-1921)*12+MONTH($A49)+3+IF(ISNUMBER(FIND("PRV",B$6)),1,0)))=-901,NA(),INDIRECT(CONCATENATE("'",B$1,"'!",B$4,(YEAR($A49)-1921)*12+MONTH($A49)+3+IF(ISNUMBER(FIND("PRV",B$6)),1,0)))*IF(AND(B$3>0,TRIM(B$9)="CFS"),Conv_Flags!$C49,1)) -> 56.28923035 | C49: =IF(INDIRECT(CONCATENATE("'",C$1,"'!",C$4,(YEAR($A49)-1921)*12+MONTH($A49)+3+IF(ISNUMBER(FIND("PRV",C$6)),1,0)))=-901,NA(),INDIRECT(CONCATENATE("'",C$1,"'!",C$4,(YEAR($A49)-1921)*12+MONTH($A49)+3+IF(ISNUMBER(FIND("PRV",C$6)),1,0)))*IF(AND(C$3>0,TRIM(C$9)="CFS"),Conv_Flags!$C49,1)) -> 55.85247803 | D49: =IF(INDIRECT(CONCATENATE("'",D$1,"'!",D$4,(YEAR($A49)-1921)*12+MONTH($A49)+3+IF(ISNUMBER(FIND("PRV",D$6)),1,0)))=-901,NA(),INDIRECT(CONCATENATE("'",D$1,"'!",D$4,(YEAR($A49)-1921)*12+MONTH($A49)+3+IF(ISNUMBER(FIND("PRV",D$6)),1,0)))*IF(AND(D$3>0,TRIM(D$9)="CFS"),Conv_Flags!$C49,1)) -> 55.91638184 | E49: =IF(INDIRECT(CONCATENATE("'",E$1,"'!",E$4,(YEAR($A49)-1921)*12+MONTH($A49)+3+IF(ISNUMBER(FIND("PRV",E$6)),1,0)))=-901,NA(),INDIRECT(CONCATENATE("'",E$1,"'!",E$4,(YEAR($A49)-1921)*12+MONTH($A49)+3+IF(ISNUMBER(FIND("PRV",E$6)),1,0)))*IF(AND(E$3>0,TRIM(E$9)="CFS"),Conv_Flags!$C49,1)) -> 55.7235527 | I49: 1959 | J49: =B457 -> 52.01428223 | K49: =B458 -> 54.54301834 | L49: =B459 -> 54.73971558 | M49: =B460 -> 50.76423645 | N49: =B461 -> 48.51734924 | O49: =B462 -> 51.63737106 | P49: =B463 -> 55.96421051 | Q49: =B464 -> 53.60753632 | R49: =B465 -> 51.3050499 | S49: =B466 -> 50.87036133 | T49: =B467 -> 52.12213516 | U49: =B468 -> 53.89011002 | W49: 52.54156621 | X49: 52.47862116 | Y49: 52.49794801 | AA49: 53.01531315 | AB49: 51.34043376 | AC49: 53.12854195 | AD49: 52.0469141 | AE49: 53.90368398 | AG49: 1959 | AH49: ='Compile Data'!C457 -> 52.01288605 | AI49: ='Compile Data'!C458 -> 54.53972626 | AJ49: ='Compile Data'!C459 -> 54.73323441 | AK49: ='Compile Data'!C460 -> 50.76519012 | AL49: ='Compile Data'!C461 -> 48.51361465 | AM49: ='Compile Data'!C462 -> 51.63286591 | AN49: ='Compile Data'!C463 -> 55.80409241 | AO49: ='Compile Data'!C464 -> 53.62690735 | AP49: ='Compile Data'!C465 -> 51.303936 | AQ49: ='Compile Data'!C466 -> 50.86732864 | AR49: ='Compile Data'!C467 -> 52.13278961 | AS49: ='Compile Data'!C468 -> 53.96581268 | AU49: 52.53412914 | AV49: 52.4718984 | AW49: 52.49153201 | AY49: 53.01275921 | AZ49: 51.33734639 | BA49: 53.09195042 | BB49: 52.06746674 | BC49: 53.92541504 | BE49: 1959 | BF49: ='Compile Data'!D457 -> 52.00839996 | BG49: ='Compile Data'!D458 -> 54.50901031 | BH49: ='Compile Data'!D459 -> 54.74612427 | BI49: ='Compile Data'!D460 -> 50.7625618 | BJ49: ='Compile Data'!D461 -> 48.50807953 | BK49: ='Compile Data'!D462 -> 51.63271713 | BL49: ='Compile Data'!D463 -> 56.10808182 | BM49: ='Compile Data'!D464 -> 53.99204636 | BN49: ='Compile Data'!D465 -> 51.30252457 | BO49: ='Compile Data'!D466 -> 50.88150787 | BP49: ='Compile Data'!D467 -> 52.04703903 | BQ49: ='Compile Data'!D468 -> 53.78842163 | BS49: 52.53559462 | BT49: 52.47339916 | BU49: 52.52387619 | BW49: 53.00652409 | BX49: 51.33892186 | BY49: 53.25884247 | BZ49: 52.00487328 | CA49: 53.75353495 | CC49: 1959 | CD49: ='Compile Data'!E457 -> 52.00381088 | CE49: ='Compile Data'!E458 -> 54.53507233 | CF49: ='Compile Data'!E459 -> 54.72960663 | CG49: ='Compile Data'!E460 -> 50.76545334 | CH49: ='Compile Data'!E461 -> 48.51536942 | CI49: ='Compile Data'!E462 -> 51.63518906 | CJ49: ='Compile Data'!E463 -> 55.80913544 | CK49: ='Compile Data'!E464 -> 53.63087082 | CL49: ='Compile Data'!E465 -> 51.30379105 | CM49: ='Compile Data'!E466 -> 50.86576843 | CN49: ='Compile Data'!E467 -> 52.13151169 | CO49: ='Compile Data'!E468 -> 53.96604919 | CQ49: 52.5363369 | CR49: 52.47360102 | CS49: 52.49096902 | CU49: 53.00848579 | CV49: 51.33680979 | CW49: 53.09474659 | CX49: 52.06678009 | CY49: 53.9277153 | DA49: 1959 | DB49: ='Compile Data'!#REF! ->  | DC49: ='Compile Data'!#REF! ->  | DD49: ='Compile Data'!#REF! ->  | DE49: ='Compile Data'!#REF! ->  | DF49: ='Compile Data'!#REF! ->  | DG49: ='Compile Data'!#REF! ->  | DH49: ='Compile Data'!#REF! ->  | DI49: ='Compile Data'!#REF! ->  | DJ49: ='Compile Data'!#REF! ->  | DK49: ='Compile Data'!#REF! ->  | DL49: ='Compile Data'!#REF! ->  | DM49: ='Compile Data'!#REF! ->  | DY49: 1959 | DZ49: ='Compile Data'!E457 -> 52.00381088 | EA49: ='Compile Data'!E458 -> 54.53507233 | EB49: ='Compile Data'!E459 -> 54.72960663 | EC49: ='Compile Data'!E460 -> 50.76545334 | ED49: ='Compile Data'!E461 -> 48.51536942 | EE49: ='Compile Data'!E462 -> 51.63518906 | EF49: ='Compile Data'!E463 -> 55.80913544 | EG49: ='Compile Data'!E464 -> 53.63087082 | EH49: ='Compile Data'!E465 -> 51.30379105 | EI49: ='Compile Data'!E466 -> 50.86576843 | EJ49: ='Compile Data'!E467 -> 52.13151169 | EK49: ='Compile Data'!E468 -> 53.96604919 | EM49: 52.5363369 | EN49: 52.47360102 | EO49: 52.49096902 | EQ49: 53.00848579 | ER49: 51.33680979 | ES49: 53.09474659 | ET49: 52.06678009 | EU49: 53.9277153
A50: 1924-11-30 | B50: =IF(INDIRECT(CONCATENATE("'",B$1,"'!",B$4,(YEAR($A50)-1921)*12+MONTH($A50)+3+IF(ISNUMBER(FIND("PRV",B$6)),1,0)))=-901,NA(),INDIRECT(CONCATENATE("'",B$1,"'!",B$4,(YEAR($A50)-1921)*12+MONTH($A50)+3+IF(ISNUMBER(FIND("PRV",B$6)),1,0)))*IF(AND(B$3>0,TRIM(B$9)="CFS"),Conv_Flags!$C50,1)) -> 53.95716095 | C50: =IF(INDIRECT(CONCATENATE("'",C$1,"'!",C$4,(YEAR($A50)-1921)*12+MONTH($A50)+3+IF(ISNUMBER(FIND("PRV",C$6)),1,0)))=-901,NA(),INDIRECT(CONCATENATE("'",C$1,"'!",C$4,(YEAR($A50)-1921)*12+MONTH($A50)+3+IF(ISNUMBER(FIND("PRV",C$6)),1,0)))*IF(AND(C$3>0,TRIM(C$9)="CFS"),Conv_Flags!$C50,1)) -> 53.94449234 | D50: =IF(INDIRECT(CONCATENATE("'",D$1,"'!",D$4,(YEAR($A50)-1921)*12+MONTH($A50)+3+IF(ISNUMBER(FIND("PRV",D$6)),1,0)))=-901,NA(),INDIRECT(CONCATENATE("'",D$1,"'!",D$4,(YEAR($A50)-1921)*12+MONTH($A50)+3+IF(ISNUMBER(FIND("PRV",D$6)),1,0)))*IF(AND(D$3>0,TRIM(D$9)="CFS"),Conv_Flags!$C50,1)) -> 53.94263077 | E50: =IF(INDIRECT(CONCATENATE("'",E$1,"'!",E$4,(YEAR($A50)-1921)*12+MONTH($A50)+3+IF(ISNUMBER(FIND("PRV",E$6)),1,0)))=-901,NA(),INDIRECT(CONCATENATE("'",E$1,"'!",E$4,(YEAR($A50)-1921)*12+MONTH($A50)+3+IF(ISNUMBER(FIND("PRV",E$6)),1,0)))*IF(AND(E$3>0,TRIM(E$9)="CFS"),Conv_Flags!$C50,1)) -> 53.9117012 | I50: 1960 | J50: =B469 -> 53.36342621 | K50: =B470 -> 54.45751572 | L50: =B471 -> 53.99949265 | M50: =B472 -> 50.08551025 | N50: =B473 -> 48.44073486 | O50: =B474 -> 50.07442856 | P50: =B475 -> 53.57490921 | Q50: =B476 -> 54.83157349 | R50: =B477 -> 51.99809647 | S50: =B478 -> 51.64497375 | T50: =B479 -> 52.01022339 | U50: =B480 -> 52.36772537 | W50: 51.75718848 | X50: 51.39076424 | Y50: 52.23738416 | AA50: 52.97648621 | AB50: 50.84191259 | AC50: 52.61975193 | AD50: 52.00525475 | AE50: 52.74491882 | AG50: 1960 | AH50: ='Compile Data'!C469 -> 53.3573494 | AI50: ='Compile Data'!C470 -> 54.45308304 | AJ50: ='Compile Data'!C471 -> 53.9865799 | AK50: ='Compile Data'!C472 -> 50.07909775 | AL50: ='Compile Data'!C473 -> 48.45293808 | AM50: ='Compile Data'!C474 -> 50.09712219 | AN50: ='Compile Data'!C475 -> 53.46397781 | AO50: ='Compile Data'!C476 -> 54.92992783 | AP50: ='Compile Data'!C477 -> 52.42053223 | AQ50: ='Compile Data'!C478 -> 51.55102921 | AR50: ='Compile Data'!C479 -> 51.79240799 | AS50: ='Compile Data'!C480 -> 52.07702255 | AU50: 51.74996185 | AV50: 51.38532829 | AW50: 52.22175566 | AY50: 52.96902752 | AZ50: 50.83953857 | BA50: 52.72789001 | BB50: 51.96024799 | BC50: 52.64640681 | BE50: 1960 | BF50: ='Compile Data'!D469 -> 53.06328964 | BG50: ='Compile Data'!D470 -> 54.40889359 | BH50: ='Compile Data'!D471 -> 53.9319725 | BI50: ='Compile Data'!D472 -> 50.07421494 | BJ50: ='Compile Data'!D473 -> 48.45008087 | BK50: ='Compile Data'!D474 -> 50.12050629 | BL50: ='Compile Data'!D475 -> 53.54295731 | BM50: ='Compile Data'!D476 -> 54.65948868 | BN50: ='Compile Data'!D477 -> 51.63374329 | BO50: ='Compile Data'!D478 -> 51.64489746 | BP50: ='Compile Data'!D479 -> 52.00952911 | BQ50: ='Compile Data'!D480 -> 52.2562561 | BS50: 51.72775141 | BT50: 51.36013858 | BU50: 52.14965248 | BW50: 52.86959267 | BX50: 50.8187561 | BY50: 52.48917389 | BZ50: 51.88610649 | CA50: 52.73297882 | CC50: 1960 | CD50: ='Compile Data'!E469 -> 53.35782242 | CE50: ='Compile Data'!E470 -> 54.45927429 | CF50: ='Compile Data'!E471 -> 53.99580765 | CG50: ='Compile Data'!E472 -> 50.08450699 | CH50: ='Compile Data'!E473 -> 48.44348526 | CI50: ='Compile Data'!E474 -> 50.07767868 | CJ50: ='Compile Data'!E475 -> 53.45117569 | CK50: ='Compile Data'!E476 -> 54.9262619 | CL50: ='Compile Data'!E477 -> 52.41474152 | CM50: ='Compile Data'!E478 -> 51.55441666 | CN50: ='Compile Data'!E479 -> 51.78103256 | CO50: ='Compile Data'!E480 -> 52.06605911 | CQ50: 51.74299717 | CR50: 51.37779903 | CS50: 52.21768856 | CU50: 52.97435284 | CV50: 50.84126663 | CW50: 52.71746445 | CX50: 51.95406246 | CY50: 52.63950602 | DA50: 1960 | DB50: ='Compile Data'!#REF! ->  | DC50: ='Compile Data'!#REF! ->  | DD50: ='Compile Data'!#REF! ->  | DE50: ='Compile Data'!#REF! ->  | DF50: ='Compile Data'!#REF! ->  | DG50: ='Compile Data'!#REF! ->  | DH50: ='Compile Data'!#REF! ->  | DI50: ='Compile Data'!#REF! ->  | DJ50: ='Compile Data'!#REF! ->  | DK50: ='Compile Data'!#REF! ->  | DL50: ='Compile Data'!#REF! ->  | DM50: ='Compile Data'!#REF! ->  | DY50: 1960 | DZ50: ='Compile Data'!E469 -> 53.35782242 | EA50: ='Compile Data'!E470 -> 54.45927429 | EB50: ='Compile Data'!E471 -> 53.99580765 | EC50: ='Compile Data'!E472 -> 50.08450699 | ED50: ='Compile Data'!E473 -> 48.44348526 | EE50: ='Compile Data'!E474 -> 50.07767868 | EF50: ='Compile Data'!E475 -> 53.45117569 | EG50: ='Compile Data'!E476 -> 54.9262619 | EH50: ='Compile Data'!E477 -> 52.41474152 | EI50: ='Compile Data'!E478 -> 51.55441666 | EJ50: ='Compile Data'!E479 -> 51.78103256 | EK50: ='Compile Data'!E480 -> 52.06605911 | EM50: 51.74299717 | EN50: 51.37779903 | EO50: 52.21768856 | EQ50: 52.97435284 | ER50: 50.84126663 | ES50: 52.71746445 | ET50: 51.95406246 | EU50: 52.63950602
A51: 1924-12-31 | B51: =IF(INDIRECT(CONCATENATE("'",B$1,"'!",B$4,(YEAR($A51)-1921)*12+MONTH($A51)+3+IF(ISNUMBER(FIND("PRV",B$6)),1,0)))=-901,NA(),INDIRECT(CONCATENATE("'",B$1,"'!",B$4,(YEAR($A51)-1921)*12+MONTH($A51)+3+IF(ISNUMBER(FIND("PRV",B$6)),1,0)))*IF(AND(B$3>0,TRIM(B$9)="CFS"),Conv_Flags!$C51,1)) -> 49.50402069 | C51: =IF(INDIRECT(CONCATENATE("'",C$1,"'!",C$4,(YEAR($A51)-1921)*12+MONTH($A51)+3+IF(ISNUMBER(FIND("PRV",C$6)),1,0)))=-901,NA(),INDIRECT(CONCATENATE("'",C$1,"'!",C$4,(YEAR($A51)-1921)*12+MONTH($A51)+3+IF(ISNUMBER(FIND("PRV",C$6)),1,0)))*IF(AND(C$3>0,TRIM(C$9)="CFS"),Conv_Flags!$C51,1)) -> 49.55007172 | D51: =IF(INDIRECT(CONCATENATE("'",D$1,"'!",D$4,(YEAR($A51)-1921)*12+MONTH($A51)+3+IF(ISNUMBER(FIND("PRV",D$6)),1,0)))=-901,NA(),INDIRECT(CONCATENATE("'",D$1,"'!",D$4,(YEAR($A51)-1921)*12+MONTH($A51)+3+IF(ISNUMBER(FIND("PRV",D$6)),1,0)))*IF(AND(D$3>0,TRIM(D$9)="CFS"),Conv_Flags!$C51,1)) -> 49.54091263 | E51: =IF(INDIRECT(CONCATENATE("'",E$1,"'!",E$4,(YEAR($A51)-1921)*12+MONTH($A51)+3+IF(ISNUMBER(FIND("PRV",E$6)),1,0)))=-901,NA(),INDIRECT(CONCATENATE("'",E$1,"'!",E$4,(YEAR($A51)-1921)*12+MONTH($A51)+3+IF(ISNUMBER(FIND("PRV",E$6)),1,0)))*IF(AND(E$3>0,TRIM(E$9)="CFS"),Conv_Flags!$C51,1)) -> 49.56352997 | I51: 1961 | J51: =B481 -> 52.4813385 | K51: =B482 -> 53.3856926 | L51: =B483 -> 50.1910553 | M51: =B484 -> 47.13113403 | N51: =B485 -> 46.99802017 | O51: =B486 -> 48.62649536 | P51: =B487 -> 53.34783173 | Q51: =B488 -> 51.71295547 | R51: =B489 -> 51.27796173 | S51: =B490 -> 50.98301697 | T51: =B491 -> 52.32929993 | U51: =B492 -> 52.43929672 | W51: 50.85993322 | X51: 50.7359794 | Y51: 50.90867488 | AA51: 50.79730511 | AB51: 48.1067365 | AC51: 51.24131107 | AD51: 51.75739384 | AE51: 52.72532527 | AG51: 1961 | AH51: ='Compile Data'!C481 -> 52.39379883 | AI51: ='Compile Data'!C482 -> 53.46839905 | AJ51: ='Compile Data'!C483 -> 50.27328873 | AK51: ='Compile Data'!C484 -> 47.1157074 | AL51: ='Compile Data'!C485 -> 47.04072571 | AM51: ='Compile Data'!C486 -> 48.6242981 | AN51: ='Compile Data'!C487 -> 53.35942459 | AO51: ='Compile Data'!C488 -> 51.67113113 | AP51: ='Compile Data'!C489 -> 51.26401901 | AQ51: ='Compile Data'!C490 -> 50.95574188 | AR51: ='Compile Data'!C491 -> 52.28984451 | AS51: ='Compile Data'!C492 -> 52.38645554 | AU51: 50.86271063 | AV51: 50.73973401 | AW51: 50.90356954 | AY51: 50.8127985 | AZ51: 48.14324061 | BA51: 51.22971821 | BB51: 51.72401524 | BC51: 52.73629379 | BE51: 1961 | BF51: ='Compile Data'!D481 -> 52.40887451 | BG51: ='Compile Data'!D482 -> 53.53380585 | BH51: ='Compile Data'!D483 -> 50.39866257 | BI51: ='Compile Data'!D484 -> 47.10143661 | BJ51: ='Compile Data'!D485 -> 47.01150513 | BK51: ='Compile Data'!D486 -> 48.650177 | BL51: ='Compile Data'!D487 -> 53.37402344 | BM51: ='Compile Data'!D488 -> 51.81101608 | BN51: ='Compile Data'!D489 -> 51.25556946 | BO51: ='Compile Data'!D490 -> 50.94550705 | BP51: ='Compile Data'!D491 -> 52.28684998 | BQ51: ='Compile Data'!D492 -> 52.36175919 | BS51: 50.86318366 | BT51: 50.74060822 | BU51: 50.92826557 | BW51: 50.86069489 | BX51: 48.17053477 | BY51: 51.2726965 | BZ51: 51.71242142 | CA51: 52.71264394 | CC51: 1961 | CD51: ='Compile Data'!E481 -> 52.38251114 | CE51: ='Compile Data'!E482 -> 53.46994781 | CF51: ='Compile Data'!E483 -> 50.26414871 | CG51: ='Compile Data'!E484 -> 47.11270142 | CH51: ='Compile Data'!E485 -> 47.03291321 | CI51: ='Compile Data'!E486 -> 48.62388611 | CJ51: ='Compile Data'!E487 -> 53.35969925 | CK51: ='Compile Data'!E488 -> 51.66482925 | CL51: ='Compile Data'!E489 -> 51.26988602 | CM51: ='Compile Data'!E490 -> 50.96034241 | CN51: ='Compile Data'!E491 -> 52.27973175 | CO51: ='Compile Data'!E492 -> 52.38463974 | CQ51: 50.85327085 | CR51: 50.73150571 | CS51: 50.9004364 | CU51: 50.80732727 | CV51: 48.13658778 | CW51: 51.22957516 | CX51: 51.72364998 | CY51: 52.70817184 | DA51: 1961 | DB51: ='Compile Data'!#REF! ->  | DC51: ='Compile Data'!#REF! ->  | DD51: ='Compile Data'!#REF! ->  | DE51: ='Compile Data'!#REF! ->  | DF51: ='Compile Data'!#REF! ->  | DG51: ='Compile Data'!#REF! ->  | DH51: ='Compile Data'!#REF! ->  | DI51: ='Compile Data'!#REF! ->  | DJ51: ='Compile Data'!#REF! ->  | DK51: ='Compile Data'!#REF! ->  | DL51: ='Compile Data'!#REF! ->  | DM51: ='Compile Data'!#REF! ->  | DY51: 1961 | DZ51: ='Compile Data'!E481 -> 52.38251114 | EA51: ='Compile Data'!E482 -> 53.46994781 | EB51: ='Compile Data'!E483 -> 50.26414871 | EC51: ='Compile Data'!E484 -> 47.11270142 | ED51: ='Compile Data'!E485 -> 47.03291321 | EE51: ='Compile Data'!E486 -> 48.62388611 | EF51: ='Compile Data'!E487 -> 53.35969925 | EG51: ='Compile Data'!E488 -> 51.66482925 | EH51: ='Compile Data'!E489 -> 51.26988602 | EI51: ='Compile Data'!E490 -> 50.96034241 | EJ51: ='Compile Data'!E491 -> 52.27973175 | EK51: ='Compile Data'!E492 -> 52.38463974 | EM51: 50.85327085 | EN51: 50.73150571 | EO51: 50.9004364 | EQ51: 50.80732727 | ER51: 48.13658778 | ES51: 51.22957516 | ET51: 51.72364998 | EU51: 52.70817184
A52: 1925-01-31 | B52: =IF(INDIRECT(CONCATENATE("'",B$1,"'!",B$4,(YEAR($A52)-1921)*12+MONTH($A52)+3+IF(ISNUMBER(FIND("PRV",B$6)),1,0)))=-901,NA(),INDIRECT(CONCATENATE("'",B$1,"'!",B$4,(YEAR($A52)-1921)*12+MONTH($A52)+3+IF(ISNUMBER(FIND("PRV",B$6)),1,0)))*IF(AND(B$3>0,TRIM(B$9)="CFS"),Conv_Flags!$C52,1)) -> 47.09355545 | C52: =IF(INDIRECT(CONCATENATE("'",C$1,"'!",C$4,(YEAR($A52)-1921)*12+MONTH($A52)+3+IF(ISNUMBER(FIND("PRV",C$6)),1,0)))=-901,NA(),INDIRECT(CONCATENATE("'",C$1,"'!",C$4,(YEAR($A52)-1921)*12+MONTH($A52)+3+IF(ISNUMBER(FIND("PRV",C$6)),1,0)))*IF(AND(C$3>0,TRIM(C$9)="CFS"),Conv_Flags!$C52,1)) -> 47.25904846 | D52: =IF(INDIRECT(CONCATENATE("'",D$1,"'!",D$4,(YEAR($A52)-1921)*12+MONTH($A52)+3+IF(ISNUMBER(FIND("PRV",D$6)),1,0)))=-901,NA(),INDIRECT(CONCATENATE("'",D$1,"'!",D$4,(YEAR($A52)-1921)*12+MONTH($A52)+3+IF(ISNUMBER(FIND("PRV",D$6)),1,0)))*IF(AND(D$3>0,TRIM(D$9)="CFS"),Conv_Flags!$C52,1)) -> 47.22964478 | E52: =IF(INDIRECT(CONCATENATE("'",E$1,"'!",E$4,(YEAR($A52)-1921)*12+MONTH($A52)+3+IF(ISNUMBER(FIND("PRV",E$6)),1,0)))=-901,NA(),INDIRECT(CONCATENATE("'",E$1,"'!",E$4,(YEAR($A52)-1921)*12+MONTH($A52)+3+IF(ISNUMBER(FIND("PRV",E$6)),1,0)))*IF(AND(E$3>0,TRIM(E$9)="CFS"),Conv_Flags!$C52,1)) -> 47.30503464 | I52: 1962 | J52: =B493 -> 52.0695076 | K52: =B494 -> 53.66717148 | L52: =B495 -> 49.73650742 | M52: =B496 -> 47.07607651 | N52: =B497 -> 45.56563187 | O52: =B498 -> 47.99744797 | P52: =B499 -> 53.68130875 | Q52: =B500 -> 52.2261467 | R52: =B501 -> 51.68111801 | S52: =B502 -> 50.80674744 | T52: =B503 -> 51.91821671 | U52: =B504 -> 52.02202988 | W52: 50.77968502 | X52: 50.85386817 | Y52: 50.70399253 | AA52: 50.63731575 | AB52: 47.45940526 | AC52: 51.39650536 | AD52: 51.60702801 | AE52: 52.58306249 | AG52: 1962 | AH52: ='Compile Data'!C493 -> 52.10743713 | AI52: ='Compile Data'!C494 -> 53.71498871 | AJ52: ='Compile Data'!C495 -> 49.82275391 | AK52: ='Compile Data'!C496 -> 47.09656906 | AL52: ='Compile Data'!C497 -> 45.58414459 | AM52: ='Compile Data'!C498 -> 47.99996185 | AN52: ='Compile Data'!C499 -> 53.68196487 | AO52: ='Compile Data'!C500 -> 52.28009415 | AP52: ='Compile Data'!C501 -> 51.73144913 | AQ52: ='Compile Data'!C502 -> 50.7632637 | AR52: ='Compile Data'!C503 -> 51.9079895 | AS52: ='Compile Data'!C504 -> 52.12704086 | AU52: 50.79556465 | AV52: 50.86181768 | AW52: 50.73480479 | AY52: 50.6854372 | AZ52: 47.50115585 | BA52: 51.4233675 | BB52: 51.6324358 | BC52: 52.61831792 | BE52: 1962 | BF52: ='Compile Data'!D493 -> 52.08249664 | BG52: ='Compile Data'!D494 -> 53.69367599 | BH52: ='Compile Data'!D495 -> 49.78418732 | BI52: ='Compile Data'!D496 -> 47.0691185 | BJ52: ='Compile Data'!D497 -> 45.57291794 | BK52: ='Compile Data'!D498 -> 47.99970627 | BL52: ='Compile Data'!D499 -> 53.68939209 | BM52: ='Compile Data'!D500 -> 52.46039581 | BN52: ='Compile Data'!D501 -> 51.74505997 | BO52: ='Compile Data'!D502 -> 50.73687363 | BP52: ='Compile Data'!D503 -> 51.89271927 | BQ52: ='Compile Data'!D504 -> 52.04582596 | BS52: 50.79738935 | BT52: 50.86825848 | BU52: 50.73103078 | BW52: 50.65736961 | BX52: 47.47540792 | BY52: 51.47363853 | BZ52: 51.60511971 | CA52: 52.57896805 | CC52: 1962 | CD52: ='Compile Data'!E493 -> 52.09075928 | CE52: ='Compile Data'!E494 -> 53.64911652 | CF52: ='Compile Data'!E495 -> 49.81074524 | CG52: ='Compile Data'!E496 -> 47.10357666 | CH52: ='Compile Data'!E497 -> 45.58085632 | CI52: ='Compile Data'!E498 -> 47.99924469 | CJ52: ='Compile Data'!E499 -> 53.67454529 | CK52: ='Compile Data'!E500 -> 52.27755356 | CL52: ='Compile Data'!E501 -> 51.73272705 | CM52: ='Compile Data'!E502 -> 50.76924133 | CN52: ='Compile Data'!E503 -> 51.88476562 | CO52: ='Compile Data'!E504 -> 52.2208786 | CQ52: 50.80033207 | CR52: 50.86620744 | CS52: 50.73283418 | CU52: 50.66354942 | CV52: 47.49839274 | CW52: 51.42101765 | CX52: 51.65190315 | CY52: 52.64697138 | DA52: 1962 | DB52: ='Compile Data'!#REF! ->  | DC52: ='Compile Data'!#REF! ->  | DD52: ='Compile Data'!#REF! ->  | DE52: ='Compile Data'!#REF! ->  | DF52: ='Compile Data'!#REF! ->  | DG52: ='Compile Data'!#REF! ->  | DH52: ='Compile Data'!#REF! ->  | DI52: ='Compile Data'!#REF! ->  | DJ52: ='Compile Data'!#REF! ->  | DK52: ='Compile Data'!#REF! ->  | DL52: ='Compile Data'!#REF! ->  | DM52: ='Compile Data'!#REF! ->  | DY52: 1962 | DZ52: ='Compile Data'!E493 -> 52.09075928 | EA52: ='Compile Data'!E494 -> 53.64911652 | EB52: ='Compile Data'!E495 -> 49.81074524 | EC52: ='Compile Data'!E496 -> 47.10357666 | ED52: ='Compile Data'!E497 -> 45.58085632 | EE52: ='Compile Data'!E498 -> 47.99924469 | EF52: ='Compile Data'!E499 -> 53.67454529 | EG52: ='Compile Data'!E500 -> 52.27755356 | EH52: ='Compile Data'!E501 -> 51.73272705 | EI52: ='Compile Data'!E502 -> 50.76924133 | EJ52: ='Compile Data'!E503 -> 51.88476562 | EK52: ='Compile Data'!E504 -> 52.2208786 | EM52: 50.80033207 | EN52: 50.86620744 | EO52: 50.73283418 | EQ52: 50.66354942 | ER52: 47.49839274 | ES52: 51.42101765 | ET52: 51.65190315 | EU52: 52.64697138
